{"text_format":"1","workbook":"xlsx","n_sheets":16,"sheets":["BrewReport","INFO","Labels","Data","Omregninger","Malt","Malt Data","Malt X-ref.","Humle","Humle X-ref.","Tilsætninger","Gær","Typer","Indkøb","Fejlsøgning","Links"],"not_rendered":{"charts":1,"images":9,"macros":1,"external_links":0,"defined_names":7,"comments":7,"pivot_tables":0},"unopened":[],"bounds":{"document_bytes":16777216,"sheet_cells":100000,"rows_first":2000,"rows_last":500,"rows_between":2000,"halvings":0,"cell_chars":16384,"cell_head_chars":4096},"cells_cut":0,"cells_raw":0,"read":"whole","date_system":"1900"}

{"sheet":"BrewReport","index":0,"n_rows":86,"n_cols":15,"rows_kept":86,"cut":false,"hidden":false,"merged":[[64,8,64,9],[70,9,70,14],[64,13,64,14],[58,13,58,14],[27,11,27,12],[29,8,29,10],[22,8,22,10],[60,8,60,14],[64,11,64,12],[65,13,66,14],[66,8,66,10],[53,11,53,14],[65,8,65,10],[56,13,57,14],[66,11,66,12],[55,11,55,12],[65,11,65,12],[58,8,58,10],[56,11,56,12],[49,8,49,10],[62,11,62,14],[63,11,63,14],[58,11,58,12],[40,8,40,10],[2,6,2,9],[65,5,65,6],[64,5,64,6],[63,5,63,6],[62,5,62,6],[61,5,61,6],[23,5,23,6],[22,5,22,6],[25,5,25,6],[26,5,26,6],[27,5,27,6],[28,5,28,6],[29,5,29,6],[30,5,30,6],[31,5,31,6],[3,6,3,7],[39,5,39,6],[40,5,40,6],[41,5,41,6],[42,5,42,6],[43,5,43,6],[44,5,44,6],[57,5,57,6],[56,5,56,6],[37,5,37,6],[24,5,24,6],[32,5,32,6],[33,5,33,6],[34,5,34,6],[35,5,35,6],[36,5,36,6],[55,5,55,6],[54,5,54,6],[53,5,53,6],[52,5,52,6],[51,5,51,6],[50,5,50,6],[49,5,49,6],[48,5,48,6],[47,5,47,6],[6,5,6,6],[7,5,7,6],[18,5,18,6],[17,5,17,6],[16,5,16,6],[15,5,15,6],[14,5,14,6],[13,5,13,6],[12,5,12,6],[11,5,11,6],[10,5,10,6],[9,5,9,6],[8,5,8,6],[20,5,21,6],[74,11,74,12],[72,13,72,14],[83,4,83,7],[84,4,84,7],[85,1,85,7],[79,4,79,7],[79,1,79,3],[70,1,70,2],[84,1,84,3],[83,1,83,3],[82,1,82,3],[81,1,81,3],[80,1,80,3],[71,0,77,6],[81,4,81,7],[82,4,82,7],[70,3,70,6],[59,0,59,6],[60,2,60,6],[68,5,68,6],[67,5,67,6],[66,5,66,6],[57,8,57,10],[80,8,80,11],[80,12,80,14],[71,11,71,14],[67,8,67,10],[76,11,76,12],[76,8,76,10],[80,4,80,7],[77,13,77,14],[75,8,75,10],[73,8,73,10],[72,8,72,10],[69,8,69,14],[73,11,73,12],[71,8,71,10],[75,11,75,12],[72,11,72,12],[67,11,67,12],[67,13,67,14],[74,8,74,9],[1,0,1,2],[57,0,57,2],[55,0,55,2],[54,0,54,2],[56,0,56,2],[52,0,52,2],[50,0,50,2],[48,0,48,2],[53,0,53,2],[51,0,51,2],[49,0,49,2],[43,0,43,2],[42,0,42,2],[41,0,41,2],[40,0,40,2],[39,0,39,2],[6,0,6,3],[2,3,2,4],[44,0,44,2],[5,0,5,2],[3,0,3,2],[2,0,2,2],[46,0,46,6],[38,5,38,6],[2,12,2,14],[15,8,15,10],[23,11,23,12],[22,11,22,12],[32,11,32,12],[32,8,32,10],[44,8,44,10],[27,8,27,10],[28,8,28,10],[31,8,31,10],[37,11,37,12],[12,8,12,10],[11,8,11,10],[10,8,10,10],[8,8,8,10],[6,8,6,14],[16,8,16,10],[28,11,28,12],[3,11,3,12],[38,8,38,10],[40,11,40,12],[21,8,21,10],[7,12,7,13],[30,11,30,12],[5,11,5,12],[85,8,85,11],[85,12,85,14],[83,8,83,11],[83,12,83,14],[81,8,81,11],[81,12,81,14],[82,8,82,11],[82,12,82,14],[84,8,84,11],[84,12,84,14],[48,13,48,14],[48,11,48,12],[49,11,49,12],[73,13,73,14],[74,13,74,14],[75,13,76,14],[79,8,79,11],[79,12,79,14],[77,8,77,10],[77,11,77,12],[30,8,30,10],[57,11,57,12],[56,8,56,10],[0,0,0,2],[0,3,0,14],[56,3,56,4],[20,11,20,12],[21,11,21,12],[48,3,48,4],[42,11,42,12],[39,8,39,10],[39,11,39,12],[46,8,46,14],[38,11,38,12],[1,3,1,14],[7,8,7,10],[18,8,18,10],[9,8,9,10],[41,11,41,12],[25,11,25,12],[26,11,26,12],[54,11,54,14],[26,8,26,10],[36,8,36,10],[49,13,49,14],[55,13,55,14],[43,8,43,10],[14,8,14,10],[13,8,13,10],[24,11,24,12],[25,8,25,10],[51,8,51,14],[31,11,31,12],[42,8,42,10],[37,8,37,10],[47,8,47,12],[41,8,41,10],[44,11,44,12],[33,8,33,10],[33,11,33,12],[34,8,34,10],[34,11,34,12],[35,8,35,10],[35,11,35,12],[36,11,36,12],[43,11,43,12],[48,8,48,10],[29,11,29,12],[17,8,17,10],[20,8,20,10],[23,8,23,10],[24,8,24,10],[53,8,54,9],[62,8,63,9],[52,9,52,14],[61,9,61,14],[55,8,55,9]]}
["Bryggeri:",null,null,{"$f":"IF(Data!E2=\"\",\"\",Data!E2)","v":"Wolfhound Brewery"}]
["Bryg navn:"]
["Bryg nr.:",null,null,null,null,"Type:",null,null,null,null,{"$f":"IF($G$3=\"\",\"\",CONCATENATE(VLOOKUP($G$3,Typer!$C$4:$P$128,2,FALSE),VLOOKUP($G$3,Typer!$C$4:$P$128,3,FALSE)))","v":""},"Dato:"]
["Typiske data:",null,null,"EBC",{"$f":"IF($G$3=\"\",\"\",CONCATENATE(VLOOKUP($G$3,Typer!$C$4:$P$128,10,FALSE),\" - \",VLOOKUP($G$3,Typer!$C$4:$P$128,11,FALSE)))","v":""},"OG",{"$f":"IF($G$3=\"\",\"\",CONCATENATE(VLOOKUP($G$3,Typer!$C$3:$T$128,4,FALSE),\" - \",VLOOKUP($G$3,Typer!$C$3:$T$128,5,FALSE)))","v":""},null,"ABV %",{"$f":"IF($G$3=\"\",\"\",CONCATENATE(VLOOKUP($G$3,Typer!$C$3:$T$128,8,FALSE),\" - \",VLOOKUP($G$3,Typer!$C$3:$T$128,9,FALSE)))","v":""},"IBU",{"$f":"IFERROR(IF($G$3=\"\",\"\",CONCATENATE(VLOOKUP($G$3,Typer!$C$4:$P$128,12,FALSE),\" - \",VLOOKUP($G$3,Typer!$C$4:$P$128,13,FALSE))),\"\")","v":""},null,"RBR",{"$f":"IFERROR(IF($G$3=\"\",\"\",VLOOKUP($G$3,Typer!$C$4:$P$128,14,FALSE)),\"\")","v":""}]
[]
["Dette brygs data:",null,null,null,{"$f":"IF(Data!G26=0,\"\",Data!G26)","v":4},"OG",{"$f":"IF(D19=0,\"\",IF(D53=\"\",IF(M3=\"\",Data!I26,D51),IF(M3=\"\",Data!I26,D53)))","v":1002},null,"ABV %",{"$f":"IF(D58=\"\",IF(Data!I29=\"\",\"\",Data!I29),D58)","v":""},"IBU",{"$f":"IF(Data!I59=0,\"\",Data!I59)","v":""},null,"RBR",{"$f":"IF(AND(L54=\"\",L55=\"\"),\"\",IF(D55=\"\",IF(L6=\"\",\"\",(Data!I59/(G6-1000)*(1+((MAX(Data!G29:G30)/100)-0.7655)))),(Data!I59/(G6-1000)*(1+((D56/100)-0.7655)))))","v":""}]
["Ingredienser",null,null,null,"fra:","Hjemmebryggeren",null,null,"Mæskning"]
["Malttype","DP","EBC","Vægt","Enhed",null,null,null,"Proces",null,null,"Temp. ","Tid",null,"Starttider (tt:mm)"]
[null,{"$f":"IF(A9=\"\",\"\",(VLOOKUP(A9,Malt!$A$3:$E$85,5,FALSE)*D9))","v":""},{"$f":"IF(A9=\"\",\"\",VLOOKUP(A9,Malt!$A$3:$C$85,3,FALSE))","v":""},null,{"$f":"IF(D9=0,\"\",\"kg\")","v":""},null,null,null,null,null,null,"°C",{"$f":"IFERROR(((O22-O9)*1440),\"Fejl\")","v":124.00000000000004},{"$f":"IF(M9=0,\"\",\"min\")","v":"min"},"01:00:00"]
[null,{"$f":"IF(A10=\"\",\"\",(VLOOKUP(A10,Malt!$A$3:$E$85,5,FALSE)*D10))","v":""},{"$f":"IF(A10=\"\",\"\",VLOOKUP(A10,Malt!$A$3:$C$85,3,FALSE))","v":""},null,"",null,null,null,"Syre pause",null,null,null,null,{"$f":"IF(M10=0,\"\",\"min\")","v":""},{"$f":"IFERROR(IF($O$9<>\"\",IF(AND(M10>0),$O$9+TIME(,(L10-14)*Data!$E$7,),\"\"),\"\"),\"Fejl i indtast\")","v":""}]
[null,{"$f":"IF(A11=\"\",\"\",(VLOOKUP(A11,Malt!$A$3:$E$85,5,FALSE)*D11))","v":""},{"$f":"IF(A11=\"\",\"\",VLOOKUP(A11,Malt!$A$3:$C$85,3,FALSE))","v":""},null,"",null,null,null,"Syre / proteinpause",null,null,null,null,"",{"$f":"IFERROR(IF($O$9<>\"\",IF(AND(M10>0,M11>0),O10+TIME(,M10,)+TIME(,(L11-L10)*Data!$E$7,),IF(M11>0,$O$9+TIME(,(L11-14)*Data!$E$7,),\"\")),\"\"),\"Fejl i indtast\")","v":""}]
[null,{"$f":"IF(A12=\"\",\"\",(VLOOKUP(A12,Malt!$A$3:$E$85,5,FALSE)*D12))","v":""},{"$f":"IF(A12=\"\",\"\",VLOOKUP(A12,Malt!$A$3:$C$85,3,FALSE))","v":""},null,"",null,null,null,"Proteinpause  ( 57°C )",null,null,null,null,"",{"$f":"IFERROR(IF($O$9<>\"\",IF(AND(M11>0,M12>0),O11+TIME(,M11,)+TIME(,(L12-L11)*Data!$E$7,),IF(AND(M10>0,M12>0),O10+TIME(,M10,)+TIME(,(L12-L10)*Data!$E$7,),IF(M12>0,$O$9+TIME(,(L12-14)*Data!$E$7,),\"\"))),\"\"),\"Fejl i indtast\")","v":""}]
[null,{"$f":"IF(A13=\"\",\"\",(VLOOKUP(A13,Malt!$A$3:$E$85,5,FALSE)*D13))","v":""},{"$f":"IF(A13=\"\",\"\",VLOOKUP(A13,Malt!$A$3:$C$85,3,FALSE))","v":""},null,"",null,null,null,"Mæskning 1",null,null,null,null,"",{"$f":"IFERROR(IF($O$9<>\"\",IF(AND(M12>0,M13>0),O12+TIME(,M12,)+TIME(,(L13-L12)*Data!$E$7,),IF(AND(M11>0,M13>0),O11+TIME(,M11,)+TIME(,(L13-L11)*Data!$E$7,),IF(AND(M10>0,M13>0),O10+TIME(,M10,)+TIME(,(L13-L10)*Data!$E$7,),IF(M13>0,$O$9+TIME(,(L13-14)*Data!$E$7,),\"\")))),\"\"),\"Fejl i indtast\")","v":""}]
[null,{"$f":"IF(A14=\"\",\"\",(VLOOKUP(A14,Malt!$A$3:$E$85,5,FALSE)*D14))","v":""},{"$f":"IF(A14=\"\",\"\",VLOOKUP(A14,Malt!$A$3:$C$85,3,FALSE))","v":""},null,"",null,null,null,"Mæskning 2",null,null,null,null,"",{"$f":"IFERROR(IF($O$9<>\"\",IF(AND(M13>0,M14>0),O13+TIME(,M13,)+TIME(,(L14-L13)*Data!$E$7,),IF(AND(M12>0,M14>0),O12+TIME(,M12,)+TIME(,(L14-L12)*Data!$E$7,),IF(AND(M11>0,M14>0),O11+TIME(,M11,)+TIME(,(L14-L11)*Data!$E$7,),IF(AND(M10>0,M14>0),O10+TIME(,M10,)+TIME(,(L14-L10)*Data!$E$7,),IF(M14>0,$O$9+TIME(,(L14-14)*Data!$E$7,),\"\"))))),\"\"),\"Fejl i indtast\")","v":""}]
[null,{"$f":"IF(A15=\"\",\"\",(VLOOKUP(A15,Malt!$A$3:$E$85,5,FALSE)*D15))","v":""},{"$f":"IF(A15=\"\",\"\",VLOOKUP(A15,Malt!$A$3:$C$85,3,FALSE))","v":""},null,"",null,null,null,"Mæskning 3",null,null,null,null,"",{"$f":"IFERROR(IF($O$9<>\"\",IF(AND(M14>0,M15>0),O14+TIME(,M14,)+TIME(,(L15-L14)*Data!$E$7,),IF(AND(M13>0,M15>0),O13+TIME(,M13,)+TIME(,(L15-L13)*Data!$E$7,),IF(AND(M12>0,M15>0),O12+TIME(,M12,)+TIME(,(L15-L12)*Data!$E$7,),IF(AND(M11>0,M15>0),O11+TIME(,M11,)+TIME(,(L15-L11)*Data!$E$7,),IF(AND(M10>0,M15>0),O10+TIME(,M10,)+TIME(,(L15-L10)*Data!$E$7,),IF(M15>0,$O$9+TIME(,(L15-14)*Data!$E$7,),\"\")))))),\"\"),\"Fejl i indtast\")","v":""}]
[null,{"$f":"IF(A16=\"\",\"\",(VLOOKUP(A16,Malt!$A$3:$E$85,5,FALSE)*D16))","v":""},{"$f":"IF(A16=\"\",\"\",VLOOKUP(A16,Malt!$A$3:$C$85,3,FALSE))","v":""},null,"",null,null,null,"Forsukring",null,null,72,15,"min",{"$f":"IFERROR(IF($O$9<>\"\",IF(AND(M15>0,M16>0),O15+TIME(,M15,)+TIME(,(L16-L15)*Data!$E$7,),IF(AND(M14>0,M16>0),O14+TIME(,M14,)+TIME(,(L16-L14)*Data!$E$7,),IF(AND(M13>0,M16>0),O13+TIME(,M13,)+TIME(,(L16-L13)*Data!$E$7,),IF(AND(M12>0,M16>0),O12+TIME(,M12,)+TIME(,(L16-L12)*Data!$E$7,),IF(AND(M11>0,M16>0),O11+TIME(,M11,)+TIME(,(L16-L11)*Data!$E$7,),IF(AND(M10>0,M16>0),O10+TIME(,M10,)+TIME(,(L16-L10)*Data!$E$7,),IF(M16>0,$O$9+TIME(,(L16-14)*Data!$E$7,),\"\"))))))),\"\"),\"Fejl i indtast\")","v":"01:58:00"}]
[null,{"$f":"IF(A17=\"\",\"\",(VLOOKUP(A17,Malt!$A$3:$E$85,5,FALSE)*D17))","v":""},{"$f":"IF(A17=\"\",\"\",VLOOKUP(A17,Malt!$A$3:$C$85,3,FALSE))","v":""},null,"",null,null,null,"Afmæskning",null,null,78,10,{"$f":"IF(M17=0,\"\",\"min\")","v":"min"},{"$f":"IFERROR(IF($O$9<>\"\",IF(AND(M16>0,M17>0),O16+TIME(,M16,)+TIME(,(L17-L16)*Data!$E$7,),IF(AND(M15>0,M17>0),O15+TIME(,M15,)+TIME(,(L17-L15)*Data!$E$7,),IF(AND($O$9<>\"\",M14>0,M17>0),O14+TIME(,M14,)+TIME(,(L17-L14)*Data!$E$7,),IF(AND(M13>0,M17>0),O13+TIME(,M13,)+TIME(,(L17-L13)*Data!$E$7,),IF(AND(M12>0,M17>0),O12+TIME(,M12,)+TIME(,(L17-L12)*Data!$E$7,),IF(AND(M11>0,M17>0),O11+TIME(,M11,)+TIME(,(L17-L11)*Data!$E$7,),IF(AND(M10>0,M17>0),O10+TIME(,M10,)+TIME(,(L17-L10)*Data!$E$7,),IF(M17>0,$O$9+TIME(,(L17-14)*Data!$E$7,),\"\")))))))),\"\"),\"Fejl i indtast\")","v":"02:19:00"}]
["Torrefied Flaked Oat",{"$f":"IF(A18=\"\",\"\",(VLOOKUP(A18,Malt!$A$3:$E$85,5,FALSE)*D18))","v":0},{"$f":"IF(A18=\"\",\"\",VLOOKUP(A18,Malt!$A$3:$C$85,3,FALSE))","v":"4"},0.3,"kg",null,null,null,null,null,null,null,null,{"$f":"IF(M18=0,\"\",\"min\")","v":""},{"$f":"IFERROR(IF($O$9<>\"\",IF(AND(M17>0,M18>0),O17+TIME(,M17,)+TIME(,(L18-L17)*Data!$E$7,),IF(AND(M16>0,M18>0),O16+TIME(,M16,)+TIME(,(L18-L16)*Data!$E$7,),IF(AND(M15>0,M18>0),O15+TIME(,M15,)+TIME(,(L18-L15)*Data!$E$7,),IF(AND(M14>0,M18>0),O14+TIME(,M14,)+TIME(,(L18-L14)*Data!$E$7,),IF(AND(M13>0,M18>0),O13+TIME(,M13,)+TIME(,(L18-L13)*Data!$E$7,),IF(AND(M12>0,M18>0),O12+TIME(,M12,)+TIME(,(L18-L12)*Data!$E$7,),IF(AND(M11>0,M18>0),O11+TIME(,M11,)+TIME(,(L18-L11)*Data!$E$7,),IF(AND(M10>0,M18>0),O10+TIME(,M10,)+TIME(,(L18-L10)*Data!$E$7,),IF(M18>0,$O$9+TIME(,(L18-14)*Data!$E$7,),\"\"))))))))),\"\"),\"Fejl i indtast\")","v":""}]
["Diastatisk aktivitet (>=40) :",{"$f":"IF(SUM(B9:B18)=0,\"\",ROUND((SUM(B9:B18)/D19),1))","v":""},"Total:",{"$f":"SUM(D9:D18)","v":0.3},"kg",null,null,null,"Fraløb",null,null,78,30,"min",{"$f":"IFERROR(IF($O$9<>\"\",IF(AND(M18>0,M19>0),O18+TIME(,M18,)+TIME(,(L19-L18)*Data!$E$7,),IF(AND(M17>0,M19>0),O17+TIME(,M17,)+TIME(,(L19-L17)*Data!$E$7,),IF(AND(M16>0,M19>0),O16+TIME(,M16,)+TIME(,(L19-L16)*Data!$E$7,),IF(AND(M15>0,M19>0),O15+TIME(,M15,)+TIME(,(L19-L15)*Data!$E$7,),IF(AND(M14>0,M19>0),O14+TIME(,M14,)+TIME(,(L19-L14)*Data!$E$7,),IF(AND(M13>0,M19>0),O13+TIME(,M13,)+TIME(,(L19-L13)*Data!$E$7,),IF(AND(M12>0,M19>0),O12+TIME(,M12,)+TIME(,(L19-L12)*Data!$E$7,),IF(AND(M11>0,M19>0),O11+TIME(,M11,)+TIME(,(L19-L11)*Data!$E$7,),IF(AND(M10>0,M19>0),O10+TIME(,M10,)+TIME(,(L18-L10)*Data!$E$7,),IF(AND(M19>0),$O$9+TIME(,(L19-14)*Data!$E$7,),\"\")))))))))),\"\"),\"Fejl i indtast\")","v":"02:29:00"}]
[]
["Humletype","B/P","% og Anv.","Vægt","Enhed","OBS: Nogle humler leveres kun à 100 gram",null,null,"Kogning",null,null,"Tid før slut",null,"Enhed","Starttider (tt:mm)"]
["Bitterhumle",null,null,{"$f":"SUM(D23:D37)","v":0},"gram",null,null,null,"I alt",null,null,90,null,"min",{"$f":"IF(O19<>\"\",O19+TIME(,M19+5,),O9)","v":"03:04:00"}]
[null,null,{"$f":"IF(A23=\"\",\"\",CONCATENATE(Data!G42,\"% - \",VLOOKUP(A23,Humle!$A$2:$J$76,7,FALSE)))","v":""},null,{"$f":"IF(D23=0,\"\",\"gram\")","v":""},null,null,null,{"$f":"IF(A23=\"\",\"\",A23)","v":""},null,null,null,null,{"$f":"IF(L23=\"\",\"\",\"min\")","v":""},{"$f":"IF(AND($O$22>0,$L$22>0,L23<>\"\"),$O$22+(TIME(,$L$22,)-TIME(,L23,)),\"\")","v":""}]
[null,null,{"$f":"IF(A24=\"\",\"\",CONCATENATE(Data!G43,\"% - \",VLOOKUP(A24,Humle!$A$2:$J$76,7,FALSE)))","v":""},null,{"$f":"IF(D24=0,\"\",\"gram\")","v":""},null,null,null,{"$f":"IF(A24=\"\",\"\",A24)","v":""},null,null,null,null,{"$f":"IF(L24=\"\",\"\",\"min\")","v":""},{"$f":"IF(AND($O$22>0,$L$22>0,L24<>\"\"),$O$22+(TIME(,$L$22,)-TIME(,L24,)),\"\")","v":""}]
[null,null,{"$f":"IF(A25=\"\",\"\",CONCATENATE(Data!G44,\"% - \",VLOOKUP(A25,Humle!$A$2:$J$76,7,FALSE)))","v":""},null,"",null,null,null,{"$f":"IF(A25=\"\",\"\",A25)","v":""},null,null,null,null,"",""]
["Smagshumle"]
[null,null,{"$f":"IF(A27=\"\",\"\",CONCATENATE(Data!G46,\"% - \",VLOOKUP(A27,Humle!$A$2:$J$76,7,FALSE)))","v":""},null,"",null,null,null,{"$f":"IF(A27=\"\",\"\",A27)","v":""},null,null,null,null,"",""]
[null,null,{"$f":"IF(A28=\"\",\"\",CONCATENATE(Data!G47,\"% - \",VLOOKUP(A28,Humle!$A$2:$J$76,7,FALSE)))","v":""},null,"",null,null,null,{"$f":"IF(A28=\"\",\"\",A28)","v":""},null,null,null,null,"",""]
[null,null,{"$f":"IF(A29=\"\",\"\",CONCATENATE(Data!G48,\"% - \",VLOOKUP(A29,Humle!$A$2:$J$76,7,FALSE)))","v":""},null,"",null,null,null,{"$f":"IF(A29=\"\",\"\",A29)","v":""},null,null,null,null,"",""]
["Aromahumle"]
[null,null,{"$f":"IF(A31=\"\",\"\",CONCATENATE(Data!G50,\"% - \",VLOOKUP(A31,Humle!$A$2:$J$76,7,FALSE)))","v":""},null,"",null,null,null,{"$f":"IF(A31=\"\",\"\",A31)","v":""},null,null,null,null,"",""]
[null,null,{"$f":"IF(A32=\"\",\"\",CONCATENATE(Data!G51,\"% - \",VLOOKUP(A32,Humle!$A$2:$J$76,7,FALSE)))","v":""},null,"",null,null,null,{"$f":"IF(A32=\"\",\"\",A32)","v":""},null,null,null,null,"",""]
[null,null,{"$f":"IF(A33=\"\",\"\",CONCATENATE(Data!G52,\"% - \",VLOOKUP(A33,Humle!$A$2:$J$76,7,FALSE)))","v":""},null,"",null,null,null,{"$f":"IF(A33=\"\",\"\",A33)","v":""},null,null,null,null,"",""]
["Tørhumle"]
[null,null,{"$f":"IF(A35=\"\",\"\",CONCATENATE(Data!G54,\"% - \",VLOOKUP(A35,Humle!$A$2:$J$76,7,FALSE)))","v":""},null,"",null,null,null,{"$f":"IF(A35=\"\",\"\",A35)","v":""},null,null,null,null,{"$f":"IF(L35=\"\",\"\",\"min\")","v":""},{"$f":"IF(AND($O$22>0,$L$22>0,L35<>\"\"),$O$22+(TIME(,$L$22,)-TIME(,L35,)),\"\")","v":""}]
[null,null,{"$f":"IF(A36=\"\",\"\",CONCATENATE(Data!G55,\"% - \",VLOOKUP(A36,Humle!$A$2:$J$76,7,FALSE)))","v":""},null,"",null,null,null,{"$f":"IF(A36=\"\",\"\",A36)","v":""},null,null,null,null,"",""]
[null,null,{"$f":"IF(A37=\"\",\"\",CONCATENATE(Data!G56,\"% - \",VLOOKUP(A37,Humle!$A$2:$J$76,7,FALSE)))","v":""},null,"",null,null,null,{"$f":"IF(A37=\"\",\"\",A37)","v":""},null,null,null,null,"",""]
["Tilsætninger"]
[null,null,null,null,{"$f":"IF(D39=0,\"\",\"gram\")","v":""},"<-- Manuel indtast",null,null,{"$f":"IF($A$39=\"\",\"\",$A$39)","v":""},null,null,null,null,"",""]
[null,null,null,null,"",null,null,null,{"$f":"IF($A$40=\"\",\"\",$A$40)","v":""},null,null,null,null,"",""]
[null,null,null,null,"",null,null,null,{"$f":"IF($A$41=\"\",\"\",$A$41)","v":""},null,null,null,null,"",""]
[null,null,null,null,"",null,null,null,{"$f":"IF($A$42=\"\",\"\",$A$42)","v":""},null,null,null,null,"",""]
[null,null,null,null,"",null,null,null,{"$f":"IF($A$43=\"\",\"\",$A$43)","v":""},null,null,null,null,"",""]
[null,null,null,null,"",null,null,null,{"$f":"IF($A$44=\"\",\"\",$A$44)","v":""},null,null,null,null,"",""]
[null,null,null,null,"",null,null,null,{"$f":"IF($A$45=\"\",\"\",$A$45)","v":""},null,null,null,null,"",{"$f":"IF($O$22=\"\",\"\",IF(AND($O$22>0,$L$22>0,L45<>\"\"),$O$22+(TIME(,$L$22,)-TIME(,L45,)),\"\"))","v":""}]
[]
["Målinger",null,null,null,null,null,null,null,"Køling"]
[null,null,null,"Målt","Enhed",null,null,null,null,null,null,null,null,"Enhed"]
["Bryggedato:",null,null,{"$f":"IF(M3=\"\",\"\",M3)","v":""},null,{"$f":"IF(O22<>\"\",CONCATENATE(\"Færdig ca. kl.: \",TEXT(CEILING(O22+TIME(,L22,)+TIME(,L49,),\"0:15\"),\"tt:mm\")),\"Færdig ca. kl.: \")","v":"Færdig ca. kl.: 05:15"},null,null,"Tid",null,null,30,null,"min"]
["Mængde efter mæskning",null,null,null,"liter",null,null,null,"Nedkøling til",null,null,25,null,"°C"]
["Vægtfylde efter mæskning",null,null,null,"Oeschle",{"$f":"IF(D51=\"\",\"\",CONCATENATE(\"Effektivitet: \",ROUND((Data!D24*100),0),\" %\"))","v":""}]
["Mængde efter tilsætning af sukker m.m.",null,null,null,"liter",null,null,null,"Gæring - 1. ferm."]
["Vægtfylde efter tilsætning af sukker m.m.",null,null,null,"Oeschle",{"$f":"IF(D53=\"\",\"\",CONCATENATE(\"Effektivitet: \",ROUND((Data!D25*100),0),\" %\"))","v":""},null,null,"Kommentar"]
["Mængde efter gæring og omstikning",null,null,null,"liter",null,null,null,"Tilsat gær type (2 mulige):      °C",null,{"$f":"IFERROR(VLOOKUP(L54,Gær!$A$3:$G$70,6,FALSE),\"\")","v":""}]
["Vægtfylde efter gæring",null,null,null,"Oeschle",null,null,null,null,null,{"$f":"IFERROR(VLOOKUP(L55,Gær!$A$3:$G$70,6,FALSE),\"\")","v":""}]
["Forgæringsgrad",null,null,{"$f":"IF(D53=\"\",\"\",IF(D55=\"\",\"\",ROUND(((D53-D55)/(D53-1000))*100,0)))","v":""},"%",{"$f":"IF(Data!I29=\"\",\"\",CONCATENATE(\"Estimeret: \",ROUND((Data!I29),1),\" %\"))","v":""},null,null,"Gæringstemperatur                °C",null,22,"Dato",null,"Gærer i spand #"]
["Flaskedato:",null,null,{"$f":"IF(L76=\"\",\"\",L76)","v":""},null,null,null,null,"Gæring i gang",null,null,null,null,"?"]
["Alkohol indhold",null,null,{"$f":"IF(D53=0,\"\",IF(D55=0,\"\",ROUND(((D53-D55)/7.5)+(IF(L74=0,0,(((ROUND(L74/(IF(D54=0,IF(D52=0,D50,D52),D54)),1))-2)/10))),1)))","v":""},"% Vol.",{"$f":"IF(D58=\"\",CONCATENATE(\"Genstande: \",Data!I36),CONCATENATE(\"Genstande: \",Data!I37))","v":"Genstande: "},null,null,"Gæring færdig"]
[null,null,null,null,null,null,null,null,"Tid ",null,null,{"$f":"IF(L58=0,0,(L58-L57))","v":0},null,"dage"]
["Tapning - fordelt på flaskestørrelse"]
["Label Farve / Kapsel",null,null,null,null,null,null,null,"Modning - 2. ferm."]
["Flasker","à","2 liter",null,{"$f":"IF(D62=0,\"\",D62*2)","v":""},{"$f":"IF(D62=0,\"\",\"Liter\")","v":""},null,null,"Kommentar"]
["Flasker","à","1 liter",null,{"$f":"IF(D63=0,\"\",D63)","v":""},{"$f":"IF(D63=0,\"\",\"Liter\")","v":""},null,null,"Tilsat gær type (2 mulige):      °C",null,{"$f":"IFERROR(VLOOKUP(L63,Gær!$A$3:$G$70,6,FALSE),\"\")","v":""}]
["Flasker","à","0,75 liter",null,{"$f":"IF(D64=0,\"\",D64*0.75)","v":""},"",null,null,null,null,{"$f":"IFERROR(VLOOKUP(L64,Gær!$A$3:$G$70,6,FALSE),\"\")","v":""}]
["Flasker","à","0,66 liter",null,{"$f":"IF(D65=0,\"\",D65*0.66)","v":""},"",null,null,"Modningstemperatur              °C",null,22,"Dato",null,"Modner i spand #"]
["Flasker","à","0,5 liter",null,{"$f":"IF(D66=0,\"\",D66*0.5)","v":""},"",null,null,"Modning fra",null,null,null,null,"?"]
["Flasker","à","0,33 liter",null,{"$f":"IF(D67=0,\"\",D67*0.33)","v":""},"",null,null,"Modning til"]
["Flasker","à","0,25 liter",null,{"$f":"IF(D68=0,\"\",D68*0.25)","v":""},"",null,null,"Tid ",null,null,{"$f":"IF(L67=0,0,(L67-L66))","v":0},null,"dage"]
["Antal flasker i alt",null,null,{"$f":"SUM(D62:D68)","v":0},{"$f":"CONCATENATE(\"=    \",SUM(E62:E68))","v":"=    0"},{"$f":"IF(D69=0,\"\",\"Liter på flaske\")","v":""}]
[null,null,null,null,null,null,null,null,"Karbonering - 3. ferm."]
["Brygnoter:","Inspiration:",null,null,null,null,null,null,"Kommentar"]
[null,null,null,null,null,null,null,null,"Tilsat gær type:"]
[null,null,null,null,null,null,null,null,"Anbefalet mængde sukker til karbonering:",null,null,{"$f":"IFERROR((IF(G3=\"\",\"\",ROUND((((VLOOKUP(G3,Typer!C3:V128,17,FALSE)-VLOOKUP(K56,Gær!I2:J29,2,FALSE))*4)*(IF(D54=\"\",IF(D52=0,D50,D52),D54))),0))),\"\")","v":""},null,{"$f":"CONCATENATE(\"gram = \",IF(D52=0,\"?\",IF(L73=\"\",0,(ROUND(L73/(IF(D54=\"\",IF(D52=0,D50,D52),D54)),1)))),\" g/ltr.\")","v":"gram = ? g/ltr."}]
[null,null,null,null,null,null,null,null,"Tilsat sukker",null,null,null,null,{"$f":"CONCATENATE(\"gram = \",IF(D52=0,\"?\",(ROUND(L74/(IF(D54=\"\",IF(D52=0,D50,D52),D54)),1))),\" g/ltr.\")","v":"gram = ? g/ltr."}]
[null,null,null,null,null,null,null,null,"Gns.CO2 mængde for brygtypen",null,{"$f":"IFERROR(IF(G3=\"\",\"\",VLOOKUP(G3,Typer!C3:V128,17,FALSE)),\"\")","v":""},"Dato",null,"Karbonerer i"]
[null,null,null,null,null,null,null,null,"Karbonering fra",null,null,null,null,"Flaske"]
[null,null,null,null,null,null,null,null,"Karbonering til"]
[null,null,null,null,null,null,null,null,"Tid ",null,null,{"$f":"IF(L77=0,0,(L77-L76))","v":0},null,"dage"]
[]
["Vurderinger:","Skumkrone",null,null,"Duft",null,null,null,"Smag",null,null,null,"Farve"]
["Ved brygning","-"]
["Ved omstikning","-"]
["Ved flaskning","-"]
["Ved første åbning"]
["Efter nogen tid"]
["Brygget af:",{"$f":"IF(Data!E3=\"\",\"\",Data!E3)","v":"Jesper Lyngbye"},null,null,null,null,null,null,"Godkendt til servering d.:"]

{"sheet":"INFO","index":1,"n_rows":24,"n_cols":10,"rows_kept":24,"cut":false,"hidden":false,"merged":[[17,2,19,2],[8,2,9,2],[23,0,23,5],[1,1,1,4],[3,2,6,2],[11,2,15,2],[1,6,1,9],[16,9,17,9],[16,7,17,7],[16,6,17,6],[19,7,20,7],[19,6,20,6],[19,9,20,9]]}
[]
[null,"Brew like a Monk - essentials",null,null,null,null,"Temperature steps in Beer Brewing"]
[null,null,null,null,null,null,"Temperature","Name","Function","Good for"]
[null,null,"Malts and Sugars","Limit malts darker than 100 EBC to 7%"]
[null,null,null,"Use sugar for 10 - 20% of grist",null,null,"35°C","Acid Rest","For undermodified malts;","Bohemian Pilsners"]
[null,null,null,"Sucrose adds alcohol and lightens the beer"]
[null,null,null,"Caramelized sugars add rumminess and complexity",null,null,"45°C","Acid Rest","For better flow during mashing","All beers"]
[]
[null,null,"Mash","Single infusion mash between 63°C and 65°C or step mash.",null,null,"46-53°C","Protein Rest","For clarity – too much degrades head retention","All beers"]
[null,null,null," - Remember protein rest (45 - 60°C) may degrade body and head - see next table ->"]
[null,null,null,null,null,null,"55-58°C","Protein Rest","For head retention","All beers"]
[null,null,"Boil","Use noble hops"]
[null,null,null,"Let bittering hops account for two thirds of hop mass",null,null,"60-65°C","Low Temp. saccharification","For high fermentability; gives a dry finish","German Pilsners"]
[null,null,null,"Aim for BU:GU ratio of about 3 : 8 (RBR = 0,37 - 0,38)"]
[null,null,null," - a little higher for tripels and lower for strong darks",null,null,"66-68°C ","High Temp. saccharification","For less fermentability; gives a sweet finish","Oktoberfest"]
[null,null,null,"If a drinker can name the spice, you have used too much"]
[null,null,null,null,null,null,"77°C","Mash Out","Stops all enzyme action and allows sparging"," All beers"]
[null,null,"Fermentation","Blending yeast strains adds complexity",null,null,null,null,"to be more efficient."]
[null,null,null,"Start fermenting at low temperatures and let the temperature rise"]
[null,null,null,"Allow for longer fermentation and longer cool maturation before bottling.",null,null,"80°C ++ ","MAX. Limit","Mash out above 80°C is not recommended as","All beers"]
[null,null,null,null,null,null,null,null,"unwanted substances are washed from the mash."]
[]
[]
["Herunder kan man f.eks. kopiere inspiration, originale opskrifter eller artikler ind."]

{"sheet":"Labels","index":2,"n_rows":92,"n_cols":22,"rows_kept":92,"cut":false,"hidden":false,"merged":[[91,15,91,21],[91,3,91,9],[68,15,68,21],[68,3,68,9],[45,15,45,21],[45,3,45,9],[22,15,22,21],[22,3,22,9],[79,22,89,23],[51,22,55,23],[54,16,54,17],[56,22,66,23],[71,1,73,11],[74,10,78,11],[77,4,77,5],[85,16,85,20],[51,3,52,9],[51,15,52,21],[56,4,56,8],[56,16,56,20],[56,10,66,11],[57,4,57,5],[57,16,57,17],[74,22,78,23],[71,13,73,23],[88,15,88,21],[74,3,75,9],[65,15,65,21],[62,4,62,8],[62,16,62,20],[74,15,75,21],[77,16,77,17],[85,4,85,8],[79,4,79,8],[79,16,79,20],[80,4,80,5],[80,16,80,17],[81,4,81,8],[81,16,81,20],[79,10,89,11],[88,3,88,9],[89,16,89,17],[89,4,89,5],[82,16,84,20],[82,4,84,8],[66,6,66,9],[66,18,66,21],[89,6,89,9],[89,18,89,21],[28,10,32,11],[25,1,27,11],[51,10,55,11],[42,3,42,9],[42,15,42,21],[65,3,65,9],[54,4,54,5],[47,4,47,9],[47,15,47,18],[48,1,50,11],[48,13,50,23],[34,4,34,5],[33,4,33,8],[33,16,33,20],[39,4,39,8],[39,16,39,20],[35,4,35,8],[58,4,58,8],[58,16,58,20],[43,16,43,17],[43,18,43,21],[66,4,66,5],[66,16,66,17],[10,10,20,11],[10,16,10,20],[16,16,16,20],[11,4,11,5],[11,16,11,17],[12,16,12,20],[12,4,12,8],[19,15,19,21],[20,4,20,5],[20,6,20,9],[0,1,0,23],[1,3,1,9],[5,3,6,9],[5,10,9,11],[5,15,6,21],[5,22,9,23],[8,4,8,5],[8,16,8,17],[2,13,4,23],[2,1,4,11],[33,22,43,23],[35,16,35,20],[59,16,61,20],[59,4,61,8],[13,16,15,20],[36,16,38,20],[36,4,38,8],[20,18,20,21],[20,16,20,17],[13,4,15,8],[33,10,43,11],[34,16,34,17],[19,3,19,9],[16,4,16,8],[28,3,29,9],[28,15,29,21],[25,13,27,23],[28,22,32,23],[31,16,31,17],[31,4,31,5],[43,4,43,5],[43,6,43,9],[10,22,20,23],[10,4,10,8]]}
[null,"FLASKE-ETIKETTER"]
[null,null,null,"Udfyldes automatisk fra BrewReport til denne Label "]
[]
[]
[]
[null,null,null,{"$f":"IF(BrewReport!D2<>\"\",CONCATENATE(BrewReport!D2,\" - \",BrewReport!G3),IF(BrewReport!G3=\"\",\"\",BrewReport!G3))","v":""},null,null,null,null,null,null,null,null,null,null,null,{"$f":"$D$6","v":""}]
[]
[]
[null,null,null,"Brygget:",{"$f":"IF(BrewReport!M3=\"\",\"\",BrewReport!M3)","v":""},null,"Tappet:",{"$f":"IF(BrewReport!D57=\"\",\"\",BrewReport!D57)","v":""},"Bryg #",{"$f":"IF(BrewReport!D3=\"\",\"\",BrewReport!D3)","v":""},null,null,null,null,null,"Brygget:",{"$f":"$E$9","v":""},null,"Tappet:",{"$f":"$H$9","v":""},{"$f":"$I$9","v":"Bryg #"},{"$f":"$J$9","v":""}]
[]
[null,null,null,"Malt:",{"$f":"CONCATENATE(IF(BrewReport!A9=\"\",\"\",BrewReport!A9),IF(BrewReport!A10=\"\",\"\",CONCATENATE(\", \",BrewReport!A10)),IF(BrewReport!A11=\"\",\"\",CONCATENATE(\", \",BrewReport!A11)),IF(BrewReport!A12=\"\",\"\",CONCATENATE(\", \",BrewReport!A12)),IF(BrewReport!A13=\"\",\"\",CONCATENATE(\", \",BrewReport!A13)),IF(BrewReport!A14=\"\",\"\",CONCATENATE(\", \",BrewReport!A14)),IF(BrewReport!A15=\"\",\"\",CONCATENATE(\", \",BrewReport!A15)),IF(BrewReport!A16=\"\",\"\",CONCATENATE(\", \",BrewReport!A16)),IF(BrewReport!A17=\"\",\"\",CONCATENATE(\", \",BrewReport!A17)))","v":""},null,null,null,null,null,null,null,null,null,null,{"$f":"$D$11","v":"Malt:"},{"$f":"$E$11","v":""}]
[]
[null,null,null,"Humle:",{"$f":"CONCATENATE(IF(BrewReport!A23=\"\",\"\",BrewReport!A23),IF(BrewReport!A24=\"\",\"\",CONCATENATE(\", \",BrewReport!A24)),IF(BrewReport!A25=\"\",\"\",CONCATENATE(\", \",BrewReport!A25)),IF(BrewReport!A27=\"\",\"\",CONCATENATE(\", \",BrewReport!A27)),IF(BrewReport!A28=\"\",\"\",CONCATENATE(\", \",BrewReport!A28)),IF(BrewReport!A29=\"\",\"\",CONCATENATE(\", \",BrewReport!A29)),IF(BrewReport!A31=\"\",\"\",CONCATENATE(\", \",BrewReport!A31)),IF(BrewReport!A32=\"\",\"\",CONCATENATE(\", \",BrewReport!A32)),IF(BrewReport!A33=\"\",\"\",CONCATENATE(\", \",BrewReport!A33)),IF(BrewReport!A35=\"\",\"\",CONCATENATE(\", \",BrewReport!A35)),IF(BrewReport!A36=\"\",\"\",CONCATENATE(\", \",BrewReport!A36)),IF(BrewReport!A37=\"\",\"\",CONCATENATE(\", \",BrewReport!A37)))","v":""},null,null,null,null,null,null,null,null,null,null,{"$f":"$D$13","v":"Humle:"},{"$f":"$E$13","v":""}]
[null,null,null,null,{"$f":"CONCATENATE(IF(BrewReport!L54=\"\",\"\",IF(BrewReport!L55=\"\",BrewReport!L54,IF(BrewReport!L55=BrewReport!L54,\"\",CONCATENATE(BrewReport!L54,\", \",CHAR(10))))),BrewReport!L55)","v":""},null,null,null,null,null,null,null,null,null,null,null,{"$f":"$E$14","v":""}]
[null,null,null,"Gær:",null,null,null,null,null,null,null,null,null,null,null,{"$f":"$D$15","v":"Gær:"}]
[]
[null,null,null,"Tilsætning:",{"$f":"CONCATENATE(IF(BrewReport!A40=\"\",\"\",BrewReport!A40),IF(BrewReport!A41=\"\",\"\",CONCATENATE(\", \",BrewReport!A41)),IF(BrewReport!A42=\"\",\"\",CONCATENATE(\", \",BrewReport!A42)),IF(BrewReport!A43=\"\",\"\",CONCATENATE(\", \",BrewReport!A43)),IF(BrewReport!A44=\"\",\"\",CONCATENATE(\", \",BrewReport!A44)),IF(OR((BrewReport!A45=\"Klar Urt\"),(BrewReport!A45=\"\")),\"\",CONCATENATE(\", \",BrewReport!A45)),IF(BrewReport!A39=\"\",\"\",CONCATENATE(\", \",BrewReport!A39)))","v":""},null,null,null,null,null,null,null,null,null,null,{"$f":"$D$17","v":"Tilsætning:"},{"$f":"$E$17","v":""}]
[]
[null,null,null,"Alc. Vol.:",{"$f":"IF(BrewReport!$D$58=\"\",IF(Data!I29=\"\",\"\",Data!I29/100),BrewReport!$D$58/100)","v":""},null,"EBC:",{"$f":"BrewReport!$E$6","v":4},"IBU:",{"$f":"BrewReport!$L$6","v":""},null,null,null,null,null,{"$f":"$D$19","v":"Alc. Vol.:"},{"$f":"$E$19","v":""},null,{"$f":"$G$19","v":"EBC:"},{"$f":"$H$19","v":4},{"$f":"$I$19","v":"IBU:"},{"$f":"$J$19","v":""}]
[]
[null,null,null,"Brygget af:",{"$f":"IF(BrewReport!B86=\"\",\"\",BrewReport!B86)","v":"Jesper Lyngbye"},null,{"$f":"IF(Data!I36=\"\",\"\",CONCATENATE(\"Indhold: \",Data!E6,\" liter; svarer til \",IF(Data!I37=\"\",Data!I36,Data!I37),IF(Data!I37>1,\" genstande\",\" genstand\")))","v":""},null,null,null,null,null,null,null,null,{"$f":"$D$21","v":"Brygget af:"},{"$f":"$E$21","v":"Jesper Lyngbye"},null,{"$f":"$G$21","v":""}]
[]
[null,null,null,{"$f":"IF(BrewReport!D1=\"\",\"\",BrewReport!D1)","v":"Wolfhound Brewery"},null,null,null,null,null,null,null,null,null,null,null,{"$f":"$D$23","v":"Wolfhound Brewery"}]
[]
[]
[]
[]
[]
[null,null,null,{"$f":"$D$6","v":""},null,null,null,null,null,null,null,null,null,null,null,{"$f":"$D$6","v":""}]
[]
[]
[null,null,null,"Brygget:",{"$f":"$E$9","v":""},null,"Tappet:",{"$f":"$H$9","v":""},{"$f":"$I$9","v":"Bryg #"},{"$f":"$J$9","v":""},null,null,null,null,null,"Brygget:",{"$f":"$E$9","v":""},null,"Tappet:",{"$f":"$H$9","v":""},{"$f":"$I$9","v":"Bryg #"},{"$f":"$J$9","v":""}]
[]
[null,null,null,{"$f":"$D$11","v":"Malt:"},{"$f":"$E$11","v":""},null,null,null,null,null,null,null,null,null,null,{"$f":"$D$11","v":"Malt:"},{"$f":"$E$11","v":""}]
[]
[null,null,null,{"$f":"$D$13","v":"Humle:"},{"$f":"$E$13","v":""},null,null,null,null,null,null,null,null,null,null,{"$f":"$D$13","v":"Humle:"},{"$f":"$E$13","v":""}]
[null,null,null,null,{"$f":"$E$14","v":""},null,null,null,null,null,null,null,null,null,null,null,{"$f":"$E$14","v":""}]
[null,null,null,{"$f":"$D$15","v":"Gær:"},null,null,null,null,null,null,null,null,null,null,null,{"$f":"$D$15","v":"Gær:"}]
[]
[null,null,null,{"$f":"$D$17","v":"Tilsætning:"},{"$f":"$E$17","v":""},null,null,null,null,null,null,null,null,null,null,{"$f":"$D$17","v":"Tilsætning:"},{"$f":"$E$17","v":""}]
[]
[null,null,null,{"$f":"$D$19","v":"Alc. Vol.:"},{"$f":"$E$19","v":""},null,{"$f":"$G$19","v":"EBC:"},{"$f":"$H$19","v":4},{"$f":"$I$19","v":"IBU:"},{"$f":"$J$19","v":""},null,null,null,null,null,{"$f":"$D$19","v":"Alc. Vol.:"},{"$f":"$E$19","v":""},null,{"$f":"$G$19","v":"EBC:"},{"$f":"$H$19","v":4},{"$f":"$I$19","v":"IBU:"},{"$f":"$J$19","v":""}]
[]
[null,null,null,{"$f":"$D$21","v":"Brygget af:"},{"$f":"$E$21","v":"Jesper Lyngbye"},null,{"$f":"$G$21","v":""},null,null,null,null,null,null,null,null,{"$f":"$D$21","v":"Brygget af:"},{"$f":"$E$21","v":"Jesper Lyngbye"},null,{"$f":"$G$21","v":""}]
[]
[null,null,null,{"$f":"$D$23","v":"Wolfhound Brewery"},null,null,null,null,null,null,null,null,null,null,null,{"$f":"$D$23","v":"Wolfhound Brewery"}]
[]
[]
[]
[]
[]
[null,null,null,{"$f":"$D$6","v":""},null,null,null,null,null,null,null,null,null,null,null,{"$f":"$D$6","v":""}]
[]
[]
[null,null,null,"Brygget:",{"$f":"$E$9","v":""},null,"Tappet:",{"$f":"$H$9","v":""},{"$f":"$I$9","v":"Bryg #"},{"$f":"$J$9","v":""},null,null,null,null,null,"Brygget:",{"$f":"$E$9","v":""},null,"Tappet:",{"$f":"$H$9","v":""},{"$f":"$I$9","v":"Bryg #"},{"$f":"$J$9","v":""}]
[]
[null,null,null,{"$f":"$D$11","v":"Malt:"},{"$f":"$E$11","v":""},null,null,null,null,null,null,null,null,null,null,{"$f":"$D$11","v":"Malt:"},{"$f":"$E$11","v":""}]
[]
[null,null,null,{"$f":"$D$13","v":"Humle:"},{"$f":"$E$13","v":""},null,null,null,null,null,null,null,null,null,null,{"$f":"$D$13","v":"Humle:"},{"$f":"$E$13","v":""}]
[null,null,null,null,{"$f":"$E$14","v":""},null,null,null,null,null,null,null,null,null,null,null,{"$f":"$E$14","v":""}]
[null,null,null,{"$f":"$D$15","v":"Gær:"},null,null,null,null,null,null,null,null,null,null,null,{"$f":"$D$15","v":"Gær:"}]
[]
[null,null,null,{"$f":"$D$17","v":"Tilsætning:"},{"$f":"$E$17","v":""},null,null,null,null,null,null,null,null,null,null,{"$f":"$D$17","v":"Tilsætning:"},{"$f":"$E$17","v":""}]
[]
[null,null,null,{"$f":"$D$19","v":"Alc. Vol.:"},{"$f":"$E$19","v":""},null,{"$f":"$G$19","v":"EBC:"},{"$f":"$H$19","v":4},{"$f":"$I$19","v":"IBU:"},{"$f":"$J$19","v":""},null,null,null,null,null,{"$f":"$D$19","v":"Alc. Vol.:"},{"$f":"$E$19","v":""},null,{"$f":"$G$19","v":"EBC:"},{"$f":"$H$19","v":4},{"$f":"$I$19","v":"IBU:"},{"$f":"$J$19","v":""}]
[]
[null,null,null,{"$f":"$D$21","v":"Brygget af:"},{"$f":"$E$21","v":"Jesper Lyngbye"},null,{"$f":"$G$21","v":""},null,null,null,null,null,null,null,null,{"$f":"$D$21","v":"Brygget af:"},{"$f":"$E$21","v":"Jesper Lyngbye"},null,{"$f":"$G$21","v":""}]
[]
[null,null,null,{"$f":"$D$23","v":"Wolfhound Brewery"},null,null,null,null,null,null,null,null,null,null,null,{"$f":"$D$23","v":"Wolfhound Brewery"}]
[]
[]
[]
[]
[]
[null,null,null,{"$f":"$D$6","v":""},null,null,null,null,null,null,null,null,null,null,null,{"$f":"$D$6","v":""}]
[]
[]
[null,null,null,"Brygget:",{"$f":"$E$9","v":""},null,"Tappet:",{"$f":"$H$9","v":""},{"$f":"$I$9","v":"Bryg #"},{"$f":"$J$9","v":""},null,null,null,null,null,"Brygget:",{"$f":"$E$9","v":""},null,"Tappet:",{"$f":"$H$9","v":""},{"$f":"$I$9","v":"Bryg #"},{"$f":"$J$9","v":""}]
[]
[null,null,null,{"$f":"$D$11","v":"Malt:"},{"$f":"$E$11","v":""},null,null,null,null,null,null,null,null,null,null,{"$f":"$D$11","v":"Malt:"},{"$f":"$E$11","v":""}]
[]
[null,null,null,{"$f":"$D$13","v":"Humle:"},{"$f":"$E$13","v":""},null,null,null,null,null,null,null,null,null,null,{"$f":"$D$13","v":"Humle:"},{"$f":"$E$13","v":""}]
[null,null,null,null,{"$f":"$E$14","v":""},null,null,null,null,null,null,null,null,null,null,null,{"$f":"$E$14","v":""}]
[null,null,null,{"$f":"$D$15","v":"Gær:"},null,null,null,null,null,null,null,null,null,null,null,{"$f":"$D$15","v":"Gær:"}]
[]
[null,null,null,{"$f":"$D$17","v":"Tilsætning:"},{"$f":"$E$17","v":""},null,null,null,null,null,null,null,null,null,null,{"$f":"$D$17","v":"Tilsætning:"},{"$f":"$E$17","v":""}]
[]
[null,null,null,{"$f":"$D$19","v":"Alc. Vol.:"},{"$f":"$E$19","v":""},null,{"$f":"$G$19","v":"EBC:"},{"$f":"$H$19","v":4},{"$f":"$I$19","v":"IBU:"},{"$f":"$J$19","v":""},null,null,null,null,null,{"$f":"$D$19","v":"Alc. Vol.:"},{"$f":"$E$19","v":""},null,{"$f":"$G$19","v":"EBC:"},{"$f":"$H$19","v":4},{"$f":"$I$19","v":"IBU:"},{"$f":"$J$19","v":""}]
[]
[null,null,null,{"$f":"$D$21","v":"Brygget af:"},{"$f":"$E$21","v":"Jesper Lyngbye"},null,{"$f":"$G$21","v":""},null,null,null,null,null,null,null,null,{"$f":"$D$21","v":"Brygget af:"},{"$f":"$E$21","v":"Jesper Lyngbye"},null,{"$f":"$G$21","v":""}]
[]
[null,null,null,{"$f":"$D$23","v":"Wolfhound Brewery"},null,null,null,null,null,null,null,null,null,null,null,{"$f":"$D$23","v":"Wolfhound Brewery"}]

{"sheet":"Data","index":3,"n_rows":336,"n_cols":16,"rows_kept":336,"cut":false,"hidden":false,"merged":[[77,8,77,9],[60,4,60,8],[29,3,29,4],[34,10,35,10],[33,10,33,13],[34,13,35,13],[34,12,35,12],[34,11,35,11],[58,5,58,7],[31,3,31,4],[28,7,31,7],[53,3,55,3],[49,3,51,3],[41,3,43,3],[30,3,30,4],[45,3,47,3],[0,3,0,6],[33,15,35,15],[0,11,0,13],[34,7,34,8],[33,7,33,8],[1,4,1,8],[2,4,2,8],[5,5,5,8],[4,5,4,8],[3,5,3,8],[28,3,28,4],[27,6,27,7],[18,4,18,6],[23,11,23,13],[19,11,19,13],[24,11,24,13],[28,8,31,8],[31,11,31,13],[1,11,1,12],[5,11,5,12],[25,11,25,13],[4,11,4,12],[6,5,6,8],[6,11,6,12],[26,11,26,13],[30,11,30,13],[29,11,29,13],[28,11,28,13],[27,11,27,13],[3,11,3,12],[2,11,2,12],[16,3,21,3],[22,11,22,13],[21,11,21,13],[20,11,20,13],[18,11,18,13]]}
[{"$f":"IF(BrewReport!M10>0,BrewReport!M10,\"\")","v":""},{"$f":"IF(BrewReport!L10>0,BrewReport!L10,\"\")","v":""},null,"STAMDATA",null,null,null,"Version:",6.18,null,null,"Breweries"]
[{"$f":"IF(BrewReport!M12>0,BrewReport!M12,\"\")","v":""},{"$f":"IF(BrewReport!L12>0,BrewReport!L12,\"\")","v":""},null,"Bryggeri","Wolfhound Brewery",null,null,null,null,null,null,"eyeT Brewery",null,"André"]
[{"$f":"IF(BrewReport!M13>0,BrewReport!M13,\"\")","v":""},{"$f":"IF(BrewReport!L13>0,BrewReport!L13,\"\")","v":""},null,"Brygmester",{"$f":"IFERROR(VLOOKUP(E2,L2:N7,3,FALSE),\"\")","v":"Jesper Lyngbye"},null,null,null,null,null,null,"Liquid Temptations",null,"Stefan"]
[{"$f":"IF(BrewReport!M14>0,BrewReport!M14,\"\")","v":""},{"$f":"IF(BrewReport!L14>0,BrewReport!L14,\"\")","v":""},null,"Mæskeeffektivitet",0.7,"Anvendes til at estimere Original Gravity",null,null,null,null,null,"Liquid Temptations & EyeT Brewery",null,"Stefan & André"]
[{"$f":"IF(BrewReport!M15>0,BrewReport!M15,\"\")","v":""},{"$f":"IF(BrewReport!L15>0,BrewReport!L15,\"\")","v":""},null,"Urtmængde i liter",25,"Anvendes til at beregne Effektivitet og Original Gravity",null,null,null,null,null,"Wolfhound Brewery",null,"Jesper Lyngbye"]
[{"$f":"IF(BrewReport!M16>0,BrewReport!M16,\"\")","v":15},{"$f":"IF(BrewReport!L16>0,BrewReport!L16,\"\")","v":72},null,"Flaskestørrelse i liter",0.5,"Anvendes til at beregne og vise antal genstande",null,null,null,null,null,"Hulebækkensbryghus",null,"Pierre Lindberg"]
[{"$f":"IF(BrewReport!M17>0,BrewReport!M17,\"\")","v":10},{"$f":"IF(BrewReport!L17>0,BrewReport!L17,\"\")","v":78},null,"Opvarmningstid af urt (min/°C)",1,"Anvendes til at beregne bryggetider"]
[{"$f":"IF(BrewReport!M18>0,BrewReport!M18,\"\")","v":""},{"$f":"IF(BrewReport!L18>0,BrewReport!L18,\"\")","v":""},null,"Beregninger","Malt","%","EBC","Ekstraktudbytte","OG"]
[{"$f":"IF(BrewReport!M19>0,BrewReport!M19,\"\")","v":30},{"$f":"IF(BrewReport!L19>0,BrewReport!L19,\"\")","v":78},null,null,{"$f":"IF(BrewReport!A9=\"\",\"\",BrewReport!A9)","v":""},{"$f":"IF(E9=\"\",\"\",ROUND(((BrewReport!D9/BrewReport!$D$19)*100),1))","v":""},{"$f":"IF(E9=\"\",\"\",IF(BrewReport!D9=\"\",\"\",ROUND((VLOOKUP(E9,Malt!$A$3:$D$85,3,)*(Data!F9/100)),1)))","v":""},{"$f":"IF(E9=\"\",\"\",(VLOOKUP(E9,Malt!$A$2:$D$85,4,)*F9/100))","v":""},"|"]
[{"$f":"IF(BrewReport!L22>0,BrewReport!L22,\"\")","v":90},{"$f":"IF(BrewReport!L22>0,100,\"\")","v":100},null,null,{"$f":"IF(BrewReport!A10=\"\",\"\",BrewReport!A10)","v":""},{"$f":"IF(E10=\"\",\"\",ROUND(((BrewReport!D10/BrewReport!$D$19)*100),1))","v":""},{"$f":"IF(E10=\"\",\"\",IF(BrewReport!D10=\"\",\"\",ROUND((VLOOKUP(E10,Malt!$A$3:$D$85,3,)*(Data!F10/100)),1)))","v":""},{"$f":"IF(E10=\"\",\"\",(VLOOKUP(E10,Malt!$A$2:$D$85,4,)*F10/100))","v":""},"|"]
[{"$f":"IFERROR(INDEX($A$1:$A$10,SMALL(IF(ISNUMBER($A$1:$A$10),ROW($A$1:$A$10)),ROW(A1))),\"\")","v":15},{"$f":"IFERROR(INDEX($B$1:$B$10,SMALL(IF(ISNUMBER($B$1:$B$10),ROW($B$1:$B$10)),ROW(B1))),\"\")","v":72},{"$f":"IF(A11=\"\",\"\",A11)","v":15},null,{"$f":"IF(BrewReport!A11=\"\",\"\",BrewReport!A11)","v":""},{"$f":"IF(E11=\"\",\"\",ROUND(((BrewReport!D11/BrewReport!$D$19)*100),1))","v":""},{"$f":"IF(E11=\"\",\"\",IF(BrewReport!D11=\"\",\"\",ROUND((VLOOKUP(E11,Malt!$A$3:$D$85,3,)*(Data!F11/100)),1)))","v":""},{"$f":"IF(E11=\"\",\"\",(VLOOKUP(E11,Malt!$A$2:$D$85,4,)*F11/100))","v":""},"|"]
[{"$f":"IFERROR(INDEX($A$1:$A$10,SMALL(IF(ISNUMBER($A$1:$A$10),ROW($A$1:$A$10)),ROW(A2))),\"\")","v":10},{"$f":"IFERROR(INDEX($B$1:$B$10,SMALL(IF(ISNUMBER($B$1:$B$10),ROW($B$1:$B$10)),ROW(B2))),\"\")","v":78},{"$f":"IF(A12=\"\",\"\",A12+C11)","v":25},null,{"$f":"IF(BrewReport!A12=\"\",\"\",BrewReport!A12)","v":""},{"$f":"IF(E12=\"\",\"\",ROUND(((BrewReport!D12/BrewReport!$D$19)*100),1))","v":""},{"$f":"IF(E12=\"\",\"\",IF(BrewReport!D12=\"\",\"\",ROUND((VLOOKUP(E12,Malt!$A$3:$D$85,3,)*(Data!F12/100)),1)))","v":""},{"$f":"IF(E12=\"\",\"\",(VLOOKUP(E12,Malt!$A$2:$D$85,4,)*F12/100))","v":""},"|"]
[{"$f":"IFERROR(INDEX($A$1:$A$10,SMALL(IF(ISNUMBER($A$1:$A$10),ROW($A$1:$A$10)),ROW(A3))),\"\")","v":30},{"$f":"IFERROR(INDEX($B$1:$B$10,SMALL(IF(ISNUMBER($B$1:$B$10),ROW($B$1:$B$10)),ROW(B3))),\"\")","v":78},{"$f":"IF(A13=\"\",\"\",A13+C12)","v":55},null,{"$f":"IF(BrewReport!A13=\"\",\"\",BrewReport!A13)","v":""},{"$f":"IF(E13=\"\",\"\",ROUND(((BrewReport!D13/BrewReport!$D$19)*100),1))","v":""},{"$f":"IF(E13=\"\",\"\",IF(BrewReport!D13=\"\",\"\",ROUND((VLOOKUP(E13,Malt!$A$3:$D$85,3,)*(Data!F13/100)),1)))","v":""},{"$f":"IF(E13=\"\",\"\",(VLOOKUP(E13,Malt!$A$2:$D$85,4,)*F13/100))","v":""},"|"]
[{"$f":"IFERROR(INDEX($A$1:$A$10,SMALL(IF(ISNUMBER($A$1:$A$10),ROW($A$1:$A$10)),ROW(A4))),\"\")","v":90},{"$f":"IFERROR(INDEX($B$1:$B$10,SMALL(IF(ISNUMBER($B$1:$B$10),ROW($B$1:$B$10)),ROW(B4))),\"\")","v":100},145,"Estimeret effektivitet",{"$f":"IF(BrewReport!A14=\"\",\"\",BrewReport!A14)","v":""},{"$f":"IF(E14=\"\",\"\",ROUND(((BrewReport!D14/BrewReport!$D$19)*100),1))","v":""},{"$f":"IF(E14=\"\",\"\",IF(BrewReport!D14=\"\",\"\",ROUND((VLOOKUP(E14,Malt!$A$3:$D$85,3,)*(Data!F14/100)),1)))","v":""},{"$f":"IF(E14=\"\",\"\",(VLOOKUP(E14,Malt!$A$2:$D$85,4,)*F14/100))","v":""},"|"]
[{"$f":"IFERROR(INDEX($A$1:$A$10,SMALL(IF(ISNUMBER($A$1:$A$10),ROW($A$1:$A$10)),ROW(A5))),\"\")","v":""},{"$f":"IFERROR(INDEX($B$1:$B$10,SMALL(IF(ISNUMBER($B$1:$B$10),ROW($B$1:$B$10)),ROW(B5))),\"\")","v":""},"",{"$f":"IF(BrewReport!D19=0,\"\",((I26-1000)*E5)/(BrewReport!D19*H26))","v":0.59523809523809523},{"$f":"IF(BrewReport!A15=\"\",\"\",BrewReport!A15)","v":""},{"$f":"IF(E15=\"\",\"\",ROUND(((BrewReport!D15/BrewReport!$D$19)*100),1))","v":""},{"$f":"IF(E15=\"\",\"\",IF(BrewReport!D15=\"\",\"\",ROUND((VLOOKUP(E15,Malt!$A$3:$D$85,3,)*(Data!F15/100)),1)))","v":""},{"$f":"IF(E15=\"\",\"\",(VLOOKUP(E15,Malt!$A$2:$D$85,4,)*F15/100))","v":""},"|"]
[{"$f":"IFERROR(INDEX($A$1:$A$10,SMALL(IF(ISNUMBER($A$1:$A$10),ROW($A$1:$A$10)),ROW(A6))),\"\")","v":""},{"$f":"IFERROR(INDEX($B$1:$B$10,SMALL(IF(ISNUMBER($B$1:$B$10),ROW($B$1:$B$10)),ROW(B6))),\"\")","v":""},"",null,{"$f":"IF(BrewReport!A16=\"\",\"\",BrewReport!A16)","v":""},{"$f":"IF(E16=\"\",\"\",ROUND(((BrewReport!D16/BrewReport!$D$19)*100),1))","v":""},{"$f":"IF(E16=\"\",\"\",IF(BrewReport!D16=\"\",\"\",ROUND((VLOOKUP(E16,Malt!$A$3:$D$85,3,)*(Data!F16/100)),1)))","v":""},{"$f":"IF(E16=\"\",\"\",(VLOOKUP(E16,Malt!$A$2:$D$85,4,)*F16/100))","v":""},"|"]
[{"$f":"IFERROR(INDEX($A$1:$A$10,SMALL(IF(ISNUMBER($A$1:$A$10),ROW($A$1:$A$10)),ROW(A7))),\"\")","v":""},{"$f":"IFERROR(INDEX($B$1:$B$10,SMALL(IF(ISNUMBER($B$1:$B$10),ROW($B$1:$B$10)),ROW(B7))),\"\")","v":""},"",null,{"$f":"IF(BrewReport!A17=\"\",\"\",BrewReport!A17)","v":""},{"$f":"IF(E17=\"\",\"\",ROUND(((BrewReport!D17/BrewReport!$D$19)*100),1))","v":""},{"$f":"IF(E17=\"\",\"\",IF(BrewReport!D17=\"\",\"\",ROUND((VLOOKUP(E17,Malt!$A$3:$D$85,3,)*(Data!F17/100)),1)))","v":""},{"$f":"IF(E17=\"\",\"\",(VLOOKUP(E17,Malt!$A$2:$D$85,4,)*F17/100))","v":""},"|"]
[{"$f":"IFERROR(INDEX($A$1:$A$10,SMALL(IF(ISNUMBER($A$1:$A$10),ROW($A$1:$A$10)),ROW(A8))),\"\")","v":""},{"$f":"IFERROR(INDEX($B$1:$B$10,SMALL(IF(ISNUMBER($B$1:$B$10),ROW($B$1:$B$10)),ROW(B8))),\"\")","v":""},"",null,{"$f":"IF(BrewReport!A18=\"\",\"\",BrewReport!A18)","v":"Torrefied Flaked Oat"},{"$f":"IF(E18=\"\",\"\",ROUND(((BrewReport!D18/BrewReport!$D$19)*100),1))","v":100},{"$f":"IF(E18=\"\",\"\",IF(BrewReport!D18=\"\",\"\",ROUND((VLOOKUP(E18,Malt!$A$3:$D$85,3,)*(Data!F18/100)),1)))","v":4},{"$f":"IF(E18=\"\",\"\",(VLOOKUP(E18,Malt!$A$2:$D$85,4,)*F18/100))","v":280},"|"]
[{"$f":"IFERROR(INDEX($A$1:$A$10,SMALL(IF(ISNUMBER($A$1:$A$10),ROW($A$1:$A$10)),ROW(A9))),\"\")","v":""},{"$f":"IFERROR(INDEX($B$1:$B$10,SMALL(IF(ISNUMBER($B$1:$B$10),ROW($B$1:$B$10)),ROW(B9))),\"\")","v":""},"",null,"Maltudbytte i alt",null,null,{"$f":"ROUND(SUM(H9:H18),1)","v":280},"|",null,"EBC","Example",null,null,"Beer color","SRM"]
[{"$f":"IFERROR(INDEX($A$1:$A$10,SMALL(IF(ISNUMBER($A$1:$A$10),ROW($A$1:$A$10)),ROW(A10))),\"\")","v":""},{"$f":"IFERROR(INDEX($B$1:$B$10,SMALL(IF(ISNUMBER($B$1:$B$10),ROW($B$1:$B$10)),ROW(B10))),\"\")","v":""},"",null,{"$f":"IF(OR((BrewReport!A40=\"Klar Urt\"),(BrewReport!A40=\"Appelsinskal\"),(BrewReport!A40=\"Koriander\"),(BrewReport!A40=\"\")),\"\",BrewReport!A40)","v":""},{"$f":"IF(E20=\"\",\"\",ROUND((((BrewReport!D40/1000)/BrewReport!$D$19)*100),1))","v":""},{"$f":"IF(E20=\"\",\"\",IF(BrewReport!D40=\"\",\"\",ROUND((VLOOKUP(E20,Tilsætninger!$A$2:$D$40,3,)*(Data!F20/100)),1)))","v":""},{"$f":"IF(E20=\"\",\"\",(VLOOKUP(E20,Tilsætninger!$A$2:$D$40,4,)*F20/100))","v":""},"|",null,4,"Pale lager, Witbier, Pilsener, Berliner Weisse",null,null,null,2]
[0,{"$f":"IF(A21<=$C$11,$B$11,IF(A21<=$C$12,$B$12,IF(A21<=$C$13,$B$13,IF(A21<=$C$14,$B$14,IF(A21<=$C$15,$B$15,IF(A21<=$C$16,$B$16,IF(A21<=$C$17,$B$17,IF(A21<=$C$18,$B$18,IF(A21<=$C$19,$B$19,IF(A21<=$C$20,$B$20,\"\"))))))))))","v":72},null,null,{"$f":"IF(OR((BrewReport!A41=\"Klar Urt\"),(BrewReport!A41=\"Appelsinskal\"),(BrewReport!A41=\"Koriander\"),(BrewReport!A41=\"\")),\"\",BrewReport!A41)","v":""},{"$f":"IF(E21=\"\",\"\",ROUND((((BrewReport!D41/1000)/BrewReport!$D$19)*100),1))","v":""},{"$f":"IF(E21=\"\",\"\",IF(BrewReport!D41=\"\",\"\",ROUND((VLOOKUP(E21,Tilsætninger!$A$2:$D$40,3,)*(Data!F21/100)),1)))","v":""},{"$f":"IF(E21=\"\",\"\",(VLOOKUP(E21,Tilsætninger!$A$2:$D$40,4,)*F21/100))","v":""},"|",null,6,"Maibock, Blonde Ale",null,null,null,3]
[5,{"$f":"IF(A22<=$C$11,$B$11,IF(A22<=$C$12,$B$12,IF(A22<=$C$13,$B$13,IF(A22<=$C$14,$B$14,IF(A22<=$C$15,$B$15,IF(A22<=$C$16,$B$16,IF(A22<=$C$17,$B$17,IF(A22<=$C$18,$B$18,IF(A22<=$C$19,$B$19,IF(A22<=$C$20,$B$20,\"\"))))))))))","v":72},null,null,{"$f":"IF(OR((BrewReport!A42=\"Klar Urt\"),(BrewReport!A42=\"Appelsinskal\"),(BrewReport!A42=\"Koriander\"),(BrewReport!A42=\"\")),\"\",BrewReport!A42)","v":""},{"$f":"IF(E22=\"\",\"\",ROUND((((BrewReport!D42/1000)/BrewReport!$D$19)*100),1))","v":""},{"$f":"IF(E22=\"\",\"\",IF(BrewReport!D42=\"\",\"\",ROUND((VLOOKUP(E22,Tilsætninger!$A$2:$D$40,3,)*(Data!F22/100)),1)))","v":""},{"$f":"IF(E22=\"\",\"\",(VLOOKUP(E22,Tilsætninger!$A$2:$D$40,4,)*F22/100))","v":""},"|",null,8,"Weissbier",null,null,null,4]
[10,72,null,"Faktisk effektivitet",{"$f":"IF(OR((BrewReport!A43=\"Klar Urt\"),(BrewReport!A43=\"Appelsinskal\"),(BrewReport!A43=\"Koriander\"),(BrewReport!A43=\"\")),\"\",BrewReport!A43)","v":""},{"$f":"IF(E23=\"\",\"\",ROUND((((BrewReport!D43/1000)/BrewReport!$D$19)*100),1))","v":""},{"$f":"IF(E23=\"\",\"\",IF(BrewReport!D43=\"\",\"\",ROUND((VLOOKUP(E23,Tilsætninger!$A$2:$D$40,3,)*(Data!F23/100)),1)))","v":""},{"$f":"IF(E23=\"\",\"\",(VLOOKUP(E23,Tilsætninger!$A$2:$D$40,4,)*F23/100))","v":""},"|",null,12,"American Pale Ale, India Pale Ale",null,null,null,6]
[15,72,null,{"$f":"IF(BrewReport!$D$19=0,\"\",((BrewReport!$D$51-1000)*BrewReport!$D$50)/(BrewReport!$D$19*$H$19))","v":0},{"$f":"IF(OR((BrewReport!A44=\"Klar Urt\"),(BrewReport!A44=\"Appelsinskal\"),(BrewReport!A44=\"Koriander\"),(BrewReport!A44=\"\")),\"\",BrewReport!A44)","v":""},{"$f":"IF(E24=\"\",\"\",ROUND((((BrewReport!D44/1000)/BrewReport!$D$19)*100),1))","v":""},{"$f":"IF(E24=\"\",\"\",IF(BrewReport!D44=\"\",\"\",ROUND((VLOOKUP(E24,Tilsætninger!$A$2:$D$40,3,)*(Data!F24/100)),1)))","v":""},{"$f":"IF(E24=\"\",\"\",(VLOOKUP(E24,Tilsætninger!$A$2:$D$40,4,)*F24/100))","v":""},"|",null,16,"Weissbier, Saison",null,null,null,8]
[20,78,null,{"$f":"IF(BrewReport!$D$19=0,\"\",((BrewReport!$D$53-1000)*BrewReport!$D$52)/(BrewReport!$D$19*$H$26))","v":0},{"$f":"IF(OR((BrewReport!A45=\"Klar Urt\"),(BrewReport!A45=\"Appelsinskal\"),(BrewReport!A45=\"Koriander\"),(BrewReport!A45=\"\")),\"\",BrewReport!A45)","v":""},{"$f":"IF(E25=\"\",\"\",ROUND((((BrewReport!D45/1000)/BrewReport!$D$19)*100),1))","v":""},{"$f":"IF(E25=\"\",\"\",IF(BrewReport!D45=\"\",\"\",ROUND((VLOOKUP(E25,Tilsætninger!$A$2:$D$40,3,)*(Data!F25/100)),1)))","v":""},{"$f":"IF(E25=\"\",\"\",(VLOOKUP(E25,Tilsætninger!$A$2:$D$40,4,)*F25/100))","v":""},"|",null,20,"English Bitter, ESB",null,null,null,10]
[25,78,null,null,null,{"$f":"ROUND(SUM(F9:F18),0)","v":100},{"$f":"ROUND(SUM(G9:G25),1)","v":4},{"$f":"ROUND(SUM(H19:H25),1)","v":280},{"$f":"ROUND(((BrewReport!D19*H26*(E4))/E5),0)+1000","v":1002},null,26,"Biere de Garde, Double IPA",null,null,null,13]
[30,78,null,"Gær navn og nummer",null,"Alc.Tol.","Att. %","FG:","ALC.%",null,33,"Dark lager, Vienna lager, Marzen, Amber Ale",null,null,null,17]
[35,78,null,null,null,null,"FG beregnet af højeste Att.%",null,null,null,39,"Brown Ale, Bock, Dunkel, Dunkelweizen",null,null,null,20]
[40,78,null,{"$f":"IF(BrewReport!L54=\"\",\"\",BrewReport!L54)","v":""},null,{"$f":"IF(D29=\"\",\"\",(VLOOKUP(D29,Gær!A2:G76,7,FALSE)))","v":""},{"$f":"IF(D29=\"\",\"\",(VLOOKUP(D29,Gær!A2:G76,5,FALSE)))","v":""},{"$f":"IF(SUM(G29:G33)=0,\"\",ROUND((I26-((I26-1000)*(MAX(G29:G32)/100))),0))","v":""},{"$f":"IF(H29=\"\",\"\",((I26-H29)/7.5))","v":""},null,47,"Irish Dry Stout, Doppelbock, Porter",null,null,null,24]
[45,78,null,{"$f":"IF(BrewReport!L55=\"\",\"\",BrewReport!L55)","v":""},null,{"$f":"IF(D30=\"\",\"\",(VLOOKUP(D30,Gær!A2:G76,7,FALSE)))","v":""},{"$f":"IF(D30=\"\",\"\",(VLOOKUP(D30,Gær!A2:G76,5,FALSE)))","v":""},null,null,null,57,"Stout",null,null,null,29]
[50,78,null,{"$f":"IF(BrewReport!L63=\"\",\"\",BrewReport!L63)","v":""},null,{"$f":"IF(D31=\"\",\"\",(VLOOKUP(D31,Gær!A2:G76,7,FALSE)))","v":""},{"$f":"IF(D31=\"\",\"\",(VLOOKUP(D31,Gær!A2:G76,5,FALSE)))","v":""},null,null,null,69,"Foreign Stout, Baltic Porter",null,null,null,35]
[55,78,null,{"$f":"IF(BrewReport!L64=\"\",\"\",BrewReport!L64)","v":""},null,{"$f":"IF(D32=\"\",\"\",(VLOOKUP(D32,Gær!A2:G76,7,FALSE)))","v":""},{"$f":"IF(D32=\"\",\"\",(VLOOKUP(D32,Gær!A2:G76,5,FALSE)))","v":""},null,null,null,79,"Imperial Stout",null,null,null,"40+"]
[60,100]
[65,100,null,null,null,null,null,"Flaskeindhold",null,null,"EBC to RGB",null,null,null,null,"SRM to RGB"]
[70,100,null,null,null,null,null,"Svarer til i genstande:",null,null,null,{"$f":"IF(G26=0,\"\",VLOOKUP(G26, K37:N336,2,TRUE))","v":250},{"$f":"IF(G26=0,\"\",VLOOKUP(G26, K37:N336,3,TRUE))","v":250},{"$f":"IF(G26=0,\"\",VLOOKUP(G26, K37:N336,4,TRUE))","v":105}]
[75,100,null,null,null,null,null,"Estimat",{"$f":"IF(I29=\"\",\"\",ROUND((((E6*1000)*0.79*(I29/100))/12),1))","v":""}]
[80,100,null,null,null,null,null,"Brygget",{"$f":"IF(BrewReport!D58=\"\",\"\",ROUND((((E6*1000)*0.79*(BrewReport!D58/100))/12),1))","v":""},null,0.2,250,250,210,null,"0,1 250 250 210"]
[85,100,null,null,null,null,null,null,null,null,0.4,250,250,204,null,"0,2 250 250 204"]
[90,100,null,null,null,null,null,null,null,null,0.6,250,250,199,null,"0,3 250 250 199"]
[95,100,null,null,null,null,null,null,null,null,0.8,250,250,193,null,"0,4 250 250 193"]
[100,100,null,null,"Humle","Gram","IBU Avg.","Udnyttelsesgrad","IBU i urten",null,1,250,250,188,null,"0,5 250 250 188"]
[105,100,null,"Bitterhumle",{"$f":"IF(BrewReport!A23=\"\",\"\",BrewReport!A23)","v":""},{"$f":"IF(BrewReport!D23=\"\",\"\",BrewReport!D23)","v":""},{"$f":"IF(E42=\"\",\"\",IF(BrewReport!B23=\"\",\"\",IF(BrewReport!B23=\"Pellet\",VLOOKUP(E42,Humle!$A$3:$K$73,3,FALSE),IF(BrewReport!B23=\"Blomst\",VLOOKUP(E42,Humle!$A$3:$K$73,4,FALSE)))))","v":""},{"$f":"IF(E42=\"\",\"\",VLOOKUP(BrewReport!$L23,Humle!$O$6:$Z$30,((ROUNDDOWN(($I$26/10),0)*10)-1000)/10-1,TRUE)*100)","v":""},{"$f":"IF(E42=\"\",\"\",IF(BrewReport!L23=\"\",\"\",(F42*G42*H42)/($E$5*10)))","v":""},null,1.2,250,250,182,null,"0,6 250 250 182"]
[110,100,null,null,{"$f":"IF(BrewReport!A24=\"\",\"\",BrewReport!A24)","v":""},{"$f":"IF(BrewReport!D24=\"\",\"\",BrewReport!D24)","v":""},{"$f":"IF(E43=\"\",\"\",IF(BrewReport!B24=\"\",\"\",IF(BrewReport!B24=\"Pellet\",VLOOKUP(E43,Humle!$A$3:$K$73,3,FALSE),IF(BrewReport!B24=\"Blomst\",VLOOKUP(E43,Humle!$A$3:$K$73,4,FALSE)))))","v":""},{"$f":"IF(E43=\"\",\"\",VLOOKUP(BrewReport!$L24,Humle!$O$6:$Z$30,((ROUNDDOWN(($I$26/10),0)*10)-1000)/10-1,TRUE)*100)","v":""},{"$f":"IF(E43=\"\",\"\",IF(BrewReport!L24=\"\",\"\",(F43*G43*H43)/($E$5*10)))","v":""},null,1.4,250,250,177,null,"0,7 250 250 177"]
[115,100,null,null,{"$f":"IF(BrewReport!A25=\"\",\"\",BrewReport!A25)","v":""},{"$f":"IF(BrewReport!D25=\"\",\"\",BrewReport!D25)","v":""},{"$f":"IF(E44=\"\",\"\",IF(BrewReport!B25=\"\",\"\",IF(BrewReport!B25=\"Pellet\",VLOOKUP(E44,Humle!$A$3:$K$73,3,FALSE),IF(BrewReport!B25=\"Blomst\",VLOOKUP(E44,Humle!$A$3:$K$73,4,FALSE)))))","v":""},{"$f":"IF(E44=\"\",\"\",VLOOKUP(BrewReport!$L25,Humle!$O$6:$Z$30,((ROUNDDOWN(($I$26/10),0)*10)-1000)/10-1,TRUE)*100)","v":""},{"$f":"IF(E44=\"\",\"\",IF(BrewReport!L25=\"\",\"\",(F44*G44*H44)/($E$5*10)))","v":""},null,1.6,250,250,171,null,"0,8 250 250 171"]
[120,100,null,null,null,null,null,null,"-",null,1.8,250,250,166,null,"0,9 250 250 166"]
[125,100,null,"Smagshumle",{"$f":"IF(BrewReport!A27=\"\",\"\",BrewReport!A27)","v":""},{"$f":"IF(BrewReport!D27=\"\",\"\",BrewReport!D27)","v":""},{"$f":"IF(E46=\"\",\"\",IF(BrewReport!B27=\"\",\"\",IF(BrewReport!B27=\"Pellet\",VLOOKUP(E46,Humle!$A$3:$K$73,3,FALSE),IF(BrewReport!B27=\"Blomst\",VLOOKUP(E46,Humle!$A$3:$K$73,4,FALSE)))))","v":""},{"$f":"IF(E46=\"\",\"\",VLOOKUP(BrewReport!$L27,Humle!$O$6:$Z$30,((ROUNDDOWN(($I$26/10),0)*10)-1000)/10-1,TRUE)*100)","v":""},{"$f":"IF(E46=\"\",\"\",IF(BrewReport!L27=\"\",\"\",(F46*G46*H46)/($E$5*10)))","v":""},null,2,250,250,160,null,"1 250 250 160"]
[130,100,null,null,{"$f":"IF(BrewReport!A28=\"\",\"\",BrewReport!A28)","v":""},{"$f":"IF(BrewReport!D28=\"\",\"\",BrewReport!D28)","v":""},{"$f":"IF(E47=\"\",\"\",IF(BrewReport!B28=\"\",\"\",IF(BrewReport!B28=\"Pellet\",VLOOKUP(E47,Humle!$A$3:$K$73,3,FALSE),IF(BrewReport!B28=\"Blomst\",VLOOKUP(E47,Humle!$A$3:$K$73,4,FALSE)))))","v":""},{"$f":"IF(E47=\"\",\"\",VLOOKUP(BrewReport!$L28,Humle!$O$6:$Z$30,((ROUNDDOWN(($I$26/10),0)*10)-1000)/10-1,TRUE)*100)","v":""},{"$f":"IF(E47=\"\",\"\",IF(BrewReport!L28=\"\",\"\",(F47*G47*H47)/($E$5*10)))","v":""},null,2.2000000000000002,250,250,155,null,"1,1 250 250 155"]
[135,100,null,null,{"$f":"IF(BrewReport!A29=\"\",\"\",BrewReport!A29)","v":""},{"$f":"IF(BrewReport!D29=\"\",\"\",BrewReport!D29)","v":""},{"$f":"IF(E48=\"\",\"\",IF(BrewReport!B29=\"\",\"\",IF(BrewReport!B29=\"Pellet\",VLOOKUP(E48,Humle!$A$3:$K$73,3,FALSE),IF(BrewReport!B29=\"Blomst\",VLOOKUP(E48,Humle!$A$3:$K$73,4,FALSE)))))","v":""},{"$f":"IF(E48=\"\",\"\",VLOOKUP(BrewReport!$L29,Humle!$O$6:$Z$30,((ROUNDDOWN(($I$26/10),0)*10)-1000)/10-1,TRUE)*100)","v":""},{"$f":"IF(E48=\"\",\"\",IF(BrewReport!L29=\"\",\"\",(F48*G48*H48)/($E$5*10)))","v":""},null,2.4,250,250,149,null,"1,2 250 250 149"]
[140,100,null,null,null,null,null,null,"-",null,2.6,250,250,144,null,"1,3 250 250 144"]
[145,100,null,"Aromahumle",{"$f":"IF(BrewReport!A31=\"\",\"\",BrewReport!A31)","v":""},{"$f":"IF(BrewReport!D31=\"\",\"\",BrewReport!D31)","v":""},{"$f":"IF(E50=\"\",\"\",IF(BrewReport!B31=\"\",\"\",IF(BrewReport!B31=\"Pellet\",VLOOKUP(E50,Humle!$A$3:$K$73,3,FALSE),IF(BrewReport!B31=\"Blomst\",VLOOKUP(E50,Humle!$A$3:$K$73,4,FALSE)))))","v":""},{"$f":"IF(E50=\"\",\"\",VLOOKUP(BrewReport!$L31,Humle!$O$6:$Z$30,((ROUNDDOWN(($I$26/10),0)*10)-1000)/10-1,TRUE)*100)","v":""},{"$f":"IF(E50=\"\",\"\",IF(BrewReport!L31=\"\",\"\",(F50*G50*H50)/($E$5*10)))","v":""},null,2.8,250,250,138,null,"1,4 250 250 138"]
[150,"",null,null,{"$f":"IF(BrewReport!A32=\"\",\"\",BrewReport!A32)","v":""},{"$f":"IF(BrewReport!D32=\"\",\"\",BrewReport!D32)","v":""},{"$f":"IF(E51=\"\",\"\",IF(BrewReport!B32=\"\",\"\",IF(BrewReport!B32=\"Pellet\",VLOOKUP(E51,Humle!$A$3:$K$73,3,FALSE),IF(BrewReport!B32=\"Blomst\",VLOOKUP(E51,Humle!$A$3:$K$73,4,FALSE)))))","v":""},{"$f":"IF(E51=\"\",\"\",VLOOKUP(BrewReport!$L32,Humle!$O$6:$Z$30,((ROUNDDOWN(($I$26/10),0)*10)-1000)/10-1,TRUE)*100)","v":""},{"$f":"IF(E51=\"\",\"\",IF(BrewReport!L32=\"\",\"\",(F51*G51*H51)/($E$5*10)))","v":""},null,3,250,250,133,null,"1,5 250 250 133"]
[155,"",null,null,{"$f":"IF(BrewReport!A33=\"\",\"\",BrewReport!A33)","v":""},{"$f":"IF(BrewReport!D33=\"\",\"\",BrewReport!D33)","v":""},{"$f":"IF(E52=\"\",\"\",IF(BrewReport!B33=\"\",\"\",IF(BrewReport!B33=\"Pellet\",VLOOKUP(E52,Humle!$A$3:$K$73,3,FALSE),IF(BrewReport!B33=\"Blomst\",VLOOKUP(E52,Humle!$A$3:$K$73,4,FALSE)))))","v":""},{"$f":"IF(E52=\"\",\"\",VLOOKUP(BrewReport!$L33,Humle!$O$6:$Z$30,((ROUNDDOWN(($I$26/10),0)*10)-1000)/10-1,TRUE)*100)","v":""},{"$f":"IF(E52=\"\",\"\",IF(BrewReport!L33=\"\",\"\",(F52*G52*H52)/($E$5*10)))","v":""},null,3.2,250,250,127,null,"1,6 250 250 127"]
[160,"",null,null,null,null,null,null,"-",null,3.3,250,250,122,null,"1,7 250 250 122"]
[165,"",null,"Tørhumle",{"$f":"IF(BrewReport!A35=\"\",\"\",BrewReport!A35)","v":""},{"$f":"IF(BrewReport!D35=\"\",\"\",BrewReport!D35)","v":""},{"$f":"IF(E54=\"\",\"\",IF(BrewReport!B35=\"\",\"\",IF(BrewReport!B35=\"Pellet\",VLOOKUP(E54,Humle!$A$3:$K$73,3,FALSE),IF(BrewReport!B35=\"Blomst\",VLOOKUP(E54,Humle!$A$3:$K$73,4,FALSE)))))","v":""},{"$f":"IF(E54=\"\",\"\",VLOOKUP(BrewReport!$L35,Humle!$O$6:$Z$30,((ROUNDDOWN(($I$26/10),0)*10)-1000)/10-1,TRUE)*100)","v":""},{"$f":"IF(E54=\"\",\"\",IF(BrewReport!L35=\"\",\"\",(F54*G54*H54)/($E$5*10)))","v":""},null,3.5,250,250,116,null,"1,8 250 250 116"]
[170,"",null,null,{"$f":"IF(BrewReport!A36=\"\",\"\",BrewReport!A36)","v":""},{"$f":"IF(BrewReport!D36=\"\",\"\",BrewReport!D36)","v":""},{"$f":"IF(E55=\"\",\"\",IF(BrewReport!B36=\"\",\"\",IF(BrewReport!B36=\"Pellet\",VLOOKUP(E55,Humle!$A$3:$K$73,3,FALSE),IF(BrewReport!B36=\"Blomst\",VLOOKUP(E55,Humle!$A$3:$K$73,4,FALSE)))))","v":""},{"$f":"IF(E55=\"\",\"\",VLOOKUP(BrewReport!$L36,Humle!$O$6:$Z$30,((ROUNDDOWN(($I$26/10),0)*10)-1000)/10-1,TRUE)*100)","v":""},{"$f":"IF(E55=\"\",\"\",IF(BrewReport!L36=\"\",\"\",(F55*G55*H55)/($E$5*10)))","v":""},null,3.7,250,250,111,null,"1,9 250 250 111"]
[175,"",null,null,{"$f":"IF(BrewReport!A37=\"\",\"\",BrewReport!A37)","v":""},{"$f":"IF(BrewReport!D37=\"\",\"\",BrewReport!D37)","v":""},{"$f":"IF(E56=\"\",\"\",IF(BrewReport!B37=\"\",\"\",IF(BrewReport!B37=\"Pellet\",VLOOKUP(E56,Humle!$A$3:$K$73,3,FALSE),IF(BrewReport!B37=\"Blomst\",VLOOKUP(E56,Humle!$A$3:$K$73,4,FALSE)))))","v":""},{"$f":"IF(E56=\"\",\"\",VLOOKUP(BrewReport!$L37,Humle!$O$6:$Z$30,((ROUNDDOWN(($I$26/10),0)*10)-1000)/10-1,TRUE)*100)","v":""},{"$f":"IF(E56=\"\",\"\",IF(BrewReport!L37=\"\",\"\",(F56*G56*H56)/($E$5*10)))","v":""},null,3.9,250,250,105,null,"2 250 250 105"]
[180,"",null,null,null,null,null,null,"-",null,4.0999999999999996,250,250,100,null,"2,1 250 250 100"]
[185,"",null,null,null,null,null,null,null,null,4.3,250,250,94,null,"2,2 250 250 94"]
[190,"",null,null,null,"Total IBU:",null,null,{"$f":"SUM(I42:I57)","v":0},null,4.5,250,250,89,null,"2,3 250 250 89"]
[195,"",null,null,null,null,null,null,null,null,4.7,250,250,83,null,"2,4 250 250 83"]
[200,"",null,"BU:GU and RBR:","http://www.madalchemist.com/chart_bitterness_corrected.html",null,null,null,null,null,4.9000000000000004,250,250,78,null,"2,5 250 250 78"]
[205,"",null,null,null,null,null,null,null,null,5.0999999999999996,249,250,72,null,"2,6 249 250 72"]
[210,"",null,null,null,null,null,null,null,null,5.3,248,249,67,null,"2,7 248 249 67"]
[215,"",null,null,null,null,null,null,null,null,5.5,247,248,61,null,"2,8 247 248 61"]
[220,"",null,null,null,null,null,null,null,null,5.7,246,247,56,null,"2,9 246 247 56"]
[225,"",null,null,null,null,null,null,null,null,5.9,245,246,50,null,"3 245 246 50"]
[230,"",null,null,null,null,null,null,null,null,6.1,244,245,45,null,"3,1 244 245 45"]
[235,"",null,null,null,null,null,null,null,null,6.3,243,244,45,null,"3,2 243 244 45"]
[240,"",null,null,null,null,null,null,null,null,6.5,242,242,45,null,"3,3 242 242 45"]
[245,"",null,null,null,null,null,null,null,null,6.7,241,240,46,null,"3,4 241 240 46"]
[250,"",null,null,null,null,null,null,null,null,6.9,240,238,46,null,"3,5 240 238 46"]
[255,"",null,null,null,null,null,null,null,null,7.1,239,236,46,null,"3,6 239 236 46"]
[260,"",null,null,null,null,null,null,null,null,7.3,238,234,46,null,"3,7 238 234 46"]
[265,"",null,null,null,null,null,null,null,null,7.5,237,232,47,null,"3,8 237 232 47"]
[270,"",null,null,null,null,null,null,null,null,7.7,236,230,47,null,"3,9 236 230 47"]
[null,null,null,null,null,null,null,null,null,null,7.9,235,228,47,null,"4 235 228 47"]
[null,null,null,null,null,null,null,null,null,null,8.1,234,226,47,null,"4,1 234 226 47"]
[null,null,null,null,null,null,null,null,"RBR colour coding",null,8.3000000000000007,233,224,48,null,"4,2 233 224 48"]
[null,null,null,null,null,null,null,null,"(extra hoppy)         > ",{"$f":"35/55","v":0.63636363636363635},8.5,232,222,48,null,"4,3 232 222 48"]
[null,null,null,null,null,null,null,null,"(slightly hoppy)      > ",{"$f":"40/75","v":0.53333333333333333},8.6999999999999993,231,220,48,null,"4,4 231 220 48"]
[null,null,null,null,null,null,null,null,"(evenly balanced)   > ",{"$f":"20/45","v":0.44444444444444442},8.9,230,218,48,null,"4,5 230 218 48"]
[null,null,null,null,null,null,null,null,"(slightly malty)       > ",{"$f":"20/55","v":0.36363636363636365},9.1,229,216,49,null,"4,6 229 216 49"]
[null,null,null,null,null,null,null,null,"(extra malty)          < ",{"$f":"20/55","v":0.36363636363636365},9.3000000000000007,228,214,49,null,"4,7 228 214 49"]
[null,null,null,null,null,null,null,null,null,null,9.5,227,212,49,null,"4,8 227 212 49"]
[null,null,null,null,null,null,null,null,null,null,9.6999999999999993,226,210,49,null,"4,9 226 210 49"]
[null,null,null,null,null,null,null,null,null,null,9.9,225,208,50,null,"5 225 208 50"]
[null,null,null,null,null,null,null,null,null,null,10,224,206,50,null,"5,1 224 206 50"]
[null,null,null,null,null,null,null,null,null,null,10.199999999999999,223,204,50,null,"5,2 223 204 50"]
[null,null,null,null,null,null,null,null,null,null,10.4,222,202,50,null,"5,3 222 202 50"]
[null,null,null,null,null,null,null,null,null,null,10.6,221,200,51,null,"5,4 221 200 51"]
[null,null,null,null,null,null,null,null,null,null,10.8,220,198,51,null,"5,5 220 198 51"]
[null,null,null,null,null,null,null,null,null,null,11,219,196,51,null,"5,6 219 196 51"]
[null,null,null,null,null,null,null,null,null,null,11.2,218,194,51,null,"5,7 218 194 51"]
[null,null,null,null,null,null,null,null,null,null,11.4,217,192,52,null,"5,8 217 192 52"]
[null,null,null,null,null,null,null,null,null,null,11.6,216,190,52,null,"5,9 216 190 52"]
[null,null,null,null,null,null,null,null,null,null,11.8,215,188,52,null,"6 215 188 52"]
[null,null,null,null,null,null,null,null,null,null,12,214,186,52,null,"6,1 214 186 52"]
[null,null,null,null,null,null,null,null,null,null,12.2,213,184,53,null,"6,2 213 184 53"]
[null,null,null,null,null,null,null,null,null,null,12.4,212,182,53,null,"6,3 212 182 53"]
[null,null,null,null,null,null,null,null,null,null,12.6,211,180,53,null,"6,4 211 180 53"]
[null,null,null,null,null,null,null,null,null,null,12.8,210,178,53,null,"6,5 210 178 53"]
[null,null,null,null,null,null,null,null,null,null,13,209,176,54,null,"6,6 209 176 54"]
[null,null,null,null,null,null,null,null,null,null,13.2,208,174,54,null,"6,7 208 174 54"]
[null,null,null,null,null,null,null,null,null,null,13.4,207,172,54,null,"6,8 207 172 54"]
[null,null,null,null,null,null,null,null,null,null,13.6,206,170,54,null,"6,9 206 170 54"]
[null,null,null,null,null,null,null,null,null,null,13.8,205,168,55,null,"7 205 168 55"]
[null,null,null,null,null,null,null,null,null,null,14,204,166,55,null,"7,1 204 166 55"]
[null,null,null,null,null,null,null,null,null,null,14.2,203,164,55,null,"7,2 203 164 55"]
[null,null,null,null,null,null,null,null,null,null,14.4,202,162,55,null,"7,3 202 162 55"]
[null,null,null,null,null,null,null,null,null,null,14.6,201,160,56,null,"7,4 201 160 56"]
[null,null,null,null,null,null,null,null,null,null,14.8,200,158,56,null,"7,5 200 158 56"]
[null,null,null,null,null,null,null,null,null,null,15,200,156,56,null,"7,6 200 156 56"]
[null,null,null,null,null,null,null,null,null,null,15.2,199,154,56,null,"7,7 199 154 56"]
[null,null,null,null,null,null,null,null,null,null,15.4,199,152,56,null,"7,8 199 152 56"]
[null,null,null,null,null,null,null,null,null,null,15.6,198,150,56,null,"7,9 198 150 56"]
[null,null,null,null,null,null,null,null,null,null,15.8,198,148,56,null,"8 198 148 56"]
[null,null,null,null,null,null,null,null,null,null,16,197,146,56,null,"8,1 197 146 56"]
[null,null,null,null,null,null,null,null,null,null,16.2,197,144,56,null,"8,2 197 144 56"]
[null,null,null,null,null,null,null,null,null,null,16.399999999999999,196,142,56,null,"8,3 196 142 56"]
[null,null,null,null,null,null,null,null,null,null,16.5,196,141,56,null,"8,4 196 141 56"]
[null,null,null,null,null,null,null,null,null,null,16.7,195,140,56,null,"8,5 195 140 56"]
[null,null,null,null,null,null,null,null,null,null,16.899999999999999,195,139,56,null,"8,6 195 139 56"]
[null,null,null,null,null,null,null,null,null,null,17.100000000000001,194,139,56,null,"8,7 194 139 56"]
[null,null,null,null,null,null,null,null,null,null,17.3,194,138,56,null,"8,8 194 138 56"]
[null,null,null,null,null,null,null,null,null,null,17.5,193,137,56,null,"8,9 193 137 56"]
[null,null,null,null,null,null,null,null,null,null,17.7,193,136,56,null,"9 193 136 56"]
[null,null,null,null,null,null,null,null,null,null,17.899999999999999,192,136,56,null,"9,1 192 136 56"]
[null,null,null,null,null,null,null,null,null,null,18.100000000000001,192,135,56,null,"9,2 192 135 56"]
[null,null,null,null,null,null,null,null,null,null,18.3,192,134,56,null,"9,3 192 134 56"]
[null,null,null,null,null,null,null,null,null,null,18.5,192,133,56,null,"9,4 192 133 56"]
[null,null,null,null,null,null,null,null,null,null,18.7,192,133,56,null,"9,5 192 133 56"]
[null,null,null,null,null,null,null,null,null,null,18.899999999999999,192,132,56,null,"9,6 192 132 56"]
[null,null,null,null,null,null,null,null,null,null,19.100000000000001,192,131,56,null,"9,7 192 131 56"]
[null,null,null,null,null,null,null,null,null,null,19.3,192,130,56,null,"9,8 192 130 56"]
[null,null,null,null,null,null,null,null,null,null,19.5,192,130,56,null,"9,9 192 130 56"]
[null,null,null,null,null,null,null,null,null,null,19.7,192,129,56,null,"10 192 129 56"]
[null,null,null,null,null,null,null,null,null,null,19.899999999999999,192,128,56,null,"10,1 192 128 56"]
[null,null,null,null,null,null,null,null,null,null,20.100000000000001,192,127,56,null,"10,2 192 127 56"]
[null,null,null,null,null,null,null,null,null,null,20.3,192,127,56,null,"10,3 192 127 56"]
[null,null,null,null,null,null,null,null,null,null,20.5,192,126,56,null,"10,4 192 126 56"]
[null,null,null,null,null,null,null,null,null,null,20.7,192,125,56,null,"10,5 192 125 56"]
[null,null,null,null,null,null,null,null,null,null,20.9,192,124,56,null,"10,6 192 124 56"]
[null,null,null,null,null,null,null,null,null,null,21.1,192,124,56,null,"10,7 192 124 56"]
[null,null,null,null,null,null,null,null,null,null,21.3,192,123,56,null,"10,8 192 123 56"]
[null,null,null,null,null,null,null,null,null,null,21.5,192,122,56,null,"10,9 192 122 56"]
[null,null,null,null,null,null,null,null,null,null,21.7,192,121,56,null,"11 192 121 56"]
[null,null,null,null,null,null,null,null,null,null,21.9,192,121,56,null,"11,1 192 121 56"]
[null,null,null,null,null,null,null,null,null,null,22.1,192,120,56,null,"11,2 192 120 56"]
[null,null,null,null,null,null,null,null,null,null,22.3,192,119,56,null,"11,3 192 119 56"]
[null,null,null,null,null,null,null,null,null,null,22.5,192,118,56,null,"11,4 192 118 56"]
[null,null,null,null,null,null,null,null,null,null,22.7,192,118,56,null,"11,5 192 118 56"]
[null,null,null,null,null,null,null,null,null,null,22.9,192,117,56,null,"11,6 192 117 56"]
[null,null,null,null,null,null,null,null,null,null,23,192,116,56,null,"11,7 192 116 56"]
[null,null,null,null,null,null,null,null,null,null,23.2,192,115,56,null,"11,8 192 115 56"]
[null,null,null,null,null,null,null,null,null,null,23.4,192,115,56,null,"11,9 192 115 56"]
[null,null,null,null,null,null,null,null,null,null,23.6,192,114,56,null,"12 192 114 56"]
[null,null,null,null,null,null,null,null,null,null,23.8,192,113,56,null,"12,1 192 113 56"]
[null,null,null,null,null,null,null,null,null,null,24,192,112,56,null,"12,2 192 112 56"]
[null,null,null,null,null,null,null,null,null,null,24.2,192,112,56,null,"12,3 192 112 56"]
[null,null,null,null,null,null,null,null,null,null,24.4,192,111,56,null,"12,4 192 111 56"]
[null,null,null,null,null,null,null,null,null,null,24.6,192,110,56,null,"12,5 192 110 56"]
[null,null,null,null,null,null,null,null,null,null,24.8,192,109,56,null,"12,6 192 109 56"]
[null,null,null,null,null,null,null,null,null,null,25,192,109,56,null,"12,7 192 109 56"]
[null,null,null,null,null,null,null,null,null,null,25.2,192,108,56,null,"12,8 192 108 56"]
[null,null,null,null,null,null,null,null,null,null,25.4,191,107,56,null,"12,9 191 107 56"]
[null,null,null,null,null,null,null,null,null,null,25.6,190,106,56,null,"13 190 106 56"]
[null,null,null,null,null,null,null,null,null,null,25.8,189,106,56,null,"13,1 189 106 56"]
[null,null,null,null,null,null,null,null,null,null,26,188,105,56,null,"13,2 188 105 56"]
[null,null,null,null,null,null,null,null,null,null,26.2,187,104,56,null,"13,3 187 104 56"]
[null,null,null,null,null,null,null,null,null,null,26.4,186,103,56,null,"13,4 186 103 56"]
[null,null,null,null,null,null,null,null,null,null,26.6,185,103,56,null,"13,5 185 103 56"]
[null,null,null,null,null,null,null,null,null,null,26.8,184,102,56,null,"13,6 184 102 56"]
[null,null,null,null,null,null,null,null,null,null,27,183,101,56,null,"13,7 183 101 56"]
[null,null,null,null,null,null,null,null,null,null,27.2,182,100,56,null,"13,8 182 100 56"]
[null,null,null,null,null,null,null,null,null,null,27.4,181,100,56,null,"13,9 181 100 56"]
[null,null,null,null,null,null,null,null,null,null,27.6,180,99,56,null,"14 180 99 56"]
[null,null,null,null,null,null,null,null,null,null,27.8,179,98,56,null,"14,1 179 98 56"]
[null,null,null,null,null,null,null,null,null,null,28,178,97,56,null,"14,2 178 97 56"]
[null,null,null,null,null,null,null,null,null,null,28.2,177,97,56,null,"14,3 177 97 56"]
[null,null,null,null,null,null,null,null,null,null,28.4,175,96,55,null,"14,4 175 96 55"]
[null,null,null,null,null,null,null,null,null,null,28.6,174,95,55,null,"14,5 174 95 55"]
[null,null,null,null,null,null,null,null,null,null,28.8,172,94,55,null,"14,6 172 94 55"]
[null,null,null,null,null,null,null,null,null,null,29,171,94,55,null,"14,7 171 94 55"]
[null,null,null,null,null,null,null,null,null,null,29.2,169,93,54,null,"14,8 169 93 54"]
[null,null,null,null,null,null,null,null,null,null,29.4,168,92,54,null,"14,9 168 92 54"]
[null,null,null,null,null,null,null,null,null,null,29.6,167,91,54,null,"15 167 91 54"]
[null,null,null,null,null,null,null,null,null,null,29.7,165,91,54,null,"15,1 165 91 54"]
[null,null,null,null,null,null,null,null,null,null,29.9,164,90,53,null,"15,2 164 90 53"]
[null,null,null,null,null,null,null,null,null,null,30.1,162,89,53,null,"15,3 162 89 53"]
[null,null,null,null,null,null,null,null,null,null,30.3,161,88,53,null,"15,4 161 88 53"]
[null,null,null,null,null,null,null,null,null,null,30.5,159,88,53,null,"15,5 159 88 53"]
[null,null,null,null,null,null,null,null,null,null,30.7,158,87,52,null,"15,6 158 87 52"]
[null,null,null,null,null,null,null,null,null,null,30.9,157,86,52,null,"15,7 157 86 52"]
[null,null,null,null,null,null,null,null,null,null,31.1,155,85,52,null,"15,8 155 85 52"]
[null,null,null,null,null,null,null,null,null,null,31.3,154,85,52,null,"15,9 154 85 52"]
[null,null,null,null,null,null,null,null,null,null,31.5,152,84,51,null,"16 152 84 51"]
[null,null,null,null,null,null,null,null,null,null,31.7,151,83,51,null,"16,1 151 83 51"]
[null,null,null,null,null,null,null,null,null,null,31.9,149,82,51,null,"16,2 149 82 51"]
[null,null,null,null,null,null,null,null,null,null,32.1,148,82,51,null,"16,3 148 82 51"]
[null,null,null,null,null,null,null,null,null,null,32.299999999999997,147,81,50,null,"16,4 147 81 50"]
[null,null,null,null,null,null,null,null,null,null,32.5,145,80,50,null,"16,5 145 80 50"]
[null,null,null,null,null,null,null,null,null,null,32.700000000000003,144,79,50,null,"16,6 144 79 50"]
[null,null,null,null,null,null,null,null,null,null,32.9,142,78,50,null,"16,7 142 78 50"]
[null,null,null,null,null,null,null,null,null,null,33.1,141,77,49,null,"16,8 141 77 49"]
[null,null,null,null,null,null,null,null,null,null,33.299999999999997,139,76,49,null,"16,9 139 76 49"]
[null,null,null,null,null,null,null,null,null,null,33.5,138,75,48,null,"17 138 75 48"]
[null,null,null,null,null,null,null,null,null,null,33.700000000000003,137,75,47,null,"17,1 137 75 47"]
[null,null,null,null,null,null,null,null,null,null,33.9,135,74,47,null,"17,2 135 74 47"]
[null,null,null,null,null,null,null,null,null,null,34.1,134,73,46,null,"17,3 134 73 46"]
[null,null,null,null,null,null,null,null,null,null,34.299999999999997,132,72,45,null,"17,4 132 72 45"]
[null,null,null,null,null,null,null,null,null,null,34.5,131,72,45,null,"17,5 131 72 45"]
[null,null,null,null,null,null,null,null,null,null,34.700000000000003,129,71,44,null,"17,6 129 71 44"]
[null,null,null,null,null,null,null,null,null,null,34.9,128,70,43,null,"17,7 128 70 43"]
[null,null,null,null,null,null,null,null,null,null,35.1,127,69,43,null,"17,8 127 69 43"]
[null,null,null,null,null,null,null,null,null,null,35.299999999999997,125,69,42,null,"17,9 125 69 42"]
[null,null,null,null,null,null,null,null,null,null,35.5,124,68,41,null,"18 124 68 41"]
[null,null,null,null,null,null,null,null,null,null,35.700000000000003,122,67,41,null,"18,1 122 67 41"]
[null,null,null,null,null,null,null,null,null,null,35.9,121,66,40,null,"18,2 121 66 40"]
[null,null,null,null,null,null,null,null,null,null,36.1,119,66,39,null,"18,3 119 66 39"]
[null,null,null,null,null,null,null,null,null,null,36.200000000000003,118,65,39,null,"18,4 118 65 39"]
[null,null,null,null,null,null,null,null,null,null,36.4,117,64,38,null,"18,5 117 64 38"]
[null,null,null,null,null,null,null,null,null,null,36.6,115,63,37,null,"18,6 115 63 37"]
[null,null,null,null,null,null,null,null,null,null,36.799999999999997,114,63,37,null,"18,7 114 63 37"]
[null,null,null,null,null,null,null,null,null,null,37,112,62,36,null,"18,8 112 62 36"]
[null,null,null,null,null,null,null,null,null,null,37.200000000000003,111,61,35,null,"18,9 111 61 35"]
[null,null,null,null,null,null,null,null,null,null,37.4,109,60,34,null,"19 109 60 34"]
[null,null,null,null,null,null,null,null,null,null,37.6,108,60,33,null,"19,1 108 60 33"]
[null,null,null,null,null,null,null,null,null,null,37.799999999999997,107,59,32,null,"19,2 107 59 32"]
[null,null,null,null,null,null,null,null,null,null,38,105,58,31,null,"19,3 105 58 31"]
[null,null,null,null,null,null,null,null,null,null,38.200000000000003,104,57,29,null,"19,4 104 57 29"]
[null,null,null,null,null,null,null,null,null,null,38.4,102,57,28,null,"19,5 102 57 28"]
[null,null,null,null,null,null,null,null,null,null,38.6,101,56,27,null,"19,6 101 56 27"]
[null,null,null,null,null,null,null,null,null,null,38.799999999999997,99,55,26,null,"19,7 99 55 26"]
[null,null,null,null,null,null,null,null,null,null,39,98,54,25,null,"19,8 98 54 25"]
[null,null,null,null,null,null,null,null,null,null,39.200000000000003,97,54,24,null,"19,9 97 54 24"]
[null,null,null,null,null,null,null,null,null,null,39.4,95,53,23,null,"20 95 53 23"]
[null,null,null,null,null,null,null,null,null,null,39.6,94,52,21,null,"20,1 94 52 21"]
[null,null,null,null,null,null,null,null,null,null,39.799999999999997,92,51,20,null,"20,2 92 51 20"]
[null,null,null,null,null,null,null,null,null,null,40,91,51,19,null,"20,3 91 51 19"]
[null,null,null,null,null,null,null,null,null,null,40.200000000000003,89,50,18,null,"20,4 89 50 18"]
[null,null,null,null,null,null,null,null,null,null,40.4,88,49,17,null,"20,5 88 49 17"]
[null,null,null,null,null,null,null,null,null,null,40.6,87,48,16,null,"20,6 87 48 16"]
[null,null,null,null,null,null,null,null,null,null,40.799999999999997,85,48,15,null,"20,7 85 48 15"]
[null,null,null,null,null,null,null,null,null,null,41,84,47,13,null,"20,8 84 47 13"]
[null,null,null,null,null,null,null,null,null,null,41.2,82,46,12,null,"20,9 82 46 12"]
[null,null,null,null,null,null,null,null,null,null,41.4,81,45,11,null,"21 81 45 11"]
[null,null,null,null,null,null,null,null,null,null,41.6,79,45,10,null,"21,1 79 45 10"]
[null,null,null,null,null,null,null,null,null,null,41.8,78,44,9,null,"21,2 78 44 9"]
[null,null,null,null,null,null,null,null,null,null,42,77,43,8,null,"21,3 77 43 8"]
[null,null,null,null,null,null,null,null,null,null,42.2,75,42,9,null,"21,4 75 42 9"]
[null,null,null,null,null,null,null,null,null,null,42.4,74,42,9,null,"21,5 74 42 9"]
[null,null,null,null,null,null,null,null,null,null,42.6,72,41,10,null,"21,6 72 41 10"]
[null,null,null,null,null,null,null,null,null,null,42.7,71,40,10,null,"21,7 71 40 10"]
[null,null,null,null,null,null,null,null,null,null,42.9,69,39,11,null,"21,8 69 39 11"]
[null,null,null,null,null,null,null,null,null,null,43.1,68,39,11,null,"21,9 68 39 11"]
[null,null,null,null,null,null,null,null,null,null,43.3,67,38,12,null,"22 67 38 12"]
[null,null,null,null,null,null,null,null,null,null,43.5,65,37,12,null,"22,1 65 37 12"]
[null,null,null,null,null,null,null,null,null,null,43.7,64,36,13,null,"22,2 64 36 13"]
[null,null,null,null,null,null,null,null,null,null,43.9,62,36,13,null,"22,3 62 36 13"]
[null,null,null,null,null,null,null,null,null,null,44.1,61,35,14,null,"22,4 61 35 14"]
[null,null,null,null,null,null,null,null,null,null,44.3,59,34,14,null,"22,5 59 34 14"]
[null,null,null,null,null,null,null,null,null,null,44.5,58,33,15,null,"22,6 58 33 15"]
[null,null,null,null,null,null,null,null,null,null,44.7,57,33,15,null,"22,7 57 33 15"]
[null,null,null,null,null,null,null,null,null,null,44.9,55,32,16,null,"22,8 55 32 16"]
[null,null,null,null,null,null,null,null,null,null,45.1,54,31,16,null,"22,9 54 31 16"]
[null,null,null,null,null,null,null,null,null,null,45.3,52,30,17,null,"23 52 30 17"]
[null,null,null,null,null,null,null,null,null,null,45.5,51,30,17,null,"23,1 51 30 17"]
[null,null,null,null,null,null,null,null,null,null,45.7,49,29,18,null,"23,2 49 29 18"]
[null,null,null,null,null,null,null,null,null,null,45.9,48,28,18,null,"23,3 48 28 18"]
[null,null,null,null,null,null,null,null,null,null,46.1,47,27,19,null,"23,4 47 27 19"]
[null,null,null,null,null,null,null,null,null,null,46.3,45,27,19,null,"23,5 45 27 19"]
[null,null,null,null,null,null,null,null,null,null,46.5,44,26,20,null,"23,6 44 26 20"]
[null,null,null,null,null,null,null,null,null,null,46.7,42,25,20,null,"23,7 42 25 20"]
[null,null,null,null,null,null,null,null,null,null,46.9,41,24,21,null,"23,8 41 24 21"]
[null,null,null,null,null,null,null,null,null,null,47.1,39,24,21,null,"23,9 39 24 21"]
[null,null,null,null,null,null,null,null,null,null,47.3,38,23,22,null,"24 38 23 22"]
[null,null,null,null,null,null,null,null,null,null,47.5,37,22,21,null,"24,1 37 22 21"]
[null,null,null,null,null,null,null,null,null,null,47.7,37,22,21,null,"24,2 37 22 21"]
[null,null,null,null,null,null,null,null,null,null,47.9,36,22,21,null,"24,3 36 22 21"]
[null,null,null,null,null,null,null,null,null,null,48.1,36,21,20,null,"24,4 36 21 20"]
[null,null,null,null,null,null,null,null,null,null,48.3,35,21,20,null,"24,5 35 21 20"]
[null,null,null,null,null,null,null,null,null,null,48.5,35,21,20,null,"24,6 35 21 20"]
[null,null,null,null,null,null,null,null,null,null,48.7,34,20,19,null,"24,7 34 20 19"]
[null,null,null,null,null,null,null,null,null,null,48.9,34,20,19,null,"24,8 34 20 19"]
[null,null,null,null,null,null,null,null,null,null,49.1,33,20,19,null,"24,9 33 20 19"]
[null,null,null,null,null,null,null,null,null,null,49.3,33,19,18,null,"25 33 19 18"]
[null,null,null,null,null,null,null,null,null,null,49.4,32,19,18,null,"25,1 32 19 18"]
[null,null,null,null,null,null,null,null,null,null,49.6,32,19,18,null,"25,2 32 19 18"]
[null,null,null,null,null,null,null,null,null,null,49.8,31,18,17,null,"25,3 31 18 17"]
[null,null,null,null,null,null,null,null,null,null,50,31,18,17,null,"25,4 31 18 17"]
[null,null,null,null,null,null,null,null,null,null,50.2,30,18,17,null,"25,5 30 18 17"]
[null,null,null,null,null,null,null,null,null,null,50.4,30,17,16,null,"25,6 30 17 16"]
[null,null,null,null,null,null,null,null,null,null,50.6,29,17,16,null,"25,7 29 17 16"]
[null,null,null,null,null,null,null,null,null,null,50.8,29,17,16,null,"25,8 29 17 16"]
[null,null,null,null,null,null,null,null,null,null,51,28,16,15,null,"25,9 28 16 15"]
[null,null,null,null,null,null,null,null,null,null,51.2,28,16,15,null,"26 28 16 15"]
[null,null,null,null,null,null,null,null,null,null,51.4,27,16,15,null,"26,1 27 16 15"]
[null,null,null,null,null,null,null,null,null,null,51.6,27,15,14,null,"26,2 27 15 14"]
[null,null,null,null,null,null,null,null,null,null,51.8,26,15,14,null,"26,3 26 15 14"]
[null,null,null,null,null,null,null,null,null,null,52,26,15,14,null,"26,4 26 15 14"]
[null,null,null,null,null,null,null,null,null,null,52.2,25,14,13,null,"26,5 25 14 13"]
[null,null,null,null,null,null,null,null,null,null,52.4,25,14,13,null,"26,6 25 14 13"]
[null,null,null,null,null,null,null,null,null,null,52.6,24,14,13,null,"26,7 24 14 13"]
[null,null,null,null,null,null,null,null,null,null,52.8,24,13,12,null,"26,8 24 13 12"]
[null,null,null,null,null,null,null,null,null,null,53,23,13,12,null,"26,9 23 13 12"]
[null,null,null,null,null,null,null,null,null,null,53.2,23,13,12,null,"27 23 13 12"]
[null,null,null,null,null,null,null,null,null,null,53.4,22,12,11,null,"27,1 22 12 11"]
[null,null,null,null,null,null,null,null,null,null,53.6,22,12,11,null,"27,2 22 12 11"]
[null,null,null,null,null,null,null,null,null,null,53.8,21,12,11,null,"27,3 21 12 11"]
[null,null,null,null,null,null,null,null,null,null,54,21,11,10,null,"27,4 21 11 10"]
[null,null,null,null,null,null,null,null,null,null,54.2,20,11,10,null,"27,5 20 11 10"]
[null,null,null,null,null,null,null,null,null,null,54.4,20,11,10,null,"27,6 20 11 10"]
[null,null,null,null,null,null,null,null,null,null,54.6,19,10,9,null,"27,7 19 10 9"]
[null,null,null,null,null,null,null,null,null,null,54.8,19,10,9,null,"27,8 19 10 9"]
[null,null,null,null,null,null,null,null,null,null,55,18,10,9,null,"27,9 18 10 9"]
[null,null,null,null,null,null,null,null,null,null,55.2,18,9,8,null,"28 18 9 8"]
[null,null,null,null,null,null,null,null,null,null,55.4,17,9,8,null,"28,1 17 9 8"]
[null,null,null,null,null,null,null,null,null,null,55.6,17,9,8,null,"28,2 17 9 8"]
[null,null,null,null,null,null,null,null,null,null,55.8,16,8,7,null,"28,3 16 8 7"]
[null,null,null,null,null,null,null,null,null,null,55.9,16,8,7,null,"28,4 16 8 7"]
[null,null,null,null,null,null,null,null,null,null,56.1,15,8,7,null,"28,5 15 8 7"]
[null,null,null,null,null,null,null,null,null,null,56.3,15,7,6,null,"28,6 15 7 6"]
[null,null,null,null,null,null,null,null,null,null,56.5,14,7,6,null,"28,7 14 7 6"]
[null,null,null,null,null,null,null,null,null,null,56.7,14,7,6,null,"28,8 14 7 6"]
[null,null,null,null,null,null,null,null,null,null,56.9,13,6,5,null,"28,9 13 6 5"]
[null,null,null,null,null,null,null,null,null,null,57.1,13,6,5,null,"29 13 6 5"]
[null,null,null,null,null,null,null,null,null,null,57.3,12,6,5,null,"29,1 12 6 5"]
[null,null,null,null,null,null,null,null,null,null,57.5,12,5,4,null,"29,2 12 5 4"]
[null,null,null,null,null,null,null,null,null,null,57.7,11,5,4,null,"29,3 11 5 4"]
[null,null,null,null,null,null,null,null,null,null,57.9,11,5,4,null,"29,4 11 5 4"]
[null,null,null,null,null,null,null,null,null,null,58.1,10,4,3,null,"29,5 10 4 3"]
[null,null,null,null,null,null,null,null,null,null,58.3,10,4,3,null,"29,6 10 4 3"]
[null,null,null,null,null,null,null,null,null,null,58.5,9,4,3,null,"29,7 9 4 3"]
[null,null,null,null,null,null,null,null,null,null,58.7,9,3,2,null,"29,8 9 3 2"]
[null,null,null,null,null,null,null,null,null,null,58.9,8,3,2,null,"29,9 8 3 2"]
[null,null,null,null,null,null,null,null,null,null,59.1,8,3,2,null,"30 8 3 2"]

{"sheet":"Omregninger","index":4,"n_rows":205,"n_cols":8,"rows_kept":205,"cut":false,"hidden":false,"merged":[[56,3,56,4],[9,0,9,7],[1,0,1,7],[62,6,62,7],[60,1,60,4],[71,1,71,3],[11,1,11,2],[11,4,11,5],[61,1,61,4],[56,1,56,2],[55,1,55,2],[54,1,54,2],[53,1,53,2],[52,1,52,2],[50,1,50,2],[49,1,49,3],[51,1,51,2]]}
[]
["Farver:"]
[]
[null,"Formål","Formel","Indtast","Beregn","Resultat"]
[null,"EBC to SRM:","SRM = EBC × 0,508","Indtast EBC",null,{"$f":"IF(E5=\"\",\"\",(ROUND((E5*0.508),0)&\" SRM\"))","v":""}]
[null,"SRM to EBC:","EBC = SRM × 1,97","Indtast SRM",null,{"$f":"IF(E6=\"\",\"\",(ROUND((E6*1.97),0)&\" EBC\"))","v":""}]
[null,"Lovibond to SRM:","SRM = (1,3546 × °L) - 0,76","Indtast °L",null,{"$f":"IF(E7=\"\",\"\",(ROUND(((1.3546*E7)-0.76),0)&\" SRM\"))","v":""}]
[null,"SRM to Lovibond:","°L = (SRM + 0,76) ÷ 1,3546","Indtast SRM",null,{"$f":"IF(E8=\"\",\"\",(ROUND(((E8+0.76)/1.3546),0)&\" °L\"))","v":""}]
[]
["Vægt, rumfang og temperatur"]
[]
[null,"US / UK Mål                                        ◄",null,"Indtast","►                                  Metriske Mål"]
[null,"Ounce",{"$f":"IF(D13=\"\",\"\",D13/28.349523)","v":""},null,{"$f":"IF(D13=\"\",\"\",D13*28.349523)","v":""},"Gram"]
[null,"Pound",{"$f":"IF(D14=\"\",\"\",D14/453.59237)","v":""},null,{"$f":"IF(D14=\"\",\"\",D14*453.59237)","v":""},"Gram"]
[null,"SUM",{"$f":"IF(OR(D13=\"\",D14=\"\"),\"\",C13+C14)","v":""},null,{"$f":"IF(OR(D13=\"\",D14=\"\"),\"\",E13+E14)","v":""},"SUM"]
[]
[null,"Fluid Ounce (UK)",{"$f":"IF(D17=\"\",\"\",D17/0.028413062)","v":""},null,{"$f":"IF(D17=\"\",\"\",D17*0.028413062)","v":""},"Liter"]
[null,"Fluid Ounce (US)",{"$f":"IF(D18=\"\",\"\",D18/0.0295735296875)","v":""},null,{"$f":"IF(D18=\"\",\"\",D18*0.0295735296875)","v":""},"Liter"]
[null,"Cup (UK)",{"$f":"IF(D19=\"\",\"\",D19/0.25)","v":""},null,{"$f":"IF(D19=\"\",\"\",D19*0.25)","v":""},"Liter"]
[null,"Cup (US)",{"$f":"IF(D20=\"\",\"\",D20/0.24)","v":""},null,{"$f":"IF(D20=\"\",\"\",D20*0.24)","v":""},"Liter"]
[null,"Pint (UK)",{"$f":"IF(D21=\"\",\"\",D21/0.5682612)","v":""},null,{"$f":"IF(D21=\"\",\"\",D21*0.5682612)","v":""},"Liter"]
[null,"Pint (US)",{"$f":"IF(D22=\"\",\"\",D22/0.473176473)","v":""},null,{"$f":"IF(D22=\"\",\"\",D22*0.473176473)","v":""},"Liter"]
[null,"Quart (UK)",{"$f":"IF(D23=\"\",\"\",D23/1.1365225)","v":""},null,{"$f":"IF(D23=\"\",\"\",D23*1.1365225)","v":""},"Liter"]
[null,"Quart (US)",{"$f":"IF(D24=\"\",\"\",D24/0.946)","v":""},null,{"$f":"IF(D24=\"\",\"\",D24*0.946)","v":""},"Liter"]
[null,"Quart dry (US)",{"$f":"IF(D25=\"\",\"\",D25/1.1012209)","v":""},null,{"$f":"IF(D25=\"\",\"\",D25*1.1012209)","v":""},"Liter"]
[null,"Gallon (UK)",{"$f":"IF(D26=\"\",\"\",D26/4.5460951)","v":""},null,{"$f":"IF(D26=\"\",\"\",D26*4.5460951)","v":""},"Liter"]
[null,"Gallon (US)",{"$f":"IF(D27=\"\",\"\",D27/3.785)","v":""},null,{"$f":"IF(D27=\"\",\"\",D27*3.785)","v":""},"Liter"]
[null,"Barrels - bbl (UK)",{"$f":"IF(D28=\"\",\"\",D28/163.65924)","v":""},null,{"$f":"IF(D28=\"\",\"\",D28*163.65924)","v":""},"Liter"]
[null,"Barrels - bbl (US)",{"$f":"IF(D29=\"\",\"\",D29/117.3477658)","v":""},null,{"$f":"IF(D29=\"\",\"\",D29*117.3477658)","v":""},"Liter"]
[]
[null,"Fahrenheit",{"$f":"IF(D31=\"\",\"\",D31*1.8 +32)","v":""},null,{"$f":"IF(D31=\"\",\"\",(D31-32)/1.8)","v":""},"Celsius"]
[]
["Konvertering mellem All-Grain / Ekstrakt / Spraymalt"]
[]
[null,"Grain","Ekstrakt","Spraymalt"]
[]
[null,{"$f":"IF(B36>0,\"\",IF(C36>0,(C36/3)*4,IF(D36>0,(D36/3)*5,\"\")))","v":""},{"$f":"IF(C36>0,\"\",IF(B36>0,(B36/4)*3,IF(D36>0,((D36/4)*5),\"\")))","v":""},{"$f":"IF(D36>0,\"\",IF(B36>0,((B36/5)*3),IF(C36>0,(C36/5)*4,\"\")))","v":""}]
[]
["Dry Base Fine Grind (DBFG) til Potentiale til Extraktudbytte"]
[]
[null,"Indtast DBFG i %:",null,"Indtast potentiale (SG):",null,"eks. 1,034"]
[null,"Beregnet potentiale:",{"$f":"IF(C41=\"\",\"\",ROUND(( 1 + (C41 / 100) * 0.04621),3))","v":""},"Ekstraktudbytte:",{"$f":"IFERROR((ROUND(((((RIGHT(IF(C41=\"\",IF(E41=\"\",\"\",E41),C42),2)*3.785)/453)*1000)/10),0)*10),\"\")","v":""}]
[]
["Diastatisk aktivitet / Diastatic Power"]
[]
[null,"Lintner (°L)",{"$f":"IF(D46=\"\",\"\",ROUND(((D46+16)/3.85),2))","v":""},null,{"$f":"IF(D46=\"\",\"\",ROUND(((3.85*D46)-16),2))","v":""},"Windisch-Kolbach (°WK)"]
[]
["Humle"]
[]
[null,"AAU konvertering til humlemængde - (Alpha Acid Units)"]
[null,"Vælg Humletype:"]
[null,"Vælg Humleblomster eller -pellets:"]
[null,"Indtast antal AAU"]
[null,"Orig. opskrifts mængde - hvis forskellig fra 5 Gallons"]
[null,{"$f":"CONCATENATE(\"Indtast din brygmængde - hvis forskellig fra \",Data!E5,\" liter\")","v":"Indtast din brygmængde - hvis forskellig fra 25 liter"}]
[]
[null,"Tilsvarende mængde humle i dit bryg vil være:",null,{"$f":"IFERROR(IF(D51=\"\",\"\",CONCATENATE(IF(D55=\"\",ROUND((((D53/IFERROR(VLOOKUP(D51,Humle!$A$3:$D$73,IF(D52=\"Blomst\",3,4),FALSE),\"\"))*28.35/IF(D54=\"\",5*3.785,D54*3.785))*25),1),ROUND((((D53/IFERROR(VLOOKUP(D51,Humle!$A$3:$D$73,IF(D52=\"Blomst\",3,4),FALSE),\"\"))*28.35/IF(D54=\"\",5*3.785,D54*3.785))*D55),1)),\" Gram\")),\"Vælg anden Blomst/Pellets\")","v":""}]
[]
["Refraktometer:"]
[]
[null,"Udregning af Final Gravity med Refraktometer måling - med kompensation for fejlvisning grundet alkohol"]
[null,"Input er i Oechsle, hvor gravity 1080 eller 1,080 = 80 Oe"]
[null,"Indtast Original Gravity","Oe","Indtast Final Gravity","Oe",null,"Specific Gravity-Brix Conversion Table"]
[null,"Refrektometer Input  -  OG",67,"Refrektometer Input - FG",37,null,"Specific Gravity","Brix"]
[null,"Brix mellemregning",{"$f":"VLOOKUP((C64/1000)+1,$G$64:$H$205,2,FALSE)","v":16.34},"Brix mellemregning",{"$f":"VLOOKUP((E64/1000)+1,$G$64:$H$205,2,FALSE)","v":9.26},null,0.99,0]
[null,"Mellemregning",-2.3184740000000001E-3,{"$f":"1.001843+C66*C65","v":0.96395913484000006},null,null,0.99099999999999999,0]
[null,"Mellemregning",-7.7750000000000009E-6,{"$f":"C67*C65*C65","v":-2.0758907900000003E-3},null,null,0.99199999999999999,0]
[null,"Mellemregning",-3.4E-8,{"$f":"C68*C65*C65*C65","v":-1.48332075536E-4},null,null,0.99299999999999999,0]
[null,"Mellemregning",5.7400000000000003E-3,{"$f":"C69*E65","v":5.3152400000000002E-2},null,null,0.99399999999999999,0]
[null,"Mellemregning",3.3439999999999998E-5,{"$f":"C70*E65*E65","v":2.8673997440000001E-3},null,null,0.995,0]
[null,"Mellemregning",8.6000000000000002E-8,{"$f":"C71*E65*E65*E65","v":6.8285958735999987E-5},null,null,0.996,0]
[null,"Udregnet  Final Gravity  ( kompenseret for alkohol )  =",null,null,{"$f":"SUM(D66:D71)","v":1.0178229976772002},null,0.997,0]
[null,null,null,null,null,null,0.998,0]
[null,null,null,null,null,null,0.999,0]
[null,null,null,null,null,null,1,0]
[null,null,null,null,null,null,1.0009999999999999,0.26]
[null,null,null,null,null,null,1.002,0.51]
[null,null,null,null,null,null,1.0029999999999999,0.77]
[null,null,null,null,null,null,1.004,1.03]
[null,null,null,null,null,null,1.0049999999999999,1.28]
[null,null,null,null,null,null,1.006,1.54]
[null,null,null,null,null,null,1.0069999999999999,1.8]
[null,null,null,null,null,null,1.008,2.0499999999999998]
[null,null,null,null,null,null,1.0089999999999999,2.31]
[null,null,null,null,null,null,1.01,2.56]
[null,null,null,null,null,null,1.0109999999999999,2.81]
[null,null,null,null,null,null,1.012,3.07]
[null,null,null,null,null,null,1.0129999999999999,3.32]
[null,null,null,null,null,null,1.014,3.57]
[null,null,null,null,null,null,1.0149999999999999,3.82]
[null,null,null,null,null,null,1.016,4.08]
[null,null,null,null,null,null,1.0169999999999999,4.33]
[null,null,null,null,null,null,1.018,4.58]
[null,null,null,null,null,null,1.0189999999999999,4.83]
[null,null,null,null,null,null,1.02,5.08]
[null,null,null,null,null,null,1.0209999999999999,5.33]
[null,null,null,null,null,null,1.022,5.57]
[null,null,null,null,null,null,1.0229999999999999,5.82]
[null,null,null,null,null,null,1.024,6.07]
[null,null,null,null,null,null,1.0249999999999999,6.32]
[null,null,null,null,null,null,1.026,6.57]
[null,null,null,null,null,null,1.0269999999999999,6.81]
[null,null,null,null,null,null,1.028,7.06]
[null,null,null,null,null,null,1.0289999999999999,7.3]
[null,null,null,null,null,null,1.03,7.55]
[null,null,null,null,null,null,1.0309999999999999,7.8]
[null,null,null,null,null,null,1.032,8.0399999999999991]
[null,null,null,null,null,null,1.0329999999999999,8.2799999999999994]
[null,null,null,null,null,null,1.034,8.5299999999999994]
[null,null,null,null,null,null,1.0349999999999999,8.77]
[null,null,null,null,null,null,1.036,9.01]
[null,null,null,null,null,null,1.0369999999999999,9.26]
[null,null,null,null,null,null,1.038,9.5]
[null,null,null,null,null,null,1.0389999999999999,9.74]
[null,null,null,null,null,null,1.04,9.98]
[null,null,null,null,null,null,1.0409999999999999,10.220000000000001]
[null,null,null,null,null,null,1.042,10.46]
[null,null,null,null,null,null,1.0429999999999999,10.7]
[null,null,null,null,null,null,1.044,10.94]
[null,null,null,null,null,null,1.0449999999999999,11.18]
[null,null,null,null,null,null,1.046,11.42]
[null,null,null,null,null,null,1.0469999999999999,11.66]
[null,null,null,null,null,null,1.048,11.9]
[null,null,null,null,null,null,1.0489999999999999,12.14]
[null,null,null,null,null,null,1.05,12.37]
[null,null,null,null,null,null,1.0509999999999999,12.61]
[null,null,null,null,null,null,1.052,12.85]
[null,null,null,null,null,null,1.0529999999999999,13.08]
[null,null,null,null,null,null,1.054,13.32]
[null,null,null,null,null,null,1.0549999999999999,13.55]
[null,null,null,null,null,null,1.056,13.79]
[null,null,null,null,null,null,1.0569999999999999,14.02]
[null,null,null,null,null,null,1.0580000000000001,14.26]
[null,null,null,null,null,null,1.0589999999999999,14.49]
[null,null,null,null,null,null,1.06,14.72]
[null,null,null,null,null,null,1.0609999999999999,14.96]
[null,null,null,null,null,null,1.0620000000000001,15.19]
[null,null,null,null,null,null,1.0629999999999999,15.42]
[null,null,null,null,null,null,1.0640000000000001,15.65]
[null,null,null,null,null,null,1.0649999999999999,15.88]
[null,null,null,null,null,null,1.0660000000000001,16.11]
[null,null,null,null,null,null,1.0669999999999999,16.34]
[null,null,null,null,null,null,1.0680000000000001,16.57]
[null,null,null,null,null,null,1.069,16.8]
[null,null,null,null,null,null,1.07,17.03]
[null,null,null,null,null,null,1.071,17.260000000000002]
[null,null,null,null,null,null,1.0720000000000001,17.489999999999998]
[null,null,null,null,null,null,1.073,17.72]
[null,null,null,null,null,null,1.0740000000000001,17.95]
[null,null,null,null,null,null,1.075,18.18]
[null,null,null,null,null,null,1.0760000000000001,18.399999999999999]
[null,null,null,null,null,null,1.077,18.63]
[null,null,null,null,null,null,1.0780000000000001,18.86]
[null,null,null,null,null,null,1.079,19.079999999999998]
[null,null,null,null,null,null,1.08,19.309999999999999]
[null,null,null,null,null,null,1.081,19.53]
[null,null,null,null,null,null,1.0820000000000001,19.760000000000002]
[null,null,null,null,null,null,1.083,19.98]
[null,null,null,null,null,null,1.0840000000000001,20.21]
[null,null,null,null,null,null,1.085,20.43]
[null,null,null,null,null,null,1.0860000000000001,20.65]
[null,null,null,null,null,null,1.087,20.88]
[null,null,null,null,null,null,1.0880000000000001,21.1]
[null,null,null,null,null,null,1.089,21.32]
[null,null,null,null,null,null,1.0900000000000001,21.54]
[null,null,null,null,null,null,1.091,21.77]
[null,null,null,null,null,null,1.0920000000000001,21.99]
[null,null,null,null,null,null,1.093,22.21]
[null,null,null,null,null,null,1.0940000000000001,22.43]
[null,null,null,null,null,null,1.095,22.65]
[null,null,null,null,null,null,1.0960000000000001,22.87]
[null,null,null,null,null,null,1.097,23.09]
[null,null,null,null,null,null,1.0980000000000001,23.31]
[null,null,null,null,null,null,1.099,23.53]
[null,null,null,null,null,null,1.1000000000000001,23.75]
[null,null,null,null,null,null,1.101,23.96]
[null,null,null,null,null,null,1.1020000000000001,24.18]
[null,null,null,null,null,null,1.103,24.4]
[null,null,null,null,null,null,1.1040000000000001,24.62]
[null,null,null,null,null,null,1.105,24.83]
[null,null,null,null,null,null,1.1060000000000001,25.05]
[null,null,null,null,null,null,1.107,25.27]
[null,null,null,null,null,null,1.1080000000000001,25.48]
[null,null,null,null,null,null,1.109,25.7]
[null,null,null,null,null,null,1.1100000000000001,25.91]
[null,null,null,null,null,null,1.111,26.13]
[null,null,null,null,null,null,1.1120000000000001,26.34]
[null,null,null,null,null,null,1.113,26.56]
[null,null,null,null,null,null,1.1140000000000001,26.77]
[null,null,null,null,null,null,1.115,26.98]
[null,null,null,null,null,null,1.1160000000000001,27.2]
[null,null,null,null,null,null,1.117,27.41]
[null,null,null,null,null,null,1.1180000000000001,27.62]
[null,null,null,null,null,null,1.119,27.83]
[null,null,null,null,null,null,1.1200000000000001,28.05]
[null,null,null,null,null,null,1.121,28.26]
[null,null,null,null,null,null,1.1220000000000001,28.47]
[null,null,null,null,null,null,1.123,28.68]
[null,null,null,null,null,null,1.1240000000000001,28.89]
[null,null,null,null,null,null,1.125,29.1]
[null,null,null,null,null,null,1.1259999999999999,29.31]
[null,null,null,null,null,null,1.127,29.52]
[null,null,null,null,null,null,1.1279999999999999,29.73]
[null,null,null,null,null,null,1.129,29.94]
[null,null,null,null,null,null,1.1299999999999999,30.15]

{"sheet":"Malt","index":5,"n_rows":89,"n_cols":16,"rows_kept":89,"cut":false,"hidden":false,"merged":[[87,1,87,2]]}
["Malttyper","EBC Range","EBC Avg.","Ekstraktudbytte","Diastatisk Aktivitet\n(DP)\n\nDegree Lintner\n(°L)","Karakteristik","Malt i kg","Brygladen","Hjemmebryggeren","Albryg (10g interval)","Bryglageret","Brygforretningen",null,"Malt Pris\nGrupper","Priser\nkr./kg","DropDown Menu"]
["Basis Malt",null,null,null,null,null,null,"H","I","J","K","L",null,null,15]
["Pilsner","2,5 - 3,5","3","300","110","Høj enzymaktivitet",{"$f":"IFERROR(VLOOKUP(Malt!$A3,BrewReport!$A$9:$D$18,4,FALSE),0)","v":0},{"$f":"G3*O5","v":0},{"$f":"G3*O7","v":0},{"$f":"G3*O7","v":0},{"$f":"G3*O7","v":0},{"$f":"G3*O5","v":0},null,null,16,{"$f":"IFERROR(INDEX($A$3:$A$85, SMALL(IF(ISBLANK(INDIRECT(CONCATENATE(\"$\",HLOOKUP(BrewReport!$F$7,$H$1:$L$2,2,FALSE),\"$3:$\",HLOOKUP(BrewReport!$F$7,$H$1:$L$2,2,FALSE),\"$84\"))), \"\", ROW(INDIRECT(CONCATENATE(\"$\",HLOOKUP(BrewReport!$F$7,$H$1:$L$2,2,FALSE),\"$3:$\",HLOOKUP(BrewReport!$F$7,$H$1:$L$2,2,FALSE),\"$84\")))-MIN(ROW(INDIRECT(CONCATENATE(\"$\",HLOOKUP(BrewReport!$F$7,$H$1:$L$2,2,FALSE),\"$3:$\",HLOOKUP(BrewReport!$F$7,$H$1:$L$2,2,FALSE),\"$84\"))))+1), ROW(A1))),\"\")","v":"Pilsner"}]
["Fuglsang Pilsner","3,7","3,7","320","120","Dansk, Høj enzymaktivitet",{"$f":"IFERROR(VLOOKUP(Malt!$A4,BrewReport!$A$9:$D$18,4,FALSE),0)","v":0},null,null,{"$f":"G4*O2","v":0},null,null,null,null,17,{"$f":"IFERROR(INDEX($A$3:$A$85, SMALL(IF(ISBLANK(INDIRECT(CONCATENATE(\"$\",HLOOKUP(BrewReport!$F$7,$H$1:$L$2,2,FALSE),\"$3:$\",HLOOKUP(BrewReport!$F$7,$H$1:$L$2,2,FALSE),\"$84\"))), \"\", ROW(INDIRECT(CONCATENATE(\"$\",HLOOKUP(BrewReport!$F$7,$H$1:$L$2,2,FALSE),\"$3:$\",HLOOKUP(BrewReport!$F$7,$H$1:$L$2,2,FALSE),\"$84\")))-MIN(ROW(INDIRECT(CONCATENATE(\"$\",HLOOKUP(BrewReport!$F$7,$H$1:$L$2,2,FALSE),\"$3:$\",HLOOKUP(BrewReport!$F$7,$H$1:$L$2,2,FALSE),\"$84\"))))+1), ROW(A2))),\"\")","v":"Vienna"}]
["Pilsner Bohemian","2,5 - 3,5",3,"300","110","Høj enzymaktivitet",{"$f":"IFERROR(VLOOKUP(Malt!$A5,BrewReport!$A$9:$D$18,4,FALSE),0)","v":0},{"$f":"G5*O5","v":0},null,{"$f":"G5*O3","v":0},{"$f":"G5*O7","v":0},null,null,"Grp 1 ",18,{"$f":"IFERROR(INDEX($A$3:$A$85, SMALL(IF(ISBLANK(INDIRECT(CONCATENATE(\"$\",HLOOKUP(BrewReport!$F$7,$H$1:$L$2,2,FALSE),\"$3:$\",HLOOKUP(BrewReport!$F$7,$H$1:$L$2,2,FALSE),\"$84\"))), \"\", ROW(INDIRECT(CONCATENATE(\"$\",HLOOKUP(BrewReport!$F$7,$H$1:$L$2,2,FALSE),\"$3:$\",HLOOKUP(BrewReport!$F$7,$H$1:$L$2,2,FALSE),\"$84\")))-MIN(ROW(INDIRECT(CONCATENATE(\"$\",HLOOKUP(BrewReport!$F$7,$H$1:$L$2,2,FALSE),\"$3:$\",HLOOKUP(BrewReport!$F$7,$H$1:$L$2,2,FALSE),\"$84\"))))+1), ROW(A3))),\"\")","v":"Pale Ale"}]
["Vienna","5 - 7","6","300","50","Farve, sødme og fylde",{"$f":"IFERROR(VLOOKUP(Malt!$A6,BrewReport!$A$9:$D$18,4,FALSE),0)","v":0},{"$f":"G6*O5","v":0},{"$f":"G6*O7","v":0},{"$f":"G6*O3","v":0},null,{"$f":"G6*O5","v":0},null,"Grp 2",19,{"$f":"IFERROR(INDEX($A$3:$A$85, SMALL(IF(ISBLANK(INDIRECT(CONCATENATE(\"$\",HLOOKUP(BrewReport!$F$7,$H$1:$L$2,2,FALSE),\"$3:$\",HLOOKUP(BrewReport!$F$7,$H$1:$L$2,2,FALSE),\"$84\"))), \"\", ROW(INDIRECT(CONCATENATE(\"$\",HLOOKUP(BrewReport!$F$7,$H$1:$L$2,2,FALSE),\"$3:$\",HLOOKUP(BrewReport!$F$7,$H$1:$L$2,2,FALSE),\"$84\")))-MIN(ROW(INDIRECT(CONCATENATE(\"$\",HLOOKUP(BrewReport!$F$7,$H$1:$L$2,2,FALSE),\"$3:$\",HLOOKUP(BrewReport!$F$7,$H$1:$L$2,2,FALSE),\"$84\"))))+1), ROW(A4))),\"\")","v":"Munich"}]
["Pale Ale","7,0 - 9,0",8,"300","65","Mørkere og mere maltet end Pilsner",{"$f":"IFERROR(VLOOKUP(Malt!$A7,BrewReport!$A$9:$D$18,4,FALSE),0)","v":0},{"$f":"G7*O5","v":0},{"$f":"G7*O7","v":0},{"$f":"G7*O3","v":0},{"$f":"G7*O6","v":0},{"$f":"G7*O5","v":0},null,"Grp 3",20,{"$f":"IFERROR(INDEX($A$3:$A$85, SMALL(IF(ISBLANK(INDIRECT(CONCATENATE(\"$\",HLOOKUP(BrewReport!$F$7,$H$1:$L$2,2,FALSE),\"$3:$\",HLOOKUP(BrewReport!$F$7,$H$1:$L$2,2,FALSE),\"$84\"))), \"\", ROW(INDIRECT(CONCATENATE(\"$\",HLOOKUP(BrewReport!$F$7,$H$1:$L$2,2,FALSE),\"$3:$\",HLOOKUP(BrewReport!$F$7,$H$1:$L$2,2,FALSE),\"$84\")))-MIN(ROW(INDIRECT(CONCATENATE(\"$\",HLOOKUP(BrewReport!$F$7,$H$1:$L$2,2,FALSE),\"$3:$\",HLOOKUP(BrewReport!$F$7,$H$1:$L$2,2,FALSE),\"$84\"))))+1), ROW(A5))),\"\")","v":"Munich Light (Type 1)"}]
["Munich","20 - 25","25","290","25","Sødme og fylde",{"$f":"IFERROR(VLOOKUP(Malt!$A8,BrewReport!$A$9:$D$18,4,FALSE),0)","v":0},{"$f":"G8*O5","v":0},{"$f":"G8*O7","v":0},{"$f":"G8*O7","v":0},{"$f":"G8*O16","v":0},{"$f":"G8*O5","v":0},null,"Grp 4",21,{"$f":"IFERROR(INDEX($A$3:$A$85, SMALL(IF(ISBLANK(INDIRECT(CONCATENATE(\"$\",HLOOKUP(BrewReport!$F$7,$H$1:$L$2,2,FALSE),\"$3:$\",HLOOKUP(BrewReport!$F$7,$H$1:$L$2,2,FALSE),\"$84\"))), \"\", ROW(INDIRECT(CONCATENATE(\"$\",HLOOKUP(BrewReport!$F$7,$H$1:$L$2,2,FALSE),\"$3:$\",HLOOKUP(BrewReport!$F$7,$H$1:$L$2,2,FALSE),\"$84\")))-MIN(ROW(INDIRECT(CONCATENATE(\"$\",HLOOKUP(BrewReport!$F$7,$H$1:$L$2,2,FALSE),\"$3:$\",HLOOKUP(BrewReport!$F$7,$H$1:$L$2,2,FALSE),\"$84\"))))+1), ROW(A6))),\"\")","v":"Maris Otter Ale"}]
["Munich Light (Type 1)","10 - 12","11","290","70","Sødme og fylde",{"$f":"IFERROR(VLOOKUP(Malt!$A9,BrewReport!$A$9:$D$18,4,FALSE),0)","v":0},null,{"$f":"G9*O7","v":0},{"$f":"G9*O7","v":0},{"$f":"G9*O16","v":0},{"$f":"G9*O5","v":0},null,"Grp 5",22,{"$f":"IFERROR(INDEX($A$3:$A$85, SMALL(IF(ISBLANK(INDIRECT(CONCATENATE(\"$\",HLOOKUP(BrewReport!$F$7,$H$1:$L$2,2,FALSE),\"$3:$\",HLOOKUP(BrewReport!$F$7,$H$1:$L$2,2,FALSE),\"$84\"))), \"\", ROW(INDIRECT(CONCATENATE(\"$\",HLOOKUP(BrewReport!$F$7,$H$1:$L$2,2,FALSE),\"$3:$\",HLOOKUP(BrewReport!$F$7,$H$1:$L$2,2,FALSE),\"$84\")))-MIN(ROW(INDIRECT(CONCATENATE(\"$\",HLOOKUP(BrewReport!$F$7,$H$1:$L$2,2,FALSE),\"$3:$\",HLOOKUP(BrewReport!$F$7,$H$1:$L$2,2,FALSE),\"$84\"))))+1), ROW(A7))),\"\")","v":"Red X"}]
["Maris Otter Ale","5,5 - 8,0","6,75","320","120","Fyldig, nødder, let orange farve",{"$f":"IFERROR(VLOOKUP(Malt!$A10,BrewReport!$A$9:$D$18,4,FALSE),0)","v":0},{"$f":"G10*O6","v":0},{"$f":"G10*O7","v":0},null,null,{"$f":"G10*O12","v":0},null,"Grp 6",23,{"$f":"IFERROR(INDEX($A$3:$A$85, SMALL(IF(ISBLANK(INDIRECT(CONCATENATE(\"$\",HLOOKUP(BrewReport!$F$7,$H$1:$L$2,2,FALSE),\"$3:$\",HLOOKUP(BrewReport!$F$7,$H$1:$L$2,2,FALSE),\"$84\"))), \"\", ROW(INDIRECT(CONCATENATE(\"$\",HLOOKUP(BrewReport!$F$7,$H$1:$L$2,2,FALSE),\"$3:$\",HLOOKUP(BrewReport!$F$7,$H$1:$L$2,2,FALSE),\"$84\")))-MIN(ROW(INDIRECT(CONCATENATE(\"$\",HLOOKUP(BrewReport!$F$7,$H$1:$L$2,2,FALSE),\"$3:$\",HLOOKUP(BrewReport!$F$7,$H$1:$L$2,2,FALSE),\"$84\"))))+1), ROW(A8))),\"\")","v":"Cara Pils"}]
["Red X","28 - 32",30,"280","56","Fyldig, intens rødlig farve",{"$f":"IFERROR(VLOOKUP(Malt!$A11,BrewReport!$A$9:$D$18,4,FALSE),0)","v":0},{"$f":"G11*O6","v":0},{"$f":"G11*O7","v":0},null,null,null,null,"Grp 7",24,{"$f":"IFERROR(INDEX($A$3:$A$85, SMALL(IF(ISBLANK(INDIRECT(CONCATENATE(\"$\",HLOOKUP(BrewReport!$F$7,$H$1:$L$2,2,FALSE),\"$3:$\",HLOOKUP(BrewReport!$F$7,$H$1:$L$2,2,FALSE),\"$84\"))), \"\", ROW(INDIRECT(CONCATENATE(\"$\",HLOOKUP(BrewReport!$F$7,$H$1:$L$2,2,FALSE),\"$3:$\",HLOOKUP(BrewReport!$F$7,$H$1:$L$2,2,FALSE),\"$84\")))-MIN(ROW(INDIRECT(CONCATENATE(\"$\",HLOOKUP(BrewReport!$F$7,$H$1:$L$2,2,FALSE),\"$3:$\",HLOOKUP(BrewReport!$F$7,$H$1:$L$2,2,FALSE),\"$84\"))))+1), ROW(A9))),\"\")","v":"Cara Clair"}]
["Karamel Malt",null,null,null,null,null,null,null,null,null,null,null,null,"Grp 8",25,{"$f":"IFERROR(INDEX($A$3:$A$85, SMALL(IF(ISBLANK(INDIRECT(CONCATENATE(\"$\",HLOOKUP(BrewReport!$F$7,$H$1:$L$2,2,FALSE),\"$3:$\",HLOOKUP(BrewReport!$F$7,$H$1:$L$2,2,FALSE),\"$84\"))), \"\", ROW(INDIRECT(CONCATENATE(\"$\",HLOOKUP(BrewReport!$F$7,$H$1:$L$2,2,FALSE),\"$3:$\",HLOOKUP(BrewReport!$F$7,$H$1:$L$2,2,FALSE),\"$84\")))-MIN(ROW(INDIRECT(CONCATENATE(\"$\",HLOOKUP(BrewReport!$F$7,$H$1:$L$2,2,FALSE),\"$3:$\",HLOOKUP(BrewReport!$F$7,$H$1:$L$2,2,FALSE),\"$84\"))))+1), ROW(A10))),\"\")","v":"Cara Blond"}]
["Cara Pils",5,5,"275","0",null,{"$f":"IFERROR(VLOOKUP(Malt!$A13,BrewReport!$A$9:$D$18,4,FALSE),0)","v":0},{"$f":"G13*O8","v":0},{"$f":"G13*O16","v":0},{"$f":"G13*O7","v":0},{"$f":"G13*O16","v":0},{"$f":"G13*O9","v":0},null,"Grp 9",26,{"$f":"IFERROR(INDEX($A$3:$A$85, SMALL(IF(ISBLANK(INDIRECT(CONCATENATE(\"$\",HLOOKUP(BrewReport!$F$7,$H$1:$L$2,2,FALSE),\"$3:$\",HLOOKUP(BrewReport!$F$7,$H$1:$L$2,2,FALSE),\"$84\"))), \"\", ROW(INDIRECT(CONCATENATE(\"$\",HLOOKUP(BrewReport!$F$7,$H$1:$L$2,2,FALSE),\"$3:$\",HLOOKUP(BrewReport!$F$7,$H$1:$L$2,2,FALSE),\"$84\")))-MIN(ROW(INDIRECT(CONCATENATE(\"$\",HLOOKUP(BrewReport!$F$7,$H$1:$L$2,2,FALSE),\"$3:$\",HLOOKUP(BrewReport!$F$7,$H$1:$L$2,2,FALSE),\"$84\"))))+1), ROW(A11))),\"\")","v":"Cara Gold"}]
["Cara Clair","8","8","275","0",null,{"$f":"IFERROR(VLOOKUP(Malt!$A14,BrewReport!$A$9:$D$18,4,FALSE),0)","v":0},{"$f":"G14*O8","v":0},{"$f":"G14*O16","v":0},null,null,null,null,"Grp 10",27,{"$f":"IFERROR(INDEX($A$3:$A$85, SMALL(IF(ISBLANK(INDIRECT(CONCATENATE(\"$\",HLOOKUP(BrewReport!$F$7,$H$1:$L$2,2,FALSE),\"$3:$\",HLOOKUP(BrewReport!$F$7,$H$1:$L$2,2,FALSE),\"$84\"))), \"\", ROW(INDIRECT(CONCATENATE(\"$\",HLOOKUP(BrewReport!$F$7,$H$1:$L$2,2,FALSE),\"$3:$\",HLOOKUP(BrewReport!$F$7,$H$1:$L$2,2,FALSE),\"$84\")))-MIN(ROW(INDIRECT(CONCATENATE(\"$\",HLOOKUP(BrewReport!$F$7,$H$1:$L$2,2,FALSE),\"$3:$\",HLOOKUP(BrewReport!$F$7,$H$1:$L$2,2,FALSE),\"$84\"))))+1), ROW(A12))),\"\")","v":"Cara Hell"}]
["Cara Blond","20 - 30","25","280","0","Mild karamel smag og gylden farve",{"$f":"IFERROR(VLOOKUP(Malt!$A15,BrewReport!$A$9:$D$18,4,FALSE),0)","v":0},null,{"$f":"G15*O16","v":0},null,{"$f":"G15*O16","v":0},{"$f":"G15*O9","v":0},null,"Grp 11",28,{"$f":"IFERROR(INDEX($A$3:$A$85, SMALL(IF(ISBLANK(INDIRECT(CONCATENATE(\"$\",HLOOKUP(BrewReport!$F$7,$H$1:$L$2,2,FALSE),\"$3:$\",HLOOKUP(BrewReport!$F$7,$H$1:$L$2,2,FALSE),\"$84\"))), \"\", ROW(INDIRECT(CONCATENATE(\"$\",HLOOKUP(BrewReport!$F$7,$H$1:$L$2,2,FALSE),\"$3:$\",HLOOKUP(BrewReport!$F$7,$H$1:$L$2,2,FALSE),\"$84\")))-MIN(ROW(INDIRECT(CONCATENATE(\"$\",HLOOKUP(BrewReport!$F$7,$H$1:$L$2,2,FALSE),\"$3:$\",HLOOKUP(BrewReport!$F$7,$H$1:$L$2,2,FALSE),\"$84\"))))+1), ROW(A13))),\"\")","v":"Cara Munich Type I"}]
["Carabelge","30 - 35","33","280","0",null,{"$f":"IFERROR(VLOOKUP(Malt!$A16,BrewReport!$A$9:$D$18,4,FALSE),0)","v":0},null,null,{"$f":"G16*O7","v":0},null,null,null,"Grp 12",30,{"$f":"IFERROR(INDEX($A$3:$A$85, SMALL(IF(ISBLANK(INDIRECT(CONCATENATE(\"$\",HLOOKUP(BrewReport!$F$7,$H$1:$L$2,2,FALSE),\"$3:$\",HLOOKUP(BrewReport!$F$7,$H$1:$L$2,2,FALSE),\"$84\"))), \"\", ROW(INDIRECT(CONCATENATE(\"$\",HLOOKUP(BrewReport!$F$7,$H$1:$L$2,2,FALSE),\"$3:$\",HLOOKUP(BrewReport!$F$7,$H$1:$L$2,2,FALSE),\"$84\")))-MIN(ROW(INDIRECT(CONCATENATE(\"$\",HLOOKUP(BrewReport!$F$7,$H$1:$L$2,2,FALSE),\"$3:$\",HLOOKUP(BrewReport!$F$7,$H$1:$L$2,2,FALSE),\"$84\"))))+1), ROW(A14))),\"\")","v":"Cara Munich Type II"}]
["Cara Vienna",50,50,"280","0",null,{"$f":"IFERROR(VLOOKUP(Malt!$A17,BrewReport!$A$9:$D$18,4,FALSE),0)","v":0},{"$f":"G17*O8","v":0},null,null,{"$f":"G17*O16","v":0},null,null,"Grp 13",35,{"$f":"IFERROR(INDEX($A$3:$A$85, SMALL(IF(ISBLANK(INDIRECT(CONCATENATE(\"$\",HLOOKUP(BrewReport!$F$7,$H$1:$L$2,2,FALSE),\"$3:$\",HLOOKUP(BrewReport!$F$7,$H$1:$L$2,2,FALSE),\"$84\"))), \"\", ROW(INDIRECT(CONCATENATE(\"$\",HLOOKUP(BrewReport!$F$7,$H$1:$L$2,2,FALSE),\"$3:$\",HLOOKUP(BrewReport!$F$7,$H$1:$L$2,2,FALSE),\"$84\")))-MIN(ROW(INDIRECT(CONCATENATE(\"$\",HLOOKUP(BrewReport!$F$7,$H$1:$L$2,2,FALSE),\"$3:$\",HLOOKUP(BrewReport!$F$7,$H$1:$L$2,2,FALSE),\"$84\"))))+1), ROW(A15))),\"\")","v":"Cara Munich Type III"}]
["Cara Gold","110 - 130",120,"280","0","Stor karamel- og toffee smag, bedre skum og fylde",{"$f":"IFERROR(VLOOKUP(Malt!$A18,BrewReport!$A$9:$D$18,4,FALSE),0)","v":0},{"$f":"G18*O8","v":0},{"$f":"G18*O16","v":0},{"$f":"G18*O7","v":0},null,{"$f":"G18*O9","v":0},null,"Grp 14",40,{"$f":"IFERROR(INDEX($A$3:$A$85, SMALL(IF(ISBLANK(INDIRECT(CONCATENATE(\"$\",HLOOKUP(BrewReport!$F$7,$H$1:$L$2,2,FALSE),\"$3:$\",HLOOKUP(BrewReport!$F$7,$H$1:$L$2,2,FALSE),\"$84\"))), \"\", ROW(INDIRECT(CONCATENATE(\"$\",HLOOKUP(BrewReport!$F$7,$H$1:$L$2,2,FALSE),\"$3:$\",HLOOKUP(BrewReport!$F$7,$H$1:$L$2,2,FALSE),\"$84\")))-MIN(ROW(INDIRECT(CONCATENATE(\"$\",HLOOKUP(BrewReport!$F$7,$H$1:$L$2,2,FALSE),\"$3:$\",HLOOKUP(BrewReport!$F$7,$H$1:$L$2,2,FALSE),\"$84\"))))+1), ROW(A16))),\"\")","v":"Cara Aroma"}]
["Chateau Cara ",150,150,"280","0",null,{"$f":"IFERROR(VLOOKUP(Malt!$A19,BrewReport!$A$9:$D$18,4,FALSE),0)","v":0},null,null,{"$f":"G19*O7","v":0},null,{"$f":"G19*O9","v":0},null,"Grp 15",50,{"$f":"IFERROR(INDEX($A$3:$A$85, SMALL(IF(ISBLANK(INDIRECT(CONCATENATE(\"$\",HLOOKUP(BrewReport!$F$7,$H$1:$L$2,2,FALSE),\"$3:$\",HLOOKUP(BrewReport!$F$7,$H$1:$L$2,2,FALSE),\"$84\"))), \"\", ROW(INDIRECT(CONCATENATE(\"$\",HLOOKUP(BrewReport!$F$7,$H$1:$L$2,2,FALSE),\"$3:$\",HLOOKUP(BrewReport!$F$7,$H$1:$L$2,2,FALSE),\"$84\")))-MIN(ROW(INDIRECT(CONCATENATE(\"$\",HLOOKUP(BrewReport!$F$7,$H$1:$L$2,2,FALSE),\"$3:$\",HLOOKUP(BrewReport!$F$7,$H$1:$L$2,2,FALSE),\"$84\"))))+1), ROW(A17))),\"\")","v":"Cara Aromatic"}]
["Cara Hell","20 - 40","30","280","0",null,{"$f":"IFERROR(VLOOKUP(Malt!$A20,BrewReport!$A$9:$D$18,4,FALSE),0)","v":0},{"$f":"G20*O8","v":0},{"$f":"G20*O16","v":0},{"$f":"G20*O7","v":0},{"$f":"G20*O16","v":0},null,null,null,null,{"$f":"IFERROR(INDEX($A$3:$A$85, SMALL(IF(ISBLANK(INDIRECT(CONCATENATE(\"$\",HLOOKUP(BrewReport!$F$7,$H$1:$L$2,2,FALSE),\"$3:$\",HLOOKUP(BrewReport!$F$7,$H$1:$L$2,2,FALSE),\"$84\"))), \"\", ROW(INDIRECT(CONCATENATE(\"$\",HLOOKUP(BrewReport!$F$7,$H$1:$L$2,2,FALSE),\"$3:$\",HLOOKUP(BrewReport!$F$7,$H$1:$L$2,2,FALSE),\"$84\")))-MIN(ROW(INDIRECT(CONCATENATE(\"$\",HLOOKUP(BrewReport!$F$7,$H$1:$L$2,2,FALSE),\"$3:$\",HLOOKUP(BrewReport!$F$7,$H$1:$L$2,2,FALSE),\"$84\"))))+1), ROW(A18))),\"\")","v":"Cara Amber"}]
["Cara Munich Type I","80 - 100","90","275","0",null,{"$f":"IFERROR(VLOOKUP(Malt!$A21,BrewReport!$A$9:$D$18,4,FALSE),0)","v":0},{"$f":"G21*O7","v":0},{"$f":"G21*O16","v":0},{"$f":"G21*O7","v":0},{"$f":"G21*O15","v":0},null,null,null,null,{"$f":"IFERROR(INDEX($A$3:$A$85, SMALL(IF(ISBLANK(INDIRECT(CONCATENATE(\"$\",HLOOKUP(BrewReport!$F$7,$H$1:$L$2,2,FALSE),\"$3:$\",HLOOKUP(BrewReport!$F$7,$H$1:$L$2,2,FALSE),\"$84\"))), \"\", ROW(INDIRECT(CONCATENATE(\"$\",HLOOKUP(BrewReport!$F$7,$H$1:$L$2,2,FALSE),\"$3:$\",HLOOKUP(BrewReport!$F$7,$H$1:$L$2,2,FALSE),\"$84\")))-MIN(ROW(INDIRECT(CONCATENATE(\"$\",HLOOKUP(BrewReport!$F$7,$H$1:$L$2,2,FALSE),\"$3:$\",HLOOKUP(BrewReport!$F$7,$H$1:$L$2,2,FALSE),\"$84\"))))+1), ROW(A19))),\"\")","v":"Cara Ruby"}]
["Cara Munich Type II","110 - 130","120","275","0",null,{"$f":"IFERROR(VLOOKUP(Malt!$A22,BrewReport!$A$9:$D$18,4,FALSE),0)","v":0},null,{"$f":"G22*O16","v":0},{"$f":"G22*O7","v":0},{"$f":"G22*O15","v":0},null,null,null,null,{"$f":"IFERROR(INDEX($A$3:$A$85, SMALL(IF(ISBLANK(INDIRECT(CONCATENATE(\"$\",HLOOKUP(BrewReport!$F$7,$H$1:$L$2,2,FALSE),\"$3:$\",HLOOKUP(BrewReport!$F$7,$H$1:$L$2,2,FALSE),\"$84\"))), \"\", ROW(INDIRECT(CONCATENATE(\"$\",HLOOKUP(BrewReport!$F$7,$H$1:$L$2,2,FALSE),\"$3:$\",HLOOKUP(BrewReport!$F$7,$H$1:$L$2,2,FALSE),\"$84\")))-MIN(ROW(INDIRECT(CONCATENATE(\"$\",HLOOKUP(BrewReport!$F$7,$H$1:$L$2,2,FALSE),\"$3:$\",HLOOKUP(BrewReport!$F$7,$H$1:$L$2,2,FALSE),\"$84\"))))+1), ROW(A20))),\"\")","v":"Crystal"}]
["Cara Munich Type III","140 - 160","150","275","0",null,{"$f":"IFERROR(VLOOKUP(Malt!$A23,BrewReport!$A$9:$D$18,4,FALSE),0)","v":0},null,{"$f":"G23*O16","v":0},null,{"$f":"G23*O16","v":0},null,null,null,null,{"$f":"IFERROR(INDEX($A$3:$A$85, SMALL(IF(ISBLANK(INDIRECT(CONCATENATE(\"$\",HLOOKUP(BrewReport!$F$7,$H$1:$L$2,2,FALSE),\"$3:$\",HLOOKUP(BrewReport!$F$7,$H$1:$L$2,2,FALSE),\"$84\"))), \"\", ROW(INDIRECT(CONCATENATE(\"$\",HLOOKUP(BrewReport!$F$7,$H$1:$L$2,2,FALSE),\"$3:$\",HLOOKUP(BrewReport!$F$7,$H$1:$L$2,2,FALSE),\"$84\")))-MIN(ROW(INDIRECT(CONCATENATE(\"$\",HLOOKUP(BrewReport!$F$7,$H$1:$L$2,2,FALSE),\"$3:$\",HLOOKUP(BrewReport!$F$7,$H$1:$L$2,2,FALSE),\"$84\"))))+1), ROW(A21))),\"\")","v":"Crystal 150"}]
["Cara Red",40,40,"290","0",null,{"$f":"IFERROR(VLOOKUP(Malt!$A24,BrewReport!$A$9:$D$18,4,FALSE),0)","v":0},{"$f":"G24*O8","v":0},null,{"$f":"G24*O7","v":0},{"$f":"G24*O16","v":0},null,null,null,null,{"$f":"IFERROR(INDEX($A$3:$A$85, SMALL(IF(ISBLANK(INDIRECT(CONCATENATE(\"$\",HLOOKUP(BrewReport!$F$7,$H$1:$L$2,2,FALSE),\"$3:$\",HLOOKUP(BrewReport!$F$7,$H$1:$L$2,2,FALSE),\"$84\"))), \"\", ROW(INDIRECT(CONCATENATE(\"$\",HLOOKUP(BrewReport!$F$7,$H$1:$L$2,2,FALSE),\"$3:$\",HLOOKUP(BrewReport!$F$7,$H$1:$L$2,2,FALSE),\"$84\")))-MIN(ROW(INDIRECT(CONCATENATE(\"$\",HLOOKUP(BrewReport!$F$7,$H$1:$L$2,2,FALSE),\"$3:$\",HLOOKUP(BrewReport!$F$7,$H$1:$L$2,2,FALSE),\"$84\"))))+1), ROW(A22))),\"\")","v":"Crystal 400"}]
["Cara Aroma","350 - 450","400","290","0",null,{"$f":"IFERROR(VLOOKUP(Malt!$A25,BrewReport!$A$9:$D$18,4,FALSE),0)","v":0},{"$f":"G25*O9","v":0},{"$f":"G25*O16","v":0},null,{"$f":"G25*O16","v":0},null,null,null,null,{"$f":"IFERROR(INDEX($A$3:$A$85, SMALL(IF(ISBLANK(INDIRECT(CONCATENATE(\"$\",HLOOKUP(BrewReport!$F$7,$H$1:$L$2,2,FALSE),\"$3:$\",HLOOKUP(BrewReport!$F$7,$H$1:$L$2,2,FALSE),\"$84\"))), \"\", ROW(INDIRECT(CONCATENATE(\"$\",HLOOKUP(BrewReport!$F$7,$H$1:$L$2,2,FALSE),\"$3:$\",HLOOKUP(BrewReport!$F$7,$H$1:$L$2,2,FALSE),\"$84\")))-MIN(ROW(INDIRECT(CONCATENATE(\"$\",HLOOKUP(BrewReport!$F$7,$H$1:$L$2,2,FALSE),\"$3:$\",HLOOKUP(BrewReport!$F$7,$H$1:$L$2,2,FALSE),\"$84\"))))+1), ROW(A23))),\"\")","v":"Special B"}]
["Cara Aromatic","41 - 60","50","290","0","Noter af karamel og mandler",{"$f":"IFERROR(VLOOKUP(Malt!$A26,BrewReport!$A$9:$D$18,4,FALSE),0)","v":0},null,{"$f":"G26*O16","v":0},null,null,null,null,null,null,{"$f":"IFERROR(INDEX($A$3:$A$85, SMALL(IF(ISBLANK(INDIRECT(CONCATENATE(\"$\",HLOOKUP(BrewReport!$F$7,$H$1:$L$2,2,FALSE),\"$3:$\",HLOOKUP(BrewReport!$F$7,$H$1:$L$2,2,FALSE),\"$84\"))), \"\", ROW(INDIRECT(CONCATENATE(\"$\",HLOOKUP(BrewReport!$F$7,$H$1:$L$2,2,FALSE),\"$3:$\",HLOOKUP(BrewReport!$F$7,$H$1:$L$2,2,FALSE),\"$84\")))-MIN(ROW(INDIRECT(CONCATENATE(\"$\",HLOOKUP(BrewReport!$F$7,$H$1:$L$2,2,FALSE),\"$3:$\",HLOOKUP(BrewReport!$F$7,$H$1:$L$2,2,FALSE),\"$84\"))))+1), ROW(A24))),\"\")","v":"Special X"}]
["Cara Amber",60,60,"290","0",null,{"$f":"IFERROR(VLOOKUP(Malt!$A27,BrewReport!$A$9:$D$18,4,FALSE),0)","v":0},{"$f":"G27*O9","v":0},{"$f":"G27*O16","v":0},null,{"$f":"G27*O16","v":0},null,null,null,null,{"$f":"IFERROR(INDEX($A$3:$A$85, SMALL(IF(ISBLANK(INDIRECT(CONCATENATE(\"$\",HLOOKUP(BrewReport!$F$7,$H$1:$L$2,2,FALSE),\"$3:$\",HLOOKUP(BrewReport!$F$7,$H$1:$L$2,2,FALSE),\"$84\"))), \"\", ROW(INDIRECT(CONCATENATE(\"$\",HLOOKUP(BrewReport!$F$7,$H$1:$L$2,2,FALSE),\"$3:$\",HLOOKUP(BrewReport!$F$7,$H$1:$L$2,2,FALSE),\"$84\")))-MIN(ROW(INDIRECT(CONCATENATE(\"$\",HLOOKUP(BrewReport!$F$7,$H$1:$L$2,2,FALSE),\"$3:$\",HLOOKUP(BrewReport!$F$7,$H$1:$L$2,2,FALSE),\"$84\"))))+1), ROW(A25))),\"\")","v":"Coffee / Café Light"}]
["Cara Rye",90,90,"260","0",null,{"$f":"IFERROR(VLOOKUP(Malt!$A28,BrewReport!$A$9:$D$18,4,FALSE),0)","v":0},{"$f":"G28*O9","v":0},null,null,null,null,null,null,null,{"$f":"IFERROR(INDEX($A$3:$A$85, SMALL(IF(ISBLANK(INDIRECT(CONCATENATE(\"$\",HLOOKUP(BrewReport!$F$7,$H$1:$L$2,2,FALSE),\"$3:$\",HLOOKUP(BrewReport!$F$7,$H$1:$L$2,2,FALSE),\"$84\"))), \"\", ROW(INDIRECT(CONCATENATE(\"$\",HLOOKUP(BrewReport!$F$7,$H$1:$L$2,2,FALSE),\"$3:$\",HLOOKUP(BrewReport!$F$7,$H$1:$L$2,2,FALSE),\"$84\")))-MIN(ROW(INDIRECT(CONCATENATE(\"$\",HLOOKUP(BrewReport!$F$7,$H$1:$L$2,2,FALSE),\"$3:$\",HLOOKUP(BrewReport!$F$7,$H$1:$L$2,2,FALSE),\"$84\"))))+1), ROW(A27))),\"\")","v":"Roasted Barley"}]
["Cara Ruby",50,"50","290","0","Rig karamelsmag og toffee aroma",{"$f":"IFERROR(VLOOKUP(Malt!$A29,BrewReport!$A$9:$D$18,4,FALSE),0)","v":0},null,{"$f":"G29*O16","v":0},{"$f":"G29*O3","v":0},null,{"$f":"G29*O9","v":0},null,null,null,{"$f":"IFERROR(INDEX($A$3:$A$85, SMALL(IF(ISBLANK(INDIRECT(CONCATENATE(\"$\",HLOOKUP(BrewReport!$F$7,$H$1:$L$2,2,FALSE),\"$3:$\",HLOOKUP(BrewReport!$F$7,$H$1:$L$2,2,FALSE),\"$84\"))), \"\", ROW(INDIRECT(CONCATENATE(\"$\",HLOOKUP(BrewReport!$F$7,$H$1:$L$2,2,FALSE),\"$3:$\",HLOOKUP(BrewReport!$F$7,$H$1:$L$2,2,FALSE),\"$84\")))-MIN(ROW(INDIRECT(CONCATENATE(\"$\",HLOOKUP(BrewReport!$F$7,$H$1:$L$2,2,FALSE),\"$3:$\",HLOOKUP(BrewReport!$F$7,$H$1:$L$2,2,FALSE),\"$84\"))))+1), ROW(A28))),\"\")","v":"Chocolate"}]
["Cara Wheat","100 - 140",120,"290","0",null,{"$f":"IFERROR(VLOOKUP(Malt!$A30,BrewReport!$A$9:$D$18,4,FALSE),0)","v":0},{"$f":"G30*O9","v":0},null,null,null,null,null,null,null,{"$f":"IFERROR(INDEX($A$3:$A$85, SMALL(IF(ISBLANK(INDIRECT(CONCATENATE(\"$\",HLOOKUP(BrewReport!$F$7,$H$1:$L$2,2,FALSE),\"$3:$\",HLOOKUP(BrewReport!$F$7,$H$1:$L$2,2,FALSE),\"$84\"))), \"\", ROW(INDIRECT(CONCATENATE(\"$\",HLOOKUP(BrewReport!$F$7,$H$1:$L$2,2,FALSE),\"$3:$\",HLOOKUP(BrewReport!$F$7,$H$1:$L$2,2,FALSE),\"$84\")))-MIN(ROW(INDIRECT(CONCATENATE(\"$\",HLOOKUP(BrewReport!$F$7,$H$1:$L$2,2,FALSE),\"$3:$\",HLOOKUP(BrewReport!$F$7,$H$1:$L$2,2,FALSE),\"$84\"))))+1), ROW(A29))),\"\")","v":"Black"}]
["Crystal",150,150,"280","0","Rig malt smag og aroma. Blød bitterhed",{"$f":"IFERROR(VLOOKUP(Malt!$A31,BrewReport!$A$9:$D$18,4,FALSE),0)","v":0},null,{"$f":"G31*O16","v":0},null,null,null,null,null,null,{"$f":"IFERROR(INDEX($A$3:$A$85, SMALL(IF(ISBLANK(INDIRECT(CONCATENATE(\"$\",HLOOKUP(BrewReport!$F$7,$H$1:$L$2,2,FALSE),\"$3:$\",HLOOKUP(BrewReport!$F$7,$H$1:$L$2,2,FALSE),\"$84\"))), \"\", ROW(INDIRECT(CONCATENATE(\"$\",HLOOKUP(BrewReport!$F$7,$H$1:$L$2,2,FALSE),\"$3:$\",HLOOKUP(BrewReport!$F$7,$H$1:$L$2,2,FALSE),\"$84\")))-MIN(ROW(INDIRECT(CONCATENATE(\"$\",HLOOKUP(BrewReport!$F$7,$H$1:$L$2,2,FALSE),\"$3:$\",HLOOKUP(BrewReport!$F$7,$H$1:$L$2,2,FALSE),\"$84\"))))+1), ROW(A30))),\"\")","v":"Wheat Blanc"}]
["Crystal 150","150","150","280","0","Sød karamelagtig smag og gyldent skær",{"$f":"IFERROR(VLOOKUP(Malt!$A32,BrewReport!$A$9:$D$18,4,FALSE),0)","v":0},null,{"$f":"G32*O16","v":0},null,null,null,null,null,null,{"$f":"IFERROR(INDEX($A$3:$A$85, SMALL(IF(ISBLANK(INDIRECT(CONCATENATE(\"$\",HLOOKUP(BrewReport!$F$7,$H$1:$L$2,2,FALSE),\"$3:$\",HLOOKUP(BrewReport!$F$7,$H$1:$L$2,2,FALSE),\"$84\"))), \"\", ROW(INDIRECT(CONCATENATE(\"$\",HLOOKUP(BrewReport!$F$7,$H$1:$L$2,2,FALSE),\"$3:$\",HLOOKUP(BrewReport!$F$7,$H$1:$L$2,2,FALSE),\"$84\")))-MIN(ROW(INDIRECT(CONCATENATE(\"$\",HLOOKUP(BrewReport!$F$7,$H$1:$L$2,2,FALSE),\"$3:$\",HLOOKUP(BrewReport!$F$7,$H$1:$L$2,2,FALSE),\"$84\"))))+1), ROW(A31))),\"\")","v":"Wheat"}]
["Crystal 400","400","400","250","0","Dark Crystal malt er velegnet til at tilrette smag og farve og tilføre øllet en rød og helt ned til dyb rød farve",{"$f":"IFERROR(VLOOKUP(Malt!$A33,BrewReport!$A$9:$D$18,4,FALSE),0)","v":0},{"$f":"G33*O10","v":0},{"$f":"G33*O16","v":0},null,null,null,null,null,null,{"$f":"IFERROR(INDEX($A$3:$A$85, SMALL(IF(ISBLANK(INDIRECT(CONCATENATE(\"$\",HLOOKUP(BrewReport!$F$7,$H$1:$L$2,2,FALSE),\"$3:$\",HLOOKUP(BrewReport!$F$7,$H$1:$L$2,2,FALSE),\"$84\"))), \"\", ROW(INDIRECT(CONCATENATE(\"$\",HLOOKUP(BrewReport!$F$7,$H$1:$L$2,2,FALSE),\"$3:$\",HLOOKUP(BrewReport!$F$7,$H$1:$L$2,2,FALSE),\"$84\")))-MIN(ROW(INDIRECT(CONCATENATE(\"$\",HLOOKUP(BrewReport!$F$7,$H$1:$L$2,2,FALSE),\"$3:$\",HLOOKUP(BrewReport!$F$7,$H$1:$L$2,2,FALSE),\"$84\"))))+1), ROW(A32))),\"\")","v":"Wheat Munich"}]
["Special B",300,300,"250","0","Rosinagtig smag, strejf af nødder og blommer",{"$f":"IFERROR(VLOOKUP(Malt!$A34,BrewReport!$A$9:$D$18,4,FALSE),0)","v":0},{"$f":"G34*O9","v":0},{"$f":"G34*O16","v":0},{"$f":"G34*O7","v":0},{"$f":"G34*O16","v":0},null,null,null,null,{"$f":"IFERROR(INDEX($A$3:$A$85, SMALL(IF(ISBLANK(INDIRECT(CONCATENATE(\"$\",HLOOKUP(BrewReport!$F$7,$H$1:$L$2,2,FALSE),\"$3:$\",HLOOKUP(BrewReport!$F$7,$H$1:$L$2,2,FALSE),\"$84\"))), \"\", ROW(INDIRECT(CONCATENATE(\"$\",HLOOKUP(BrewReport!$F$7,$H$1:$L$2,2,FALSE),\"$3:$\",HLOOKUP(BrewReport!$F$7,$H$1:$L$2,2,FALSE),\"$84\")))-MIN(ROW(INDIRECT(CONCATENATE(\"$\",HLOOKUP(BrewReport!$F$7,$H$1:$L$2,2,FALSE),\"$3:$\",HLOOKUP(BrewReport!$F$7,$H$1:$L$2,2,FALSE),\"$84\"))))+1), ROW(A33))),\"\")","v":"Amber"}]
["Special X","300 - 400","350","250","0",null,{"$f":"IFERROR(VLOOKUP(Malt!$A35,BrewReport!$A$9:$D$18,4,FALSE),0)","v":0},null,{"$f":"G35*O16","v":0},null,null,null,null,null,null,{"$f":"IFERROR(INDEX($A$3:$A$85, SMALL(IF(ISBLANK(INDIRECT(CONCATENATE(\"$\",HLOOKUP(BrewReport!$F$7,$H$1:$L$2,2,FALSE),\"$3:$\",HLOOKUP(BrewReport!$F$7,$H$1:$L$2,2,FALSE),\"$84\"))), \"\", ROW(INDIRECT(CONCATENATE(\"$\",HLOOKUP(BrewReport!$F$7,$H$1:$L$2,2,FALSE),\"$3:$\",HLOOKUP(BrewReport!$F$7,$H$1:$L$2,2,FALSE),\"$84\")))-MIN(ROW(INDIRECT(CONCATENATE(\"$\",HLOOKUP(BrewReport!$F$7,$H$1:$L$2,2,FALSE),\"$3:$\",HLOOKUP(BrewReport!$F$7,$H$1:$L$2,2,FALSE),\"$84\"))))+1), ROW(A34))),\"\")","v":"Biscuit"}]
["Golden Naked Oats","18","18","270","0","Speciel nøddeagtig smag",{"$f":"IFERROR(VLOOKUP(Malt!$A36,BrewReport!$A$9:$D$18,4,FALSE),0)","v":0},{"$f":"G36*O8","v":0},null,null,null,null,null,null,null,{"$f":"IFERROR(INDEX($A$3:$A$85, SMALL(IF(ISBLANK(INDIRECT(CONCATENATE(\"$\",HLOOKUP(BrewReport!$F$7,$H$1:$L$2,2,FALSE),\"$3:$\",HLOOKUP(BrewReport!$F$7,$H$1:$L$2,2,FALSE),\"$84\"))), \"\", ROW(INDIRECT(CONCATENATE(\"$\",HLOOKUP(BrewReport!$F$7,$H$1:$L$2,2,FALSE),\"$3:$\",HLOOKUP(BrewReport!$F$7,$H$1:$L$2,2,FALSE),\"$84\")))-MIN(ROW(INDIRECT(CONCATENATE(\"$\",HLOOKUP(BrewReport!$F$7,$H$1:$L$2,2,FALSE),\"$3:$\",HLOOKUP(BrewReport!$F$7,$H$1:$L$2,2,FALSE),\"$84\"))))+1), ROW(A35))),\"\")","v":"Brown"}]
["Coffee / Café Light","250","250","280","0","Mild nøddeagtig og kaffesmag",{"$f":"IFERROR(VLOOKUP(Malt!$A37,BrewReport!$A$9:$D$18,4,FALSE),0)","v":0},null,{"$f":"G37*O16","v":0},null,null,{"$f":"G37*O10","v":0},null,null,null,{"$f":"IFERROR(INDEX($A$3:$A$85, SMALL(IF(ISBLANK(INDIRECT(CONCATENATE(\"$\",HLOOKUP(BrewReport!$F$7,$H$1:$L$2,2,FALSE),\"$3:$\",HLOOKUP(BrewReport!$F$7,$H$1:$L$2,2,FALSE),\"$84\"))), \"\", ROW(INDIRECT(CONCATENATE(\"$\",HLOOKUP(BrewReport!$F$7,$H$1:$L$2,2,FALSE),\"$3:$\",HLOOKUP(BrewReport!$F$7,$H$1:$L$2,2,FALSE),\"$84\")))-MIN(ROW(INDIRECT(CONCATENATE(\"$\",HLOOKUP(BrewReport!$F$7,$H$1:$L$2,2,FALSE),\"$3:$\",HLOOKUP(BrewReport!$F$7,$H$1:$L$2,2,FALSE),\"$84\"))))+1), ROW(A36))),\"\")","v":"Arome"}]
["Coffee / Café",500,500,"280","0","Mild nøddeagtig og kaffesmag",{"$f":"IFERROR(VLOOKUP(Malt!$A38,BrewReport!$A$9:$D$18,4,FALSE),0)","v":0},{"$f":"G38*O10","v":0},{"$f":"G38*O16","v":0},null,null,{"$f":"G38*O10","v":0},null,null,null,{"$f":"IFERROR(INDEX($A$3:$A$85, SMALL(IF(ISBLANK(INDIRECT(CONCATENATE(\"$\",HLOOKUP(BrewReport!$F$7,$H$1:$L$2,2,FALSE),\"$3:$\",HLOOKUP(BrewReport!$F$7,$H$1:$L$2,2,FALSE),\"$84\"))), \"\", ROW(INDIRECT(CONCATENATE(\"$\",HLOOKUP(BrewReport!$F$7,$H$1:$L$2,2,FALSE),\"$3:$\",HLOOKUP(BrewReport!$F$7,$H$1:$L$2,2,FALSE),\"$84\")))-MIN(ROW(INDIRECT(CONCATENATE(\"$\",HLOOKUP(BrewReport!$F$7,$H$1:$L$2,2,FALSE),\"$3:$\",HLOOKUP(BrewReport!$F$7,$H$1:$L$2,2,FALSE),\"$84\"))))+1), ROW(A37))),\"\")","v":"Melano Light"}]
["Ristet Malt",null,null,null,null,null,null,null,null,null,null,null,null,null,null,{"$f":"IFERROR(INDEX($A$3:$A$85, SMALL(IF(ISBLANK(INDIRECT(CONCATENATE(\"$\",HLOOKUP(BrewReport!$F$7,$H$1:$L$2,2,FALSE),\"$3:$\",HLOOKUP(BrewReport!$F$7,$H$1:$L$2,2,FALSE),\"$84\"))), \"\", ROW(INDIRECT(CONCATENATE(\"$\",HLOOKUP(BrewReport!$F$7,$H$1:$L$2,2,FALSE),\"$3:$\",HLOOKUP(BrewReport!$F$7,$H$1:$L$2,2,FALSE),\"$84\")))-MIN(ROW(INDIRECT(CONCATENATE(\"$\",HLOOKUP(BrewReport!$F$7,$H$1:$L$2,2,FALSE),\"$3:$\",HLOOKUP(BrewReport!$F$7,$H$1:$L$2,2,FALSE),\"$84\"))))+1), ROW(A38))),\"\")","v":"Melano"}]
["Roasted Barley","1200 - 1400",1300,"210","0","Kaffeagtig smag, kraftigt ristet smag. Sødme",{"$f":"IFERROR(VLOOKUP(Malt!$A40,BrewReport!$A$9:$D$18,4,FALSE),0)","v":0},{"$f":"G40*O10","v":0},{"$f":"G40*O16","v":0},null,{"$f":"G40*O15","v":0},{"$f":"G40*O7","v":0},null,null,null,{"$f":"IFERROR(INDEX($A$3:$A$85, SMALL(IF(ISBLANK(INDIRECT(CONCATENATE(\"$\",HLOOKUP(BrewReport!$F$7,$H$1:$L$2,2,FALSE),\"$3:$\",HLOOKUP(BrewReport!$F$7,$H$1:$L$2,2,FALSE),\"$84\"))), \"\", ROW(INDIRECT(CONCATENATE(\"$\",HLOOKUP(BrewReport!$F$7,$H$1:$L$2,2,FALSE),\"$3:$\",HLOOKUP(BrewReport!$F$7,$H$1:$L$2,2,FALSE),\"$84\")))-MIN(ROW(INDIRECT(CONCATENATE(\"$\",HLOOKUP(BrewReport!$F$7,$H$1:$L$2,2,FALSE),\"$3:$\",HLOOKUP(BrewReport!$F$7,$H$1:$L$2,2,FALSE),\"$84\"))))+1), ROW(A39))),\"\")","v":"Melanoidin"}]
["Roasted Wheat","950 - 1050","1000","210","0",null,{"$f":"IFERROR(VLOOKUP(Malt!$A41,BrewReport!$A$9:$D$18,4,FALSE),0)","v":0},{"$f":"G41*O10","v":0},null,null,{"$f":"G41*O15","v":0},null,null,null,null,{"$f":"IFERROR(INDEX($A$3:$A$85, SMALL(IF(ISBLANK(INDIRECT(CONCATENATE(\"$\",HLOOKUP(BrewReport!$F$7,$H$1:$L$2,2,FALSE),\"$3:$\",HLOOKUP(BrewReport!$F$7,$H$1:$L$2,2,FALSE),\"$84\"))), \"\", ROW(INDIRECT(CONCATENATE(\"$\",HLOOKUP(BrewReport!$F$7,$H$1:$L$2,2,FALSE),\"$3:$\",HLOOKUP(BrewReport!$F$7,$H$1:$L$2,2,FALSE),\"$84\")))-MIN(ROW(INDIRECT(CONCATENATE(\"$\",HLOOKUP(BrewReport!$F$7,$H$1:$L$2,2,FALSE),\"$3:$\",HLOOKUP(BrewReport!$F$7,$H$1:$L$2,2,FALSE),\"$84\"))))+1), ROW(A40))),\"\")","v":"Boghvede / Buckwheat (1kg)"}]
["Roasted Rye","500 - 800","650","260","0",null,{"$f":"IFERROR(VLOOKUP(Malt!$A42,BrewReport!$A$9:$D$18,4,FALSE),0)","v":0},{"$f":"G42*O10","v":0},null,{"$f":"G42*O4","v":0},null,null,null,null,null,{"$f":"IFERROR(INDEX($A$3:$A$85, SMALL(IF(ISBLANK(INDIRECT(CONCATENATE(\"$\",HLOOKUP(BrewReport!$F$7,$H$1:$L$2,2,FALSE),\"$3:$\",HLOOKUP(BrewReport!$F$7,$H$1:$L$2,2,FALSE),\"$84\"))), \"\", ROW(INDIRECT(CONCATENATE(\"$\",HLOOKUP(BrewReport!$F$7,$H$1:$L$2,2,FALSE),\"$3:$\",HLOOKUP(BrewReport!$F$7,$H$1:$L$2,2,FALSE),\"$84\")))-MIN(ROW(INDIRECT(CONCATENATE(\"$\",HLOOKUP(BrewReport!$F$7,$H$1:$L$2,2,FALSE),\"$3:$\",HLOOKUP(BrewReport!$F$7,$H$1:$L$2,2,FALSE),\"$84\"))))+1), ROW(A41))),\"\")","v":"Acid / Sauer"}]
["Chocolate Rye",800,800,"260","0",null,{"$f":"IFERROR(VLOOKUP(Malt!$A43,BrewReport!$A$9:$D$18,4,FALSE),0)","v":0},null,null,{"$f":"G43*O7","v":0},null,null,null,null,null,{"$f":"IFERROR(INDEX($A$3:$A$85, SMALL(IF(ISBLANK(INDIRECT(CONCATENATE(\"$\",HLOOKUP(BrewReport!$F$7,$H$1:$L$2,2,FALSE),\"$3:$\",HLOOKUP(BrewReport!$F$7,$H$1:$L$2,2,FALSE),\"$84\"))), \"\", ROW(INDIRECT(CONCATENATE(\"$\",HLOOKUP(BrewReport!$F$7,$H$1:$L$2,2,FALSE),\"$3:$\",HLOOKUP(BrewReport!$F$7,$H$1:$L$2,2,FALSE),\"$84\")))-MIN(ROW(INDIRECT(CONCATENATE(\"$\",HLOOKUP(BrewReport!$F$7,$H$1:$L$2,2,FALSE),\"$3:$\",HLOOKUP(BrewReport!$F$7,$H$1:$L$2,2,FALSE),\"$84\"))))+1), ROW(A42))),\"\")","v":"Abbey"}]
["Chocolate","800 - 900","900","275","0","Nøddeagtig og ristet smag",{"$f":"IFERROR(VLOOKUP(Malt!$A44,BrewReport!$A$9:$D$18,4,FALSE),0)","v":0},{"$f":"G44*O10","v":0},{"$f":"G44*O16","v":0},{"$f":"G44*O7","v":0},{"$f":"G44*O16","v":0},{"$f":"G44*O9","v":0},null,null,null,{"$f":"IFERROR(INDEX($A$3:$A$85, SMALL(IF(ISBLANK(INDIRECT(CONCATENATE(\"$\",HLOOKUP(BrewReport!$F$7,$H$1:$L$2,2,FALSE),\"$3:$\",HLOOKUP(BrewReport!$F$7,$H$1:$L$2,2,FALSE),\"$84\"))), \"\", ROW(INDIRECT(CONCATENATE(\"$\",HLOOKUP(BrewReport!$F$7,$H$1:$L$2,2,FALSE),\"$3:$\",HLOOKUP(BrewReport!$F$7,$H$1:$L$2,2,FALSE),\"$84\")))-MIN(ROW(INDIRECT(CONCATENATE(\"$\",HLOOKUP(BrewReport!$F$7,$H$1:$L$2,2,FALSE),\"$3:$\",HLOOKUP(BrewReport!$F$7,$H$1:$L$2,2,FALSE),\"$84\"))))+1), ROW(A43))),\"\")","v":"Peated / Røg"}]
["Dehusked Chocolate","800",800,"275","0",null,{"$f":"IFERROR(VLOOKUP(Malt!$A45,BrewReport!$A$9:$D$18,4,FALSE),0)","v":0},{"$f":"G45*O10","v":0},null,null,null,null,null,null,null,{"$f":"IFERROR(INDEX($A$3:$A$85, SMALL(IF(ISBLANK(INDIRECT(CONCATENATE(\"$\",HLOOKUP(BrewReport!$F$7,$H$1:$L$2,2,FALSE),\"$3:$\",HLOOKUP(BrewReport!$F$7,$H$1:$L$2,2,FALSE),\"$84\"))), \"\", ROW(INDIRECT(CONCATENATE(\"$\",HLOOKUP(BrewReport!$F$7,$H$1:$L$2,2,FALSE),\"$3:$\",HLOOKUP(BrewReport!$F$7,$H$1:$L$2,2,FALSE),\"$84\")))-MIN(ROW(INDIRECT(CONCATENATE(\"$\",HLOOKUP(BrewReport!$F$7,$H$1:$L$2,2,FALSE),\"$3:$\",HLOOKUP(BrewReport!$F$7,$H$1:$L$2,2,FALSE),\"$84\"))))+1), ROW(A44))),\"\")","v":"Oat"}]
["Black","1500","1500","210","0","Let brændt smag",{"$f":"IFERROR(VLOOKUP(Malt!$A46,BrewReport!$A$9:$D$18,4,FALSE),0)","v":0},{"$f":"G46*O10","v":0},{"$f":"G46*O16","v":0},{"$f":"G46*O7","v":0},{"$f":"G46*O16","v":0},{"$f":"G46*O10","v":0},null,null,null,{"$f":"IFERROR(INDEX($A$3:$A$85, SMALL(IF(ISBLANK(INDIRECT(CONCATENATE(\"$\",HLOOKUP(BrewReport!$F$7,$H$1:$L$2,2,FALSE),\"$3:$\",HLOOKUP(BrewReport!$F$7,$H$1:$L$2,2,FALSE),\"$84\"))), \"\", ROW(INDIRECT(CONCATENATE(\"$\",HLOOKUP(BrewReport!$F$7,$H$1:$L$2,2,FALSE),\"$3:$\",HLOOKUP(BrewReport!$F$7,$H$1:$L$2,2,FALSE),\"$84\")))-MIN(ROW(INDIRECT(CONCATENATE(\"$\",HLOOKUP(BrewReport!$F$7,$H$1:$L$2,2,FALSE),\"$3:$\",HLOOKUP(BrewReport!$F$7,$H$1:$L$2,2,FALSE),\"$84\"))))+1), ROW(A45))),\"\")","v":"Rye"}]
["Dehusked Black / carafa Special type II",1400,1400,"210","0",null,{"$f":"IFERROR(VLOOKUP(Malt!$A47,BrewReport!$A$9:$D$18,4,FALSE),0)","v":0},{"$f":"G47*O10","v":0},null,null,{"$f":"G47*O16","v":0},null,null,null,null,{"$f":"IFERROR(INDEX($A$3:$A$85, SMALL(IF(ISBLANK(INDIRECT(CONCATENATE(\"$\",HLOOKUP(BrewReport!$F$7,$H$1:$L$2,2,FALSE),\"$3:$\",HLOOKUP(BrewReport!$F$7,$H$1:$L$2,2,FALSE),\"$84\"))), \"\", ROW(INDIRECT(CONCATENATE(\"$\",HLOOKUP(BrewReport!$F$7,$H$1:$L$2,2,FALSE),\"$3:$\",HLOOKUP(BrewReport!$F$7,$H$1:$L$2,2,FALSE),\"$84\")))-MIN(ROW(INDIRECT(CONCATENATE(\"$\",HLOOKUP(BrewReport!$F$7,$H$1:$L$2,2,FALSE),\"$3:$\",HLOOKUP(BrewReport!$F$7,$H$1:$L$2,2,FALSE),\"$84\"))))+1), ROW(A46))),\"\")","v":"Spelt"}]
["Wheat Chocolate","900 - 1200","1050","275","0",null,{"$f":"IFERROR(VLOOKUP(Malt!$A48,BrewReport!$A$9:$D$18,4,FALSE),0)","v":0},{"$f":"G48*O10","v":0},null,{"$f":"G48*O7","v":0},{"$f":"G48*O16","v":0},null,null,null,null,{"$f":"IFERROR(INDEX($A$3:$A$85, SMALL(IF(ISBLANK(INDIRECT(CONCATENATE(\"$\",HLOOKUP(BrewReport!$F$7,$H$1:$L$2,2,FALSE),\"$3:$\",HLOOKUP(BrewReport!$F$7,$H$1:$L$2,2,FALSE),\"$84\"))), \"\", ROW(INDIRECT(CONCATENATE(\"$\",HLOOKUP(BrewReport!$F$7,$H$1:$L$2,2,FALSE),\"$3:$\",HLOOKUP(BrewReport!$F$7,$H$1:$L$2,2,FALSE),\"$84\")))-MIN(ROW(INDIRECT(CONCATENATE(\"$\",HLOOKUP(BrewReport!$F$7,$H$1:$L$2,2,FALSE),\"$3:$\",HLOOKUP(BrewReport!$F$7,$H$1:$L$2,2,FALSE),\"$84\"))))+1), ROW(A47))),\"\")","v":"Barley Flaked"}]
["Chocolate Spelt","450 - 650",550,"250","0",null,{"$f":"IFERROR(VLOOKUP(Malt!$A49,BrewReport!$A$9:$D$18,4,FALSE),0)","v":0},null,null,{"$f":"G49*O16","v":0},null,null,null,null,null,{"$f":"IFERROR(INDEX($A$3:$A$85, SMALL(IF(ISBLANK(INDIRECT(CONCATENATE(\"$\",HLOOKUP(BrewReport!$F$7,$H$1:$L$2,2,FALSE),\"$3:$\",HLOOKUP(BrewReport!$F$7,$H$1:$L$2,2,FALSE),\"$84\"))), \"\", ROW(INDIRECT(CONCATENATE(\"$\",HLOOKUP(BrewReport!$F$7,$H$1:$L$2,2,FALSE),\"$3:$\",HLOOKUP(BrewReport!$F$7,$H$1:$L$2,2,FALSE),\"$84\")))-MIN(ROW(INDIRECT(CONCATENATE(\"$\",HLOOKUP(BrewReport!$F$7,$H$1:$L$2,2,FALSE),\"$3:$\",HLOOKUP(BrewReport!$F$7,$H$1:$L$2,2,FALSE),\"$84\"))))+1), ROW(A48))),\"\")","v":"Torrefied Flaked Maize"}]
["Brown","400 - 600",500,"250","0",null,{"$f":"IFERROR(VLOOKUP(Malt!$A50,BrewReport!$A$9:$D$18,4,FALSE),0)","v":0},{"$f":"G50*O10","v":0},null,null,null,null,null,null,null,{"$f":"IFERROR(INDEX($A$3:$A$85, SMALL(IF(ISBLANK(INDIRECT(CONCATENATE(\"$\",HLOOKUP(BrewReport!$F$7,$H$1:$L$2,2,FALSE),\"$3:$\",HLOOKUP(BrewReport!$F$7,$H$1:$L$2,2,FALSE),\"$84\"))), \"\", ROW(INDIRECT(CONCATENATE(\"$\",HLOOKUP(BrewReport!$F$7,$H$1:$L$2,2,FALSE),\"$3:$\",HLOOKUP(BrewReport!$F$7,$H$1:$L$2,2,FALSE),\"$84\")))-MIN(ROW(INDIRECT(CONCATENATE(\"$\",HLOOKUP(BrewReport!$F$7,$H$1:$L$2,2,FALSE),\"$3:$\",HLOOKUP(BrewReport!$F$7,$H$1:$L$2,2,FALSE),\"$84\"))))+1), ROW(A49))),\"\")","v":"Torrefied Flaked Oat"}]
["Hvede Malt",null,null,null,null,null,null,null,null,null,null,null,null,null,null,{"$f":"IFERROR(INDEX($A$3:$A$85, SMALL(IF(ISBLANK(INDIRECT(CONCATENATE(\"$\",HLOOKUP(BrewReport!$F$7,$H$1:$L$2,2,FALSE),\"$3:$\",HLOOKUP(BrewReport!$F$7,$H$1:$L$2,2,FALSE),\"$84\"))), \"\", ROW(INDIRECT(CONCATENATE(\"$\",HLOOKUP(BrewReport!$F$7,$H$1:$L$2,2,FALSE),\"$3:$\",HLOOKUP(BrewReport!$F$7,$H$1:$L$2,2,FALSE),\"$84\")))-MIN(ROW(INDIRECT(CONCATENATE(\"$\",HLOOKUP(BrewReport!$F$7,$H$1:$L$2,2,FALSE),\"$3:$\",HLOOKUP(BrewReport!$F$7,$H$1:$L$2,2,FALSE),\"$84\"))))+1), ROW(A50))),\"\")","v":"Wheat Flaked"}]
["CaraWheat","100 - 140",120,"290","0",null,{"$f":"IFERROR(VLOOKUP(Malt!$A52,BrewReport!$A$9:$D$18,4,FALSE),0)","v":0},{"$f":"G52*O6","v":0},null,null,{"$f":"G52*O15","v":0},null,null,null,null,{"$f":"IFERROR(INDEX($A$3:$A$85, SMALL(IF(ISBLANK(INDIRECT(CONCATENATE(\"$\",HLOOKUP(BrewReport!$F$7,$H$1:$L$2,2,FALSE),\"$3:$\",HLOOKUP(BrewReport!$F$7,$H$1:$L$2,2,FALSE),\"$84\"))), \"\", ROW(INDIRECT(CONCATENATE(\"$\",HLOOKUP(BrewReport!$F$7,$H$1:$L$2,2,FALSE),\"$3:$\",HLOOKUP(BrewReport!$F$7,$H$1:$L$2,2,FALSE),\"$84\")))-MIN(ROW(INDIRECT(CONCATENATE(\"$\",HLOOKUP(BrewReport!$F$7,$H$1:$L$2,2,FALSE),\"$3:$\",HLOOKUP(BrewReport!$F$7,$H$1:$L$2,2,FALSE),\"$84\"))))+1), ROW(A51))),\"\")","v":"Torrefied Flaked Rice"}]
["Wheat Blanc",3,3,"310","75","Fylde og skumstabilitet",{"$f":"IFERROR(VLOOKUP(Malt!$A53,BrewReport!$A$9:$D$18,4,FALSE),0)","v":0},{"$f":"G53*O5","v":0},{"$f":"G53*O7","v":0},null,{"$f":"G53*O16","v":0},{"$f":"G53*O5","v":0},null,null,null,{"$f":"IFERROR(INDEX($A$3:$A$85, SMALL(IF(ISBLANK(INDIRECT(CONCATENATE(\"$\",HLOOKUP(BrewReport!$F$7,$H$1:$L$2,2,FALSE),\"$3:$\",HLOOKUP(BrewReport!$F$7,$H$1:$L$2,2,FALSE),\"$84\"))), \"\", ROW(INDIRECT(CONCATENATE(\"$\",HLOOKUP(BrewReport!$F$7,$H$1:$L$2,2,FALSE),\"$3:$\",HLOOKUP(BrewReport!$F$7,$H$1:$L$2,2,FALSE),\"$84\")))-MIN(ROW(INDIRECT(CONCATENATE(\"$\",HLOOKUP(BrewReport!$F$7,$H$1:$L$2,2,FALSE),\"$3:$\",HLOOKUP(BrewReport!$F$7,$H$1:$L$2,2,FALSE),\"$84\"))))+1), ROW(A52))),\"\")","v":""}]
["Wheat","15 - 20","18","325","75",null,{"$f":"IFERROR(VLOOKUP(Malt!$A54,BrewReport!$A$9:$D$18,4,FALSE),0)","v":0},null,{"$f":"G54*O7","v":0},{"$f":"G54*O2","v":0},{"$f":"G54*O16","v":0},null,null,null,null,{"$f":"IFERROR(INDEX($A$3:$A$85, SMALL(IF(ISBLANK(INDIRECT(CONCATENATE(\"$\",HLOOKUP(BrewReport!$F$7,$H$1:$L$2,2,FALSE),\"$3:$\",HLOOKUP(BrewReport!$F$7,$H$1:$L$2,2,FALSE),\"$84\"))), \"\", ROW(INDIRECT(CONCATENATE(\"$\",HLOOKUP(BrewReport!$F$7,$H$1:$L$2,2,FALSE),\"$3:$\",HLOOKUP(BrewReport!$F$7,$H$1:$L$2,2,FALSE),\"$84\")))-MIN(ROW(INDIRECT(CONCATENATE(\"$\",HLOOKUP(BrewReport!$F$7,$H$1:$L$2,2,FALSE),\"$3:$\",HLOOKUP(BrewReport!$F$7,$H$1:$L$2,2,FALSE),\"$84\"))))+1), ROW(A53))),\"\")","v":""}]
["Wheat Dark",15,15,325,"10",null,{"$f":"IFERROR(VLOOKUP(Malt!$A55,BrewReport!$A$9:$D$18,4,FALSE),0)","v":0},{"$f":"G55*O8","v":0},null,{"$f":"G55*O3","v":0},null,null,null,null,null,{"$f":"IFERROR(INDEX($A$3:$A$85, SMALL(IF(ISBLANK(INDIRECT(CONCATENATE(\"$\",HLOOKUP(BrewReport!$F$7,$H$1:$L$2,2,FALSE),\"$3:$\",HLOOKUP(BrewReport!$F$7,$H$1:$L$2,2,FALSE),\"$84\"))), \"\", ROW(INDIRECT(CONCATENATE(\"$\",HLOOKUP(BrewReport!$F$7,$H$1:$L$2,2,FALSE),\"$3:$\",HLOOKUP(BrewReport!$F$7,$H$1:$L$2,2,FALSE),\"$84\")))-MIN(ROW(INDIRECT(CONCATENATE(\"$\",HLOOKUP(BrewReport!$F$7,$H$1:$L$2,2,FALSE),\"$3:$\",HLOOKUP(BrewReport!$F$7,$H$1:$L$2,2,FALSE),\"$84\"))))+1), ROW(A54))),\"\")","v":""}]
["Wheat Munich","20 - 30","20",325,"10",null,{"$f":"IFERROR(VLOOKUP(Malt!$A56,BrewReport!$A$9:$D$18,4,FALSE),0)","v":0},{"$f":"G56*O5","v":0},{"$f":"G56*O7","v":0},{"$f":"G56*O4","v":0},null,{"$f":"G56*O5","v":0},null,null,null,{"$f":"IFERROR(INDEX($A$3:$A$85, SMALL(IF(ISBLANK(INDIRECT(CONCATENATE(\"$\",HLOOKUP(BrewReport!$F$7,$H$1:$L$2,2,FALSE),\"$3:$\",HLOOKUP(BrewReport!$F$7,$H$1:$L$2,2,FALSE),\"$84\"))), \"\", ROW(INDIRECT(CONCATENATE(\"$\",HLOOKUP(BrewReport!$F$7,$H$1:$L$2,2,FALSE),\"$3:$\",HLOOKUP(BrewReport!$F$7,$H$1:$L$2,2,FALSE),\"$84\")))-MIN(ROW(INDIRECT(CONCATENATE(\"$\",HLOOKUP(BrewReport!$F$7,$H$1:$L$2,2,FALSE),\"$3:$\",HLOOKUP(BrewReport!$F$7,$H$1:$L$2,2,FALSE),\"$84\"))))+1), ROW(A55))),\"\")","v":""}]
["Wheat Chit","3 - 7",5,"325","0",null,{"$f":"IFERROR(VLOOKUP(Malt!$A57,BrewReport!$A$9:$D$18,4,FALSE),0)","v":0},{"$f":"G57*O7","v":0},null,null,null,{"$f":"G57*O12","v":0},null,null,null,{"$f":"IFERROR(INDEX($A$3:$A$85, SMALL(IF(ISBLANK(INDIRECT(CONCATENATE(\"$\",HLOOKUP(BrewReport!$F$7,$H$1:$L$2,2,FALSE),\"$3:$\",HLOOKUP(BrewReport!$F$7,$H$1:$L$2,2,FALSE),\"$84\"))), \"\", ROW(INDIRECT(CONCATENATE(\"$\",HLOOKUP(BrewReport!$F$7,$H$1:$L$2,2,FALSE),\"$3:$\",HLOOKUP(BrewReport!$F$7,$H$1:$L$2,2,FALSE),\"$84\")))-MIN(ROW(INDIRECT(CONCATENATE(\"$\",HLOOKUP(BrewReport!$F$7,$H$1:$L$2,2,FALSE),\"$3:$\",HLOOKUP(BrewReport!$F$7,$H$1:$L$2,2,FALSE),\"$84\"))))+1), ROW(A56))),\"\")","v":""}]
["Wheat Spelt","3 - 7",5,"290","0","Sødlig nøddeagtig og krydret, jordagtig smag",{"$f":"IFERROR(VLOOKUP(Malt!$A58,BrewReport!$A$9:$D$18,4,FALSE),0)","v":0},{"$f":"G58*O15","v":0},null,{"$f":"G58*O16","v":0},null,null,null,null,null,{"$f":"IFERROR(INDEX($A$3:$A$85, SMALL(IF(ISBLANK(INDIRECT(CONCATENATE(\"$\",HLOOKUP(BrewReport!$F$7,$H$1:$L$2,2,FALSE),\"$3:$\",HLOOKUP(BrewReport!$F$7,$H$1:$L$2,2,FALSE),\"$84\"))), \"\", ROW(INDIRECT(CONCATENATE(\"$\",HLOOKUP(BrewReport!$F$7,$H$1:$L$2,2,FALSE),\"$3:$\",HLOOKUP(BrewReport!$F$7,$H$1:$L$2,2,FALSE),\"$84\")))-MIN(ROW(INDIRECT(CONCATENATE(\"$\",HLOOKUP(BrewReport!$F$7,$H$1:$L$2,2,FALSE),\"$3:$\",HLOOKUP(BrewReport!$F$7,$H$1:$L$2,2,FALSE),\"$84\"))))+1), ROW(A57))),\"\")","v":""}]
["Special Malt",null,null,null,null,null,null,null,null,null,null,null,null,null,null,{"$f":"IFERROR(INDEX($A$3:$A$85, SMALL(IF(ISBLANK(INDIRECT(CONCATENATE(\"$\",HLOOKUP(BrewReport!$F$7,$H$1:$L$2,2,FALSE),\"$3:$\",HLOOKUP(BrewReport!$F$7,$H$1:$L$2,2,FALSE),\"$84\"))), \"\", ROW(INDIRECT(CONCATENATE(\"$\",HLOOKUP(BrewReport!$F$7,$H$1:$L$2,2,FALSE),\"$3:$\",HLOOKUP(BrewReport!$F$7,$H$1:$L$2,2,FALSE),\"$84\")))-MIN(ROW(INDIRECT(CONCATENATE(\"$\",HLOOKUP(BrewReport!$F$7,$H$1:$L$2,2,FALSE),\"$3:$\",HLOOKUP(BrewReport!$F$7,$H$1:$L$2,2,FALSE),\"$84\"))))+1), ROW(A58))),\"\")","v":""}]
["Amber","80 - 110","95","290","20",null,{"$f":"IFERROR(VLOOKUP(Malt!$A60,BrewReport!$A$9:$D$18,4,FALSE),0)","v":0},{"$f":"G60*O10","v":0},{"$f":"G60*O16","v":0},{"$f":"G60*O7","v":0},{"$f":"G60*O16","v":0},null,null,null,null,{"$f":"IFERROR(INDEX($A$3:$A$85, SMALL(IF(ISBLANK(INDIRECT(CONCATENATE(\"$\",HLOOKUP(BrewReport!$F$7,$H$1:$L$2,2,FALSE),\"$3:$\",HLOOKUP(BrewReport!$F$7,$H$1:$L$2,2,FALSE),\"$84\"))), \"\", ROW(INDIRECT(CONCATENATE(\"$\",HLOOKUP(BrewReport!$F$7,$H$1:$L$2,2,FALSE),\"$3:$\",HLOOKUP(BrewReport!$F$7,$H$1:$L$2,2,FALSE),\"$84\")))-MIN(ROW(INDIRECT(CONCATENATE(\"$\",HLOOKUP(BrewReport!$F$7,$H$1:$L$2,2,FALSE),\"$3:$\",HLOOKUP(BrewReport!$F$7,$H$1:$L$2,2,FALSE),\"$84\"))))+1), ROW(A59))),\"\")","v":""}]
["Biscuit","45 - 70","50","300","6","Kiksesmag, svag smag af black og chokolade",{"$f":"IFERROR(VLOOKUP(Malt!$A61,BrewReport!$A$9:$D$18,4,FALSE),0)","v":0},{"$f":"G61*O10","v":0},{"$f":"G61*O16","v":0},null,{"$f":"G61*O16","v":0},{"$f":"G61*O9","v":0},null,null,null,{"$f":"IFERROR(INDEX($A$3:$A$85, SMALL(IF(ISBLANK(INDIRECT(CONCATENATE(\"$\",HLOOKUP(BrewReport!$F$7,$H$1:$L$2,2,FALSE),\"$3:$\",HLOOKUP(BrewReport!$F$7,$H$1:$L$2,2,FALSE),\"$84\"))), \"\", ROW(INDIRECT(CONCATENATE(\"$\",HLOOKUP(BrewReport!$F$7,$H$1:$L$2,2,FALSE),\"$3:$\",HLOOKUP(BrewReport!$F$7,$H$1:$L$2,2,FALSE),\"$84\")))-MIN(ROW(INDIRECT(CONCATENATE(\"$\",HLOOKUP(BrewReport!$F$7,$H$1:$L$2,2,FALSE),\"$3:$\",HLOOKUP(BrewReport!$F$7,$H$1:$L$2,2,FALSE),\"$84\"))))+1), ROW(A60))),\"\")","v":""}]
["Brown","110 - 135","120","290","0","Let røgsmag til porter og mørke øl.",{"$f":"IFERROR(VLOOKUP(Malt!$A62,BrewReport!$A$9:$D$18,4,FALSE),0)","v":0},null,{"$f":"G62*O16","v":0},null,null,null,null,null,null,{"$f":"IFERROR(INDEX($A$3:$A$85, SMALL(IF(ISBLANK(INDIRECT(CONCATENATE(\"$\",HLOOKUP(BrewReport!$F$7,$H$1:$L$2,2,FALSE),\"$3:$\",HLOOKUP(BrewReport!$F$7,$H$1:$L$2,2,FALSE),\"$84\"))), \"\", ROW(INDIRECT(CONCATENATE(\"$\",HLOOKUP(BrewReport!$F$7,$H$1:$L$2,2,FALSE),\"$3:$\",HLOOKUP(BrewReport!$F$7,$H$1:$L$2,2,FALSE),\"$84\")))-MIN(ROW(INDIRECT(CONCATENATE(\"$\",HLOOKUP(BrewReport!$F$7,$H$1:$L$2,2,FALSE),\"$3:$\",HLOOKUP(BrewReport!$F$7,$H$1:$L$2,2,FALSE),\"$84\"))))+1), ROW(A61))),\"\")","v":""}]
["Arome",100,100,"300","25","Blød bitterhed",{"$f":"IFERROR(VLOOKUP(Malt!$A63,BrewReport!$A$9:$D$18,4,FALSE),0)","v":0},{"$f":"G63*O10","v":0},{"$f":"G63*O16","v":0},{"$f":"G63*O7","v":0},null,{"$f":"G63*O7","v":0},null,null,null,{"$f":"IFERROR(INDEX($A$3:$A$85, SMALL(IF(ISBLANK(INDIRECT(CONCATENATE(\"$\",HLOOKUP(BrewReport!$F$7,$H$1:$L$2,2,FALSE),\"$3:$\",HLOOKUP(BrewReport!$F$7,$H$1:$L$2,2,FALSE),\"$84\"))), \"\", ROW(INDIRECT(CONCATENATE(\"$\",HLOOKUP(BrewReport!$F$7,$H$1:$L$2,2,FALSE),\"$3:$\",HLOOKUP(BrewReport!$F$7,$H$1:$L$2,2,FALSE),\"$84\")))-MIN(ROW(INDIRECT(CONCATENATE(\"$\",HLOOKUP(BrewReport!$F$7,$H$1:$L$2,2,FALSE),\"$3:$\",HLOOKUP(BrewReport!$F$7,$H$1:$L$2,2,FALSE),\"$84\"))))+1), ROW(A62))),\"\")","v":""}]
["Arome 150","150","150","300","25","Blød bitterhed",{"$f":"IFERROR(VLOOKUP(Malt!$A64,BrewReport!$A$9:$D$18,4,FALSE),0)","v":0},{"$f":"G64*O10","v":0},null,null,null,null,null,null,null,{"$f":"IFERROR(INDEX($A$3:$A$85, SMALL(IF(ISBLANK(INDIRECT(CONCATENATE(\"$\",HLOOKUP(BrewReport!$F$7,$H$1:$L$2,2,FALSE),\"$3:$\",HLOOKUP(BrewReport!$F$7,$H$1:$L$2,2,FALSE),\"$84\"))), \"\", ROW(INDIRECT(CONCATENATE(\"$\",HLOOKUP(BrewReport!$F$7,$H$1:$L$2,2,FALSE),\"$3:$\",HLOOKUP(BrewReport!$F$7,$H$1:$L$2,2,FALSE),\"$84\")))-MIN(ROW(INDIRECT(CONCATENATE(\"$\",HLOOKUP(BrewReport!$F$7,$H$1:$L$2,2,FALSE),\"$3:$\",HLOOKUP(BrewReport!$F$7,$H$1:$L$2,2,FALSE),\"$84\"))))+1), ROW(A63))),\"\")","v":""}]
["Aromatic","42 - 59","50","300","25","Kompleks sødme og lidt syrlighed",{"$f":"IFERROR(VLOOKUP(Malt!$A65,BrewReport!$A$9:$D$18,4,FALSE),0)","v":0},{"$f":"G65*O10","v":0},null,null,null,null,null,null,null,{"$f":"IFERROR(INDEX($A$3:$A$85, SMALL(IF(ISBLANK(INDIRECT(CONCATENATE(\"$\",HLOOKUP(BrewReport!$F$7,$H$1:$L$2,2,FALSE),\"$3:$\",HLOOKUP(BrewReport!$F$7,$H$1:$L$2,2,FALSE),\"$84\"))), \"\", ROW(INDIRECT(CONCATENATE(\"$\",HLOOKUP(BrewReport!$F$7,$H$1:$L$2,2,FALSE),\"$3:$\",HLOOKUP(BrewReport!$F$7,$H$1:$L$2,2,FALSE),\"$84\")))-MIN(ROW(INDIRECT(CONCATENATE(\"$\",HLOOKUP(BrewReport!$F$7,$H$1:$L$2,2,FALSE),\"$3:$\",HLOOKUP(BrewReport!$F$7,$H$1:$L$2,2,FALSE),\"$84\"))))+1), ROW(A64))),\"\")","v":""}]
["Imperial","38","38","300","25",null,{"$f":"IFERROR(VLOOKUP(Malt!$A66,BrewReport!$A$9:$D$18,4,FALSE),0)","v":0},{"$f":"G66*O10","v":0},null,null,null,null,null,null,null,{"$f":"IFERROR(INDEX($A$3:$A$85, SMALL(IF(ISBLANK(INDIRECT(CONCATENATE(\"$\",HLOOKUP(BrewReport!$F$7,$H$1:$L$2,2,FALSE),\"$3:$\",HLOOKUP(BrewReport!$F$7,$H$1:$L$2,2,FALSE),\"$84\"))), \"\", ROW(INDIRECT(CONCATENATE(\"$\",HLOOKUP(BrewReport!$F$7,$H$1:$L$2,2,FALSE),\"$3:$\",HLOOKUP(BrewReport!$F$7,$H$1:$L$2,2,FALSE),\"$84\")))-MIN(ROW(INDIRECT(CONCATENATE(\"$\",HLOOKUP(BrewReport!$F$7,$H$1:$L$2,2,FALSE),\"$3:$\",HLOOKUP(BrewReport!$F$7,$H$1:$L$2,2,FALSE),\"$84\"))))+1), ROW(A65))),\"\")","v":""}]
["Melano Light",40,40,"310","10","Intens maltsmag og fylde",{"$f":"IFERROR(VLOOKUP(Malt!$A67,BrewReport!$A$9:$D$18,4,FALSE),0)","v":0},{"$f":"G67*O10","v":0},{"$f":"G67*O16","v":0},null,null,null,null,null,null,{"$f":"IFERROR(INDEX($A$3:$A$85, SMALL(IF(ISBLANK(INDIRECT(CONCATENATE(\"$\",HLOOKUP(BrewReport!$F$7,$H$1:$L$2,2,FALSE),\"$3:$\",HLOOKUP(BrewReport!$F$7,$H$1:$L$2,2,FALSE),\"$84\"))), \"\", ROW(INDIRECT(CONCATENATE(\"$\",HLOOKUP(BrewReport!$F$7,$H$1:$L$2,2,FALSE),\"$3:$\",HLOOKUP(BrewReport!$F$7,$H$1:$L$2,2,FALSE),\"$84\")))-MIN(ROW(INDIRECT(CONCATENATE(\"$\",HLOOKUP(BrewReport!$F$7,$H$1:$L$2,2,FALSE),\"$3:$\",HLOOKUP(BrewReport!$F$7,$H$1:$L$2,2,FALSE),\"$84\"))))+1), ROW(A66))),\"\")","v":""}]
["Melano",80,80,"310","10","Intens maltsmag og fylde",{"$f":"IFERROR(VLOOKUP(Malt!$A68,BrewReport!$A$9:$D$18,4,FALSE),0)","v":0},{"$f":"G68*O10","v":0},{"$f":"G68*O16","v":0},{"$f":"G68*O7","v":0},{"$f":"G68*O16","v":0},{"$f":"G68*O9","v":0},null,null,null,{"$f":"IFERROR(INDEX($A$3:$A$85, SMALL(IF(ISBLANK(INDIRECT(CONCATENATE(\"$\",HLOOKUP(BrewReport!$F$7,$H$1:$L$2,2,FALSE),\"$3:$\",HLOOKUP(BrewReport!$F$7,$H$1:$L$2,2,FALSE),\"$84\"))), \"\", ROW(INDIRECT(CONCATENATE(\"$\",HLOOKUP(BrewReport!$F$7,$H$1:$L$2,2,FALSE),\"$3:$\",HLOOKUP(BrewReport!$F$7,$H$1:$L$2,2,FALSE),\"$84\")))-MIN(ROW(INDIRECT(CONCATENATE(\"$\",HLOOKUP(BrewReport!$F$7,$H$1:$L$2,2,FALSE),\"$3:$\",HLOOKUP(BrewReport!$F$7,$H$1:$L$2,2,FALSE),\"$84\"))))+1), ROW(A67))),\"\")","v":""}]
["Melanoidin","61 - 80","70","310","10",null,{"$f":"IFERROR(VLOOKUP(Malt!$A69,BrewReport!$A$9:$D$18,4,FALSE),0)","v":0},null,{"$f":"G69*O16","v":0},null,null,null,null,null,null,{"$f":"IFERROR(INDEX($A$3:$A$85, SMALL(IF(ISBLANK(INDIRECT(CONCATENATE(\"$\",HLOOKUP(BrewReport!$F$7,$H$1:$L$2,2,FALSE),\"$3:$\",HLOOKUP(BrewReport!$F$7,$H$1:$L$2,2,FALSE),\"$84\"))), \"\", ROW(INDIRECT(CONCATENATE(\"$\",HLOOKUP(BrewReport!$F$7,$H$1:$L$2,2,FALSE),\"$3:$\",HLOOKUP(BrewReport!$F$7,$H$1:$L$2,2,FALSE),\"$84\")))-MIN(ROW(INDIRECT(CONCATENATE(\"$\",HLOOKUP(BrewReport!$F$7,$H$1:$L$2,2,FALSE),\"$3:$\",HLOOKUP(BrewReport!$F$7,$H$1:$L$2,2,FALSE),\"$84\"))))+1), ROW(A68))),\"\")","v":""}]
["Boghvede / Buckwheat (1kg)","4 - 15","9","275","0","Malt og nøddeagtig smag. Glutenfri",{"$f":"IFERROR(VLOOKUP(Malt!$A70,BrewReport!$A$9:$D$18,4,FALSE),0)","v":0},null,{"$f":"G70*O17","v":0},{"$f":"G70*O13","v":0},null,{"$f":"G70*42","v":0},null,null,null,{"$f":"IFERROR(INDEX($A$3:$A$85, SMALL(IF(ISBLANK(INDIRECT(CONCATENATE(\"$\",HLOOKUP(BrewReport!$F$7,$H$1:$L$2,2,FALSE),\"$3:$\",HLOOKUP(BrewReport!$F$7,$H$1:$L$2,2,FALSE),\"$84\"))), \"\", ROW(INDIRECT(CONCATENATE(\"$\",HLOOKUP(BrewReport!$F$7,$H$1:$L$2,2,FALSE),\"$3:$\",HLOOKUP(BrewReport!$F$7,$H$1:$L$2,2,FALSE),\"$84\")))-MIN(ROW(INDIRECT(CONCATENATE(\"$\",HLOOKUP(BrewReport!$F$7,$H$1:$L$2,2,FALSE),\"$3:$\",HLOOKUP(BrewReport!$F$7,$H$1:$L$2,2,FALSE),\"$84\"))))+1), ROW(A69))),\"\")","v":""}]
["Acid / Sauer","6 - 12","9","220","0","Rund og stabil smag",{"$f":"IFERROR(VLOOKUP(Malt!$A71,BrewReport!$A$9:$D$18,4,FALSE),0)","v":0},{"$f":"G71*O10","v":0},{"$f":"G71*O18","v":0},{"$f":"G71*O9","v":0},{"$f":"G71*O7","v":0},{"$f":"G71*32","v":0},null,null,null,{"$f":"IFERROR(INDEX($A$3:$A$85, SMALL(IF(ISBLANK(INDIRECT(CONCATENATE(\"$\",HLOOKUP(BrewReport!$F$7,$H$1:$L$2,2,FALSE),\"$3:$\",HLOOKUP(BrewReport!$F$7,$H$1:$L$2,2,FALSE),\"$84\"))), \"\", ROW(INDIRECT(CONCATENATE(\"$\",HLOOKUP(BrewReport!$F$7,$H$1:$L$2,2,FALSE),\"$3:$\",HLOOKUP(BrewReport!$F$7,$H$1:$L$2,2,FALSE),\"$84\")))-MIN(ROW(INDIRECT(CONCATENATE(\"$\",HLOOKUP(BrewReport!$F$7,$H$1:$L$2,2,FALSE),\"$3:$\",HLOOKUP(BrewReport!$F$7,$H$1:$L$2,2,FALSE),\"$84\"))))+1), ROW(A70))),\"\")","v":""}]
["Chateau Diastatic","3,5 - 4,5","4","275","110","Enzymer. Hæver udbyttet",{"$f":"IFERROR(VLOOKUP(Malt!$A72,BrewReport!$A$9:$D$18,4,FALSE),0)","v":0},null,null,null,null,{"$f":"G72*O9","v":0},null,null,null,{"$f":"IFERROR(INDEX($A$3:$A$85, SMALL(IF(ISBLANK(INDIRECT(CONCATENATE(\"$\",HLOOKUP(BrewReport!$F$7,$H$1:$L$2,2,FALSE),\"$3:$\",HLOOKUP(BrewReport!$F$7,$H$1:$L$2,2,FALSE),\"$84\"))), \"\", ROW(INDIRECT(CONCATENATE(\"$\",HLOOKUP(BrewReport!$F$7,$H$1:$L$2,2,FALSE),\"$3:$\",HLOOKUP(BrewReport!$F$7,$H$1:$L$2,2,FALSE),\"$84\")))-MIN(ROW(INDIRECT(CONCATENATE(\"$\",HLOOKUP(BrewReport!$F$7,$H$1:$L$2,2,FALSE),\"$3:$\",HLOOKUP(BrewReport!$F$7,$H$1:$L$2,2,FALSE),\"$84\"))))+1), ROW(A71))),\"\")","v":""}]
["Abbey",45,45,"280","25","Stærkere smag af kogt brød, nødder og frugt",{"$f":"IFERROR(VLOOKUP(Malt!$A73,BrewReport!$A$9:$D$18,4,FALSE),0)","v":0},{"$f":"G73*O10","v":0},{"$f":"G73*O16","v":0},{"$f":"G73*O2","v":0},null,{"$f":"G73*O7","v":0},null,null,null,{"$f":"IFERROR(INDEX($A$3:$A$85, SMALL(IF(ISBLANK(INDIRECT(CONCATENATE(\"$\",HLOOKUP(BrewReport!$F$7,$H$1:$L$2,2,FALSE),\"$3:$\",HLOOKUP(BrewReport!$F$7,$H$1:$L$2,2,FALSE),\"$84\"))), \"\", ROW(INDIRECT(CONCATENATE(\"$\",HLOOKUP(BrewReport!$F$7,$H$1:$L$2,2,FALSE),\"$3:$\",HLOOKUP(BrewReport!$F$7,$H$1:$L$2,2,FALSE),\"$84\")))-MIN(ROW(INDIRECT(CONCATENATE(\"$\",HLOOKUP(BrewReport!$F$7,$H$1:$L$2,2,FALSE),\"$3:$\",HLOOKUP(BrewReport!$F$7,$H$1:$L$2,2,FALSE),\"$84\"))))+1), ROW(A72))),\"\")","v":""}]
["Peated / Røg","5 - 10","7","310","0",null,{"$f":"IFERROR(VLOOKUP(Malt!$A74,BrewReport!$A$9:$D$18,4,FALSE),0)","v":0},{"$f":"G74*O10","v":0},{"$f":"G74*O16","v":0},{"$f":"G74*O5","v":0},{"$f":"G74*O15","v":0},{"$f":"G74*O9","v":0},null,null,null,{"$f":"IFERROR(INDEX($A$3:$A$85, SMALL(IF(ISBLANK(INDIRECT(CONCATENATE(\"$\",HLOOKUP(BrewReport!$F$7,$H$1:$L$2,2,FALSE),\"$3:$\",HLOOKUP(BrewReport!$F$7,$H$1:$L$2,2,FALSE),\"$84\"))), \"\", ROW(INDIRECT(CONCATENATE(\"$\",HLOOKUP(BrewReport!$F$7,$H$1:$L$2,2,FALSE),\"$3:$\",HLOOKUP(BrewReport!$F$7,$H$1:$L$2,2,FALSE),\"$84\")))-MIN(ROW(INDIRECT(CONCATENATE(\"$\",HLOOKUP(BrewReport!$F$7,$H$1:$L$2,2,FALSE),\"$3:$\",HLOOKUP(BrewReport!$F$7,$H$1:$L$2,2,FALSE),\"$84\"))))+1), ROW(A73))),\"\")","v":""}]
["Oat","2 - 4","3","280","0","Brødsmag, blødhed og fylde. Husk at koge det inden mæskning.",{"$f":"IFERROR(VLOOKUP(Malt!$A75,BrewReport!$A$9:$D$18,4,FALSE),0)","v":0},null,{"$f":"G75*O16","v":0},null,null,null,null,null,null,{"$f":"IFERROR(INDEX($A$3:$A$85, SMALL(IF(ISBLANK(INDIRECT(CONCATENATE(\"$\",HLOOKUP(BrewReport!$F$7,$H$1:$L$2,2,FALSE),\"$3:$\",HLOOKUP(BrewReport!$F$7,$H$1:$L$2,2,FALSE),\"$84\"))), \"\", ROW(INDIRECT(CONCATENATE(\"$\",HLOOKUP(BrewReport!$F$7,$H$1:$L$2,2,FALSE),\"$3:$\",HLOOKUP(BrewReport!$F$7,$H$1:$L$2,2,FALSE),\"$84\")))-MIN(ROW(INDIRECT(CONCATENATE(\"$\",HLOOKUP(BrewReport!$F$7,$H$1:$L$2,2,FALSE),\"$3:$\",HLOOKUP(BrewReport!$F$7,$H$1:$L$2,2,FALSE),\"$84\"))))+1), ROW(A74))),\"\")","v":""}]
["Rye","4 - 10","7","240","90","Lidt rug smag og kompleksitet",{"$f":"IFERROR(VLOOKUP(Malt!$A76,BrewReport!$A$9:$D$18,4,FALSE),0)","v":0},null,{"$f":"G76*O16","v":0},{"$f":"G76*O8","v":0},null,{"$f":"G76*O10","v":0},null,null,null,{"$f":"IFERROR(INDEX($A$3:$A$85, SMALL(IF(ISBLANK(INDIRECT(CONCATENATE(\"$\",HLOOKUP(BrewReport!$F$7,$H$1:$L$2,2,FALSE),\"$3:$\",HLOOKUP(BrewReport!$F$7,$H$1:$L$2,2,FALSE),\"$84\"))), \"\", ROW(INDIRECT(CONCATENATE(\"$\",HLOOKUP(BrewReport!$F$7,$H$1:$L$2,2,FALSE),\"$3:$\",HLOOKUP(BrewReport!$F$7,$H$1:$L$2,2,FALSE),\"$84\")))-MIN(ROW(INDIRECT(CONCATENATE(\"$\",HLOOKUP(BrewReport!$F$7,$H$1:$L$2,2,FALSE),\"$3:$\",HLOOKUP(BrewReport!$F$7,$H$1:$L$2,2,FALSE),\"$84\"))))+1), ROW(A75))),\"\")","v":""}]
["Spelt","3 - 7","5","290","0","Sødlig nøddeagtig og krydret, jordagtig smag",{"$f":"IFERROR(VLOOKUP(Malt!$A77,BrewReport!$A$9:$D$18,4,FALSE),0)","v":0},{"$f":"G58*O15","v":0},{"$f":"G58*O16","v":0},{"$f":"G58*O16","v":0},null,null,null,null,null,{"$f":"IFERROR(INDEX($A$3:$A$85, SMALL(IF(ISBLANK(INDIRECT(CONCATENATE(\"$\",HLOOKUP(BrewReport!$F$7,$H$1:$L$2,2,FALSE),\"$3:$\",HLOOKUP(BrewReport!$F$7,$H$1:$L$2,2,FALSE),\"$84\"))), \"\", ROW(INDIRECT(CONCATENATE(\"$\",HLOOKUP(BrewReport!$F$7,$H$1:$L$2,2,FALSE),\"$3:$\",HLOOKUP(BrewReport!$F$7,$H$1:$L$2,2,FALSE),\"$84\")))-MIN(ROW(INDIRECT(CONCATENATE(\"$\",HLOOKUP(BrewReport!$F$7,$H$1:$L$2,2,FALSE),\"$3:$\",HLOOKUP(BrewReport!$F$7,$H$1:$L$2,2,FALSE),\"$84\"))))+1), ROW(A76))),\"\")","v":""}]
["Barley Chit","3 - 7",5,"270","0","Rig og tør kornagtig smag, Stabilt skum",{"$f":"IFERROR(VLOOKUP(Malt!$A78,BrewReport!$A$9:$D$18,4,FALSE),0)","v":0},null,null,null,null,{"$f":"G78*O12","v":0},null,null,null,{"$f":"IFERROR(INDEX($A$3:$A$85, SMALL(IF(ISBLANK(INDIRECT(CONCATENATE(\"$\",HLOOKUP(BrewReport!$F$7,$H$1:$L$2,2,FALSE),\"$3:$\",HLOOKUP(BrewReport!$F$7,$H$1:$L$2,2,FALSE),\"$84\"))), \"\", ROW(INDIRECT(CONCATENATE(\"$\",HLOOKUP(BrewReport!$F$7,$H$1:$L$2,2,FALSE),\"$3:$\",HLOOKUP(BrewReport!$F$7,$H$1:$L$2,2,FALSE),\"$84\")))-MIN(ROW(INDIRECT(CONCATENATE(\"$\",HLOOKUP(BrewReport!$F$7,$H$1:$L$2,2,FALSE),\"$3:$\",HLOOKUP(BrewReport!$F$7,$H$1:$L$2,2,FALSE),\"$84\"))))+1), ROW(A77))),\"\")","v":""}]
["Barley Flaked","3 - 7",5,270,"0","Rig og tør kornagtig smag, Stabilt skum",{"$f":"IFERROR(VLOOKUP(Malt!$A79,BrewReport!$A$9:$D$18,4,FALSE),0)","v":0},{"$f":"G79*O8","v":0},{"$f":"G79*O16","v":0},null,{"$f":"G79*O16","v":0},null,null,null,null,{"$f":"IFERROR(INDEX($A$3:$A$85, SMALL(IF(ISBLANK(INDIRECT(CONCATENATE(\"$\",HLOOKUP(BrewReport!$F$7,$H$1:$L$2,2,FALSE),\"$3:$\",HLOOKUP(BrewReport!$F$7,$H$1:$L$2,2,FALSE),\"$84\"))), \"\", ROW(INDIRECT(CONCATENATE(\"$\",HLOOKUP(BrewReport!$F$7,$H$1:$L$2,2,FALSE),\"$3:$\",HLOOKUP(BrewReport!$F$7,$H$1:$L$2,2,FALSE),\"$84\")))-MIN(ROW(INDIRECT(CONCATENATE(\"$\",HLOOKUP(BrewReport!$F$7,$H$1:$L$2,2,FALSE),\"$3:$\",HLOOKUP(BrewReport!$F$7,$H$1:$L$2,2,FALSE),\"$84\"))))+1), ROW(A78))),\"\")","v":""}]
["Torrefied Flaked Maize","1,5","1,5","310","0","Let smag",{"$f":"IFERROR(VLOOKUP(Malt!$A80,BrewReport!$A$9:$D$18,4,FALSE),0)","v":0},{"$f":"G80*O8","v":0},{"$f":"G80*O16","v":0},null,null,null,null,null,null,{"$f":"IFERROR(INDEX($A$3:$A$85, SMALL(IF(ISBLANK(INDIRECT(CONCATENATE(\"$\",HLOOKUP(BrewReport!$F$7,$H$1:$L$2,2,FALSE),\"$3:$\",HLOOKUP(BrewReport!$F$7,$H$1:$L$2,2,FALSE),\"$84\"))), \"\", ROW(INDIRECT(CONCATENATE(\"$\",HLOOKUP(BrewReport!$F$7,$H$1:$L$2,2,FALSE),\"$3:$\",HLOOKUP(BrewReport!$F$7,$H$1:$L$2,2,FALSE),\"$84\")))-MIN(ROW(INDIRECT(CONCATENATE(\"$\",HLOOKUP(BrewReport!$F$7,$H$1:$L$2,2,FALSE),\"$3:$\",HLOOKUP(BrewReport!$F$7,$H$1:$L$2,2,FALSE),\"$84\"))))+1), ROW(A79))),\"\")","v":""}]
["Oat Flaked","3 - 7",5,"280","0","Brødsmag, blødhed og fylde. Husk pause i mæskningen.",{"$f":"IFERROR(VLOOKUP(Malt!$A81,BrewReport!$A$9:$D$18,4,FALSE),0)","v":0},{"$f":"G81*O8","v":0},null,{"$f":"G81*O16","v":0},null,{"$f":"G81*32","v":0},null,null,null,{"$f":"IFERROR(INDEX($A$3:$A$85, SMALL(IF(ISBLANK(INDIRECT(CONCATENATE(\"$\",HLOOKUP(BrewReport!$F$7,$H$1:$L$2,2,FALSE),\"$3:$\",HLOOKUP(BrewReport!$F$7,$H$1:$L$2,2,FALSE),\"$84\"))), \"\", ROW(INDIRECT(CONCATENATE(\"$\",HLOOKUP(BrewReport!$F$7,$H$1:$L$2,2,FALSE),\"$3:$\",HLOOKUP(BrewReport!$F$7,$H$1:$L$2,2,FALSE),\"$84\")))-MIN(ROW(INDIRECT(CONCATENATE(\"$\",HLOOKUP(BrewReport!$F$7,$H$1:$L$2,2,FALSE),\"$3:$\",HLOOKUP(BrewReport!$F$7,$H$1:$L$2,2,FALSE),\"$84\"))))+1), ROW(A80))),\"\")","v":""}]
["Torrefied Flaked Oat","2,8 - 5","4","280","0","Forbedrer mundfylden og skummet",{"$f":"IFERROR(VLOOKUP(Malt!$A82,BrewReport!$A$9:$D$18,4,FALSE),0)","v":0.3},null,{"$f":"G82*O16","v":9},null,null,null,null,null,null,{"$f":"IFERROR(INDEX($A$3:$A$85, SMALL(IF(ISBLANK(INDIRECT(CONCATENATE(\"$\",HLOOKUP(BrewReport!$F$7,$H$1:$L$2,2,FALSE),\"$3:$\",HLOOKUP(BrewReport!$F$7,$H$1:$L$2,2,FALSE),\"$84\"))), \"\", ROW(INDIRECT(CONCATENATE(\"$\",HLOOKUP(BrewReport!$F$7,$H$1:$L$2,2,FALSE),\"$3:$\",HLOOKUP(BrewReport!$F$7,$H$1:$L$2,2,FALSE),\"$84\")))-MIN(ROW(INDIRECT(CONCATENATE(\"$\",HLOOKUP(BrewReport!$F$7,$H$1:$L$2,2,FALSE),\"$3:$\",HLOOKUP(BrewReport!$F$7,$H$1:$L$2,2,FALSE),\"$84\"))))+1), ROW(A81))),\"\")","v":""}]
["Wheat Flaked","3,0 - 7,0",5,"290","0","Stabilt skum",{"$f":"IFERROR(VLOOKUP(Malt!$A83,BrewReport!$A$9:$D$18,4,FALSE),0)","v":0},{"$f":"G83*O8","v":0},{"$f":"G83*O7","v":0},{"$f":"G83*O12","v":0},null,null,null,null,null,{"$f":"IFERROR(INDEX($A$3:$A$85, SMALL(IF(ISBLANK(INDIRECT(CONCATENATE(\"$\",HLOOKUP(BrewReport!$F$7,$H$1:$L$2,2,FALSE),\"$3:$\",HLOOKUP(BrewReport!$F$7,$H$1:$L$2,2,FALSE),\"$84\"))), \"\", ROW(INDIRECT(CONCATENATE(\"$\",HLOOKUP(BrewReport!$F$7,$H$1:$L$2,2,FALSE),\"$3:$\",HLOOKUP(BrewReport!$F$7,$H$1:$L$2,2,FALSE),\"$84\")))-MIN(ROW(INDIRECT(CONCATENATE(\"$\",HLOOKUP(BrewReport!$F$7,$H$1:$L$2,2,FALSE),\"$3:$\",HLOOKUP(BrewReport!$F$7,$H$1:$L$2,2,FALSE),\"$84\"))))+1), ROW(A82))),\"\")","v":""}]
["Torrefied Flaked Rice","0","0","270","0","Masser af stivelse, øger alkohol%",{"$f":"IFERROR(VLOOKUP(Malt!$A84,BrewReport!$A$9:$D$18,4,FALSE),0)","v":0},{"$f":"G84*O8","v":0},{"$f":"G84*O16","v":0},{"$f":"G84*38","v":0},{"$f":"G84*O7","v":0},null,null,null,null,{"$f":"IFERROR(INDEX($A$3:$A$85, SMALL(IF(ISBLANK(INDIRECT(CONCATENATE(\"$\",HLOOKUP(BrewReport!$F$7,$H$1:$L$2,2,FALSE),\"$3:$\",HLOOKUP(BrewReport!$F$7,$H$1:$L$2,2,FALSE),\"$84\"))), \"\", ROW(INDIRECT(CONCATENATE(\"$\",HLOOKUP(BrewReport!$F$7,$H$1:$L$2,2,FALSE),\"$3:$\",HLOOKUP(BrewReport!$F$7,$H$1:$L$2,2,FALSE),\"$84\")))-MIN(ROW(INDIRECT(CONCATENATE(\"$\",HLOOKUP(BrewReport!$F$7,$H$1:$L$2,2,FALSE),\"$3:$\",HLOOKUP(BrewReport!$F$7,$H$1:$L$2,2,FALSE),\"$84\"))))+1), ROW(A83))),\"\")","v":""}]
["Whisky            30 - 45 ppm","2,5 - 4,5","3,5","300","0","Tørv- og røgsmag",{"$f":"IFERROR(VLOOKUP(Malt!$A85,BrewReport!$A$9:$D$18,4,FALSE),0)","v":0},null,{"$f":"G85*O16","v":0},{"$f":"G85*O7","v":0}]
["Ialt",null,null,null,null,null,{"$f":"SUM(G3:G85)","v":0.3},0,9,0,0,0]
["Valsning og håndtering",null,null,null,null,null,null,28,0,20,{"$f":"2 * (G87/1000)","v":0},25]
["Forsendelse uden omdeling (Post dk) (<=10kg)","Tast 1 for at vælge fragt >",null,1,null,null,null,{"$f":"IF(D88=1,59,0)","v":59},{"$f":"IF(D88=1,30,0)","v":30},{"$f":"IF(D88=1,55,0)","v":55},{"$f":"IF(D88=1,49,0)","v":49},{"$f":"IF(D88=1,60,0)","v":60}]
["Ialt",null,null,null,null,null,null,{"$f":"SUM(H86:H88)","v":87},{"$f":"SUM(I86:I88)","v":39},75,49,85]

{"sheet":"Malt Data","index":6,"n_rows":99,"n_cols":8,"rows_kept":99,"cut":false,"hidden":false,"merged":[[0,0,0,1],[0,2,0,7]]}
["GRAINS CHART",null,"Here's a composite list of grains. The color is listed in degrees Lovibond and the gravity is calculated from 1 pound of the ingredient in 1 gallon of water."]
["American Grains","Malt","°Lovibond","EBC","Gravity","Yield","Ekstraktudbytte","Description"]
[null,"Black Barley","525 - 525°","1399 - 1399","1.023 - 1.027","49,7 - 58,4%",{"$f":"IFERROR(((ROUND(((((((MID(E3,4,2)+RIGHT(E3,2))/2)*3.785)/453)*1000)/10),0))*10),0)","v":210},"Imparts dryness. Unmalted; use in porters and dry stouts."]
[null,"Black Patent","500 - 500°","1334 - 1334","1.026 - 1.026","56,2 - 56,2%",220,"Provides color and sharp flavor in stouts and porters."]
[null,"Chocolate","350 - 350°","932 - 932","1.034 - 1.034","73,5 - 73,5%",280,"Use in all types to adjust color and add nutty, toasted flavor. Chocolate flavor."]
[null,"Crystal","10 - 10°","26 - 26","1.033 - 1.035","71,4 - 75,7%",280,"Sweet, mild caramel flavor and a golden color. Use in light lagers and light ales."]
[null,"Crystal","20 - 20°","51 - 51","1.033 - 1.035","71,4 - 75,7%",280,"Sweet, mild caramel flavor and a golden color. Use in light lagers and light ales."]
[null,"Crystal","30 - 30°","79 - 79","1.033 - 1.035","71,4 - 75,7%",280,"Sweet, mild caramel flavor and a golden color. Use in light lagers and light ales."]
[null,"Crystal","40 - 40°","104 - 104","1.033 - 1.035","71,4 - 75,7%",280,"Sweet, mild caramel flavor and a golden color. Use in light lagers and light ales."]
[null,"Crystal","60 - 60°","160 - 160","1.033 - 1.035","71,4 - 75,7%",280,"Sweet caramel flavor, deep golden to red color. For dark amber and brown ales."]
[null,"Crystal","80 - 80°","213 - 213","1.033 - 1.035","71,4 - 75,7%",280,"Sweet, smooth caramel flavor and a red to deep red color. For porters, old ales."]
[null,"Crystal","90 - 90°","238 - 238","1.033 - 1.035","71,4 - 75,7%",280,"Pronounced caramel flavor and a red color. For stouts, porters and black beers."]
[null,"Crystal","120 - 120°","319 - 319","1.033 - 1.035","71,4 - 75,7%",280,"Pronounced caramel flavor and a red color. For stouts, porters and black beers."]
[null,"Dextrin (carapils)","1.5 - 1.5°","2 - 2","1.033 - 1.033","71,4 - 71,4%",280,"Balances body and flavor without adding color, aids in head retention. For any beer."]
[null,"Munich","10 - 10°","26 - 26","1.034 - 1.034","73,5 - 73,5%",280,"Sweet, toasted flavor and aroma. For Oktoberfests and malty styles."]
[null,"Pale (Brewers 2-row)","1.8 - 1.8°","4 - 4","1.037 - 1.038","80,0 - 82,2%",310,"Smooth, less grainy, moderate malt flavor. Basic malt for all beer styles."]
[null,"Pale (Brewers 6-row)","1.8 - 1.8°","4 - 4","1.035 - 1.035","75,7 - 75,7%",290,"Moderate malt flavor. Basic malt for all beer styles."]
[null,"Roasted Barley","300 - 300°","800 - 800","1.025 - 1.025","54,1 - 54,1%",210,"Sweet, grainy, coffee flavor and a red to deep brown color. For porters and stouts."]
[null,"Special Roast","50 - 50°","132 - 132","1.035 - 1.035","75,7 - 75,7%",290,"Provides a deep golden to brown color for ales. Use in all darker ales."]
[null,"Victory","25 - 25°","65 - 65","1.034 - 1.034","73,5 - 73,5%",280,"Provides a deep golden to brown color. Use in nut brown ales, IPAs and Scottish ales."]
[null,"Vienna","3.5 - 4°","8 - 10","1.035 - 1.035","75,7 - 75,7%",290,"Increases malty flavor, provides balance. Use in Vienna, Märzen and Oktoberfest."]
[null,"Wheat","2 - 2°","4 - 4","1.038 - 1.038","82,2 - 82,2%",320,"Light flavor and creamy head. For American weizenbier, weissbier and dunkelweiss."]
[null,"White Wheat","2 - 2°","4 - 4","1.037 - 1.037","80,0 - 80,0%",310,"Imparts a malty flavor. For American wheat beers, wheat bock and doppel bock."]
[]
["Belgian Grains","Malt","°Lovibond","EBC","Gravity","Yield","Ekstraktudbytte","Description"]
[null,"Aromatic","20 - 26°","51 - 67","1.036 - 1.036","77,9 - 77,9%",{"$f":"IFERROR(((ROUND(((((((MID(E26,4,2)+RIGHT(E26,2))/2)*3.785)/453)*1000)/10),0))*10),0)","v":300},"Imparts a big malt aroma. Use in brown ales, Belgian dubbels and tripels."]
[null,"Belgian Pale Ale","2.7 - 3.8°","6 - 8","1.038 - 1.038","82,2 - 82,2%",320,"Use as a base malt for any Belgian style beer with full body."]
[null,"Biscuit","23 - 25°","59 - 65","1.035 - 1.035","75,7 - 75,7%",290,"Warm baked biscuit flavor and aroma. Increases body. Use in Belgian beers."]
[null,"Caramel Pils","6 - 9°","14 - 22","1.030 - 1.030","64,9 - 64,9%",250,"A very light crystal malt that lends body, smoother mouth-feel and foam stability."]
[null,"Caramunich","56 - 56°","148 - 148","1.033 - 1.033","71,4 - 71,4%",280,"Caramel, full flavor, copper color. For Belgian ales, German smoked and bocks."]
[null,"Caravienne","21 - 22°","55 - 57","1.034 - 1.034","73,5 - 73,5%",280,"Belgian light crystal malt. Used in lighter Abbey or Trappist style ales."]
[null,"Chocolate","300 - 380°","800 - 1013","1.030 - 1.030","64,9 - 64,9%",250,"Will add a deep red color and nutty/roasted taste."]
[null,"De-Bittered Black","500 - 600°","1334 - 1600","1.030 - 1.030","64,9 - 64,9%",250,"Will add a deep black color without the astringent flavor of black malt."]
[null,"Pale Wheat","1.2 - 2°","2 - 4","1.038 - 1.038","82,2 - 82,2%",320,"Can be used in amounts of up to 70% of grist to create many wheat beer styles and aid in head retention in smaller amounts."]
[null,"Pilsen","1.5 - 1.5°","2 - 2","1.037 - 1.037","80,0 - 80,0%",310,"Light color, malty flavor. For pilsners, dubbels, tripels, whites and specialty ales."]
[null,"Roasted Wheat","10 - 14°","26 - 35","1.036 - 1.036","77,9 - 77,9%",300,"Slightly roasted wheat which imparts a bready, nut-like quality."]
[null,"Special B","130 - 220°","345 - 585","1.030 - 1.030","64,9 - 64,9%",250,"Extreme caramel aroma and flavor. For dark Abbey beers and other dark beers."]
[]
["British Grains","Malt","°Lovibond","EBC","Gravity","Yield","Ekstraktudbytte","Description"]
[null,"Amber","35 - 35°","93 - 93","1.032 - 1.032","69,2 - 69,2%",{"$f":"IFERROR(((ROUND(((((((MID(E40,4,2)+RIGHT(E40,2))/2)*3.785)/453)*1000)/10),0))*10),0)","v":270},"Roasted malt used in British milds, old ales, brown ales, nut brown ales."]
[null,"Amber","65 - 65°","171 - 171","1.032 - 1.032","69,2 - 69,2%",270,"Imparts a dry, biscuit flavor. Use in porters, brown, nut brown and Belgian ales."]
[null,"Black Patent","500 - 600°","1334 - 1600","1.026 - 1.026","56,2 - 56,2%",220,"Dry, burnt, chalky character. Use in porters, stouts, brown ales and dark lagers."]
[null,"Brown","65 - 65°","171 - 171","1.032 - 1.032","69,2 - 69,2%",270,"Imparts a dry, biscuit flavor. Use in porters, brown, nut brown and Belgian ales."]
[null,"Cara-Pils Dextrin","10 - 14°","26 - 35","1.033 - 1.033","71,4 - 71,4%",280,"Adds body; aids head retention. For porters, stouts and heavier bodied beers."]
[null,"Caramalt","30 - 37°","79 - 97"," - ","-",0,"Made from green malt, imparts a red hue and contributes to flavor and foam stability."]
[null,"Chocolate","395 - 475°","1052 - 1267","1.034 - 1.034","73,5 - 73,5%",280,"Nutty, toasted flavor, brown color. Use in brown ales, porters, stouts and bocks."]
[null,"Crystal","55 - 60°","146 - 160","1.033 - 1.035","71,4 - 75,7%",280,"Sweet caramel flavor, adds mouthfeel and head retention. For pale or amber ales."]
[null,"Dark Crystal","145 - 188°","386 - 500","1.033 - 1.035","71,4 - 75,7%",280,"Sweet caramel flavor, mouthfeel. For porters, stouts, old ales and any dark ale."]
[null,"Lager","1.6 - 1.6°","2 - 2","1.038 - 1.038","82,2 - 82,2%",320,"Used to make light colored and flavored lagers."]
[null,"Maris Otter Pale","3 - 3°","6 - 6","1.038 - 1.038","82,2 - 82,2%",320,"Premium base malt for any beer. Good for pale ales."]
[null,"Mild Ale","2.3 - 2.7°","4 - 6","1.037 - 1.037","80,0 - 80,0%",310,"Dry, nutty malty flavor. Promotes body. Use in English mild ales."]
[null,"Oat","4 - 4°","10 - 10","1.034 - 1.034","73,5 - 73,5%",280,"Enhances body and flavor. For winter beers, stouts, porters and other robust beers."]
[null,"Pale Ale","2.2 - 2.2°","4 - 4","1.038 - 1.038","82,2 - 82,2%",320,"Moderate malt flavor. Used to produce traditional English and Scottish style ales."]
[null,"Pale Chocolate","180 - 250°","479 - 666","1.034 - 1.034","73,5 - 73,5%",280,"Less roasted than regular chocolate malt, adds color and mild chocolate/coffee flavors to porters, milds & stouts."]
[null,"Peat Smoked","2.8 - 2.8°","6 - 6","1.034 - 1.034","73,5 - 73,5%",280,"Imparts a robust smoky flavor and aroma. For Scottish ales and wee heavies."]
[null,"Roasted Barley","500 - 500°","1334 - 1334","1.025 - 1.025","54,1 - 54,1%",210,"Dry, roasted flavor, amber color. For stouts, porters and Scottish ales."]
[null,"Toasted Pale","25 - 25°","65 - 65","1.038 - 1.038","82,2 - 82,2%",320,"Imparts nutty flavor and aroma. Use in IPAs and Scottish ales."]
[null,"Torrified Wheat","1 - 1.5°","2 - 2","1.036 - 1.036","77,9 - 77,9%",300,"Puffed wheat created by high heat. Use in pale ales, bitters and milds."]
[null,"Wheat","2 - 2°","4 - 4","1.038 - 1.038","82,2 - 82,2%",320,"Light flavor, creamy head. For wheat beers, stouts, doppelbocks and alt beers."]
[]
["German Grains","Malt","°Lovibond","EBC","Gravity","Yield","Ekstraktudbytte","Description"]
[null,"Acidulated (Sauer)","1.7 - 2.8°","4 - 6","1.033 - 1.033","71,4 - 71,4%",{"$f":"IFERROR(((ROUND(((((((MID(E62,4,2)+RIGHT(E62,2))/2)*3.785)/453)*1000)/10),0))*10),0)","v":280},"High lactic acid. For lambics, sour mash beers, Irish stout, pilsners and wheats."]
[null,"Cara Wheat®","38 - 53°","100 - 140","1.035 - 1.035","75,7 - 75,7%",290,"For dark ales, hefeweizen, dunkelweizen, wheat bocks and double bocks."]
[null,"CaraAmber® (crystal)","23 - 31°","59 - 81","1.033 - 1.033","71,4 - 71,4%",280,"Adds aroma and color intensity to darker beers. For use in alts, bocks, stouts and porters."]
[null,"CaraAroma® (crystal)","130 - 170°","345 - 453","1.034 - 1.034","73,5 - 73,5%",280,"Imparts a deep red color, adds body and malt aroma. For use in bocks, porters, stouts and ambers."]
[null,"Carafa I ®","300 - 340°","800 - 906","1.038 - 1.038","82,2 - 82,2%",320,"Gives deep aroma and color to dark beers, bocks, stout, alt and schwarzbier."]
[null,"Carafa II ®","375 - 450°","999 - 1200","1.038 - 1.038","82,2 - 82,2%",320,"Carafa I, II and III also are available de-husked. Adds aroma, color and body."]
[null,"Carafa III ®","490 - 560°","1306 - 1493","1.038 - 1.038","82,2 - 82,2%",320]
[null,"CaraFoam® (crystal)","1.3 - 2.3°","2 - 4","1.033 - 1.033","71,4 - 71,4%",280,"Improves head retention and body."]
[null,"CaraHell® (crystal)","8 - 12°","20 - 30","1.033 - 1.035","71,4 - 75,7%",280,"For light colored beer for body; hefeweizen, pale ale, golden ale, Oktoberfest."]
[null,"CaraMunich I ®","30 - 38°","79 - 100","1.033 - 1.035","71,4 - 75,7%",280,"Provides body. For Oktoberfest, bock, porter, stout, red, amber and brown ales."]
[null,"CaraMunich II ®","42 - 50°","110 - 132","1.033 - 1.035","71,4 - 75,7%",280]
[null,"CaraMunich III ®","53 - 60°","140 - 160","1.033 - 1.035","71,4 - 75,7%",280,"CaraMunich Malt III is dark crystal."]
[null,"CaraRed® (crystal)","15 - 20°","39 - 51","1.033 - 1.033","71,4 - 71,4%",280,"Provides body and a deep red color for use in red ales, lagers, Scottish ales and alts."]
[null,"Chocolate Rye","190 - 300°","506 - 800","1.030 - 1.030","64,9 - 64,9%",250,"Enhances aroma of dark ales and improves color. For dunkel rye wheat and ale."]
[null,"Chocolate Wheat","375 - 450°","999 - 1200","1.038 - 1.038","82,2 - 82,2%",320,"Intensifies aroma; improves color. For dark ales, alt, dark wheat, stout and porter."]
[null,"Dark Munich","8 - 10°","20 - 26","1.034 - 1.034","73,5 - 73,5%",280,"Enhances body and aroma. Stout, schwarzbier, brown ale, dark and amber ales."]
[null,"Kölsch","4.5 - 4.5°","10 - 10","1.034 - 1.034","73,5 - 73,5%",280,"Traditionally for Kölsch-style beers, can be used in a variety of German and American styled beers. Adds a light, sweet, biscuity flavor."]
[null,"Light Munich","5 - 6°","12 - 14","1.034 - 1.034","73,5 - 73,5%",280,"For a desired malty, nutty flavor. Lagers, Oktoberfests and bock beer."]
[null,"Melanoidin","23 - 31°","59 - 81","1.033 - 1.033","71,4 - 71,4%",280,"For amber lagers and ales, dark lagers and ales, Scottish & red ales."]
[null,"Rauch Smoked","2 - 4°","4 - 10","1.037 - 1.037","80,0 - 80,0%",310,"For rauchbier, kellerbier, smoked porters, Scottish ales and barleywines."]
[null,"Rye","2.8 - 4.3°","6 - 10","1.029 - 1.029","62,7 - 62,7%",240,"Dry character. Can use as a base malt. For seasonal beers, roggenbier and ales."]
[null,"Vienna","3.2 - 3.9°","8 - 10","1.035 - 1.035","75,7 - 75,7%",290,"European lager malt kilned slightly more than Pilsner malt. Full bodied, golden color."]
[null,"Wheat Dark","6 - 8°","14 - 20","1.039 - 1.039","84,3 - 84,3%",330]
[null,"Wheat Light","1.5 - 2°","2 - 4","1.039 - 1.039","84,3 - 84,3%",330,"Typical top fermented aroma, produces superb wheat beers."]
[]
["Other malts and Additions","Malt","°Lovibond","EBC","Gravity","Yield","Ekstraktudbytte","Description"]
[null,"Flaked Barley","1.5 - 1.5°","2 - 2","1.032 - 1.032","69,2 - 69,2%",{"$f":"IFERROR(((ROUND(((((((MID(E88,4,2)+RIGHT(E88,2))/2)*3.785)/453)*1000)/10),0))*10),0)","v":270},"Helps head retention, imparts creamy smoothness. For porters and stouts."]
[null,"Flaked Maize","1 - 1°","2 - 2","1.037 - 1.037","80,0 - 80,0%",310,"Lightens body and color. For light American pilsners and ales."]
[null,"Flaked Oats","1 - 1°","2 - 2","1.033 - 1.033","71,4 - 71,4%",280,"Adds body and creamy head. For stouts and oat ales."]
[null,"Flaked Rye","2 - 2°","4 - 4","1.036 - 1.036","77,9 - 77,9%",300,"Imparts a dry, crisp character. Use in rye beers."]
[null,"Flaked Wheat","2 - 2°","4 - 4","1.036 - 1.036","77,9 - 77,9%",300,"Imparts a wheat flavor, hazy color. For wheat and Belgian white beers."]
[null,"Franco-Belges Kiln Coffee","150 - 180°","398 - 479"," - ","-",0,"A unique malt which imparts a coffee flavor."]
[null,"Gambrinus Honey","25 - 25°","65 - 65","1.034 - 1.034","73,5 - 73,5%",280,"Nutty honey flavor. For brown ales, Belgian wheats, bocks and many other styles."]
[null,"Grits","1 - 1.5°","2 - 2","1.037 - 1.037","80,0 - 80,0%",310,"Imparts a corn/grain taste. Use in American lagers."]
[null,"Irish Moss","-",0," - ","-",0,"Prevents chill haze. Use in all beers except cloudy wheat and white beers."]
[null,"Malto Dextrin","-",0,"1.043 - 1.043","93,0 - 93,0%",360,"Adds body and mouthfeel. For all extract beers. Does not ferment."]
[null,"Oak Chips","-",0," - ","-",0,"Creates cask-conditioned flavor and aroma. Use in IPAs, Belgian ales and Scottish ales."]
[null,"Scotmalt Golden Promise","2.4 - 2.4°","4 - 4","1.038 - 1.038","82,2 - 82,2%",320,"Scottish pale ale malt; base malt for all Scottish beers."]

{"sheet":"Malt X-ref.","index":7,"n_rows":40,"n_cols":11,"rows_kept":40,"cut":false,"hidden":false,"merged":[[1,1,1,10]]}
[]
[null,"Malt X-reference - se Malt karakteristik nedenfor"]
[null,"WEYERMANN","Castle Malting","MUNTONS",null,"BRIESS","FAWCETT","BAIRDS","CRISP","GAMBRINUS","DINGEMANS"]
[null,"(German)","(Belgian)","(British)",null,"(American)","(British)","(British)","(British)","(Canadian)","(Belgian)"]
[null,"Bohemian Pilsner","Pilsner","Lager",null,"Pilsner","Lager",null,"Lager",null,"Pilsen"]
[null,"Pale","Pale Ale","Pale",null,"Brewers 2-Row","Pale Ale","Pale Ale","Pale","Pale","Pale Ale"]
[null,null,"Maris Otter Ale","Maris Otter",null,null,"Maris Otter",null,null,"ESB"]
[null,"Vienna","Vienna","Mild",null,"Vienna","Vienna","Vienna","Ashburne/Vienna"]
[null,"Abbey","Abbey"]
[null,"Munich Type I, Light","Munich Light",null,null,"Bonlander",null,null,null,null,"Munich"]
[null,"Munich Type II, Dark","Munich",null,null,"Munich 10L",null,null,null,"Munich 10L"]
[null,"Carafoam/Dextrin",null,"Caramalt",null,"Carapils/Dextrin","Caramalt",null,"Carapils",null,"Cara 8/Carapils"]
[null,"Melanoidin","Melanoidin/ Melano",null,null,"Victory","Amber",null,"Amber",null,"Aromatic/Biscuit"]
[null,"CaraHell","Cara Blond","Carapils",null,"Crystal 10L"]
[null,"CaraBelge","Melano Light",null,null,null,null,"Light Carastan (10-15L)"]
[null,"CaraRed","Cara Ruby",null,null,"Crystal 20L",null,null,null,null,"Cara 20/CaraVienne"]
[null,"CaraAmber","Aroma",null,null,"Victory",null,null,null,"Munich 30","Biscuit"]
[null,null,null,null,null,"Crystal 30L","Pale Crystal","Carastan"]
[null,"CaraMunich I","Cara Gold",null,null,"Crystal 40L","Crystal Malt (40 - 50)",null,null,null,"Cara 45"]
[null,"CaraMunich II","Cara Gold","Medium Crystal"]
[null,"CaraMunich III","Café Light",null,null,"Crystal 60L","Crystal Malt II (60 - 70)"]
[null,"CaraBohemian",null,null,null,"Crystal 80L","Dark Crystal (85 - 95)","Crystal"]
[null,null,null,null,null,"Crystal 90L"]
[null,"CaraAroma","Café","Dark Crystal",null,"Crystal 120L","Dark Crystal II (118 - 124)","Dark Crystal"]
[null,null,null,null,null,"Special Roast","Brown Malt","Brown Malt"]
[null,null,null,null,null,"Extra Special Roast",null,null,null,null,"Special B"]
[null,"Carafa I, dehusked","Chocolate",null,null,null,"Pale Chocolate"]
[null,"Carafa II, dehusked","Black","Chocolate",null,"Chocolate","Chocolate","Chocolate","Chocolate",null,"Chocolate"]
[null,"Carafa III, dehusked","Black","Black Patent",null,"Black Patent","Black Malt","Black Malt","Black","De-Bittered Black"]
[null,"Roasted Barley","Roasted Barley","Roasted Barley",null,"Roasted Barley","Roasted Barley","Roasted Barley"]
[null,"Chocolate Wheat",null,null,null,null,"Roasted Wheat",null,null,null,"Roasted Wheat"]
[null,"Pale Wheat, Light","Wheat","Wheat",null,"Wheat","Wheat",null,"Wheat",null,"Pale Wheat"]
[null,"Dark Wheat","Munich Wheat"]
[null,"Caramel Wheat",null,null,null,null,"Crystal Wheat"]
[null,"Chocolate Rye"]
[null,"Rye Malt",null,null,null,"Rye Malt","Rye Malt"]
[null,"Caramel Rye"]
[null,null,null,null,null,null,null,null,null,"Honey"]
[null,"Acidulated Malt","Acid"]
[null,"Smoked Malt, Beechwood","Smoked",null,null,null,"Peated Malt (Peat Smoked)"]

{"sheet":"Humle","index":8,"n_rows":80,"n_cols":26,"rows_kept":80,"cut":false,"hidden":false,"merged":[[34,14,34,23],[34,24,34,34],[3,15,3,25],[32,14,32,20],[0,8,1,8],[0,17,1,25],[0,14,1,16],[3,14,4,14],[32,21,32,28]]}
["Humletyper","Alfa Range %","IBU Avg.",null,"Beta Range %","Co-humulione %","Usage","Min. orders","Pris i kr. \npr. gram","Description","Used in","Characteristics","Substitutes",null,"Glenn Tinseth's website",null,null,"Decimal Alpha Acid Utilization vs. Boil Time and Wort Original Gravity"]
[null,null,"Pellet","Blomst",null,null,"B/A","1 or 100 grams"]
["Admiral","13,0 - 16,0",14.6,null,"4,0 - 6,0","37 - 45","B",100,0.4,"High alpha bittering hops. From Horticulture Research International,Wye College, Kent, England. It is a descendant of Northdown and Challenger","ESB, IPAs, Ales and Bitter","Discrete pine and fresh herbal character mixed with delicate citrus. ",{"$f":"VLOOKUP(A3,'Humle X-ref.'!$A$2:$D$141,4,FALSE)","v":"Target, Challenger"}]
["Ahtanum","3,5 - 6,5",null,null,"4,0 - 6,0","30 - 34","A",null,null,"This hop is used for its aromatic properties and moderate bittering. It has aromas that are citrus (grapefruit), earthy, and floral. ","American Style ales","Specific aroma descriptors include citrus grapefruit and geranium.",{"$f":"VLOOKUP(A4,'Humle X-ref.'!$A$2:$D$141,4,FALSE)","v":"Cascade, Amarillo"},null,"Boil Time (min)","Original Gravity"]
["Amarillo","8,0 - 11,0",9.1,null,"6,0 - 7,0","21 - 24","BA",1,0.6,"Unknown origin, but character similar to Cascade. Used for both bitterness and aroma","IPAs, Ales","Floral, tropical, and citrus (lemon, orange and grapefruit)",{"$f":"VLOOKUP(A5,'Humle X-ref.'!$A$2:$D$141,4,FALSE)","v":"Cascade, Centennial, Citra, Simcoe"},null,null,1.03,1.04,1.05,1.06,1.07,1.08,1.0900000000000001,1.1000000000000001,1.1100000000000001,1.1200000000000001,1.1299999999999999]
["Azacca","14 - 16",null,null,"4,0 - 5,5","38 - 45","BA",null,null,"Descended directly from Toyomidori, its greater parentage also includes Summit™ and Northern Brewer. Azacca is considered by many brewers as being well suited to IPAs.","American IPAs","Aromas of tropical fruits and citrus. Tasting notes of spicy mango, pineapple, tangerine and pine.",{"$f":"VLOOKUP(A6,'Humle X-ref.'!$A$2:$D$141,4,FALSE)","v":"Centennial"},null,0,0,0,0,0,0,0,0,0,0,0,0]
["Barbe Rouge","8 - 9",9.1,null,3.6,"42,1 - 42,2","BA",100,0.5,"Developed as part of the varietal research program in Alsace, France. It has parentage in Strisselspalt.","Belgian Ales, Saisons, Pale Ales","It has a very pronounced red fruit aroma with strawberry and cherry being main notes of the character.",{"$f":"VLOOKUP(A7,'Humle X-ref.'!$A$2:$D$141,4,FALSE)","v":"Ingen"},null,3,3.4000000000000002E-2,3.1E-2,2.9000000000000001E-2,2.5999999999999999E-2,2.4E-2,2.1999999999999999E-2,0.02,1.7999999999999999E-2,1.7000000000000001E-2,1.4999999999999999E-2,1.4E-2]
["Boadicea","7 - 10",5.3,null,"3 - 4",26,"A",100,0.4,"Boadicea was the world’s first aphid resistant variety and as such is the most environmentally friendly hop available. Boadicea was released in 2004 by Horticulture Research International (HRI) at Wye College in the UK from ‘open crossing’ of aphid resistant hedgerow varieties.","Lager","Spicy, light, floral. Boadicea is an unusual hedgerow hop and is excellent for finishing and dry hopping. Boadicea's bittering characteristics are light bodied and rounded.",{"$f":"VLOOKUP(A8,'Humle X-ref.'!$A$2:$D$141,4,FALSE)","v":"Challenger, Sovereign, Golding"},null,6,6.5000000000000002E-2,5.8999999999999997E-2,5.3999999999999999E-2,4.9000000000000002E-2,4.4999999999999998E-2,4.1000000000000002E-2,3.7999999999999999E-2,3.5000000000000003E-2,3.2000000000000001E-2,2.9000000000000001E-2,2.5999999999999999E-2]
["Bouclier","5,2 - 9",4.9000000000000004,null,"2,4 - 3,3","20 - 25","BA",100,0.4,"Emerging in 2005, Bouclier is a cross between Alsace-grown Strisselspalt and a wild male from Wye, Kent. It is unclear however if this variety was first developed in the UK or across the Channel in France.","English Ales, Pale Ale, Lager, Imperial Stout, Saison, Blonde","The aroma of the cones is herby and grassy with a sniff of spice. In a brew, Bouclier extracts a citrusy and floral character – great for adding a French kiss to traditional English styles",{"$f":"VLOOKUP(A9,'Humle X-ref.'!$A$2:$D$141,4,FALSE)","v":"Tettnanger, Spalt Select, Tradition"},null,9,9.1999999999999998E-2,8.4000000000000005E-2,7.6999999999999999E-2,7.0000000000000007E-2,6.4000000000000001E-2,5.8999999999999997E-2,5.3999999999999999E-2,4.9000000000000002E-2,4.4999999999999998E-2,4.1000000000000002E-2,3.6999999999999998E-2]
["Bramling Cross","5,0 - 7,8",6,null,"2,3 - 3,5",34,"A",1,0.4,"Developed in 1927 from commercial Goldings and wild hop variety.","ESB, Bitters, Pale Ale","Mild, fruity, currant aroma.",{"$f":"VLOOKUP(A10,'Humle X-ref.'!$A$2:$D$141,4,FALSE)","v":"East Kent Goldings, Brewer’s Gold, Willamette, WGV"},null,12,0.11600000000000001,0.106,9.7000000000000003E-2,8.7999999999999995E-2,8.1000000000000003E-2,7.3999999999999996E-2,6.8000000000000005E-2,6.2E-2,5.6000000000000001E-2,5.1999999999999998E-2,4.7E-2]
["Bravo","14 - 17",13.9,null,"3 - 5","29 - 34","B",100,0.5,"Developed as part of the Hopsteiner Breeding Program, Bravo hops were released to the public in 2006 as a high-yielding and vigorous late-season hop with a high alpha profile and balanced oils.","India Pale Ale, American Pale Ale, Extra Special Bitter","Spicy, earthy, and lightly floral aroma",{"$f":"VLOOKUP(A11,'Humle X-ref.'!$A$2:$D$141,4,FALSE)","v":"Warrior - Columbus, Zeus, Apollo, Magnum, Nugget"},null,15,0.13700000000000001,0.125,0.114,0.105,9.6000000000000002E-2,8.6999999999999994E-2,0.08,7.2999999999999995E-2,6.7000000000000004E-2,6.0999999999999999E-2,5.6000000000000001E-2]
["Brewer’s Gold","5,5 - 10,0",6.8,null,"3,5 - 4,5","37 - 40","B",1,0.4,"Traditional bittering hop. An English variety and sibling of Bullion","English ales and heavy German lagers.","Spicy, fruity characteristics, black currant",{"$f":"VLOOKUP(A12,'Humle X-ref.'!$A$2:$D$141,4,FALSE)","v":"Bullion, Galena, Pacific Gem, Northern Brewer, North Down, Pioneer"},null,18,0.156,0.14199999999999999,0.13,0.11899999999999999,0.109,9.9000000000000005E-2,9.0999999999999998E-2,8.3000000000000004E-2,7.5999999999999998E-2,6.9000000000000006E-2,6.3E-2]
["Callista","2 - 5",10,null,"5 - 10","15 - 22","A",100,0.4,"Released in Spring of 2016, Callista is a larger cone aromatic hop with classic noble characteristics and smooth hoppy notes.","Very versatile in many styles of beer","Pleasant, hoppy fruity, and red berries - Apricots, Blackberries and Raspberries",{"$f":"VLOOKUP(A13,'Humle X-ref.'!$A$2:$D$141,4,FALSE)","v":"Hüll Melon, Mandarina Bavaria, Hallertau Blanc"},null,21,0.17299999999999999,0.158,0.14399999999999999,0.13200000000000001,0.12,0.11,0.10100000000000001,9.1999999999999998E-2,8.4000000000000005E-2,7.6999999999999999E-2,7.0000000000000007E-2]
["Calypso","12,0 - 14,0",14.6,null,"5,0 - 6,0","40 - 42","BA",1,0.5,"Calypso is a Yakima Valley bred, dual-purpose diploid hop with Hopsteiner lineage on both sides. It is marvelously complex with an almost understated earthy, tea-like note.","American ales and lagers","Despite its aroma-focused origins, it boasts a high alpha acid percentage. Calypso features crisp, fruity aromas and flavors that exhibit elements of apple, pear and stone fruit brightened with hints of lime citrus. ",{"$f":"VLOOKUP(A14,'Humle X-ref.'!$A$2:$D$141,4,FALSE)","v":"Cascade, Belma"},null,24,0.187,0.17100000000000001,0.157,0.14299999999999999,0.13100000000000001,0.12,0.109,0.1,9.0999999999999998E-2,8.3000000000000004E-2,7.5999999999999998E-2]
["Cascade","4,5 - 7,0",5.7,null,"4,5 - 7,0","33 - 40","BA",1,0.6,"A hop with Northern Brewers Heritage. One of the 3 C's.","American ales and lagers","Strong spicy, floral, grapefruit character",{"$f":"VLOOKUP(A15,'Humle X-ref.'!$A$2:$D$141,4,FALSE)","v":"Centennial, Citra, Amarillo"},null,27,0.20100000000000001,0.183,0.16800000000000001,0.153,0.14000000000000001,0.128,0.11700000000000001,0.107,9.8000000000000004E-2,8.8999999999999996E-2,8.2000000000000003E-2]
["Centennial","9,5 - 11,5",9.6999999999999993,null,"3,5 - 4,5","28 - 30","BA",1,0.6,"General purpose bittering, aroma. Derived from 3/4 Brewer's Gold and contributions of Fuggle, East Kent Golding and others. One of the 3 C's.","American ales and Wheats","Floral, citrus aroma, spicy, clean bittering flavor",{"$f":"VLOOKUP(A16,'Humle X-ref.'!$A$2:$D$141,4,FALSE)","v":"Cascade, Chinook, Citra, Columbus, Galena, Eroica, Nugget, Bullion"},null,30,0.21199999999999999,0.19400000000000001,0.17699999999999999,0.16200000000000001,0.14799999999999999,0.13500000000000001,0.124,0.113,0.10299999999999999,9.4E-2,8.5999999999999993E-2]
["Challenger","6,5 - 9,0",6.1,null,"3,2 - 4,2","20 - 25","BA",1,0.5,"Challenger blev udviklet på Wye College ved at kombinere Northern Brewer humle med nogle tyske han-planter med stor meldugresistens.\nChallenger kan bruges både som bitterhumle og aromahumle.","ESB, portere, stout og brown ales","Som aromahumle er den kraftig og krydret, og giver en meget ren bitterhed med masser af blomstrede aromaer.\nSom bitterhumle får man noter af orangemarmelade, citrus og en blomstret aroma.",{"$f":"VLOOKUP(A17,'Humle X-ref.'!$A$2:$D$141,4,FALSE)","v":"Perle, Target, Phoenix, EKG, Northern Brewer, First Gold, Northdown"},null,33,0.223,0.20300000000000001,0.186,0.17,0.155,0.14199999999999999,0.13,0.11899999999999999,0.108,9.9000000000000005E-2,9.0999999999999998E-2]
["Chinook","12,0 - 14,0",12.8,null,"3,0 - 4,0","29 - 34","Ba",1,0.6,"Strong versatile bittering hop, but also acceptable aroma","Ales, porters, stouts","Heavy and spicy aroma. Distinct, medium intensity spice and pine characteristics with subtle notes of grapefruit",{"$f":"VLOOKUP(A18,'Humle X-ref.'!$A$2:$D$141,4,FALSE)","v":"Nugget, Columbus, Northern Brewer, Galena, Eroica, Bullion"},null,36,0.23200000000000001,0.21199999999999999,0.19400000000000001,0.17699999999999999,0.16200000000000001,0.14799999999999999,0.13500000000000001,0.124,0.113,0.10299999999999999,9.4E-2]
["Citra","9,0 - 13,0",12.8,null,"3,5 - 4,5","22 - 24","A",1,0.6,"Special aroma hops.\nComprised of Hallertau Mittelfrüh, US Tettnang, Brewer's Gold and East Kent Golding. Released in 2007","IPAs, strong American and Belgian Ales","Strong citrus and tropical tones of grapefruit, melon, lime, gooseberry, passion fruit and lychee",{"$f":"VLOOKUP(A19,'Humle X-ref.'!$A$2:$D$141,4,FALSE)","v":"Galaxy, Centennial, Nelson Sauvin, Fuggles, Goldings, Willamette"},null,39,0.24,0.219,0.2,0.183,0.16700000000000001,0.153,0.14000000000000001,0.128,0.11700000000000001,0.107,9.8000000000000004E-2]
["Columbus","14,0 - 16,0",16.8,null,"4,0 - 5,0","30 - 35","B",1,0.4,"High alpha bittering hops. Engineered Centennial Substitute, a descendant of Nugget. One of the 3 C's.","Pale Ale","Pungent, black pepper, licorice characteristics with subtle citrus overtones",{"$f":"VLOOKUP(A20,'Humle X-ref.'!$A$2:$D$141,4,FALSE)","v":"Chinook, Nugget, Northern Brewer, Galena, UK Target"},null,42,0.247,0.22600000000000001,0.20599999999999999,0.189,0.17199999999999999,0.158,0.14399999999999999,0.13200000000000001,0.12,0.11,0.10100000000000001]
["Comet","9,4 - 12,4",10.199999999999999,null,"3 - 6,1",41,"BA",100,0.5,"Comet has an intriguing parentage of English Sunshine and a native American hop, bringing out a “wild American” flavor. Released in 1974 by the USDA, Comet was originally bred to address the needs for higher alpha hops.","Bittering in American style Lagers - and Dry Hop in Ales and IPA's.\n\nLager, American Ale, India Pale Ale, Ale","Strong grapefruit, dank resin flavors",{"$f":"VLOOKUP(A21,'Humle X-ref.'!$A$2:$D$141,4,FALSE)","v":"Galena, Summit"},null,45,0.253,0.23200000000000001,0.21199999999999999,0.19400000000000001,0.17699999999999999,0.16200000000000001,0.14799999999999999,0.13500000000000001,0.123,0.113,0.10299999999999999]
["Crystal","3,5 - 5,5",3.7,null,"4,5 - 6,7","20 - 26","A",100,0.5,"Aroma and finishing hops","IPAs and Lagers","Clean, mild, floral, pleasant and slightly spicy",{"$f":"VLOOKUP(A22,'Humle X-ref.'!$A$2:$D$141,4,FALSE)","v":"Mt. Hood, Hersbrucker, Liberty, Hallertau"},null,48,0.25900000000000001,0.23699999999999999,0.216,0.19800000000000001,0.18099999999999999,0.16500000000000001,0.151,0.13800000000000001,0.126,0.115,0.105]
["Dr. Rudi","10 - 12",12.6,null,"7 - 8,5","36 - 39","BA",100,0.6,"Originally known as Super Alpha, the variety was renamed to Dr Rudi in 2012. It was bred from New Zealand Smooth Cone and is largely grown in New Zealand. It was originally released in 1976.","Lager, India Pale Ale","Grass, pine and citrus flavors",{"$f":"VLOOKUP(A23,'Humle X-ref.'!$A$2:$D$141,4,FALSE)","v":"Green Bullet"},null,51,0.26400000000000001,0.24099999999999999,0.221,0.20200000000000001,0.184,0.16900000000000001,0.154,0.14099999999999999,0.129,0.11799999999999999,0.108]
["East Kent Golding","4,0 - 6,0",5.0999999999999996,null,"1,9 - 3,0","25 - 30","BA",1,0.4,"UK origin. The Goldings are the traditional Old English hop. Used for bittering, aroma and dry hopping.","English style Ales, Belgian-Style Ales, Stouts, Porters, most Lagers.","Gentle, fragrant, and pleasant.",{"$f":"VLOOKUP(A24,'Humle X-ref.'!$A$2:$D$141,4,FALSE)","v":"Fuggle, First Gold, Williamette, Progress, Sovereign, Golding"},null,54,0.26900000000000002,0.246,0.224,0.20499999999999999,0.188,0.17100000000000001,0.157,0.14299999999999999,0.13100000000000001,0.12,0.109]
["Ekuanot","14,4 - 15,6",13.6,null,"4,6 - 5,1","31,7 - 38,0","Ab",1,0.6,"Pronounced aroma and notably high oil content.  Earlier called Equinox","All beers","Citrus, Fruity. Noted for an indescribably unique berry-and-fresh-pepper character",{"$f":"VLOOKUP(A25,'Humle X-ref.'!$A$2:$D$141,4,FALSE)","v":"Ingen"},null,57,0.27300000000000002,0.249,0.22800000000000001,0.20799999999999999,0.19,0.17399999999999999,0.159,0.14499999999999999,0.13300000000000001,0.121,0.111]
["El Dorado","13,0 - 17,0",14.1,null,"7,0 - 8,0","28 - 33","BA",100,0.6,"El Dorado is a relatively new kid on the block from Yakima Valley. Released in 2010","Wheat beers, Pale Ales and IPA’s","Flavors of tropical fruit, pineapple, mango. Aromas of pear, watermelon, stone fruit and candy.",{"$f":"VLOOKUP(A26,'Humle X-ref.'!$A$2:$D$141,4,FALSE)","v":"Galena, Simcoe"},null,60,0.27600000000000002,0.252,0.23100000000000001,0.21099999999999999,0.193,0.17599999999999999,0.161,0.14699999999999999,0.13500000000000001,0.123,0.112]
["Extra Styrian Dana","11 - 16",10.9,null,"4 - 6","28 - 31","BA",100,0.4,"Dana, or Extra Styrian Dana as it is often known, is a Slovenian hop bred from a German Hallertau Magnum and a wild Slovenian male. A product of the Institute of Hop Research in Zalec, Solvenia","India Pale Ale","Harmonious bittering properties alongside a slightly floral and citrus flavor profile.",{"$f":"VLOOKUP(A27,'Humle X-ref.'!$A$2:$D$141,4,FALSE)","v":"Ingen"},null,70,0.28499999999999998,0.26100000000000001,0.23799999999999999,0.218,0.19900000000000001,0.182,0.16600000000000001,0.152,0.13900000000000001,0.127,0.11600000000000001]
["First Gold","5,6 - 9,3",7.5,null,"2,3 - 4,1","32 - 34","BA",1,0.4,"The variety is very suitable both as a general kettle hop and also for late and dry hopping in all\ntypes of beer","All beers","Produces a well-balanced\nbitterness and a fruity, slightly spicy note in ales. An orangey quality has been observed in many\nbeers brewed using this variety.",{"$f":"VLOOKUP(A28,'Humle X-ref.'!$A$2:$D$141,4,FALSE)","v":"East Kent Goldings, Fuggle, Crystal, Challenger, Northern Brewer, Northdown, Boadicea"},null,80,0.29099999999999998,0.26600000000000001,0.24299999999999999,0.222,0.20300000000000001,0.186,0.17,0.155,0.14199999999999999,0.13,0.11899999999999999]
["Fuggles","3,5 - 6,5",4.5999999999999996,null,"2,0 - 4,0","27 - 33","BA",1,0.4,"General purpose bittering/aroma.\nSelected in 1861 by Richard Fuggle","English Ales, Dark Lagers","Mild wood, soft, grassy, floral aroma",{"$f":"VLOOKUP(A29,'Humle X-ref.'!$A$2:$D$141,4,FALSE)","v":"Williamette, Styrian Goldings"},null,90,0.29499999999999998,0.27,0.247,0.22600000000000001,0.20599999999999999,0.188,0.17199999999999999,0.157,0.14399999999999999,0.13200000000000001,0.12]
["Galaxy","11 - 16",13.5,null,"5 - 6,9","32 - 42","BA",100,0.6,"Descended from German variety Perle, Galaxy® is a unique Australian breed of hops that has the distinction of sporting the highest percentage of essential oils in the industry.","Pale Ale, India Pale Ale, ESB","Amazing citrus, peach and passionfruit aroma, especially when used as a late addition. The flavor is often quite intense upon production, but mellows as it matures.",{"$f":"VLOOKUP(A30,'Humle X-ref.'!$A$2:$D$141,4,FALSE)","v":"Citra, Amarillo, Centennial"},null,120,0.30099999999999999,0.27500000000000002,0.252,0.23,0.21,0.192,0.17599999999999999,0.161,0.14699999999999999,0.13400000000000001,0.123]
["Galena","12,0 - 14,0",15.2,null,"7,0 - 9,0","37 - 42","B",1,0.6,"General bittering hops. Strong, clean, balanced bittering. ","All beers","Spicy, blackcurrant and citrus (grapefruit) tones",{"$f":"VLOOKUP(A31,'Humle X-ref.'!$A$2:$D$141,4,FALSE)","v":"Legacy, Brewer’s Gold, Nugget, Eroica, Northern Brewer, Columbus, Chinook"}]
["Goldings","4,0 - 6,0",3.79,null,"2,0 - 3,0","20 - 25","BA",1,0.5,"Bittering, aroma and finishing.","British ales, bitters, porters and stouts.","Mild and delicate with sweet floral characteristics",{"$f":"VLOOKUP(A32,'Humle X-ref.'!$A$2:$D$141,4,FALSE)","v":"East Kent Golding, Progress"}]
["Hallertau Blanc","9 - 12",9.1,null,"4,5 - 6","22 - 26","A",100,0.4,"Hallertau Blanc, daughter of Cascade, was released to the world in 2012. Established on the Hüll farm in the German Hallertau region","American-style Ales","Flavours of white-wine and fruit, aromas of cassis, elderflower, grapes, grapefruit and lemongrass.",{"$f":"VLOOKUP(A33,'Humle X-ref.'!$A$2:$D$141,4,FALSE)","v":"Galaxy / Nelson Sauvin"},null,"To calculate IBUs, the formula is simple:",null,null,null,null,null,null,"IBUs = decimal alpha acid utilization * mg/l of added alpha acids"]
["Hallertau Hersbrucker","2,0 - 5,0",2.6,null,"2,5 - 6,0","18 - 25","A",1,0.4,"Very good aroma hop","Lager, Pilsner, Bock, Weizen Bock, Wheat, Belgian-Style Ales, Kölsch, Munich Helles","A mild aroma and a low co-humulone content",{"$f":"VLOOKUP(A34,'Humle X-ref.'!$A$2:$D$141,4,FALSE)","v":"Hallertau, Strisselspalt, Helga, Hallertauer Mittlefrüh"}]
["Hallertau Mittelfrüh","3,0 - 5,5",3.4,null,"3,0 - 5,0","18 - 28","A",1,0.4,"Mittelfrüh has a traditional\nEuropean aroma and is one of the Noble Hops","German Pilsner, German Style Lagers","A pleasant herbal, grassy and floral aroma",{"$f":"VLOOKUP(A35,'Humle X-ref.'!$A$2:$D$141,4,FALSE)","v":"Hersbruck, Mt. Hood, Liberty, Helga"},null,"To calculate the concentration of alpha acids you add to the wort:",null,null,null,null,null,null,null,null,null,"(mg/l of added alpha acids = decimal AA rating * grams hops * 1000) / volume of finished beer in liters"]
["Herkules","12 - 17",10,null,"4 - 5,5","32 - 38","BA",100,0.4,"Strong and robust in flavor and aroma, German Herkules lives up to it’s name. The Hüll-bred offspring of Hallertauer Taurus, Herkules is a high alpha acid bittering hop, known to be spicy and floral, tangy and hoppy, with notes of melon, black pepper, with hints of pine. It was released in 2005.","German Ale","Notes of melon, black pepper and pine",{"$f":"VLOOKUP(A36,'Humle X-ref.'!$A$2:$D$141,4,FALSE)","v":"Horizon, Magnum, (Hallertau) Taurus"}]
["Hüll Melon","6,9 - 7,5",6.9,null,"7,3 - 7,9","25 - 30","A",100,0.6,"Relatively new on the market, Hüll Melon made its debut in 2012. A daughter of Cascade (US), it has some interesting flavor characteristics not commonly associated with hops. It is noted to be intensely fruity with flavors and aromas of honeydew melon and strawberry.",null,"Intensely fruity, flavors and aromas of honeydew melon, strawberry",{"$f":"VLOOKUP(A37,'Humle X-ref.'!$A$2:$D$141,4,FALSE)","v":"Ingen"}]
["Junga","10 - 13",11,null,null,null,"Ba",100,0.4,"This Polish varietal is a high alpha acid hop best utilized as a bittering agent. It provides fantastic bittering","IPAs, Lagers, and Altbiers.","If used for aroma purposes however, Junga hops do provide blackcurrant, grapefruit and spice notes.",{"$f":"VLOOKUP(A38,'Humle X-ref.'!$A$2:$D$141,4,FALSE)","v":"Nugget, Target, Galena"}]
["Kohatu","5 - 7",6.6,null,"4 - 6",21,"bA",100,0.6,"This New Zealand bred varietal was bred around the same time as popular Wai-iti hops, and carries some similar characteristics. It creates such a delectable, rounded bitterness when brewed that it is considered a dual purpose hop.","IPA, Pale, or even Blonde recipe for an extra fruity flavor.","Intense tropical fruits, lots of pine, and a touch of lush floral.",{"$f":"VLOOKUP(A39,'Humle X-ref.'!$A$2:$D$141,4,FALSE)","v":"Wai-iti, Motueka"}]
["Lemondrop","5,0 - 7,0",5.2,null,"4,0 - 6,0","28 - 34","A",null,null,"Aroma-type hop, originated from a cross between Cascade and USDA 19058 male","American Ales","Lemon, mint, green tea, light melon",{"$f":"VLOOKUP(A40,'Humle X-ref.'!$A$2:$D$141,4,FALSE)","v":"Cascade, Mandarina Bavaria, Centennial "}]
["Magnum","11,0 - 16,0",12.8,null,"5,0 - 7,0","21 - 29","B",1,0.4,"Bittering, no distinct aroma","Ales and Lagers","No distinct aroma",{"$f":"VLOOKUP(A41,'Humle X-ref.'!$A$2:$D$141,4,FALSE)","v":"Columbus, Horizon, Nugget, Magnum"}]
["Mandarina Bavaria","7,0 - 10,0",9.3000000000000007,null,"5,0 - 6,5","31 - 35",null,1,0.6,null,null,null,{"$f":"VLOOKUP(A42,'Humle X-ref.'!$A$2:$D$141,4,FALSE)","v":"Cascade"}]
["Mosaic","11,5 - 13,5",12.1,null,"3,2 - 3,9","24 - 26","A",1,0.6,"An excellent aroma variety. Daughter of Simcoe","IPAs","A complex array of tropical fruit, citrus, berry, herbal, earthy and pine characteristics",{"$f":"VLOOKUP(A43,'Humle X-ref.'!$A$2:$D$141,4,FALSE)","v":"Simco eller måske Nelson Sauvin"}]
["Motueka","6,5 - 8,5",6.7,null,"5 - 5,5",29,"BA",100,0.6,"Formerly known as Belgian Saaz or B Saaz, Motueka is a premier New Zealand hop. Developed by HortResearch, this triploid was bred from Saaz and an unnamed New Zealand breeding strain","European Ale, English Ale, Dark Lager, Pilsner, Belgian Ales, Lager, Maibock, Ales","Tropical fruit and citrus",{"$f":"VLOOKUP(A44,'Humle X-ref.'!$A$2:$D$141,4,FALSE)","v":"Saaz, Saaz (US), Sterling"}]
["Mount Hood","4,0 - 8,0",6,null,"5,0 - 7,5","21 - 23","A",null,null,"Released in 1989, Mount Hood is an American-bred cultivar stemming from Hallertau Mittelfrüh","Hefeweizen, Doppelbock, Russian Imperial Stout, Brown Ale, Golden Ale, Pale Ale, Amber Ale, Weizenbock, India Pale Ale, Holiday Lager, Bock, American Wheat, Alt Munich Helles, American Lager","Noble hop aroma",{"$f":"VLOOKUP(A45,'Humle X-ref.'!$A$2:$D$141,4,FALSE)","v":"Hersbrucker, Strisselspalt, Crystal, Hallertauer, Tettnanger"}]
["Nelson Sauvin","12,0 - 13,0",10.9,null,"6,0 - 8,0","23 - 25","BA",1,0.8,"Nelson Sauvin™ Brand 85-03-06 is a triploid variety bred from the New Zealand variety “Smoothcone” and a selected New Zealand male. Developed by New Zealand’s Plant & Food Research and released in 2000","All beers, but mainly American Pale Ales and IPAs.","“fresh crushed gooseberries”, a distinctive cool climate white wine “fruitiness”. This hop is considered by some as being extreme and the bold hop character may be overpowering for the un-initiated.",{"$f":"VLOOKUP(A46,'Humle X-ref.'!$A$2:$D$141,4,FALSE)","v":"Ingen"}]
["Northern Brewer","7,0 - 10,0",9.5,null,"3,5 - 5,0","27 - 33","BA",1,0.5,"A true dual purpose hop variety","Ales","Medium intensity, pine and mint characteristics",{"$f":"VLOOKUP(A47,'Humle X-ref.'!$A$2:$D$141,4,FALSE)","v":"Northdown, Challenger, Chinook, Brewers Gold, First Gold, Perle, Aurora, Northern Brewer, Galena"}]
["Nugget","12,0 - 14,5",11.4,null,"4,0 - 6,0","22 - 26","Ba",1,0.5,"Bittering, but gaining acceptance as a dual purpose variety","Barley Wine","Mild and pleasant with spicy, herbal tones",{"$f":"VLOOKUP(A48,'Humle X-ref.'!$A$2:$D$141,4,FALSE)","v":"Galena, Columbus, Magnum"}]
["Opal","13 - 14",6.6,null,"3,5 - 5,5","28 - 34","BA",100,0.4,"Developed by the Hull Hops Research Institute in Germany, Opal hops feature a clean aroma and flavor profile","Pilsner, Hefeweizen, Helles, Lager, Brown Ale, Saison, Tripel, Wheat, Kölsch, Blonde Ale","Flavors of spice and citrus, slight sweetness",{"$f":"VLOOKUP(A49,'Humle X-ref.'!$A$2:$D$141,4,FALSE)","v":"Saphir, East Kent Goldings, Styrian Golding"}]
["Perle","6,0 - 10,0",7.8,null,"2,5 - 5,0","28 - 32","BA",1,0.4,"Bred from English Northern Brewer. Often used as a dual purpose hop in a variety of applications","Stout","Slightly spicy with herbal and floral characteristics",{"$f":"VLOOKUP(A50,'Humle X-ref.'!$A$2:$D$141,4,FALSE)","v":"Northern Brewer, Northdown, Perle"}]
["Rakau","5,8 - 10,9",10.1,null,"2,6 - 4,8",27,"BA",100,0.6,"Rakau, or AlphaAroma as it was previously known, was developed in New Zealand. Languishing in its disease free habitat, Rakau features a high concentration of myrcene is said to pair it beautifully to dry-hopped American Pale Ales.","Pale Ale, Lager","Lending flavors and aromas of apricot, plum, mango, pear, and other stone fruits. Some lighter notes of lime and pine are also present",{"$f":"VLOOKUP(A51,'Humle X-ref.'!$A$2:$D$141,4,FALSE)","v":"Ingen"}]
["Saaz","3,0 - 4,5",3.4,null,"3,0 - 4,5","24 - 28","A",1,0.4,"The classic \"noble\" aroma hop with long and strong traditions, associated with the renowned pilsner lager","Lagers","Very mild, with pleasant earthy, herbal and floral overtones",{"$f":"VLOOKUP(A52,'Humle X-ref.'!$A$2:$D$141,4,FALSE)","v":"Sterling, Spalt, Saaz, Lublin"}]
["Saphir","2 - 4,5",2.7,null,"4 - 7","12 - 17","A",100,0.4,"Bred at the Hop Research Center in Hüll and released in 2002, the initial goal of its creators was to produce a more commercially viable alternative to Hallertau Mittelfrüh through increased disease resistance and the retention of Hallertau’s noble characteristics. In that capacity, Saphir would most certainly be considered a success.","Pilsner, Lager","Sweet citrus aromas with hints of tangerine",{"$f":"VLOOKUP(A53,'Humle X-ref.'!$A$2:$D$141,4,FALSE)","v":"Hallertau, Hallertau Tradition, Spalter Select"}]
["Select Spalt","3 - 6,5",4.3,null,"2 - 5","20 - 28","A",100,0.4,"Released in 1993, Spalter Select was bred in Hüll, Germany in an effort to increase yield potential and disease resistant and serve as a commercial replacement for Spalt. These efforts were quite successful.","Kölsch, Belgian Ale, French Ale, Lager, Bock, Helles, Alt, Pilsner, Märzen","Considered a slightly spicier version of Spalt",{"$f":"VLOOKUP(A54,'Humle X-ref.'!$A$2:$D$141,4,FALSE)","v":"Saaz, Tettnanger, Spalt, Hersbrucker, Perle, Tradition"}]
["Simcoe","12,0 - 14,0",13.8,null,"4,0 - 5,0","15 - 20","BA",1,0.6,"Known as a bittering hop with a good aroma. Dual Purpose","IPAs","Unique passionfruit, pine, earth and citrus characteristics",{"$f":"VLOOKUP(A55,'Humle X-ref.'!$A$2:$D$141,4,FALSE)","v":"Magnum, Summit"}]
["Sorachi Ace","11,5 - 14,5",11,null,"6,0 - 7,5","25 - 28","BA",1,0.6,"Japanese dual purpose hop seeing increased usage in 2008 after hop shortages in the Western world. It is a cross between Brewer's Gold, Saaz and Beikei No. 2 male.","\nPale Ales & IPAs, Wheat Styles, Golden Ales, Saisons, Tripels, Bière de Garde.\n","Imparts an unusual lemon/\"bubblegum\" and dill pickle flavour. It is a popular variety among craft brewers for its unique citrus fruit, herbal and dill aromas.",{"$f":"VLOOKUP(A56,'Humle X-ref.'!$A$2:$D$141,4,FALSE)","v":"Columbus, Tomahawk, Summit, Warrior, Chinook, Southern Cross"}]
["Southern Cross","13 - 14",14,null,"6 - 7",28,"BA",100,0.6,"Southern Cross was created by New Zealand’s HortResearch breeding program as a cross between Smooth Cone and the result of a Californian and English Fuggle. It was released in 1994.","Pale Ale, India Pale Ale, Lager","Soft bitterness, lemon zest and pine needles",{"$f":"VLOOKUP(A57,'Humle X-ref.'!$A$2:$D$141,4,FALSE)","v":"Northern Brewer, Chinook, Sorachi Ace"}]
["Sovereign","4,5 - 6,5",7.1,null,"2,1 - 3,1","26 - 30","B",100,0.4,"The granddaughter of Pioneer, Sovereign is an English variety bred at Wye College in the mid-1990s. Released in 2006, Sovereign is gaining respect for its complex and delicate aroma profile.","American Lager, American Pale Ale","Complex aroma, subtle notes of green-tea and vanilla",{"$f":"VLOOKUP(A58,'Humle X-ref.'!$A$2:$D$141,4,FALSE)","v":"Fuggles, Golding"}]
["Spalt","2,5 - 5,7",null,null,"3 - 5","22 - 29","A",null,null,"Surely one of the world oldest hop varieties, Spalt hops date back as far as the 8th century and in the 16th century they were the first variety to be granted the German hop seal – a historically significant certification system predating the current, German Hop Provenance Law. Grown primarily in the Spalt region of Germany, it is one of the original landrace hops.","German Ale, Lager, Pilsner, Bock, Kölsch","Spicy noble hop aroma",{"$f":"VLOOKUP(A59,'Humle X-ref.'!$A$2:$D$141,4,FALSE)","v":"Saaz, Tettnanger, Santiam, Liberty, Hallertau"}]
["Strisselspalt","1,8 - 5,7",2.1,null,"2,5 - 6","20 - 27","A",100,0.4,"Strisselspalt hails from the Alsace region of France around Strasbourg and is likely related to German Spalt and/or Hersbrucker hops. Thought to be an old land race, its acreage is dwindling due to its inherent low yield but it survives largely on the back of a strong domestic demand for the variety.","Lager, Saison, Blonde Ale, Amber Ale, Belgian Ale, Bock, Maibock, Golden Ale, Belgian Pale Ale","Pleasant continental-style aroma, herbal, floral, spicy, citrus, fruit",{"$f":"VLOOKUP(A60,'Humle X-ref.'!$A$2:$D$141,4,FALSE)","v":"Liberty, Hallertau, Mt Hood, Crystal, Hersbrucker"}]
["Styrian Eureka","18 - 19",14.7,null,"5 - 6",27,"BA",100,0.4,"With similarities to Simcoe® and Summit™ hops, Eureka is a fairly new variety with very strong bittering qualities and a complex and robust flavor and aroma profile. ","Imperial India Pale Ale, India Pale Ale, American Ales, American Red, Saison","Flavours of citrus, peach and pine, aromas of stone fruit and mandarin",{"$f":"VLOOKUP(A61,'Humle X-ref.'!$A$2:$D$141,4,FALSE)","v":"Ingen"}]
["Styrian Golding","2,8 - 5,5",4,null,"2,0 - 3,0","25 - 30","A",1,0.4,"A world-renowned aroma hop with widespread usage in both ale and lager brewing","Belgian-style Ales","Very mild, noble hop flavor",{"$f":"VLOOKUP(A62,'Humle X-ref.'!$A$2:$D$141,4,FALSE)","v":"Aurora, Fuggle, Williamette, Styrian Bobek"}]
["Styrian Wolf","10 - 18,5",12.1,null,"5 - 6","22 - 23","BA",100,0.4,"Developed by the Slovenian Institute for Hop Research and Brewing, Styrian Wolf is one of the latest Styrian hops on the market. When brewed, expect intense fruity and floral notes.","IPA, Pale Ale, Ale","Intense fruity and floral notes. These include flavours of sweet tropical fruits and complex aromas of mango, elderflower and even a hint of violet. ",{"$f":"VLOOKUP(A63,'Humle X-ref.'!$A$2:$D$141,4,FALSE)","v":"Ingen"}]
["Summit","15,0 - 17,0",15.6,null,"5,0 - 6,5","29 - 32","Ba",1,0.5,"Mainly used as a bittering hop, but does have earthy aromatic characteristics and subtle hints of citrus.","American ales and lagers","Specific aroma descriptors include pepper, incense, anise, orange, pink grapefruit and tangerine.",{"$f":"VLOOKUP(A64,'Humle X-ref.'!$A$2:$D$141,4,FALSE)","v":"Apollo"}]
["Target","8,5 - 13,5",9.74,null,"4,0 - 5,7",37,"B",1,0.4,"An excellent bittering hop that tends to be too harsh for aroma purposes late in the boil","Ale","An intense English hop aroma with distinct spicy, floral, sage and citrus characteristics",{"$f":"VLOOKUP(A65,'Humle X-ref.'!$A$2:$D$141,4,FALSE)","v":"Admiral, Fuggle, Willamette"}]
["Tettnanger","3,0 - 6,0",1.7,null,"3,0 - 5,0","22 - 29","A",1,0.4,"Traditional noble aroma hop","Belgian-style Ales","Mild and pleasant with balanced earthy, herbal and floral aroma impressions",{"$f":"VLOOKUP(A66,'Humle X-ref.'!$A$2:$D$141,4,FALSE)","v":"Hersbrucker, Saaz, Spalt, Ultra, Select"}]
["Tradition","5,0 - 7,0",6.7,null,"4,0 - 5,0","26 - 29","A",1,0.4,"Aroma Hop. Imparts beer with a harmonic bitterness","Bock","Medium intense floral and herbal (grassy) tones",{"$f":"VLOOKUP(A67,'Humle X-ref.'!$A$2:$D$141,4,FALSE)","v":"Hallertau Mittelfrüh, Liberty"}]
["Triskel","8 - 9",3,null,"4,0 - 4,7","20 - 23","A",100,0.4,"Developed in France in 2006, Triskel is a cultivar of the French hop, Strisselspalt and English varietal, Yeoman. With a more pronounced nose than its French parent, Triskel makes a unique first wort alternative and its notable aroma qualities make it well suited as a late addition or for dry hopping.","Belgian Ale, Saison, Kolsch, Pilsner, Pale Ale, India Pale Ale, Lager, Wheat","Floral aroma, subtly fruity, citrusy",{"$f":"VLOOKUP(A68,'Humle X-ref.'!$A$2:$D$141,4,FALSE)","v":"Strisselspalt, Ahtanum, Centennial, Chinook, Simcoe"}]
["Vic Secret","14 - 17",14.5,null,"6,1 - 7,8","51 - 56","BA",100,0.5,"Vic Secret had her first commercial harvest in 2013. Developed in 2000 in Victoria, Australia alongside sister variety Topaz.","Pale Ale, India Pale Ale, Stout, Porter","Tropical fruit, pine, herbs.\nVic Secret’s is best utilized via whirlpool and dry hopping. It is also worth noting that late kettle additions impart a wonderful earthiness, but the fruitiness doesn’t come through.",{"$f":"VLOOKUP(A69,'Humle X-ref.'!$A$2:$D$141,4,FALSE)","v":"Galaxy"}]
["Wai-iti","2,5 - 3,5",null,null,"4,5 - 5,5","22 - 24","A",null,null,"It was released to brewers in 2011 alongside Kohatu by New Zealand Plant & Food Research and features higher beta acids than alpha acids, low cohumulone and robust oil content.","Pale Ale, India Pale Ale, Wheat Beer","Lime citrus and stone fruit notes",{"$f":"VLOOKUP(A70,'Humle X-ref.'!$A$2:$D$141,4,FALSE)","v":"Riwaka"}]
["Waimea","16 - 19",15.5,null,"7 - 9","22 - 24","BA",100,0.6,"Waimea is a new New Zealand dual-use variety originally bred for high alpha and bittering qualities. Released in 2012, it’s heritage stems from Californian Late Cluster, Fuggle and Saaz.","  India Pale Ale, Pale Ale","Citrus and pine",{"$f":"VLOOKUP(A71,'Humle X-ref.'!$A$2:$D$141,4,FALSE)","v":"Columbus"}]
["Warrior","14,5 - 18",14,null,"4,3 - 6","22 - 28","B",100,0.5,"Among its desirable traits are its clean, smooth bittering and a somewhat inconspicuous citrusy and spicy aroma.","India Pale Ale, American Ales","Aromas of citrus and spice",{"$f":"VLOOKUP(A72,'Humle X-ref.'!$A$2:$D$141,4,FALSE)","v":"Bravo, Nugget, Columbus - muligvis Apollo or Magnum"}]
["Willamette","4,0 - 6,0",4.5,null,"3,0 - 4,5","30 - 35","A",1,0.4,"A quality aroma hop with low alpha content. Triploid seedling of the English Fuggle variety","English-style Ale","Mild and pleasant, with slightly spicy and floral tones",{"$f":"VLOOKUP(A73,'Humle X-ref.'!$A$2:$D$141,4,FALSE)","v":"Fuggle, Tettnanger, Glacier, Styrian Golding"}]
[]
[]
[]
["https://ychhops.com/varieties"]
[]
["Humlesorter i Pellets",null,{"$f":"COUNTA(C3:C73)","v":67}]
["Humlesorter i Blomster",null,null,{"$f":"COUNTA(D3:D73)","v":0}]

{"sheet":"Humle X-ref.","index":9,"n_rows":449,"n_cols":4,"rows_kept":449,"cut":false,"hidden":false,"merged":[]}
["Navn","Land","Karakteristika","Erstatning"]
["Admiral","GB","Avlet som erstatning for Target, men med en mindre barsk bitterhed. Svag aroma med en mild citrus karakter.","Target, Challenger"]
["Ahtanum","US","Citrus og blomsteragtig karakter, med grapefrugt kvaliteter, der siges at være stærkere end i Cascade.","Cascade, Amarillo"]
["Amarillo","US","Blomsteragtig, grapefrugt, citrus, fersken","Cascade, Centennial, Citra, Simcoe"]
["Apollo","US","Appelsinagtig med lidt harpiks. Ret potent.","Columbus, Tomahawk, Magnum"]
["Aramis","US","Krydret, blomster, nyopgravet muldjord, citron","Centennial, Chinook, Hallertau, Tettnanger"]
["Aurora","SLO","Meget “humlet” aroma, frugtagtig","Styrian Golding, Northern Brewer"]
["Azacca","US","Duft af tropisk frugt og citrus. Smag med noter af krydret mango, ananas, mandarin og fyr.","Centennial"]
["Barbe Rouge","FR","This extremely rare, delicate aroma hop is native to France. Pedigree: French Parentage","Ingen"]
["Belma","US","Meget ren humlesmag, appelsin, let grapefrugtagtig, ananas og melon. Det er en ny variant, der udelukkende forhandles af “Hops Direct”.","Pacific Gem"]
["Boadicea","GB","Delikat duft af frugtplantage og græs. Svag, men tydelig krydret karakter","Challenger, Sovereign, Golding"]
["Bobek","SLO","Behagelig blomstret aroma.  Bobek er et forsøg på at lave en både høj-Alpha og god aroma humle","Fuggle, Willamette, Styrian Golding"]
["Bouclier","FR","Aromaer af urt, græs og krydderi sammen med en citrus og blomster karakter","Tettnanger, Spalt Select, Tradition"]
["Bramling Cross","GB","Stærk og krydret engelsk humle. Frugtagtig, med solbær noter og en let citron note","East Kent Goldings, Brewer’s Gold, Willamette, WGV"]
["Bravo","US","Blød mild smag, frugtagtig, blomsteragtig, meget ren bitterhed","Warrior - Columbus, Zeus, Apollo, Magnum, Nugget"]
["Brewer’s Gold","GB","Tidlig bitterhumle. Harpiksagtig og kraftigt krydret i smagen med solbærnoter","Bullion, Galena, Pacific Gem, Northern Brewer, North Down, Pioneer"]
["Bullion","US","Tidlig og traditionel bitterhumle velegnet til en god stout. Harpiksagtig, muldjord, kraftig solbær eller hindbær aroma","Brewer’s Gold, Galena"]
["Callista","DE","Pleasant hoppy note, intensively fruity, apricot, passion fruit, red berries","Hüll Melon, Mandarina Bavaria, Hallertau Blanc"]
["Calypso","US","Citron aroma, surt æble, nyopgravet muldjord","Cascade, Belma"]
["Cascade","US","Typisk amerikansk humle med citrusagtige grapefrugt karakter","Centennial, Citra, Amarillo"]
["Centennial","US","Balancerede frugtagtige citrusnoter og stenfrugt karakter. Blød og lækker bitterhed","Cascade, Chinook, Citra, Columbus, Galena, Eroica, Nugget, Bullion"]
["Challenger","GB","Meget ren bitterhumle med en stærk krydret aroma","Perle, Target, Phoenix, EKG, Northern Brewer, First Gold, Northdown"]
["Chinook","US","Krydret fyrnåle smag med noget grapefrugt aroma","Nugget, Columbus, Northern Brewer, Galena, Eroica, Bullion"]
["Citra","US","Potent aroma af intens mango, tropisk frugt og citrus. Smagen er lidt blødere, mindre specific, men dog intens. Meget velegnet til tørhumling og sen-humling, ikke egnet som bitterhumle","Galaxy, Centennial, Nelson Sauvin, Fuggles, Goldings, Willamette"]
["Cluster","US","Skarp bitterhumle med en krydret blomsteraroma. En af de helt originale amerikanske humler","Galena, Northern Brewer"]
["Columbus","US","Potent muldjord og harpiks aroma. Også kendt som Tomahawk eller Zeus (CTZ)","Chinook, Nugget, Northern Brewer, Galena, UK Target"]
["Comet","US","Amerikansk citrus aroma. (der er ikke megen information om denne humle)","Galena, Summit"]
["Crystal","US","En Hallertau hybrid der dyrkes i USA. Krydret blomsteragtig aroma, søster humle til Mount Hood og Liberty.","Mt. Hood, Hersbrucker, Liberty, Hallertau"]
["Dana","SLO","Dana, or Extra Styrian Dana as it is often known, is from a German Hallertau Magnum and a wild Slovenian male.","Ingen"]
["Delta","US","Mildt krydret med et touch af citrus. (Delta er en krydsning mellem Fuggles and Cascade). \nBeskrives som mild og diskret.","Ingen"]
["Dr. Rudi","NZ","Grass, pine and citrus flavors","Green Bullet"]
["East Kent Golding","GB","En populær engelsk humle med en mild duftende aroma. Blød krydret blomsteraroma. Har præget engelske ales i århundreder","Fuggle, First Gold, Williamette, Progress, Sovereign, Golding"]
["El Dorado","US","Intens bolcheagtig aroma af kirsebær, pære og andre frugter. Smager næsten som et kirsebærbolche","Galena, Simcoe"]
["Endeavour","GB","Komplekse solbær, loganbær og kryddernoter beskriver bedst Endeavours aroma med en vidunderlig grapefrugt og lime smag. Det er mildere end Cascade.","Northern Brewer"]
["Ekuanot","US","Tropical fruit, papaya and mango notes reminiscent of Mosaic and Citra offer versatility across fresh-flavored styles. Then also a sweet and fruity green pepper character.","Ingen"]
["Extra Styrian Dana","SLO","Dana, or Extra Styrian Dana as it is often known, is from a German Hallertau Magnum and a wild Slovenian male.","Ingen"]
["Falconers Flight","US","Tropefrugt, citrus, blomster, citron, grapefrugt","Cascade, Ahtanum, Sorachi Ace"]
["Falconers Seven Seas","US","Frugtagtig, citrus, krydret, muldjord. En krydsning af 7 andre humler, der alle starter med “C”","Simcoe"]
["First Gold","GB","En ung hybrid af Goldings, med en lignende aroma. Krydret, frisk savsmuld, mynte smag og aroma","East Kent Goldings, Fuggle, Crystal, Challenger, Northern Brewer, Northdown, Boadicea"]
["Fuggles","GB","Frisk savsmuld, nyopgravet muldjord. Mildt krydret","Williamette, Styrian Goldings"]
["Galaxy","AUS","Tropisk passionsfrugt, citrus med et snært af fersken og mango. Ligner Citra, men er mindre intens.","Citra, Amarillo, Centennial"]
["Galena","GB","Frugtagtig solbær og citrus","Legacy, Brewer’s Gold, Nugget, Eroica, Northern Brewer, Columbus, Chinook"]
["Glacier","US","Muldjord og blomsterkarakter med sødlige citrusnoter","Williamette, Styrian Goldings"]
["Goldings","GB","Aroma noterne omfatter blomstret, lidt krydret, jordet og honning.","East Kent Golding, Progress"]
["Green Bullet","NZ","Frugtagtig harpiks. Beskrevet som at have en klar rosinagtig karakter","Galena, Centennial"]
["Hallertau","DE","Robust klassisk humle med en mild, krydret, blomsteragtig muldjords aroma. Dette er en ædelhumle, der ofte bruges i tyske pilsnertyper (lager). Se også: Hallertau Mittelfrüh","Hersbruck, Mt. Hood, Liberty, Helga"]
["Hallertau Aroma","NZ","Mindre krydret end Mittelfrüh, med en blomsteragtig og citrus, lime karakter. Også kendt som Wakatu","Hallertauer Mittelfrüh, Nelson Sauvin"]
["Hallertau Blanc","DE","Aroma af blomster og frugt, passionsfrugt, grapefrugt, stikkelsbær og ananas","Galaxy / Nelson Sauvin"]
["Hallertau Mittelfrüh","DE","Alsidig klassisk humle med en mild og krydret aroma af blomster og friskpløjet muldjord. Dette er en ædelhumle der er ofte bruges i de gode tyske pilsnere. Den er sansynligvis en regional variation af Hallertau humlen","Hersbruck, Mt. Hood, Liberty, Helga"]
["Hallertau Hersbrucker","DE","Mellemintens blomster karakter, med en krydret og frugtagtig aroma","Hallertau, Strisselspalt, Helga, Hallertauer Mittlefrüh"]
["Helga","AUS","En humle med en næsten-ædel blomsteragtig og mild aroma","Hallertau Mittelfrüh, Hersbrucker"]
["Herald","GB","En søsterhumle til Pioneer. Kraftig bitterhed med et touch af citrus og grapefrugt","Pioneer"]
["Herkules","DE","Let frugtagtig og krydret aroma","Horizon, Magnum, (Hallertau) Taurus"]
["Horizon","US","Citrus og blomsteragtig duftende aroma. Krydret og harpiks aroma kan forekomme. Klar og ren som bitterhumle","Magnum, Amarillo"]
["Hüll Melon","DE","Jordbær og honningmelon nuancer","Ingen"]
["Junga","PO","Krydret humle med grapefrugt og solbær","Nugget, Target, Galena"]
["Kazbek","CZ","Kazbek har en krydret lemonlignende aroma og blev første gang udgivet i 2008. Beslægtet med vilde russiske humlesorter.","Saaz, Sterling"]
["Kohatu","NZ","Expect an aroma of intense tropical fruits, lots of pine, and a touch of lush floral.","Wai-iti, Motueka"]
["Legacy","US","Blomsteragtig, solbær, krydret","Cluster, Galena"]
["Lemondrop","US","Lemondrop giver en unik citron-citrus karakter med en behagelig aroma. De tydelige citrus- og subtile urtenoter er perfekte til sæson øl. Mens ales har tendens til at bringe dens sødere side, er Lemondrop delikat og raffineret nok til kvalitetslagerøl.","Cascade, Mandarina Bavaria, Centennial "]
["Liberty","US","Mild, let krydret, harpiksagtig. Anses af nogle som en ædelhumle","Hallertau"]
["Lubelski","PO","En polsk avlet version af tjekkisk Saaz","Styrian Golding, Saaz"]
["Lublin","PO","En polsk avlet version af tjekkisk Saaz","Saaz, Tettnanger"]
["Magnum","DE","Meget klar og ren bitterhumle med en mild og diskret aroma","Columbus, Horizon, Nugget, Magnum"]
["Mandarina Bavaria","DE","Intens mandarin og citrus toner","Cascade"]
["Marynka","PO","Muldjord, rodfrugt, lakrids","Perle, Chinook"]
["Meridian","US","A chance discovery in 2011, Meridian delivers a mix of tropical, berry, and citrus fruitiness with a hint of spearmint. A “top note” hop, nice in a saison, wit, or farmhouse, it can also be combined with more aggressive hops in IPAs to brighten the overall impression of the beer.","Citra, Amarillo, Sorachi Ace"]
["Merkur","DE","Ligner Magnum som bitterhumle, men med en muldjord og blomsteraroma","Magnum, Horizon"]
["Millennium","US","Ren og klar som bitterhumle, med en aroma af krydderurter","Nugget, Columbus, Tomahawk"]
["Mosaic","US","En kompleks blanding af tropisk frugt aroma med blåbærtoner, muldet, krydret, citrus, fyrtræ. Er en forædling af Simcoe.","Simco eller måske Nelson Sauvin"]
["Motueka","NZ","Citronagtig, tropisk frugt, krydret","Saaz, Saaz (US), Sterling"]
["Mount Hood","US","Mild og ren aroma og smag","Hersbrucker, Strisselspalt, Crystal, Hallertauer, Tettnanger"]
["Mount Rainier","US","Ligner Hallertauer men med en højere Alpha værdi. Citron og lakrids aroma","Hallertauer, Fuggles"]
["Nelson Sauvin","NZ","Frugtsmagen fra Hvidvin og stikkelsbær. Grapefrugt, bær, citrus. Lækker","Ingen"]
["Newport","US","Mild aroma, god bitterhumle","Magnum"]
["Northdown","GB","Ren og klar bitterhed, og klar frisk savsmuld og myntesmag","Northern Brewer"]
["Northern Brewer","GB","Rigtig god bitterhumle med en neutral og mild smag","Northdown, Challenger, Chinook, Brewers Gold, First Gold, Perle, Aurora, Northern Brewer, Galena"]
["Nugget","US","Noget tung, krydderurtagtig bitterhed og aroma","Galena, Columbus, Magnum"]
["Opal","DE","Moderat bitterhed, krydret, frugt- og blomsteragtig","Saphir, East Kent Goldings, Styrian Golding"]
["Pacifica","NZ","Orangemarmelade smag, der også indeholder en smule citrus- og blomsterkarakter.","Hallertau family"]
["Pacific Gem","NZ","Egetræagtig karakter, aroma af solbær","Brewer’s Gold, Bullion, Galena"]
["Pacific Jade","NZ","Med en blød bitterhed. Kraftig aroma af citrus og knust sort peber","Magnum"]
["Palisade","US","Frugtagtig, men ikke citrus aroma. Friskgravet muldjord undertoner","Willamette"]
["Perle","DE","Krydret moderat myntearoma og balanceret bitterhed","Northern Brewer, Northdown, Perle"]
["Phoenix","GB","Krydret “English Ale” aroma med en meget ren bitterhed","Challenger, Northern Brewer"]
["Pilgrim","GB","Krydret muldjord karakter","Target"]
["Pioneer","GB","Citrus (mindre agressiv end de amerikanske humler, en mere engelsk tilgang til aroma)","EKG"]
["Polaris","DE","Mynteagtig","Ingen"]
["Premiant","CZ","Mild behagelig aroma","Styrian Goldings, måske Saaz og Aurora"]
["Pride of Ringwood","AUS","Helt enestående intens aroma der ofte beskrives som grov citrus og krydderurtagtig. En helt original australsk humle","Cluster, Galena"]
["Progress","GB","Mild og krydret med toner af frisk savsmuld, en antydning af enebær. Den ligner Fuggle, men er lidt sødere","Fuggle"]
["Rakau","NZ","Starter med græsagtig og krydret smag, slutter med fersken og clementin aroma","Ingen"]
["Riwaka","NZ","Kraftig grapefrugt citrus karakter","Cascade"]
["San Juan Ruby Red","US","Vildt voksende humle der blev fundet i Colorado. Frugtagtig og let sød","Ingen"]
["Santiam","US","Meget lig Tettnanger. Krydderurt og blomster","Tettnanger"]
["Saphir","DE","Sød, ren, krydret. Citrus aroma, næsten ovre i clementiner","Hallertau, Hallertau Tradition, Spalter Select"]
["Satus","US","Meget lig Galena","Galena"]
["Savinjski Golding","SLO","Slovensk variant af Fuggle","Tettnanger, Fuggle, Saaz, Styrian Golding"]
["Select","DE","Avlet for at ligne Spalt, Tettnanger, Saaz","Spalt, Tettnanger, Saaz"]
["Serebrianka","RU","Let parfumeret aroma","Ingen"]
["Simcoe","US","Fyrnåle og citrus. Særpræget stærk smag. Blød og lækker bitterhed","Magnum, Summit"]
["Sladek","CZ","Både bitter- og aromahumle. Jordagtig aroma med krydderi og citrus","Crystal, Mount Hood, Traditional"]
["Smaragd","DE","Et ny europæisk svar på Amarillo. Frugtagtig næse og blomsteragtig. Mere fremadstræbende aroma end de fleste europæiske humler. Balanceret og flot og diskret frugtaroma","Ingen"]
["Sonnet","US","Siges at have Saaz og Styrian Golding karakter.  Lav bitterhed gør den til en behagelig Aromahumle med floral, græs- og jordagtige noter. Frugtig smag med eg og honning","Golding"]
["Sorachi ACE","JP","Citronagtig, citrongræs, citronsorbét smag","Columbus, Tomahawk, Summit, Warrior, Chinook, Southern Cross"]
["Southern Cross","NZ","Blød bitterhed, med citrus, lime og fyrrenål","Northern Brewer, Chinook, Sorachi Ace"]
["Sovereign","GB","Muldjord, nøddeagtig, fyrnål","Fuggles, Golding"]
["Spalt","DE","Krydret ædelhumle aroma","Saaz, Tettnanger, Santiam, Liberty, Hallertau"]
["Select Spalt","DE","Opfattes som en smule mere krydret end Spalt","Saaz, Tettnanger, Spalt, Hersbrucker, Perle, Tradition"]
["Stella","AUS","Krydret, muldjord, en antydning af stjerneanis, blomsteragtig","Ingen"]
["Sterling","US","Blomsteragtig, krydret, let citrusaroma","Saaz"]
["Sticklebract","NZ","Fyrnål, citrus, ret barsk bitterhed","Ingen"]
["Strisselspalt","FR","Mild og minder om en ædelhumle. Krydret krydderurtaroma","Liberty, Hallertau, Mt Hood, Crystal, Hersbrucker"]
["Styrian Eureka","SLO","Flavours of citrus, peach and pine, aromas of stone fruit and mandarin","Ingen"]
["Styrian Golding","SLO","Mild krydret aroma","Aurora, Fuggle, Williamette, Styrian Bobek"]
["Styrian Wolf","SLO","When brewed, expect intense fruity and floral notes. These include flavors of sweet tropical fruits and complex aromas of mango, elderflower and even a hint of violet. ","Ingen"]
["Summer","AUS","Let abrikos og melon frugtagtige toner, med en underbygning af muldjord og krydderier","Prøv med Rakau og Amarillo"]
["Summit","US","Blød og lækker bitterhed med appelsin, mandarin og citruskarakter","Apollo"]
["Super Alpha","NZ","Fyrrenåle, græs, citrongræs","Ingen"]
["Super Pride","AUS","Helt enestående intens aroma der ofte beskrives som grov citrus og krydderurtagtig. En helt original australsk humle","Cluster, Galena"]
["Sussex","GB","Kraftig og usædvanlig tropisk frugt aroma. Sussex er en aroma hop, med lav alfa og cohumulone med en delikat smag.","Fuggle"]
["Sybilla","PO","Meget god aromahumle med relativ høj Alphasyre%","Nugget, Challenger, Northern Brewer, Progress, Perle, Fuggle, Sterling"]
["Saaz","CZ","Blød aroma og bitterhed, den ultimative krydrede humle. Det er den ædelhumle der bruges til det fleste af de mest berømte pilsnere","Sterling, Spalt, Saaz, Lublin"]
["Target","GB","Krydderurter, muldjord, friskslået græs","Admiral, Fuggle, Willamette"]
["Taurus","DE","Aromatisk ædelhumle, citronskal","Horizon, Herkules, Magnum"]
["Tettnanger","GB","Krydderurter, let krydret, frisk savsmuld","Hersbrucker, Saaz, Spalt, Ultra, Select"]
["Tomahawk","US","Potent muldjord og harpiks aroma. Også kendt som Columbus eller Zeus","Chinook, Nugget"]
["Topaz","AUS","Lychee, mandarin, krydderier, harpiks med et touch af citrus","Måske Rakau, Stella"]
["Tradition","DE","Sødlig blomsteragtig, nygravet muldjord. Avlet for at få en stærkere version af Hallertau","Hallertau Mittelfrüh, Liberty"]
["Triskel","FR","Floral aroma, subtly fruity, citrusy","Strisselspalt, Ahtanum, Centennial, Chinook, Simcoe"]
["Ultra","US","Krydret, blomsteragtig, mild. God erstatning for ædelhumler","Saaz, Spalt, Tettnanger"]
["Vanguard","US","Let blomsteragtig, krydderurt og mild. Ligner Hallertau","Hallertau, Spalt, Tettnanger"]
["Vic Secret","AUS","Tropical fruit, pine, herbs","Galaxy"]
["Wai-iti","NZ","Fresh peaches and stone fruit dominate the aroma","Riwaka"]
["Waimea","NZ","Despite its incredibly high alphas, brewing characteristics of Waimea include some decidedly favorable flavor and aromas of fresh-crushed citrus and pine.","Columbus"]
["Wakatu","NZ","Mindre krydret end Mittelfrüh, med en blomsteragtig citrus og lime karakter. Også kendt som Hallertau Aroma","Hallertauer Mittelfrüh, Nelson Sauvin"]
["Warrior","US","Ren blød smag. Mild citrus og citronkarakter","Bravo, Nugget, Columbus - muligvis Apollo or Magnum"]
["WGV","GB","(Whitbread Golding Variety)","Challenger, Sovereign, Golding"]
["Willamette","US","Krydderurt, frisk savsmuld, nygravet muldjord","Fuggle, Tettnanger, Glacier, Styrian Golding"]
["Zeus","US","Potent muldjord og harpiks aroma. Også kendt som Columbus eller Tomahawk","Chinook, Nugget"]
["Zythos","US","Stærk aromatisk humle med noter af clementin, citron, grapefrugt og fyrnåle","Ahtanum, Sorachi Ace"]
[]
[]
[]
[]
[]
[]
[]
[]
[]
[]
[]
[]
[]
[]
[]
[]
[]
[]
[]
[]
[]
[]
[]
[]
[]
[]
[]
[]
[]
[]
[]
[]
[]
[]
[]
[]
[]
[]
[]
[]
[]
[]
[]
[]
[]
[]
[]
[]
[]
[]
[]
[]
[]
[]
[]
[]
[]
[]
[]
[]
[]
[]
[]
[]
[]
[]
[]
[]
[]
[]
[]
[]
[]
[]
[]
[]
[]
[]
[]
[]
[]
[]
[]
[]
[]
[]
[]
[]
[]
[]
[]
[]
[]
[]
[]
[]
[]
[]
[]
[]
[]
[]
[]
[]
[]
[]
[]
[]
[]
[]
[]
[]
[]
[]
[]
[]
[]
[]
[]
[]
[]
[]
[]
[]
[]
[]
[]
[]
[]
[]
[]
[]
[]
[]
[]
[]
[]
[]
[]
[]
[]
[]
[]
[]
[]
[]
[]
[null,null,null,30]
[]
[]
[]
[]
[]
[]
[]
[]
[]
[]
[]
[]
[]
[]
[]
[]
[]
[]
[]
[]
[]
[]
[]
[]
[]
[]
[]
[]
[]
[]
[]
[]
[]
[]
[]
[]
[]
[]
[]
[]
[]
[]
[]
[]
[]
[]
[]
[]
[]
[]
[]
[]
[]
[]
[]
[]
[]
[]
[]
[]
[]
[]
[]
[]
[]
[]
[]
[]
[]
[]
[]
[]
[]
[]
[]
[]
[]
[]
[]
[]
[]
[]
[]
[]
[]
[]
[]
[]
[]
[]
[]
[]
[]
[]
[]
[]
[]
[]
[]
[]
[]
[]
[]
[]
[]
[]
[]
[]
[]
[]
[]
[]
[]
[]
[]
[]
[]
[]
[]
[]
[]
[]
[]
[]
[]
[]
[]
[]
[]
[]
[]
[]
[]
[]
[]
[]
[]
[]
[]
[]
[]
[]
[]
[]
[]
[]
[]
[]
[]
[]
[]
[]
[]
[]
[]
[]
[]
[]
[]
[null,null,null,50]

{"sheet":"Tilsætninger","index":10,"n_rows":40,"n_cols":14,"rows_kept":40,"cut":false,"hidden":false,"merged":[]}
["Tilsætninger","EBC","EBC Avg.","Udbytte",null,null,"Sugars","Malt","°Lovibond","EBC","Gravity","Yield","Ekstraktudbytte","Description"]
["Farin","50 - 75",65,420,null,null,null,"Belgian Candi Sugar (clear)","0.5-0.5°","1 - 1","1.036-1.036","77,9 - 77,9%",{"$f":"IFERROR(((ROUND(((((((MID(K2,4,2)+RIGHT(K2,2))/2)*3.785)/453)*1000)/10),0))*10),0)","v":300},"Smooth taste, good head retention, sweet aroma and high gravity without being apparent. Use in Belgian and holiday ales. Use clear for tripels."]
["Lyle's Golden Syrup",30,30,375,"Estimat",null,null,"Brown Sugar","40-40°","104 - 104","1.046-1.046","99,5 - 99,5%",{"$f":"IFERROR(((ROUND(((((((MID(K3,4,2)+RIGHT(K3,2))/2)*3.785)/453)*1000)/10),0))*10),0)","v":380},"Imparts rich, sweet flavor. Use in Scottish ales, old ales and holiday beers."]
["Lyle's Black Treacle",200,200,375,"Estimat",null,null,"Candi Sugar (amber)","75-75°","199 - 199","1.036-1.036","77,9 - 77,9%",300,"Smooth taste, good head retention, sweet aroma and high gravity without being apparent. Use in Belgian and holiday ales. Use amber for dubbels."]
["Lys Kandis",0,0,375,null,null,null,"Candi Sugar (dark)","275-275°","733 - 733","1.036-1.036","77,9 - 77,9%",300,"Smooth taste, good head retention, sweet aroma and high gravity without being apparent. Use in Belgian and holiday ales. Use dark in brown beer and strong golden ales."]
["Mørk Kandis","80 - 120",80,375,null,null,null,"Corn Sugar","1-1°","2 - 2","1.037-1.037","80 - 80%",310,"Use in priming beer or in extract recipes where flaked maize would be used in a mash."]
["Muscovado Sukker","80 - 120",100,400,null,null,null,"Dark Brown Sugar","60-60°","160 - 160","1.046-1.046","99,5 - 99,5%",380,"Imparts rich, sweet flavor. Use in Scottish ales, old ales and holiday beers."]
["Rørsukker",20,20,420,null,null,null,"Demerara Sugar","1-1°","2 - 2","1.041-1.042","88,7 - 90,8%",350,"Imparts mellow, sweet flavor. Use in English ales."]
["Sukker",0,0,440,null,null,null,"Dextrose (glucose)","1-1°","2 - 2","1.037-1.037","80 - 80%",310,"Imparts a mild sweet taste and smoothness. Use in English beers."]
["Dansk Honning",20,20,400,null,null,null,"Dry Malt Extract","10°",26,"1.044-1.044","95,2 - 95,2%",370,"Extra light (2.5°), Light (3.5°), Amber (10°), Dark (30°), Wheat (3°)"]
["Appelsinskal",0,0,0,null,null,null,"Honey","10°",26,"1.032-1.032","69,2 - 69,2%",270,"Imparts sweet and dry taste. For honey and brown ales. Also: specialty ales."]
["Basilikum",0,0,0,"Frisk",null,null,"Invert Sugar","-",0,"1.046-1.046","99,5 - 99,5%",380,"Increases alcohol. Use in some Belgian or English ales. Use as an adjunct for priming. Made from sucrose. No dextrins. Use 1 cup for priming."]
["Bynke",0,0,0,null,null,null,"Lactose","-",0,"1.043-1.043","93 - 93%",360,"Adds sweetness and body. Use in sweet or milk stouts."]
["Chili Flakes",0,0,0,null,null,null,"Licorice Stick","-",0,"-","-",0,"Adds a smooth flavor to stouts, porters, holiday ales and flavored beers."]
["Ege Chips",0,0,0,null,null,null,"Lyle’s Golden Syrup","0-0°",0,"1.036-1.036","77,9 - 77,9%",300,"Increases alcohol without flavor. Liquid Invert Sugar. Use in English and Belgian (Chimay) ales."]
["Havtorn",0,0,0,null,null,null,"Maple Sap","3-3°","6 - 6","1.009-1.009","19,5 - 19,5%",80,"Crisp dry, earthy flavor. Use in pale ales, porters and maple ales."]
["Hybenskaller",0,0,0,null,null,null,"Maple Syrup","35-35°","93 - 93","1.030-1.030","64,9 - 64,9%",250,"Imparts a dry, woodsy flavor if used in the boil. If beer is bottled with it, it gives it a smooth sweet, maple taste. Use in maple ales, pale ales, brown ales and porters."]
["Hyldeblomst",0,0,0,null,null,null,"Molasses","80-80°","213 - 213","1.036-1.036","77,9 - 77,9%",300,"Imparts strong sweet flavor. Use in stouts and porters."]
["Ingefær",0,0,0,null,null,null,"Rice Solids","0-0°",0,"1.040-1.040","86,5 - 86,5%",330,"Lightens flavor without taste. Use in American and Asian lagers."]
["Kanel",0,0,0,null,null,null,"Sucrose (white table sugar)","-",0,"1.046-1.046","99,5 - 99,5%",380,"Increases alcohol. Use in Australian lagers and English bitters."]
["Koriander",0,0,0,null,null,null,"Syrup Malt Extract","10°",26,"1.033-1.037","71,4 - 80%",290,"Extra Light (3.5°), Light (3.5 -5°), Amber (10°), Dark (30°), Wheat (2°)."]
["Kumquats",0,0,0,null,null,null,"Treacle","100-100°","266 - 266","1.036-1.036","77,9 - 77,9%",300,"Imparts intense, sweet flavor. A British mixture of molasses, invert sugar and golden syrup (corn syrup). Use in dark English ales."]
["Lakrids",0,100,0,"Estimat"]
["Lakridsrod",0,0,0]
["Lyngblomster",0,0,0]
["Malurt",0,0,0]
["Mjødurt",0,0,0]
["Porse",0,0,0]
["Rosiner",0,0,0]
["Røllikeblomst",0,0,0]
["Røllikeblade",0,0,0]
["Stjerneanis",0,0,0]
["Laktose",0,0,0,"Uforgærbart mælkesukker"]
["Ekstra lys spraymalt",8,8,420,"Estimat"]
["Lys spraymalt",12,12,420,"Estimat"]
["Medium spraymalt",18,18,420,"Estimat"]
["Mørk spraymalt",57,57,420,"Estimat"]
["Ekstra mørk spraymalt",95,95,420,"Estimat"]
["Hvede spraymalt",8,8,420,"Estimat"]
["Klar Urt",0,0,0]

{"sheet":"Gær","index":11,"n_rows":75,"n_cols":10,"rows_kept":75,"cut":false,"hidden":false,"merged":[[72,2,72,5],[74,2,74,5]]}
["Gær Navn","Beskrivelse","Flocculation","Attenuation %","Attenuation Avg.","Temp. Range °C","Alc. Tolerance %",null,"Temp.(°C)","CO2"]
[null,null,null,null,null,null,null,null,0,1.71]
["Brewolution Abbey Ale","Den har en fantastisk og kraftig frugtaroma, balanceret perfekt med en mild og let krydret aroma, og komplekse og lækre krydrede phenoler.","Medium - High","73 - 77",75,"18 - 25",8,null,1,1.66]
["Brewolution American Ale","Denne gær giver en usædvanlig ren smag, ideel til at humlekarakteren kommer tydelig frem. Citrus og fyrresmag i humle vil blive fremhævet.","High","77 - 85",81,"18 - 23",10,null,2,1.61]
["Brewolution Belgian Strong Ale","Meget karakterfuld ølgær med krydrede, frugtige og pebrede noter.","Medium","85 - 90",85,"26 - 32",12,null,3,1.56]
["Brewolution British Ale","Gæren har en neutral gæraroma for at sikre, den fulde karakter af malt og humle er fremtrædende i hver øl.","Very High","77 - 82",80,"16 - 22",12,null,4,1.51]
["Brewolution Dark Ale","Fremmer krop og smag. Gæren giver en fyldig mørk frugt variation.","High","70 - 75",73,"18 - 22",8,null,5,1.46]
["Brewolution Universal Lager","Denne gær giver en blød, delikat og velafbalanceret øl, med en tør og ren smag.","High","72 - 76",77,"10 - 15",8,null,6,1.39]
["Brewolution Wheat Beer","Giver fine velafbalancerede estere med krydrede aromaer. Klassiske banan estere","Low","70 - 75",73,"18 - 30",7.5,null,7,1.32]
["- Mangrove Jack's Bohemian Lager M84","Denne gær giver en blød, delikat og velafbalanceret øl, med en tør og ren smag.","High","72 - 76",74,"10 - 15",8,null,8,1.28]
["Mangrove Jack's Californian Lager M54","Producerer en ren og klar pilsneraroma, uden de frygtede bismage. Gæren er perfekt til de fleste undergærede øltyper.","Medium - High","77 - 82",80,"18 - 20",9,null,9,1.24]
["Mangrove Jack's Belgian Abbey Ale M47","Den har en fantastisk og kraftig frugtaroma, balanceret perfekt med en mild og let krydret aroma, og komplekse og lækre krydrede phenoler.","Medium - High","73 - 77",75,"18 - 25",8,null,10,1.2]
["Mangrove Jack's Bavarian Wheat M20","Giver fine velafbalancerede estere med krydrede aromaer. Klassiske banan estere","Low","70 - 75",73,"18 - 30",7.5,null,11,1.17]
["Mangrove Jack's Liberty Bell Ale M36","Ren, neutral og rund I smagen, let pæreagtig aroma, med lidt jordbær eller kiwi blandet i. Rene klare maltaromaer, og med en evne til at fremhæve humlearomaerne","High","74 - 78",76,"18 - 23",9,null,12,1.1299999999999999]
["Mangrove Jack´s French Saison M29","Meget karakterfuld ølgær med krydrede, frugtige og pebrede noter.","Medium","85 - 90",90,"26 - 32",14,null,13,1.0900000000000001]
["Mangrove Jack´s New World Strong Ale M42","Gæren har en neutral gæraroma for at sikre, den fulde karakter af malt og humle er fremtrædende i hver øl. Giver en meget klar øl, da gærrester lægger sig fast i bunden og blander sig ikke ved uro i væsken.","Very High","77 - 82",80,"16 - 22",12,null,14,1.05]
["- Mangrove Jack's Newcastle Dark Ale M03","Fremmer krop og smag. Gæren giver en fyldig mørk frugt variation.","High","70 - 75",73,"18 - 22",8,null,15,1.02]
["Mangrove Jack's US West Coast M44","Denne gær giver en usædvanlig ren smag, ideel til at humlekarakteren kommer tydelig frem. Citrus og fyrresmag i humle vil blive fremhævet.","High","77 - 85",81,"18 - 23",10,null,16,0.99]
["Mangrove Jack's Bavarian Lager M76","A bottom fermenting yeast suitable for most lager styles. Promotes less sulphur production than other lager strains as well as a fuller, more rounded malt character with well-promoted hop flavours.","Medium","75 - 80",77,"8 - 14",8,null,17,0.95]
["Mangrove Jack's Belgian Ale M41","Spicy and phenolic, this yeast emulates the intensity and complexity of some of the best monastic breweries in Belgium. High attenuation and alcohol tolerance allow you to brew a huge range of Belgian beers.","Medium","82 - 88",85,"18 - 28",12,null,18,0.91]
["Mangrove Jack's Belgian Tripel M31","Provides a fantastic complex marriage of spice, fruity esters, phenolics and alcohol. It is also very attenuative with a high alcohol tolerance making it perfect for a range of Belgian styles.","Medium","82 - 88",85,"18 - 28",10,null,19,0.89]
["Mangrove Jack's Belgian Wit M21","A traditional top-fermenting yeast that has a good balance between fruity esters and warming spice phenolics. The yeast will leave some sweetness and will drop bright if left long enough.","Low","70 - 75",73,"18 - 25",8,null,20,0.88]
["Mangrove Jack's Empire Ale M15","A top-fermenting ale yeast suitable for a variety of full bodied ales, with exceptional depth. Ferments with full, rich dark fruit flavors.","High","70 - 75",73,"18 - 22",8,null,21,0.85]
["Mangrove Jack's Mjød M05","A high ester-producing strain conferring fresh, floral esters, especially when fermented cool. This yeast has high alcohol tolerance and ferments well over a wide temperature range.","High","95 - 100",97,"15 - 30",18,null,22,0.83]
["Mangrove Jack's Cider M02","A high ester-producing cider strain imparting wonderful flavour depth, revealing the full fruit potential. Makes exceptionally crisp, flavoursome and refreshing ciders.","High","95 - 100",97,"18 - 24",17.5,null,23,0.81]
["Wyeast XL1007 German Ale",null,"Low","73 - 77",75,"13 - 20",11,null,24,0.78]
["Wyeast XL1010 American Wheat",null,"Low","74 - 78",76,"14 - 23",10,null,25,0.76]
["Wyeast XL1028 London Ale",null,"Low - Medium","73 - 77",75,"15 - 22",11,null,26,0.74]
["Wyeast XL1056 American Ale","Well balanced. Ferments dry, finishes soft.","Low - Medium","73 - 77",75,"15 - 22",11,null,27,0.73]
["Wyeast XL1084 Irish Ale",null,"Medium","71 - 75",73,"16 - 22",12]
["Wyeast XL1098 British Ale",null,"Medium","73 - 75",74,"18 - 22",10]
["Wyeast XL1099 Whitbread Ale",null,"Medium - High","68 - 72",70,"18 - 24",10]
["Wyeast XL1187 Ringwood Ale","A malty, complex profile that clears well.","High","68 - 72",70,"18 - 23",10]
["Wyeast XL1214 Belgian Abbey",null,"Low - Medium","74 - 78",76,"20 - 24",12]
["Wyeast XL1272 American Ale II","Slightly nutty, soft, clean and tart finish.","Medium","72 - 76",74,"15 - 22",10]
["Wyeast XL1275 Thames Valley Ale",null,"Low - Medium","72 - 76",74,"16 - 22",10]
["Wyeast XL1318 London Ale III",null,"High","71 - 75",73,"18 - 23",10]
["Wyeast XL1332 Northwest Ale","Malty, mildly fruity, good depth and complexity.","High","67 - 71",69,"18 - 24",10]
["Wyeast XL1335 British Ale II",null,"High","73 - 76",74,"17 - 24",10]
["Wyeast XL1388 Belgian Strong Ale",null,"Low","74 - 78",76,"18 - 27",13]
["Wyeast XL1450 Denny's Favorite 50","Accentuates malt, caramel, or fruit character.","Low","74 - 76",75,"15 - 21",10]
["- Wyeast XL1469 West Yorkshire Ale",null,"High","67 - 71",69,"18 - 22",9]
["Wyeast XL1728 Scottish Ale",null,"High","69 - 73",71,"13 - 24",12]
["Wyeast XL1762 Belgian Abbey II",null,"Medium","73 - 77",75,"18 - 24",12]
["Wyeast XL1968 London ESB Ale",null,"Very High","67 - 71",69,"18 - 22",9]
["- Wyeast XL2000 Budvar Lager",null,"Medium - High","71 - 75",73,"9 - 13",9]
["- Wyeast XL2001 Urquell Lager",null,"Medium - High","72 - 76",74,"9 - 13",9]
["Wyeast XL2007 Pilsen Lager",null,"Medium","71 - 75",73,"9 - 13",9]
["- Wyeast XL2035 American Lager",null,"Medium","73 - 77",75,"9 - 14",9]
["- Wyeast XL2042 Danish Lager",null,"Low","73 - 77",75,"8 - 13",9]
["Wyeast XL2112 California Lager",null,"High","67 - 71",69,"14 - 20",9]
["Wyeast XL2124 Bohemian Lager",null,"Low - Medium","73 - 77",75,"8 - 22",9]
["- Wyeast XL2206 Bavarian Lager",null,"Medium - High","73 - 77",75,"8 - 14",9]
["Wyeast XL2278 Czech Pils",null,"Medium - High","70 - 74",72,"10 - 14",9]
["Wyeast XL2308 Munich Lager",null,"Medium","70 - 74",72,"9 - 13",9]
["Wyeast XL2565 Kölsch",null,"Low","73 - 77",75,"13 - 21",10]
["Wyeast XL2633 Octoberfest Lager Blend",null,"Low - Medium","73 - 77",75,"9 - 14",9]
["- Wyeast XL3056 Bavarian Wheat Blend",null,"Medium","73 - 77",75,"18 - 23",10]
["- Wyeast XL3068 Weihenstephan Weizen",null,"Low","73 - 77",75,"18 - 24",10]
["Wyeast XL3278 Belgian Lambic Blend",null,"Variable","70 - 80",75,"17 - 24",11]
["- Wyeast XL3333 German Wheat",null,"High","70 - 76",73,"17 - 24",10]
["- Wyeast XL3463 Forbidden Fruit",null,"Low","72 - 76",74,"17 - 24",12]
["Wyeast XL3522 Belgian Ardennes",null,"High","72 - 76",74,"18 - 24",12]
["Wyeast XL3638 Bavarian Wheat",null,"Low","70 - 76",73,"18 - 24",10]
["Wyeast XL3711 French Saison",null,"Low","77 - 83",80,"18 - 25",12]
["Wyeast XL3724 Belgian Saison",null,"Low","76 - 80",78,"21 - 35",12]
["Wyeast XL3763 Roeselare Ale Blend",null,"Variable",80,80,"18 - 30",11]
["Wyeast XL3787 Trappist High Gravity",null,"Medium","74 - 78",76,"18 - 25",12]
["- Wyeast XL3942 Belgian Wheat",null,"Medium","72 - 76",74,"18 - 23",12]
["- Wyeast XL3944 Belgian Witbier",null,"Medium","72 - 76",74,"16 - 24",12]
[]
[]
[null,null,"https://www.wyeastlab.com/hb_yeaststrain.cfm"]
[]
[null,null,"http://mangrovejacks.com/collections/craft-series-yeasts"]

{"sheet":"Typer","index":12,"n_rows":128,"n_cols":21,"rows_kept":128,"cut":false,"hidden":false,"merged":[[1,0,1,1],[0,5,0,20],[0,0,0,2],[1,3,1,4],[116,20,118,20]]}
["Ref.: Beer Judge Certification Program",null,null,null,null,"OBS: 27J and 27K are not part of BJCP 2015 styles"]
["Style #",null,"Style Name","Style #",null,"OG high","OG low","FG high","FG low","ABV high","ABV low","EBC high","EBC low","IBU high","IBU low","RBR","CO2 High","CO2 Low","CO2 Avg.","Yeast Type","Examples"]
[]
[1,"A","American Light Lager",1,"A","1040","1028","1008","0998","4,2","2,8",6,4,"12","8",0.34,2.73,2.57,{"$f":"IF(R4=\"\",\"\",(R4+Q4)/2)","v":2.65},"Lager","Bud Light, Coors Light, Keystone Light, Michelob Light, Miller Lite, Old Milwaukee Light"]
[1,"B","American Lager",1,"B","1050","1040","1010","1004","5,3","4,2",8,4,"18","8",0.27,2.73,2.57,{"$f":"IF(R5=\"\",\"\",(R5+Q5)/2)","v":2.65},"Lager","Budweiser, Coors Original, Grain Belt Premium Lager, Miller High Life, Pabst Blue Ribbon, Special Export"]
[1,"C","Cream Ale",1,"C","1055","1042","1012","1006","5,6","4,2",10,5,"20","8",0.38,2.7,2.6,2.6500000000000004,"Ale","Genesee Cream Ale, Liebotschaner Cream Ale, Little Kings Cream Ale, New Glarus Spotted Cow, Old Style, Sleeman Cream Ale"]
[1,"D","American Wheat Beer",1,"D","1055","1040","1013","1008","5,5","4,0",12,6,"30","15",0.48,2.6,2.2999999999999998,2.4500000000000002,"Ale","Bell’s Oberon, Boulevard Unfiltered Wheat Beer, Goose Island 312 Urban Wheat Ale, Widmer Hefeweizen"]
[2,"A","International Pale Lager",2,"A","1050","1042","1012","1008","6,0","4,6",12,4,"25","18",0.74,2.5,2.2999999999999998,2.4,"Lager","Asahi Super Dry, Birra Moretti, Corona Extra, Devils Backbone Gold Leaf Lager, Full Sail Session Premium Lager, Heineken, Red Stripe, Singha"]
[2,"B","International Amber Lager",2,"B","1055","1042","1014","1008","6,0","4,6",28,14,"25","8",0.74,2.5,2.2999999999999998,2.4,"Lager","Brooklyn Lager, Capital Winter Skål, Dos Equis Amber, Schell’s Oktoberfest, Yuengling Lager"]
[2,"C","International Dark Lager",2,"C","1056","1044","1012","1008","6,0","4,2",43,28,"20","8",0.74,2.5,2.2999999999999998,2.4,"Lager","Baltika #4 Original, Devils Backbone Old Virginia Dark, Dixie Blackened Voodoo, Saint Pauli Girl Dark, San Miguel Dark, Session Black Dark Lager, Shiner Bock"]
[3,"A","Czech Pale Lager",3,"A","1044","1028","1014","1008","4,1","3,0",12,6,"35","20",0.74,2.5,2.2999999999999998,2.4,"Lager","Březňák Světlé výčepní pivo, Notch Session Pils, Pivovar Kout na Šumavě Koutská 10°, Únětické pivo 10°"]
[3,"B","Czech Premium Pale Lager",3,"B","1060","1044","1017","1013","5,8","4,2",12,7,"45","30",0.74,2.5,2.2999999999999998,2.4,"Lager","Bernard Sváteční ležák, Gambrinus Premium, Kout na Šumavě Koutská 12°, Pilsner Urquell, Pivovar Jihlava Ježek 11°, Primátor Premium, Únětická 12°"]
[3,"C","Czech Amber Lager",3,"C","1060","1044","1017","1013","5,8","4,4",32,20,"35","20",0.74,2.5,2.2999999999999998,2.4,"Lager","Bernard Jantarový ležák, Pivovar Vysoký Chlumec Démon, Primátor polotmavý 13°, Strakonický Dudák Klostermann polotmavý ležák 13°"]
[3,"D","Czech Dark Lager",3,"D","1060","1044","1017","1013","5,8","4,4",69,28,"34","18",0.74,2.5,2.2999999999999998,2.4,"Lager","Bohemian Brewery Cherny Bock 4%, Budweiser Budvar B:Dark tmavý ležák, Devils Backbone Morana, Kout na Šumavě Koutský tmavý speciál 14°, Notch Černé Pivo, Pivovar Březnice Herold, U Fleků Flekovský tmavý 13° ležák"]
[4,"A","Munich Helles",4,"A","1048","1044","1012","1006","5,4","4,7",10,6,"22","16",0.4,2.68,2.2599999999999998,2.4699999999999998,"Lager","Augustiner Lagerbier Hell, Bürgerbräu Wolznacher Hell Naturtrüb, Hacker-Pschorr Münchner Gold, Löwenbraü Original, Paulaner Premium Lager, Spaten Premium Lager, Weihenstephaner Original"]
[4,"B","Festbier",4,"B","1057","1054","1012","1010","6,3","5,8",14,8,"25","18",0.43,2.73,2.57,2.65,"Lager","Augustiner Oktoberfest, Hacker-Pschorr Superior Festbier, Hofbräu Festbier, Löwenbräu Oktoberfestbier, Paulaner Wiesn, Schönramer Gold, Weihenstephaner Festbier"]
[4,"C","Helles Bock",4,"C","1072","1064","1018","1011","7,4","6,3",22,12,"35","23",0.43,2.73,2.16,2.4450000000000003,"Lager","Altenmünster Maibock, Ayinger Maibock, Capital Maibock, Blind Tiger Maibock, Einbecker Mai-Urbock, Hacker-Pschorr Hubertus Bock, Mahr’s Bock"]
[5,"A","German Leichtbier",5,"A","1034","1026","1010","1006","3,6","2,4",10,4,"28","15",0.34,2.7,2.2000000000000002,2.4500000000000002,"Lager","Beck’s Light, Bitburger Light, Mahr’s Leicht, Paulaner Münchner Hell Leicht, Paulaner Premium Leicht"]
[5,"B","Kölsch",5,"B","1050","1044","1011","1007","5,2","4,4",10,7,"30","18",0.55000000000000004,2.73,2.42,2.5750000000000002,"Kölsch","Früh Kölsch, Gaffel Kölsch, Mühlen Kölsch, Reissdorf Kölsch, Sion Kölsch, Sünner Kölsch"]
[5,"C","German Helles Exportbier",5,"C","1056","1048","1015","1010","6,0","4,8",14,8,"30","20",0.5,2.57,2.57,2.57,"Lager","DAB Original, Dortmunder Kronen, Dortmunder Union Export, Flensburger Gold, Gordon Biersch Golden Export, Great Lakes Dortmunder Gold"]
[5,"D","German Pils",5,"D","1050","1044","1013","1008","5,2","4,4",10,4,"40","22",0.75,2.52,2.52,2.52,"Lager","König Pilsener, Left Hand Polestar Pils, Paulaner Premium Pils, Schönramer Pils, Stoudt Pils, Tröegs Sunshine Pils, Trumer Pils"]
[6,"A","Märzen",6,"A","1060","1054","1014","1010","6,3","5,8",33,16,"24","18",0.43,2.73,2.57,2.65,"Lager","Buergerliches Ur-Saalfelder, Hacker-Pschorr Original Oktoberfest, Paulaner Oktoberfest, Weltenburg Kloster Anno 1050"]
[6,"B","Rauchbier",6,"B","1057","1050","1016","1012",8.6,"4,8",43,24,"30","20",0.45,2.57,2.16,2.3650000000000002,"Ale","Eisenbahn Rauchbier, Kaiserdom Rauchbier, Schlenkerla Rauchbier Märzen, Spezial Rauchbier Märzen Victory Scarlet Fire Rauchbier"]
[6,"C","Dunkles Bock",6,"C","1072","1064","1019","1013","7,2","6,3",43,28,"27","20",0.34,2.7,2.2000000000000002,2.4500000000000002,"Lager","Aass Bock, Einbecker Ur-Bock Dunkel, Great Lakes Rockefeller Bock, Kneitinger Bock, New Glarus Uff-da Bock, Penn Brewery St. Nikolaus Bock"]
[7,"A","Vienna Lager",7,"A","1055","1048","1014","1010","5,5","4,7",30,18,"30","18",0.48,2.6,2.4,2.5,"Lager","Cuauhtémoc Noche Buena, Chuckanut Vienna Lager, Devils Backbone Vienna Lager, Figueroa Mountain Danish-style Red Lager, Heavy Seas Cutlass Amber Lager, Schell’s Firebrick"]
[7,"B","Altbier",7,"B","1052","1044","1014","1008","5,5","4,3",33,22,"50","25",0.83,3.09,2.16,2.625,"Ale","Bolten Alt, Diebels Alt, Füchschen Alt, Original Schlüssel Alt, Schlösser Alt, Schumacher Alt, Uerige Altbier"]
[7,"C","Kellerbier",7,"C","1051","1045","1012","1008","5,4","4,7",14,6,"35","20",0.63,3.09,2.16,2.625,"Ale","Paulaner, Paulaner Brauhaus, Hofbrau, Tegernseer Tal. (bottled) Ayinger Kellerbier, Hacker-Pschorr Munchner Kellerbier Anno 1417, Hofbrau Munchner Sommer Naturtrub, Wolnzacher Hell Naturtrüb"]
[7,"D","Amber Kellerbier",7,"D","1054","1048","1016","1012","5,4","4,8",33,14,"40","25",0.63,3.09,2.16,2.625,"Ale","Greif, Eichhorn, Nederkeller, Hebendanz (bottled) Buttenheimer Kaiserdom Kellerbier, Kulmbacher Monchshof Kellerbier, Leikeim Kellerbier, Löwenbräu Kellerbier, Mahr’s Kellerbier, St. Georgen Kellerbier, Tucher Kellerbier Naturtrub"]
[8,"A","Munich Dunkel",8,"A","1056","1048","1016","1010","5,6","4,5",55,28,"28","18",0.43,2.66,2.21,2.4350000000000001,"Lager","Ayinger Altbairisch Dunkel, Chuckanut Dunkel Lager, Ettaler Kloster Dunkel, Hacker-Pschorr Alt Munich Dark, Weltenburger Kloster Barock-Dunkel"]
[8,"B","Schwarzbier",8,"B","1052","1046","1016","1010","5,4","4,4",59,33,"30","20",0.53,2.6,2.2000000000000002,2.4000000000000004,"Lager","Devils Backbone Schwartz Bier, Einbecker Schwarzbier, Eisenbahn Dunkel, Köstritzer Schwarzbier, Mönchshof Schwarzbier, Nuezeller Original Badebier"]
[9,"A","Doppelbock",9,"A","1112","1072","1024","1016",10,"7,0",49,12,"26","16",0.23,2.62,2.2599999999999998,2.44,"Lager","Dark Versions –Andechser Doppelbock Dunkel, Ayinger Celebrator, Paulaner Salvator, Spaten Optimator, Tröegs Troegenator, Weihenstephaner Korbinian,; Pale Versions – Eggenberg Urbock 23º, EKU 28, Plank Bavarian Heller Doppelbock"]
[9,"B","Eisbock",9,"B","1120","1078","1035","1020","4,0","9,0",59,35,"35","25",0.28000000000000003,2.37,2.37,2.37,"Lager","Kulmbacher Eisbock"]
[9,"C","Baltic Porter",9,"C","1090","1060","1024","1016","9,5","6,5",59,33,"40","20",0.38,2.5,1.8,2.15,"Ale","Aldaris Porteris, Baltika #6 Porter, Devils Backbone Danzig, Okocim Porter, Sinebrychoff Porter, Zywiec Porter"]
[10,"A","Weizen",10,"A","1052","1044","1014","1010","5,6","4,3",12,4,"15","8",0.23,4.4800000000000004,3.6,4.04,"Wheat Ale","Ayinger Bräu Weisse, Hacker-Pschorr Weisse, Paulaner Hefe-Weizen Naturtrüb, Schneider Weisse Unser Original, Weihenstephaner Hefeweissbier"]
[10,"B","Dunkelweizen",10,"B","1056","1044","1014","1010","5,6","4,3",45,28,"18","10",0.28000000000000003,4.4800000000000004,3.6,4.04,"Wheat Ale","Ayinger Ur-Weisse, Ettaler Weissbier Dunkel, Franziskaner Hefe-Weisse Dunkel, Hacker-Pschorr Weisse Dark, Tucher Dunkles Hefe Weizen, Weihenstephaner Hefeweissbier Dunkel"]
[10,"C","Weizenbock",10,"C","1090","1064","1022","1015","9,0","6,5",49,12,"30","15",0.28999999999999998,4.74,3.71,4.2249999999999996,"Wheat Ale","Dark –Eisenbahn Weizenbock, Plank Bavarian Dunkler Weizenbock, Penn Weizenbock, Schneider Unser Aventinus; Pale –Plank Bavarian Heller Weizenbock, Weihenstephaner Vitus"]
[11,"A","Standard Bitter",11,"A","1039","1030","1011","1007","3,8","3,2",28,16,"35","25",0.81,1.3,0.75,1.0249999999999999,"Ale","Adnams Southwold Bitter, Brains Bitter, Fuller's Chiswick Bitter, Greene King IPA, Tetley’s Original Bitter, Young's Bitter"]
[11,"B","Best Bitter",11,"B","1048","1040","1012","1008","4,6","3,8",32,16,"40","25",0.74,1.3,0.75,1.0249999999999999,"Ale","Adnams SSB, Coniston Bluebird Bitter, Fuller's London Pride, Harvey’s Sussex Best Bitter, Shepherd Neame Master Brew Kentish Ale, Timothy Taylor Landlord,  Young’s Special"]
[11,"C","Strong Bitter",11,"C","1060","1048","1016","1010","6,2","4,6",35,16,"50","30",0.73,1.3,0.75,1.0249999999999999,"Ale","Bass Ale, Highland Orkney Blast, Samuel Smith’s Old Brewery Pale Ale, Shepherd Neame Bishop's Finger, Shepherd Neame Spitfire, West Berkshire Dr. Hexter’s Healer, Whitbread Pale Ale, Young’s Ram Rod"]
[12,"A","British Golden Ale",12,"A","1053","1038","1012","1006","5,0","3,8",12,4,"45","20",0.47,2.6,2.2999999999999998,{"$f":"IF(R40=\"\",\"\",(R40+Q40)/2)","v":2.4500000000000002},"Ale","Crouch Vale Brewers Gold, Fuller's Discovery, Golden Hill Exmoor Gold, Hop Back Summer Lightning, Kelham Island Pale Rider, Morland Old Golden Hen, Oakham JHB"]
[12,"B","Australian Sparkling Ale",12,"B","1050","1038","1006","1004","6,0","4,5",14,8,"35","20",0.8,4.5,3,3.75,"Ale","Coopers Original Pale Ale, Coopers Sparkling Ale"]
[12,"C","English IPA",12,"C","1075","1050","1018","1010","7,5","5,0",28,12,"60","40",0.8,2.2999999999999998,1.5,1.9,"Ale","Freeminer Trafalgar IPA, Fuller's Bengal Lancer IPA, Meantime India Pale Ale, Ridgeway IPA, Summit True Brit IPA, Thornbridge Jaipur, Worthington White Shield"]
[13,"A","Dark Mild",13,"A","1038","1030","1013","1008","3,8","3,0",49,24,"25","10",0.47,2,1.3,1.65,"Ale","Banks's Mild, Cain's Dark Mild, Highgate Dark Mild, Brain’s Dark, Moorhouse Black Cat, Rudgate Ruby Mild, Theakston Traditional Mild"]
[13,"B","British Brown Ale",13,"B","1052","1040","1013","1008","5,4","4,2",43,24,"30","20",0.54,2.2999999999999998,1.5,1.9,"Ale","Maxim Double Maxim, Newcastle Brown Ale, Riggwelter Yorkshire Ale, Samuel Smith’s Nut Brown Ale, Wychwood Hobgoblin"]
[13,"C","English Porter",13,"C","1052","1040","1014","1008","5,4","4,0",59,39,"35","18",0.56999999999999995,2.5,1.7,2.1,"Ale","Burton Bridge Burton Porter, Fuller's London Porter, Nethergate Old Growler Porter, RCH Old Slug Porter, Samuel Smith Taddy Porter"]
[14,"A","Scottish Light",14,"A","1035","1030","1013","1010","3,2","2,5",43,33,"20","10",0.4,1.3,0.75,1.0249999999999999,"Ale","McEwan's 60"]
[14,"B","Scottish Heavy",14,"B","1040","1035","1015","1010","3,9","3,2",43,26,"20","10",0.42,1.3,0.75,1.0249999999999999,"Ale","Broughton Greenmantle Ale, Caledonia Smooth, McEwan's 70, Orkney Raven Ale, Tennent’s Special Ale"]
[14,"C","Scottish Export",14,"C","1060","1040","1016","1010","6,0","3,9",43,26,"30","15",0.45,1.3,0.75,1.0249999999999999,"Ale","Belhaven Scottish Ale, Broughton Exciseman’s Ale, Orkney Dark Island, Pelican MacPelican’s Scottish Style Ale, Weasel Boy Plaid Ferret Scottish Ale"]
[15,"A","Irish Red Ale",15,"A",1060,1044,"1014","1010",6,4,35,18,"28","18",0.43,2.2999999999999998,1.5,1.9,"Ale","Caffrey’s Irish Ale, Franciscan Well Rebel Red, Kilkenny Irish Beer, O’Hara’s Irish Red Ale, Porterhouse Red Ale, Samuel Adams Irish Red, Smithwick’s Irish Ale"]
[15,"B","Irish Stout",15,"B","1044","1036","1011","1007","4,5","4,0",79,49,"45","25",0.43,2.2999999999999998,1.5,1.9,"Ale","Beamish Irish Stout, Guinness Draught, Harpoon Boston Irish Stout, Murphy's Irish Stout, O’Hara’s Irish Stout, Porterhouse Wrasslers 4X"]
[15,"C","Irish Extra Stout",15,"C","1062","1052","1014","1010","6,5","5,5",79,49,"50","35",0.89,2,1.6,1.8,"Ale","Guinness Extra Stout (US version), O’Hara’s Leann Folláin, Sheaf Stout"]
[16,"A","Sweet Stout",16,"A","1060","1044","1024","1012","6,0","4,0",79,59,"40","20",0.51,2.4,2,2.2000000000000002,"Ale","Bristol Beer Factory Milk Stout, Left Hand Milk Stout, Lancaster Milk Stout, Mackeson's XXX Stout, Marston’s Oyster Stout, Samuel Adams Cream Stout"]
[16,"B","Oatmeal Stout",16,"B","1065","1045","1018","1010","5,9","4,2",79,43,"40","25",0.56000000000000005,2.4,2,2.2000000000000002,"Ale","Anderson Valley Barney Flats Oatmeal Stout, Broughton Scottish Oatmeal Stout, Figueroa Mountain Stagecoach Stout, St-Ambroise Oatmeal Stout, Samuel Smith Oatmeal Stout, Young's Oatmeal Stout"]
[16,"C","Tropical Stout",16,"C","1075","1056","1018","1010","8,0","5,5",79,59,"50","30",0.77,2.6,2.2999999999999998,2.4500000000000002,"Ale","ABC Extra Stout, Dragon Stout, Jamaica Stout, Lion Stout, Royal Extra Stout"]
[16,"D","Foreign Extra Stout",16,"D","1075","1056","1018","1010","8,0","6,3",79,59,"70","50",0.77,2.6,2.2999999999999998,2.4500000000000002,"Ale","Coopers Best Extra Stout, Guinness Foreign Extra Stout, The Kernel Export Stout, Ridgeway Foreign Export Stout, Southwark Old Stout"]
[17,"A","British Strong Ale",17,"A","1080","1055","1022","1015","8,0","5,5",43,16,"60","30",0.22,2.2999999999999998,1.5,1.9,"Ale","Fuller’s 1845, Harvey’s Elizabethan Ale, J.W. Lees Manchester Star, Samuel Smith’s Winter Welcome, Young's Winter Warmer"]
[17,"B","Old Ale",17,"B","1088","1055","1022","1015","9,0","5,5",43,20,"60","30",0.57999999999999996,2.2999999999999998,1.5,1.9,"Ale","Burton Bridge Olde Expensive, Gale’s Prize Old Ale, Greene King Strong Suffolk Ale, Marston Owd Roger, Theakston Old Peculier"]
[17,"C","Wee Heavy",17,"C","1130","1070","1040","1018",10,"6,5",49,28,"35","17",0.22,2.2999999999999998,1.5,1.9,"Ale","Belhaven Wee Heavy, Gordon Highland Scotch Ale, Inveralmond Blackfriar, McEwan's Scotch Ale, Orkney Skull Splitter, Traquair House Ale"]
[17,"D","English Barleywine",17,"D","1120","1080","1030","1018",12,"8,0",43,16,"70","35",0.51,2.2999999999999998,1.3,1.7999999999999998,"Ale","Adnams Tally-Ho, Burton Bridge Thomas Sykes Old Ale, Coniston No. 9 Barley Wine, Fuller’s Golden Pride, J.W. Lee’s Vintage Harvest Ale, Robinson’s Old Tom"]
[18,"A","Blonde Ale",18,"A","1054","1038","1013","1008","5,5","3,8",12,6,"28","15",0.47,2.6,2.2999999999999998,2.4500000000000002,"Ale","Kona Big Wave Golden Ale, Pelican Kiwanda Cream Ale, Russian River Aud Blonde, Victory Summer Love, Widmer Citra Summer Blonde Brew"]
[18,"B","American Pale Ale",18,"B","1060","1045","1015","1010","6,2","4,5",20,10,"50","30",0.71,2.78,2.2599999999999998,2.5199999999999996,"Ale","Ballast Point Grunion Pale Ale, Firestone Walker Pale 31, Great Lakes Burning River, Sierra Nevada Pale Ale, Stone Pale Ale, Tröegs Pale Ale"]
[19,"A","Amber Ale",19,"A","1060","1045","1015","1010","6,2","4,5",33,20,"40","25",0.61,2.78,2.2599999999999998,2.5199999999999996,"Ale","Deschutes Cinder Cone Red, Full Sail Amber, Kona Lavaman Red Ale, North Coast Ruedrich's Red Seal Ale, Rogue American Amber Ale, Tröegs HopBack Amber Ale"]
[19,"B","California Common",19,"B","1054","1048","1014","1011","5,5","4,5",28,20,"45","30",0.72,2.8,2.4,2.5999999999999996,"Lager","Anchor Steam, Flying Dog Old Scratch Amber Lager, Schlafly Pi Common, Steamworks Steam Engine Lager"]
[19,"C","American Brown Ale",19,"C","1060","1045","1016","1010","6,2","4,3",69,35,"30","20",0.56000000000000005,2.5,1.5,2,"Ale","Anchor Brekle’s Brown, Big Sky Moose Drool Brown Ale, Brooklyn Brown Ale, Bell’s Best Brown, Cigar City Maduro Brown Ale, Smuttynose Old Brown Dog Ale, Telluride Face Down Brown"]
[20,"A","Robust Porter",20,"A","1070","1050","1018","1012","6,5","4,8",79,43,"50","25",0.65,2.5,1.8,2.15,"Ale","Anchor Porter, Boulevard Bully! Porter, Deschutes Black Butte Porter, Founders Porter, Great Lakes Edmund Fitzgerald Porter, Smuttynose Robust Porter, Sierra Nevada Porter"]
[20,"B","American Stout",20,"B","1075","1050","1022","1010","7,0","5,0",79,59,"75","35",0.85,2.6,2.2999999999999998,2.4500000000000002,"Ale","Avery Out of Bounds Stout, Deschutes Obsidian Stout, North Coast Old No. 38, Rogue Shakespeare Stout, Sierra Nevada Stout"]
[20,"C","Imperial Stout",20,"C","1115","1075","1030","1018",12,"8,0",79,59,"90","50",0.71,2.2999999999999998,1.5,1.9,"Ale","American –Bell’s Expedition Stout, Cigar City Marshal Zhukov’s Imperial Stout, Great Divide Yeti Imperial Stout, North Coast Old Rasputin Imperial Stout, Sierra Nevada Narwhal Imperial Stout; \nEnglish – Courage Imperial Russian Stout, Le Coq Imperial Extra Double Stout, Samuel Smith Imperial Stout"]
[21,"A","American IPA",21,"A","1070","1056","1014","1008","7,5","5,5",28,12,"70","40",0.85,2.2999999999999998,1.5,1.9,"Ale","Alpine Duet, Bell’s Two-Hearted Ale, Fat Heads Head Hunter IPA, Firestone Walker Union Jack, Lagunitas IPA, Russian River Blind Pig IPA, Stone IPA"]
[21,"B","Belgian IPA",21,"B","1080","1058","1016","1008","9,5","6,2",30,10,"100","50",0.8,2.2999999999999998,1.5,{"$f":"IF(R69=\"\",\"\",(R69+Q69)/2)","v":1.9},"Ale","Brewery Vivant Triomphe, Houblon Chouffe, Epic Brainless IPA, Green Flash Le Freak, Stone Cali-Belgique, Urthel Hop It"]
[21,"C","Black IPA",21,"C","1085","1050","1018","1010","9,0","5,5",79,49,"90","50",0.8,2.2999999999999998,1.5,1.9,"Ale","21st Amendment Back in Black (standard), Deschutes Hop in the Dark CDA (standard), Rogue Dad’s Little Helper (standard), Southern Tier Iniquity (double), Widmer Pitch Black IPA (standard)"]
[21,"D","Brown IPA",21,"D","1070","1056","1016","1008","7,5","5,5",37,22,"70","40",0.8,2.2999999999999998,1.5,1.9,"Ale","Dogfish Head Indian Brown Ale, Grand Teton Bitch Creek, Harpoon Brown IPA, Russian River Janet’s Brown Ale"]
[21,"E","Red IPA",21,"E","1070","1056","1016","1008","7,5","5,5",37,22,"70","40",0.8,2.2999999999999998,1.5,1.9,"Ale","Green Flash Hop Head Red Double Red IPA (double), Midnight Sun Sockeye Red, Sierra Nevada Flipside Red IPA, Summit Horizon Red IPA, Odell Runoff Red IPA"]
[21,"F","Rye IPA",21,"F","1075","1056","1014","1008","8,0","5,5",28,12,"75","50",0.8,2.2999999999999998,1.5,1.9,"Ale","Arcadia Sky High Rye, Bear Republic Hop Rod Rye, Founders Reds Rye, Great Lakes Rye of the Tiger, Sierra Nevada Ruthless Rye"]
[21,"G","White IPA",21,"G","1065","1056","1016","1010","7,0","5,5",16,10,"70","40",0.8,2.2999999999999998,1.5,1.9,"Ale","Blue Point White IPA, Deschutes Chainbreaker IPA, Harpoon The Long Thaw, New Belgium Accumulation"]
[22,"A","Double IPA",22,"A","1085","1065","1018","1008",10,"7,5",28,12,"120","60",0.8,2.2999999999999998,1.5,1.9,"Ale","Avery Maharaja, Fat Heads Hop Juju, Firestone Walker Double Jack, Port Brewing Hop 15, Russian River Pliny the Elder, Stone Ruination IPA, Three Floyds Dreadnaught"]
[22,"B","American Strong Ale",22,"B","1090","1062","1024","1014",10,"6,3",37,14,"100","50",0.84,2.2999999999999998,1.3,{"$f":"IF(R76=\"\",\"\",(R76+Q76)/2)","v":1.7999999999999998},"Ale","Bear Republic Red Rocket Ale, Great Lakes Nosferatu, Terrapin Big Hoppy Monster, Port Brewing Shark Attack Double Red, Stone Arrogant Bastard,"]
[22,"C","American Barleywine",22,"C","1120","1080","1030","1016",12,"8,0",37,20,"100","50",0.84,2.2999999999999998,1.3,1.7999999999999998,"Ale","Avery Hog Heaven Barleywine, Anchor Old Foghorn, Great Divide Old Ruffian, Rogue Old Crustacean, Sierra Nevada Bigfoot, Victory Old Horizontal"]
[22,"D","Wheatwine",22,"D","1120","1080","1030","1016",12,"8,0",30,16,"60","30",0.84,2.5,2,2.25,"Ale","Rubicon Winter Wheat Wine, Two Brothers Bare Trees Weiss Wine, Smuttynose Wheat Wine, Portsmouth Wheat Wine"]
[23,"A","Berliner Weisse",23,"A","1032","1028","1006","1003","3,8","2,8",6,4,"8","3",0.2,3.45,3.45,3.45,"Ale w. Lactic","Bayerischer Bahnhof Berliner Style Weisse, Berliner Kindl Weisse, Nodding Head Berliner Weisse, The Bruery Hottenroth"]
[23,"B","Flanders Red Ale",23,"B","1057","1048","1012","1002","6,5","4,6",32,20,"25","10",0.37,2.5,1.9,2.2000000000000002,"Ale w. Lactic","Cuvée des Jacobins Rouge, Duchesse de Bourgogne, Rodenbach Grand Cru, Rodenbach Klassiek, Vichtenaar Flemish Ale"]
[23,"C","Oud Bruin",23,"C","1074","1040","1012","1008","8,0","4,0",43,30,"25","20",0.41,2.5,1.9,2.2000000000000002,"Ale w. Lactic","Ichtegem Oud Bruin, Liefmans Goudenband, Liefmans Liefmans Oud Bruin, Petrus Oud Bruin, Riva Vondel, Vanderghinste Bellegems Bruin"]
[23,"D","Lambic",23,"D","1054","1040","1010","1001","6,5","5,0",14,6,"10","0",0.12,4.5,3,3.75,"Ale w. Lactic","The only bottled version readily available is Cantillon Grand Cru Bruocsella of whatever single batch vintage the brewer deems worthy to bottle. De Cam sometimes bottles their very old (5 years) lambic. \nIn and around Brussels there are specialty cafes that often have draught lambics from traditional brewers or blenders such as Boon, De Cam, Cantillon, Drie Fonteinen, Lindemans, Timmermans and Girardin."]
[23,"E","Gueuze",23,"E","1060","1040","1006","1000","8,0","5,0",14,6,"10","0",0.12,4.5,3,3.75,"Ale w. Lactic","Boon Oude Gueuze, Boon Oude Gueuze Mariage Parfait, Cantillon Gueuze, De Cam Gueuze, De Cam/Drei Fonteinen Millennium Gueuze, Drie Fonteinen Oud Gueuze, Girardin Gueuze (Black Label), \nHanssens Oude Gueuze, Lindemans Gueuze Cuvée René, Mort Subite (Unfiltered) Gueuze, Oud Beersel Oude Gueuze"]
[23,"F","Fruit Lambic",23,"F","1060","1040","1010","1000","7,0","5,0",14,6,"10","0",0.11,4.5,2.6,3.55,"Ale w. Lactic","Boon Framboise Marriage Parfait, Boon Kriek Mariage Parfait, Boon Oude Kriek, Cantillon Fou’ Foune, Cantillon Kriek, Cantillon Lou Pepe Kriek, Cantillon Lou Pepe Framboise, Cantillon Rose de Gambrinus, \nCantillon St. Lamvinus, Cantillon Vigneronne, De Cam Oude Kriek, Drie Fonteinen Kriek, Girardin Kriek, Hanssens Oude Kriek, Oud Beersel Kriek, Mort Subite Kriek"]
[24,"A","Witbier",24,"A","1052","1044","1012","1008","5,5","4,5",8,4,"20","8",0.32,2.6,2.1,2.35,"Ale","Allagash White, Blanche de Bruxelles, Celis White, Hoegaarden Wit, Ommegang Witte, St. Bernardus Witbier, Wittekerke"]
[24,"B","Belgian Pale Ale",24,"B","1054","1048","1014","1010","5,5","4,8",28,16,"30","20",0.49,2.5,1.9,2.2000000000000002,"Ale","De Koninck, De Ryck Special, Palm Dobble, Palm Speciale"]
[24,"C","Bière de Garde",24,"C","1080","1060","1016","1008","8,5","6,0",37,12,"28","18",0.35,2.5,1.9,2.2000000000000002,"Ale","Ch’Ti (brown and blond), Jenlain (amber and blond), La Choulette (all 3 versions), St. Amand (brown), Saint Sylvestre 3 Monts (blond), Russian River Perdition"]
[25,"A","Belgian Blond Ale",25,"A","1075","1062","1018","1008","7,5","6,0",14,8,"30","15",0.34,2.4,1.9,2.15,"Ale","Affligem Blond, Grimbergen Blond, La Trappe Blond, Leffe Blond, Val-Dieu Blond"]
[25,"B","Saison (pale) (standard)",25,"B","1065","1048","1008","1002","7,0","5,0",28,10,"35","20",0.54,2.4,1.9,2.15,"Ale","Ellezelloise Saison, Fantôme Saison, Lefebvre Saison 1900, Saison Dupont Vieille Provision, Saison de Pipaix, Saison Regal, Saison Voisin,  Boulevard Tank 7 Farmhouse Ale"]
[25,"C","Saison (dark) (standard)",25,"C","1065","1048","1008","1002","7,0","5,0",43,30,"35","20",0.54,2.4,1.9,2.15,"Ale"]
[25,"D","Saison (pale) (table)",25,"D","1065","1048","1008","1002","5,0","3,5",28,10,"35","20",0.54,2.4,1.9,2.15,"Ale"]
[25,"E","Saison (pale) (super)",25,"E","1065","1048","1008","1002","9,5","7,0",28,10,"35","20",0.54,2.4,1.9,2.15,"Ale"]
[25,"F","Belgian Golden Strong Ale",25,"F","1095","1070","1016","1005",10.5,"7,5",12,6,"35","22",0.38,2.4,1.9,2.15,"Ale","Brigand, Delirium Tremens, Dulle Teve, Duvel, Judas, Lucifer, Piraat, Russian River Damnation"]
[26,"A","Trappist Single",26,"A","1054","1044","1010","1004","6,0","4,8",10,6,"45","25",0.49,2.5,1.9,2.2000000000000002,"Ale","Achel 5° Blond, St. Bernardus Extra 4, Westmalle Extra, Westvleteren Blond"]
[26,"B","Belgian Dubbel",26,"B","1075","1062","1018","1008","7,6","6,0",33,20,"25","15",0.3,2.4,1.9,2.15,"Ale","Affligem Dubbel, Chimay Première, Corsendonk Pater, Grimbergen Double, La Trappe Dubbel, St. Bernardus Pater 6, Trappistes Rochefort 6, Westmalle Dubbel"]
[26,"C","Belgian Tripel",26,"C","1085","1075","1014","1008","9,5","7,5",14,9,"40","20",0.41,2.4,1.9,2.15,"Ale","Affligem Tripel, Chimay Cinq Cents, La Rulles Tripel, La Trappe Tripel, St. Bernardus Tripel, Unibroue La Fin Du Monde, Val-Dieu Triple, Watou Tripel, Westmalle Tripel"]
[26,"D","Belgian Dark Strong Ale",26,"D","1110","1075","1024","1010",12,"8,0",43,24,"35","20",0.31,2.5,1.9,2.2000000000000002,"Ale","Achel Extra Brune, Boulevard The Sixth Glass, Chimay Grande Réserve, Gouden Carolus Grand Cru of the Emperor, Rochefort 8 & 10, St. Bernardus Abt 12, Westvleteren 12"]
[27,"A","Historical Beer: Gose",27,"A","1056","1036","1010","1006","4,8","4,2",8,6,"12","5","",2.5,1.9,2.2000000000000002,"Ale","Anderson Valley Gose, Bayerisch Bahnhof Leipziger Gose, Döllnitzer Ritterguts Gose"]
[27,"B","Historical Beer: Kentucky Common",27,"B","1055","1044","1018","1010","5,5","4,0",39,22,"30","15",0.48,2.5,1.9,2.2000000000000002,"Ale","Apocalypse Brew Works Ortel’s 1912"]
[27,"C","Historical Beer: Lichtenhainer",27,"C","1040","1032","1008","1004","4,7","3,5",12,6,"12","5","-",2.5,1.9,2.2000000000000002,"Ale","- NONE LISTED -"]
[27,"D","Historical Beer: London Brown Ale",27,"D","1038","1033","1015","1012","3,6","2,8",69,43,"20","15","-",2.5,1.9,2.2000000000000002,"Ale","Harveys Bloomsbury Brown Ale, Mann's Brown Ale"]
[27,"E","Historical Beer: Piwo Grodziskie",27,"E","1032","1028","1012","1006","3,3","2,5",12,6,"35","20","-",5,4,4.5,"Ale","- NONE LISTED -"]
[27,"F","Historical Beer: Pre-Prohibition Lager",27,"F","1060","1044","1015","1010","6,0","4,5",12,6,"40","25","-",2.5,1.9,2.2000000000000002,"Lager","Anchor California Lager, Coors Batch 19, Little Harpeth Chicken Scratch"]
[27,"G","Historical Beer: Pre-Prohibition Porter",27,"G","1060","1046","1016","1010","6,0","4,5",59,35,"30","20","-",2.5,1.9,2.2000000000000002,"Ale","Stegmaier Porter, Yuengling Porter"]
[27,"H","Historical Beer: Roggenbier",27,"H","1056","1046","1014","1010","6,0","4,5",37,28,"20","10","-",2.5,1.9,2.2000000000000002,"Ale","Thurn und Taxis Roggen"]
[27,"I","Historical Beer: Sahti",27,"I","1120","1076","1020","1016",10,"7,0",43,8,"15","7","-",2.5,1.9,2.2000000000000002,"Ale","Now made year-round by several breweries in Finland."]
[27,"J","Old English Mild",27,"J",1066,1059,1019,1012,6.3,5.3,50,25,55,34,0.47,2,1.3,1.65,"Ale","Not part of BJCP 2015, but an old english beer style from around year 1900"]
[27,"K","Pale Mild",27,"K",1038,1030,1013,1008,4.5,2.8,50,25,25,10,0.47,2,1.3,{"$f":"IF(R108=\"\",\"\",(R108+Q108)/2)","v":1.65},"Ale","Not part of BJCP 2015, but an old english beer style from around year 1900"]
[28,"A","Brett Beer",28,"A","-","-","-","-","-","-","-","-","-","-","-","-","-","-","-","Boulevard Saison Brett, Hill Farmstead Arthur, Logsdon Seizoen Bretta, Russian River Sanctification, The Bruery Saison Rue, Victory Helios"]
[28,"B","Mixed-Fermentation Sour Beer",28,"B","-","-","-","-","-","-","-","-","-","-","-","-","-","-","-","Boulevard Love Child, Cascade Vlad the Imp Aler, Jester King Le Petit Prince, Jolly Pumpkin Calabaza Blanca, Russian River Temptation, The Bruery Rueuze, The Bruery Tart of Darkness"]
[28,"C","Wild Specialty Beer",28,"C","-","-","-","-","-","-","-","-","-","-","-","-","-","-","-","Cascade Bourbonic Plague, Jester King Atrial Rubicite, New Belgium Eric’s Ale, New Glarus Belgian Red, Russian River Supplication, The Lost Abbey Cuvee de Tomme"]
[29,"A","Fruit Beer",29,"A","-","-","-","-","-","-","-","-","-","-","-",3,2,2.5,"Ale","Bell’s Cherry Stout, Dogfish Head Aprihop, Ebulum Elderberry Black Ale, Founders Rübæus"]
[29,"B","Fruit and Spice Beer",29,"B","-","-","-","-","-","-","-","-","-","-","-","-","-","-","-","- NONE LISTED -"]
[29,"C","Specialty Fruit Beer",29,"C","-","-","-","-","-","-","-","-","-","-","-","-","-","-","-","New Planet Raspberry Ale"]
[30,"A","Spice, Herb, or Vegetable Beer",30,"A","-","-","-","-","-","-","-","-","-","-","-","-","-","-","-","Alesmith Speedway Stout, Bell’s Java Stout, Elysian Avatar Jasmine IPA, Founders Breakfast Stout, Rogue Chipotle Ale, Traquair Jacobite Ale, Young’s Double Chocolate Stout,"]
[30,"B","Autumn Seasonal Beer",30,"B","-","-","-","-","-","-","-","-","-","-","-","-","-","-","-","Dogfish Head Punkin Ale, Schlafly Pumpkin Ale, Southampton Pumpkin Ale"]
[30,"C","Christmas Beer",30,"C","-","-","-","-","-","-","-","-","-","-","-",2.2999999999999998,1.9,{"$f":"(R117+Q117)/2","v":2.0999999999999996},"Ale or Lager","Anchor Our Special Ale, Goose Island Christmas Ale, Great Lakes Christmas Ale, Harpoon Winter Warmer, Lakefront Holiday Spice Lager Beer, Weyerbacher Winter Ale"]
[30,"C","Påskebryg",30,"C","-","-","-","-","-","-","-","-","-","-","-",2.2999999999999998,1.9,{"$f":"(R118+Q118)/2","v":2.0999999999999996},"Ale or Lager"]
[30,"C","Winter Seasonal Beer",30,"C","-","-","-","-","-","-","-","-","-","-","-",2.2999999999999998,1.9,{"$f":"(R119+Q119)/2","v":2.0999999999999996},"Ale or Lager"]
[31,"A","Alternative Grain Beer",31,"A","-","-","-","-","-","-","-","-","-","-","-","-","-","-","-","Green’s Indian Pale Ale, Lakefront New Grist, New Planet Pale Ale"]
[31,"B","Alternative Sugar Beer",31,"B","-","-","-","-","-","-","-","-","-","-","-","-","-","-","-","Bell’s Hopslam, Fullers Honey Dew, Lagunitas Brown Shugga’"]
[32,"A","Classic Style Smoked Beer",32,"A","-","-","-","-","-","-","-","-","-","-","-","-","-","-","-","Alaskan Smoked Porter, Schlenkerla Weizen Rauchbier and Ur-Bock Rauchbier, Spezial Lagerbier, Weissbier and Bockbier, Stone Smoked Porter"]
[32,"B","Specialty Smoked Beer",32,"B","-","-","-","-","-","-","-","-","-","-","-","-","-","-","-","- NONE LISTED -"]
[33,"A","Wood-Aged Beer",33,"A","-","-","-","-","-","-","-","-","-","-","-",2.57,2.16,2.3650000000000002,"Ale","Bush Prestige, Cigar City Humidor India Pale Ale, Faust Holzfassgereifter Eisbock, Firestone Walker Double Barrel Ale, Great Divide Oak Aged Yeti Imperial Stout, Petrus Aged Pale, Samuel Smith Yorkshire Stingo"]
[33,"B","Specialty Wood-Aged Beer",33,"B","-","-","-","-","-","-","-","-","-","-","-","-","-","-","-","Founders Kentucky Breakfast Stout, Goose Island Bourbon County Stout, J.W. Lees Harvest Ale in Port, Sherry, Lagavulin Whisky or Calvados Casks, The Lost Abbey Angel’s Share Ale; \nMany microbreweries have specialty beers served only on premises often directly from the cask."]
[34,"A","Clone Beer",34,"A","-","-","-","-","-","-","-","-","-","-","-","-","-","-","-","- NONE LISTED -"]
[34,"B","Mixed-Style Beer",34,"B","-","-","-","-","-","-","-","-","-","-","-","-","-","-","-","- NONE LISTED -"]
[34,"C","Experimental Beer",34,"C","-","-","-","-","-","-","-","-","-","-","-","-","-","-","-","- NONE LISTED -"]

{"sheet":"Indkøb","index":13,"n_rows":45,"n_cols":8,"rows_kept":45,"cut":false,"hidden":false,"merged":[[1,0,1,9],[2,1,2,7]]}
[]
["Her kopieres varer til indkøb - filtrér tomme felter væk for at samle listen"]
[null,"Indsæt evt. selv bemærkninger og faktiske enhedspriser, \nellers regnes med priser på malt- og humlesiderne."]
[]
[null,"Vare",null,"Vægt","Enhed","à pris","Pris","Bemærkning"]
[null,{"$f":"IF(BrewReport!A9=\"\",\"\",BrewReport!A9)","v":""},null,{"$f":"IF(BrewReport!D9=\"\",\"\",BrewReport!D9*1000)","v":""},{"$f":"IF(D6=\"\",\"\",\"g\")","v":""},null,{"$f":"IF(F6=\"\",IFERROR(VLOOKUP($B6,Malt!$A$3:$L$85,COLUMN(INDIRECT(CONCATENATE(HLOOKUP(BrewReport!$F$7,Malt!$H$1:$L$2,2,FALSE),2))),FALSE),\"\"),F6*D6)","v":""}]
[null,{"$f":"IF(BrewReport!A10=\"\",\"\",BrewReport!A10)","v":""},null,{"$f":"IF(BrewReport!D10=\"\",\"\",BrewReport!D10*1000)","v":""},"",null,{"$f":"IF(F7=\"\",IFERROR(VLOOKUP($B7,Malt!$A$3:$L$85,COLUMN(INDIRECT(CONCATENATE(HLOOKUP(BrewReport!$F$7,Malt!$H$1:$L$2,2,FALSE),2))),FALSE),\"\"),F7*D7)","v":""}]
[null,{"$f":"IF(BrewReport!A11=\"\",\"\",BrewReport!A11)","v":""},null,{"$f":"IF(BrewReport!D11=\"\",\"\",BrewReport!D11*1000)","v":""},"",null,{"$f":"IF(F8=\"\",IFERROR(VLOOKUP($B8,Malt!$A$3:$L$85,COLUMN(INDIRECT(CONCATENATE(HLOOKUP(BrewReport!$F$7,Malt!$H$1:$L$2,2,FALSE),2))),FALSE),\"\"),F8*D8)","v":""}]
[null,{"$f":"IF(BrewReport!A12=\"\",\"\",BrewReport!A12)","v":""},null,{"$f":"IF(BrewReport!D12=\"\",\"\",BrewReport!D12*1000)","v":""},"",null,{"$f":"IF(F9=\"\",IFERROR(VLOOKUP($B9,Malt!$A$3:$L$85,COLUMN(INDIRECT(CONCATENATE(HLOOKUP(BrewReport!$F$7,Malt!$H$1:$L$2,2,FALSE),2))),FALSE),\"\"),F9*D9)","v":""}]
[null,{"$f":"IF(BrewReport!A13=\"\",\"\",BrewReport!A13)","v":""},null,{"$f":"IF(BrewReport!D13=\"\",\"\",BrewReport!D13*1000)","v":""},"",null,{"$f":"IF(F10=\"\",IFERROR(VLOOKUP($B10,Malt!$A$3:$L$85,COLUMN(INDIRECT(CONCATENATE(HLOOKUP(BrewReport!$F$7,Malt!$H$1:$L$2,2,FALSE),2))),FALSE),\"\"),F10*D10)","v":""}]
[null,{"$f":"IF(BrewReport!A14=\"\",\"\",BrewReport!A14)","v":""},null,{"$f":"IF(BrewReport!D14=\"\",\"\",BrewReport!D14*1000)","v":""},"",null,{"$f":"IF(F11=\"\",IFERROR(VLOOKUP($B11,Malt!$A$3:$L$85,COLUMN(INDIRECT(CONCATENATE(HLOOKUP(BrewReport!$F$7,Malt!$H$1:$L$2,2,FALSE),2))),FALSE),\"\"),F11*D11)","v":""}]
[null,{"$f":"IF(BrewReport!A15=\"\",\"\",BrewReport!A15)","v":""},null,{"$f":"IF(BrewReport!D15=\"\",\"\",BrewReport!D15*1000)","v":""},"",null,{"$f":"IF(F12=\"\",IFERROR(VLOOKUP($B12,Malt!$A$3:$L$85,COLUMN(INDIRECT(CONCATENATE(HLOOKUP(BrewReport!$F$7,Malt!$H$1:$L$2,2,FALSE),2))),FALSE),\"\"),F12*D12)","v":""}]
[null,{"$f":"IF(BrewReport!A16=\"\",\"\",BrewReport!A16)","v":""},null,{"$f":"IF(BrewReport!D16=\"\",\"\",BrewReport!D16*1000)","v":""},"",null,{"$f":"IF(F13=\"\",IFERROR(VLOOKUP($B13,Malt!$A$3:$L$85,COLUMN(INDIRECT(CONCATENATE(HLOOKUP(BrewReport!$F$7,Malt!$H$1:$L$2,2,FALSE),2))),FALSE),\"\"),F13*D13)","v":""}]
[null,{"$f":"IF(BrewReport!A17=\"\",\"\",BrewReport!A17)","v":""},null,{"$f":"IF(BrewReport!D17=\"\",\"\",BrewReport!D17*1000)","v":""},"",null,{"$f":"IF(F14=\"\",IFERROR(VLOOKUP($B14,Malt!$A$3:$L$85,COLUMN(INDIRECT(CONCATENATE(HLOOKUP(BrewReport!$F$7,Malt!$H$1:$L$2,2,FALSE),2))),FALSE),\"\"),F14*D14)","v":""}]
[null,{"$f":"IF(BrewReport!A18=\"\",\"\",BrewReport!A18)","v":"Torrefied Flaked Oat"},null,{"$f":"IF(BrewReport!D18=\"\",\"\",BrewReport!D18*1000)","v":300},"g",null,{"$f":"IF(F15=\"\",IFERROR(VLOOKUP($B15,Malt!$A$3:$L$85,COLUMN(INDIRECT(CONCATENATE(HLOOKUP(BrewReport!$F$7,Malt!$H$1:$L$2,2,FALSE),2))),FALSE),\"\"),F15*D15)","v":9}]
[null,{"$f":"IF(BrewReport!A23=\"\",\"\",BrewReport!A23)","v":""},{"$f":"IF(BrewReport!B23=\"\",\"\",BrewReport!B23)","v":""},{"$f":"IF(BrewReport!D23=\"\",\"\",BrewReport!D23)","v":""},{"$f":"IF(D16=\"\",\"\",\"g\")","v":""},null,{"$f":"IF(F16=\"\",IF(B16=\"\",\"\",IF(VLOOKUP(B16,Humle!$A$3:$I$73,1,FALSE)=\"\",\"\",VLOOKUP(B16,Humle!$A$3:$I$73,9,FALSE)*D16)),D16*F16)","v":""}]
[null,{"$f":"IF(BrewReport!A24=\"\",\"\",BrewReport!A24)","v":""},{"$f":"IF(BrewReport!B24=\"\",\"\",BrewReport!B24)","v":""},{"$f":"IF(BrewReport!D24=\"\",\"\",BrewReport!D24)","v":""},{"$f":"IF(D17=\"\",\"\",\"g\")","v":""},null,{"$f":"IF(F17=\"\",IF(B17=\"\",\"\",IF(VLOOKUP(B17,Humle!$A$3:$I$73,1,FALSE)=\"\",\"\",VLOOKUP(B17,Humle!$A$3:$I$73,9,FALSE)*D17)),D17*F17)","v":""}]
[null,{"$f":"IF(BrewReport!A25=\"\",\"\",BrewReport!A25)","v":""},{"$f":"IF(BrewReport!B25=\"\",\"\",BrewReport!B25)","v":""},{"$f":"IF(BrewReport!D25=\"\",\"\",BrewReport!D25)","v":""},"",null,{"$f":"IF(F18=\"\",IF(B18=\"\",\"\",IF(VLOOKUP(B18,Humle!$A$3:$I$73,1,FALSE)=\"\",\"\",VLOOKUP(B18,Humle!$A$3:$I$73,9,FALSE)*D18)),D18*F18)","v":""}]
[null,{"$f":"IF(BrewReport!A27=\"\",\"\",BrewReport!A27)","v":""},{"$f":"IF(BrewReport!B27=\"\",\"\",BrewReport!B27)","v":""},{"$f":"IF(BrewReport!D27=\"\",\"\",BrewReport!D27)","v":""},"",null,{"$f":"IF(F19=\"\",IF(B19=\"\",\"\",IF(VLOOKUP(B19,Humle!$A$3:$I$73,1,FALSE)=\"\",\"\",VLOOKUP(B19,Humle!$A$3:$I$73,9,FALSE)*D19)),D19*F19)","v":""}]
[null,{"$f":"IF(BrewReport!A28=\"\",\"\",BrewReport!A28)","v":""},{"$f":"IF(BrewReport!B28=\"\",\"\",BrewReport!B28)","v":""},{"$f":"IF(BrewReport!D28=\"\",\"\",BrewReport!D28)","v":""},"",null,{"$f":"IF(F20=\"\",IF(B20=\"\",\"\",IF(VLOOKUP(B20,Humle!$A$3:$I$73,1,FALSE)=\"\",\"\",VLOOKUP(B20,Humle!$A$3:$I$73,9,FALSE)*D20)),D20*F20)","v":""}]
[null,{"$f":"IF(BrewReport!A29=\"\",\"\",BrewReport!A29)","v":""},{"$f":"IF(BrewReport!B29=\"\",\"\",BrewReport!B29)","v":""},{"$f":"IF(BrewReport!D29=\"\",\"\",BrewReport!D29)","v":""},"",null,{"$f":"IF(F21=\"\",IF(B21=\"\",\"\",IF(VLOOKUP(B21,Humle!$A$3:$I$73,1,FALSE)=\"\",\"\",VLOOKUP(B21,Humle!$A$3:$I$73,9,FALSE)*D21)),D21*F21)","v":""}]
[null,{"$f":"IF(BrewReport!A31=\"\",\"\",BrewReport!A31)","v":""},{"$f":"IF(BrewReport!B31=\"\",\"\",BrewReport!B31)","v":""},{"$f":"IF(BrewReport!D31=\"\",\"\",BrewReport!D31)","v":""},"",null,{"$f":"IF(F22=\"\",IF(B22=\"\",\"\",IF(VLOOKUP(B22,Humle!$A$3:$I$73,1,FALSE)=\"\",\"\",VLOOKUP(B22,Humle!$A$3:$I$73,9,FALSE)*D22)),D22*F22)","v":""}]
[null,{"$f":"IF(BrewReport!A32=\"\",\"\",BrewReport!A32)","v":""},{"$f":"IF(BrewReport!B32=\"\",\"\",BrewReport!B32)","v":""},{"$f":"IF(BrewReport!D32=\"\",\"\",BrewReport!D32)","v":""},"",null,{"$f":"IF(F23=\"\",IF(B23=\"\",\"\",IF(VLOOKUP(B23,Humle!$A$3:$I$73,1,FALSE)=\"\",\"\",VLOOKUP(B23,Humle!$A$3:$I$73,9,FALSE)*D23)),D23*F23)","v":""}]
[null,{"$f":"IF(BrewReport!A33=\"\",\"\",BrewReport!A33)","v":""},{"$f":"IF(BrewReport!B33=\"\",\"\",BrewReport!B33)","v":""},{"$f":"IF(BrewReport!D33=\"\",\"\",BrewReport!D33)","v":""},"",null,{"$f":"IF(F24=\"\",IF(B24=\"\",\"\",IF(VLOOKUP(B24,Humle!$A$3:$I$73,1,FALSE)=\"\",\"\",VLOOKUP(B24,Humle!$A$3:$I$73,9,FALSE)*D24)),D24*F24)","v":""}]
[null,{"$f":"IF(BrewReport!A35=\"\",\"\",BrewReport!A35)","v":""},{"$f":"IF(BrewReport!B35=\"\",\"\",BrewReport!B35)","v":""},{"$f":"IF(BrewReport!D35=\"\",\"\",BrewReport!D35)","v":""},{"$f":"IF(D25=\"\",\"\",\"g\")","v":""},null,{"$f":"IF(F25=\"\",IF(B25=\"\",\"\",IF(VLOOKUP(B25,Humle!$A$3:$I$73,1,FALSE)=\"\",\"\",VLOOKUP(B25,Humle!$A$3:$I$73,9,FALSE)*D25)),D25*F25)","v":""}]
[null,{"$f":"IF(BrewReport!A36=\"\",\"\",BrewReport!A36)","v":""},{"$f":"IF(BrewReport!B36=\"\",\"\",BrewReport!B36)","v":""},{"$f":"IF(BrewReport!D36=\"\",\"\",BrewReport!D36)","v":""},{"$f":"IF(D26=\"\",\"\",\"g\")","v":""},null,{"$f":"IF(F26=\"\",IF(B26=\"\",\"\",IF(VLOOKUP(B26,Humle!$A$3:$I$73,1,FALSE)=\"\",\"\",VLOOKUP(B26,Humle!$A$3:$I$73,9,FALSE)*D26)),D26*F26)","v":""}]
[null,{"$f":"IF(BrewReport!A37=\"\",\"\",BrewReport!A37)","v":""},{"$f":"IF(BrewReport!B37=\"\",\"\",BrewReport!B37)","v":""},{"$f":"IF(BrewReport!D37=\"\",\"\",BrewReport!D37)","v":""},"",null,{"$f":"IF(F27=\"\",IF(B27=\"\",\"\",IF(VLOOKUP(B27,Humle!$A$3:$I$73,1,FALSE)=\"\",\"\",VLOOKUP(B27,Humle!$A$3:$I$73,9,FALSE)*D27)),D27*F27)","v":""}]
[null,{"$f":"IF(BrewReport!A39=\"\",\"\",BrewReport!A39)","v":""},null,{"$f":"IF(BrewReport!D39=\"\",\"\",BrewReport!D39)","v":""},"",null,{"$f":"IF(D28=\"\",\"\",F28*D28)","v":""}]
[null,{"$f":"IF(BrewReport!A40=\"\",\"\",BrewReport!A40)","v":""},null,{"$f":"IF(BrewReport!D40=\"\",\"\",BrewReport!D40)","v":""},"",null,""]
[null,{"$f":"IF(BrewReport!A41=\"\",\"\",BrewReport!A41)","v":""},null,{"$f":"IF(BrewReport!D41=\"\",\"\",BrewReport!D41)","v":""},"",null,""]
[null,{"$f":"IF(BrewReport!A42=\"\",\"\",BrewReport!A42)","v":""},null,{"$f":"IF(BrewReport!D42=\"\",\"\",BrewReport!D42)","v":""},"",null,""]
[null,{"$f":"IF(BrewReport!A43=\"\",\"\",BrewReport!A43)","v":""},null,{"$f":"IF(BrewReport!D43=\"\",\"\",BrewReport!D43)","v":""},"",null,""]
[null,{"$f":"IF(BrewReport!A44=\"\",\"\",BrewReport!A44)","v":""},null,{"$f":"IF(BrewReport!D44=\"\",\"\",BrewReport!D44)","v":""},"",null,""]
[null,{"$f":"IF(BrewReport!L54=\"\",\"\",BrewReport!L54)","v":""},null,{"$f":"IF(B34=\"\",\"\",1)","v":""},{"$f":"IF(D34=\"\",\"\",\"pakke\")","v":""},25,""]
[null,{"$f":"IF(BrewReport!L55=\"\",\"\",BrewReport!L55)","v":""},null,{"$f":"IF(B35=\"\",\"\",1)","v":""},{"$f":"IF(D35=\"\",\"\",\"pakke\")","v":""},null,""]
[null,{"$f":"IF(BrewReport!L63=\"\",\"\",BrewReport!L63)","v":""},null,"","",null,""]
[null,{"$f":"IF(BrewReport!L64=\"\",\"\",BrewReport!L64)","v":""},null,"","",null,""]
[]
[null,"I alt",null,null,null,null,{"$f":"SUM(G6:G38)","v":9}]
[]
[null,"Fragt"]
[]
[null,"Total",null,null,null,null,{"$f":"SUM(G39:G42)","v":9}]
[]
[null,"Pr. flaske ved 40 stk.:",null,null,null,null,{"$f":"G43/40","v":0.22500000000000001}]

{"sheet":"Fejlsøgning","index":14,"n_rows":104,"n_cols":2,"rows_kept":104,"cut":false,"hidden":false,"merged":[[11,0,16,0],[5,0,10,0],[39,0,41,0],[37,0,38,0],[35,0,36,0],[31,0,34,0],[26,0,30,0],[22,0,25,0],[61,0,65,0],[58,0,60,0],[53,0,57,0],[46,0,52,0],[17,0,21,0],[0,0,0,1],[2,0,2,1],[103,0,104,0],[101,0,102,0],[98,0,100,0],[95,0,97,0],[93,0,94,0],[91,0,92,0],[42,0,45,0],[87,0,90,0],[84,0,86,0],[82,0,83,0],[79,0,81,0],[75,0,78,0],[69,0,74,0],[66,0,68,0]]}
["Troubleshooting Chart"]
[]
["Key:    “X”: For beers made with malt extract,      “AG”: For all-grain beers"]
[]
["Problem","Causes"]
["Fermentation does not start","Inadequate amount of yeast pitched"]
[null,"Wort too hot (yeast stunned/killed)"]
[null,"Wort too cold (yeast dormant)"]
[null,"Fermentation fine, but bucket not sealed (so you can’t see bubbles in airlock)"]
[null,"Fermentation already complete (look for ring of “crud” around inside of fermenter)"]
[]
["Stuck fermentation","Not enough yeast pitched"]
[null,"Inadequate aeration"]
[null,"Wort temperature too low"]
[null,"Yeast strain flocculated early (rousing yeast may help)"]
[null,"Fermentation is finished, not stuck (take specific gravity to check)"]
[]
["A puckering, tea-like quality; sometimes confused with bitterness (astringency)","X: steeped grains in too much water (over 3 quarts water per pound of grain)"]
[null,"X: steeping water too hot (over 170 °F)"]
[null,"AG: excessive volume of sparge water (collected wort less than SG 1.008 or above a pH of 5.8)"]
[null,"AG: excessively hot sparge water (over 170 °F)"]
[]
["Sour or tart beer","Contamination"]
[null,"Tart ingredients (like raspberries or cranberries)"]
[null,"AG: mash sat overnight and temperature dropped to 120 °F (or below)"]
[]
["A buttery or butterscotch-like flavor or aroma (diacetyl)","Yeast did not absorb diacetyl (a diacetyl rest is required for some lager yeast strains)"]
[null,"Contamination"]
[null,"Racked beer too early"]
[null,"Yeast strain"]
[]
["Overly fruity aromas, especially banana (estery)","High fermentation temperatures"]
[null,"Inadequate pitching rate"]
[null,"Yeast strain (some British and Belgian ale strains are supposed to be very fruity)"]
[]
["Chloraseptic-like or Band-aid-like aroma or flavor (phenolic)","Contamination"]
[]
["Vinegar flavor or aroma (acetic)","Contamination, especially in conjunction with exposure to oxygen"]
[]
["Wort darker than expected","X: concentrated wort boil"]
[null,"X: scorching of malt extract (stir in thoroughly)"]
[]
["Stuck mash","Running off wort too quickly"]
[null,"Grains crushed too finely"]
[null,"High percentage of wheat or rye"]
[]
["Low extract efficiency","Crush too coarse"]
[null,"Collecting wort too fast"]
[null,"Collecting too little volume of wort per unit of grain"]
[null,"Poor lauter tun design"]
[null,"Water chemistry not conducive to good mash (check calcium levels first)"]
[null,"pH outside of 5.2-5.6 range"]
[]
["Overly high final gravity (FG)","Maybe the beer was supposed to have a high FG"]
[null,"High percentage of specialty malt in recipe"]
[null,"Yeast strain"]
[null,"Any of causes listed under “stuck fermentation” (above)"]
[]
["Chill haze","Use Irish moss (at rate of 1 tsp. per 5 gallons"]
[null,"Boil too short or not vigorous enough"]
[]
["Poor foam","Glassware dirty"]
[null,"Weak fermentation"]
[null,"Too little protein in wort (esp. when high amounts of adjunct are used)"]
[null,"AG: overly-long rest at 122-131 °F"]
[]
["Mold on surface of beer","It may be yeast, not mold (different yeast strains behave differently)"]
[null,"Wort is exposed to oxygen, which encourages surface growths"]
[]
["Bottle-conditioned beer is flat","Move bottles to warmer location for conditioning"]
[null,"Give beer more time to condition"]
[null,"Beer and priming sugar not adequately mixed in bottling bucket"]
[null,"You forgot the priming sugar"]
[null,"Not enough yeast left in beer to bottle condition (rarely happens)"]
[]
["Bottle-conditioned beer is overcarbonated","Contamination"]
[null,"Beer and priming sugar not adequately mixed in bottling bucket"]
[null,"Too much priming sugar"]
[]
["Beer’s original gravity (OG) too low","X: wort and topping up water not mixed thoroughly"]
[null,"AG: poor extract efficiency (see above)"]
[]
["Cheesy aroma or flavor","Hops are old and stale"]
[]
["Corn-like aroma or flavor (DMS)","Wort cooled too slowly when certain very pale malts used"]
[null,"contamination"]
[]
["Solvent-like or nail- polish aromas (higher alcohols, fusel oils)","Fermentation temperature too high"]
[null,"Inadequate aeration"]
[null,"High original gravity"]
[]
["Skunk-like aroma","Beer exposed to light (especially due to bottling in clear or green bottles)"]
[]
["Wet cardboard aromas and flavors (oxidation)","Beer exposed to oxygen during late fermentation or conditioning"]
[]
["Sherry-like aromas or flavor (oxidation)","Beer exposed to oxygen during late fermentation or conditioning"]
[null,"Long aging of high-alcohol beers (appropriate in some cases)"]
[]
["Excessive sediment in bottle conditioned beer","Some sediment is always present"]
[null,"Let beer fall clear before bottling"]
[]
["Water, wort or beer on floor","Be sure all valves are closed before transferring liquid to a vessel"]
[]
["Beer on ceiling","Fermentation lock clogged (use blow-off tube next time)"]

{"sheet":"Links","index":15,"n_rows":40,"n_cols":2,"rows_kept":40,"cut":false,"hidden":false,"merged":[]}
[]
["Shopping:","http://www.hjemmebryggeren.dk/"]
[null,"http://brygladen.com/"]
[null,"http://www.albryg.dk/"]
[null,"http://www.bryglageret.dk/"]
[null,"https://brygforretningen.dk/"]
[null,"https://brewparts.dk/"]
[]
["Hops","http://beerlegends.com/hops"]
[null,"https://ychhops.com/varieties"]
[null,"http://www.castlemalting.com/CastleMaltingHops.asp?P=105&Language=Danish"]
[null,"https://humlecentralen.dk/humle/"]
[null,"http://maltmanden.dk/humle-guiden/"]
[]
["Hop Plants","http://www.eickelmann.de/Hopfen-Shop/de/"]
[]
["Recipes","http://www.candisyrup.com/recipes.html"]
[null,"http://www.castlemalting.com/CastleMaltingBeerRecipes.asp?P=94&Language=Danish"]
[null,"http://www.brewingwithbriess.com/Recipes/"]
[]
["Ressource Guides:","https://byo.com/resources"]
[]
["How to Brew by John Palmer","http://howtobrew.com/"]
[]
["Malt","http://www.castlemalting.com/CastleMaltingMalts.asp?P=105&Language=Danish"]
[]
["Malt descriptions","http://www.beercolor.com/malt_descriptions.htm"]
[]
["Yeast","https://www.wyeastlab.com/hb_yeaststrain.cfm"]
[null,"http://mangrovejacks.com/collections/craft-series-yeasts"]
[null,"https://www.whitelabs.com/beer/homebrew/listings"]
[null,"http://www.fermentis.com/brewing/homebrewing/product-range/"]
[]
["BU:GU / RBR","http://www.madalchemist.com/chart_bitterness_corrected.html"]
[]
["Glenn Tinseth's Website","http://www.realbeer.com/hops/"]
[]
["Online Converter (mål, vægt m.m.)","https://justcnw.com/"]
[]
["Beer Judge Certification Program","http://bjcp.org/"]